Workbook

Sheet Base original
B1: COLOCACIONES | G1: TASAS DE INTERÉS POR TIPO | Y1: AGREGADOS MONETARIOS | AW1: TASAS DE INTERÉS POR PLAZO
B2: Colocaciones balances individuales | G2: consumo ($) | L2: comerciales ($) | R2: comercio exterior (US$) | X2: vivienda (UF) | Y2: M1 | AD2: M2 | AK2: M3 | AW2: 30 a 89 días nominal | AY2: 90 días a 1 año nominal | BA2: 1 a 3 años nominal | BC2: más de 3 años nominal
B3: Comerciales | C3: Consumo | D3: Vivienda | E3: Comercio exterior | F3: Total | G3: consumo promedio | H3: Menos de 6 meses | I3: 6 meses - 1 año | J3: 1 - 3 años | K3: más de 3 años | L3: comercio promedio | M3: Menos de 1 mes | N3: 1 - 3 meses | O3: 3 - 6 meses | P3: 6 meses - 1 año | Q3: Más de 1 año | R3: comex promedio | S3: Menos de 1 mes | T3: 1 - 3 meses | U3: 3 - 6 meses | V3: 6 meses - 1 año | W3: Más de 1 año | X3: más de 3 años | Y3: Base monetaria | Z3: C | AA3: D1 | AB3: Dvb + Ahv | AC3: M1 | AD3: Dp | AE3: Ahp | AF3: Cuotas de FM en instr. de hasta un año | AG3: Captaciones de CAC | AH3: Inversiones de FM en M2 | AI3: Inversiones de CAC en M2 | AJ3: M2 | AK3: Depósito en moneda extranjera | AL3: Documentos del Banco Central | AM3: Bonos de Tesorería | AN3: Letras de crédito | AO3: Efectos de comercio | AP3: Bono de Empresa | AQ3: Cuotas del resto de FM | AR3: Cuotas de ahorro voluntario AFP | AS3: Inversión de FM en M3 | AT3: Inversión de AFP en M3 | AU3: M3 | AW3: captación | AX3: colocación | AY3: captación | AZ3: colocación | BA3: captación | BB3: colocación | BC3: captación | BD3: colocación
B4: miles de millones de pesos | G4: tasas base anual 360 días, porcentaje | Y4: miles de millones de pesos | AW4: tasas base anual 360 días, porcentaje
B5: Fuente: Banco Central de Chile y Superintendencia de Bancos e Instituciones Financieras. | G5: Fuente: Banco Central de Chile | Y5: Fuente: Banco Central de Chile | AW5: Fuente: Banco Central de Chile
B6: F022.COMBI.STO.Z.Z.CLP.M | C6: F022.CONBI.STO.Z.Z.CLP.M | D6: F022.VIVBI.STO.Z.Z.CLP.M | E6: F022.CMXBI.STO.Z.Z.CLP.M | F6: F022.CTOBI.STO.Z.Z.CLP.M | G6: F022.CON.TIP.Z.NO.Z.M | H6: F022.CON.TIP.HM06.NO.Z.M | I6: F022.CON.TIP.M6A1.NO.Z.M | J6: F022.CON.TIP.A1A3.NO.Z.M | K6: F022.CON.TIP.MA03.NO.Z.M | L6: F022.COM.TIP.Z.NO.Z.M | M6: F022.COM.TIP.HM01.NO.Z.M | N6: F022.COM.TIP.M1M3.NO.Z.M | O6: F022.COM.TIP.M3M6.NO.Z.M | P6: F022.COM.TIP.M6A1.NO.Z.M | Q6: F022.COM.TIP.MA01.NO.Z.M | R6: F022.CMX.TIP.Z.US.Z.M | S6: F022.CMX.TIP.HM01.US.Z.M | T6: F022.CMX.TIP.M1M3.US.Z.M | U6: F022.CMX.TIP.M3M6.US.Z.M | V6: F022.CMX.TIP.M6A1.US.Z.M | W6: F022.CMX.TIP.MA01.US.Z.M | X6: F022.VIV.TIP.MA03.UF.Z.M | Y6: F021.BMO.STO.N.CLP.0.M | Z6: F021.CIR.STO.N.CLP.0.M | AA6: F021.DCC.STO.N.CLP.0.M | AB6: F021.DA.STO.N.CLP.0.M | AC6: F021.M1.STO.N.CLP.0.M | AD6: F021.DP.STO.N.CLP.0.M | AE6: F021.AHP.STO.N.CLP.0.M | AF6: F021.FM.STO.N.CLP.0.M | AG6: F021.CAC.STO.N.CLP.0.M | AH6: F021.FM2.STO.N.CLP.0.M | AI6: F021.CA2.STO.N.CLP.0.M | AJ6: F021.M2.STO.N.CLP.0.M | AK6: F021.DME.STO.N.CLP.0.M | AL6: F021.DBC.STO.N.CLP.0.M | AM6: F021.BOT.STO.N.CLP.0.M | AN6: F021.LCR.STO.N.CLP.0.M | AO6: F021.ECO.STO.N.CLP.0.M | AP6: F021.BOE.STO.N.CLP.0.M | AQ6: F021.FMR.STO.N.CLP.0.M | AR6: F021.CAV.STO.N.CLP.0.M | AS6: F021.FM3.STO.N.CLP.0.M | AT6: F021.AF3.STO.N.CLP.0.M | AU6: F021.M3.STO.N.CLP.0.M | AW6: F022.CAP.TIN.D089.NO.Z.M | AX6: F022.COL.TIN.D089.NO.Z.M | AY6: F022.CAP.TIN.AN01.NO.Z.M | AZ6: F022.CAP.TIN.Z.NO.Z.M | BA6: F022.CAP.TIN.AN03.NO.Z.M | BB6: F022.COL.TIN.AN03.NO.Z.M | BC6: F022.CAP.TIN.MA03.NO.Z.M | BD6: F022.COL.TIN.MA03.NO.Z.M
A11: 2006-01-01 | B11: =[1]!FAMEData(B6, "2006", "2013", 0,"Monthly", "Down", "No Heading", "Normal") -> 25877.189 | C11: =[1]!FAMEData(C6, "2006", "2013", 0,"Monthly", "Down", "No Heading", "Normal") -> 5571.003 | D11: =[1]!FAMEData(D6, "2006", "2013", 0,"Monthly", "Down", "No Heading", "Normal") -> 9317.488 | E11: =[1]!FAMEData(E6, "2006", "2013", 0,"Monthly", "Down", "No Heading", "Normal") -> 3905.426 | F11: =[1]!FAMEData(F6, "2006", "2013", 0,"Monthly", "Down", "No Heading", "Normal") -> 44671.106 | G11: =[1]!FAMEData(G6, "2006", "2013", 0,"Monthly", "Down", "No Heading", "Normal") -> 26.84010551 | H11: =[1]!FAMEData(H6, "2006", "2013", 0,"Monthly", "Down", "No Heading", "Normal") -> 27.02 | I11: =[1]!FAMEData(I6, "2006", "2013", 0,"Monthly", "Down", "No Heading", "Normal") -> 31.99 | J11: =[1]!FAMEData(J6, "2006", "2013", 0,"Monthly", "Down", "No Heading", "Normal") -> 24.95 | K11: =[1]!FAMEData(K6, "2006", "2013", 0,"Monthly", "Down", "No Heading", "Normal") -> 22.13 | L11: =[1]!FAMEData(L6, "2006", "2013", 0,"Monthly", "Down", "No Heading", "Normal") -> 10.27317257 | M11: =[1]!FAMEData(M6, "2006", "2013", 0,"Monthly", "Down", "No Heading", "Normal") -> 9.25 | N11: =[1]!FAMEData(N6, "2006", "2013", 0,"Monthly", "Down", "No Heading", "Normal") -> 7.9 | O11: =[1]!FAMEData(O6, "2006", "2013", 0,"Monthly", "Down", "No Heading", "Normal") -> 8.66 | P11: =[1]!FAMEData(P6, "2006", "2013", 0,"Monthly", "Down", "No Heading", "Normal") -> 12.71 | Q11: =[1]!FAMEData(Q6, "2006", "2013", 0,"Monthly", "Down", "No Heading", "Normal") -> 14.03 | R11: =[1]!FAMEData(R6, "2006", "2013", 0,"Monthly", "Down", "No Heading", "Normal") -> 5.289234388 | S11: =[1]!FAMEData(S6, "2006", "2013", 0,"Monthly", "Down", "No Heading", "Normal") -> 5.03 | T11: =[1]!FAMEData(T6, "2006", "2013", 0,"Monthly", "Down", "No Heading", "Normal") -> 5.05 | U11: =[1]!FAMEData(U6, "2006", "2013", 0,"Monthly", "Down", "No Heading", "Normal") -> 5.75 | V11: =[1]!FAMEData(V6, "2006", "2013", 0,"Monthly", "Down", "No Heading", "Normal") -> 6.03 | W11: =[1]!FAMEData(W6, "2006", "2013", 0,"Monthly", "Down", "No Heading", "Normal") -> 6.1 | X11: =[1]!FAMEData(X6, "2006", "2013", 0,"Monthly", "Down", "No Heading", "Normal") -> 5.31 | Y11: =[1]!FAMEData(Y6, "2006", "2013", 0,"Monthly", "Down", "No Heading", "Normal") -> 2757.7 | Z11: =[1]!FAMEData(Z6, "2006", "2013", 0,"Monthly", "Down", "No Heading", "Normal") -> 1694 | AA11: =[1]!FAMEData(AA6, "2006", "2013", 0,"Monthly", "Down", "No Heading", "Normal") -> 4263.98 | AB11: =[1]!FAMEData(AB6, "2006", "2013", 0,"Monthly", "Down", "No Heading", "Normal") -> 1619.63 | AC11: =[1]!FAMEData(AC6, "2006", "2013", 0,"Monthly", "Down", "No Heading", "Normal") -> 7577.57 | AD11: =[1]!FAMEData(AD6, "2006", "2013", 0,"Monthly", "Down", "No Heading", "Normal") -> 22893.1 | AE11: =[1]!FAMEData(AE6, "2006", "2013", 0,"Monthly", "Down", "No Heading", "Normal") -> 2244.97 | AF11: =[1]!FAMEData(AF6, "2006", "2013", 0,"Monthly", "Down", "No Heading", "Normal") -> 3330.57 | AG11: =[1]!FAMEData(AG6, "2006", "2013", 0,"Monthly", "Down", "No Heading", "Normal") -> 110.16 | AH11: =[1]!FAMEData(AH6, "2006", "2013", 0,"Monthly", "Down", "No Heading", "Normal") -> 3111.66 | AI11: =[1]!FAMEData(AI6, "2006", "2013", 0,"Monthly", "Down", "No Heading", "Normal") -> 8.47 | AJ11: =[1]!FAMEData(AJ6, "2006", "2013", 0,"Monthly", "Down", "No Heading", "Normal") -> 33036.23 | AK11: =[1]!FAMEData(AK6, "2006", "2013", 0,"Monthly", "Down", "No Heading", "Normal") -> 3263.92 | AL11: =[1]!FAMEData(AL6, "2006", "2013", 0,"Monthly", "Down", "No Heading", "Normal") -> 6603.07 | AM11: =[1]!FAMEData(AM6, "2006", "2013", 0,"Monthly", "Down", "No Heading", "Normal") -> 1040.99 | AN11: =[1]!FAMEData(AN6, "2006", "2013", 0,"Monthly", "Down", "No Heading", "Normal") -> 4253.96 | AO11: =[1]!FAMEData(AO6, "2006", "2013", 0,"Monthly", "Down", "No Heading", "Normal") -> 352.74 | AP11: =[1]!FAMEData(AP6, "2006", "2013", 0,"Monthly", "Down", "No Heading", "Normal") -> 8243.95 | AQ11: =[1]!FAMEData(AQ6, "2006", "2013", 0,"Monthly", "Down", "No Heading", "Normal") -> 3443.76 | AR11: =[1]!FAMEData(AR6, "2006", "2013", 0,"Monthly", "Down", "No Heading", "Normal") -> 408.65 | AS11: =[1]!FAMEData(AS6, "2006", "2013", 0,"Monthly", "Down", "No Heading", "Normal") -> 2312.86 | AT11: =[1]!FAMEData(AT6, "2006", "2013", 0,"Monthly", "Down", "No Heading", "Normal") -> 161.41 | AU11: =[1]!FAMEData(AU6, "2006", "2013", 0,"Monthly", "Down", "No Heading", "Normal") -> 58173 | AW11: =[1]!FAMEData(AW6, "2006", "2013", 0,"Monthly", "Down", "No Heading", "Normal") -> 4.92 | AX11: =[1]!FAMEData(AX6, "2006", "2013", 0,"Monthly", "Down", "No Heading", "Normal") -> 7.56 | AY11: =[1]!FAMEData(AY6, "2006", "2013", 0,"Monthly", "Down", "No Heading", "Normal") -> 5.52 | AZ11: =[1]!FAMEData(AZ6, "2006", "2013", 0,"Monthly", "Down", "No Heading", "Normal") -> 14.76 | BA11: =[1]!FAMEData(BA6, "2006", "2013", 0,"Monthly", "Down", "No Heading", "Normal") -> 6.24 | BB11: =[1]!FAMEData(BB6, "2006", "2013", 0,"Monthly", "Down", "No Heading", "Normal") -> 17.64 | BC11: =[1]!FAMEData(BC6, "2006", "2013", 0,"Monthly", "Down", "No Heading", "Normal") -> 6.36 | BD11: =[1]!FAMEData(BD6, "2006", "2013", 0,"Monthly", "Down", "No Heading", "Normal") -> 19.92
A12: 2006-02-01 | B12: 25995.919 | C12: 5649.901 | D12: 9409.751 | E12: 3971.411 | F12: 45026.982 | G12: 28.08001067 | H12: 28.43 | I12: 32.41 | J12: 26.06 | K12: 24.43 | L12: 10.69175166 | M12: 9.49 | N12: 7.92 | O12: 8.26 | P12: 13.8 | Q12: 12.93 | R12: 5.488292681 | S12: 5.61 | T12: 5.03 | U12: 6.11 | V12: 6.08 | W12: 7.9 | X12: 5.33 | Y12: 2800.8 | Z12: 1718.6 | AA12: 4226.79 | AB12: 1602.98 | AC12: 7548.38 | AD12: 23081.63 | AE12: 2237.55 | AF12: 3233.72 | AG12: 123.01 | AH12: 3034.93 | AI12: 5.84 | AJ12: 33183.52 | AK12: 3379.45 | AL12: 6469.58 | AM12: 1053.09 | AN12: 4269.98 | AO12: 358.48 | AP12: 8174.45 | AQ12: 3670.98 | AR12: 420.38 | AS12: 2365.22 | AT12: 163.97 | AU12: 58450.73 | AW12: 4.56 | AX12: 7.56 | AY12: 5.16 | AZ12: 15.48 | BA12: 6.36 | BB12: 17.64 | BC12: 7.2 | BD12: 18.6
A13: 2006-03-01 | B13: 26532.268 | C13: 5831.413 | D13: 9540.067 | E13: 4086.012 | F13: 45989.76 | G13: 25.2206299 | H13: 27.58 | I13: 31.42 | J13: 22.94 | K13: 21.26 | L13: 10.24201215 | M13: 9.38 | N13: 7.46 | O13: 8.24 | P13: 13.47 | Q13: 13.68 | R13: 5.847508201 | S13: 5.5 | T13: 5.64 | U13: 6.25 | V13: 6.26 | W13: 8.15 | X13: 5.22 | Y13: 2897.1 | Z13: 1708.3 | AA13: 4271.7 | AB13: 1559.58 | AC13: 7539.62 | AD13: 23481.8 | AE13: 2238.86 | AF13: 3752.51 | AG13: 127.13 | AH13: 3546.99 | AI13: 6.15 | AJ13: 33586.78 | AK13: 3311.26 | AL13: 6343.46 | AM13: 1063.27 | AN13: 4348.74 | AO13: 354.14 | AP13: 8242.23 | AQ13: 3777.33 | AR13: 430.6 | AS13: 2420.59 | AT13: 166.01 | AU13: 58871.2 | AW13: 4.68 | AX13: 7.32 | AY13: 5.28 | AZ13: 14.64 | BA13: 6 | BB13: 15.96 | BC13: 7.2 | BD13: 19.08
A14: 2006-04-01 | B14: 27144.354 | C14: 5934.604 | D14: 9634.727 | E14: 4126.392 | F14: 46840.077 | G14: 26.81238125 | H14: 27.85 | I14: 32.07 | J14: 25.09 | K14: 22.94 | L14: 10.69633422 | M14: 9.61 | N14: 7.62 | O14: 8.19 | P14: 13.17 | Q14: 15.02 | R14: 5.653472987 | S14: 5.55 | T14: 5.39 | U14: 6.15 | V14: 5.98 | W14: 5.13 | X14: 5.04 | Y14: 3019.9 | Z14: 1710.9 | AA14: 4306.13 | AB14: 1619.61 | AC14: 7636.6 | AD14: 23929.04 | AE14: 2239.71 | AF14: 4222.62 | AG14: 123.45 | AH14: 4032.18 | AI14: 11.32 | AJ14: 34107.93 | AK14: 3342.52 | AL14: 6252.99 | AM14: 1067.84 | AN14: 4250.3 | AO14: 330.64 | AP14: 8372.4 | AQ14: 3828.1 | AR14: 445.85 | AS14: 2485.1 | AT14: 168.26 | AU14: 59345.22 | AW14: 4.8 | AX14: 7.44 | AY14: 5.52 | AZ14: 14.52 | BA14: 6.12 | BB14: 18.84 | BC14: 6.96 | BD14: 20.52
A15: 2006-05-01 | B15: 27224.795 | C15: 6010.176 | D15: 9795.954 | E15: 4360.806 | F15: 47391.731 | G15: 27.49968525 | H15: 28.48 | I15: 32.75 | J15: 25.38 | K15: 23.44 | L15: 10.69976304 | M15: 9.62 | N15: 7.62 | O15: 8.29 | P15: 14.04 | Q15: 14.48 | R15: 6.069324926 | S15: 5.83 | T15: 5.9 | U15: 6.29 | V15: 6.48 | W15: 5.77 | X15: 5.03 | Y15: 2891.7 | Z15: 1719 | AA15: 4375.74 | AB15: 1600.8 | AC15: 7695.52 | AD15: 24246.24 | AE15: 2258.06 | AF15: 3957.82 | AG15: 124.65 | AH15: 3797.24 | AI15: 11.71 | AJ15: 34473.34 | AK15: 3514.52 | AL15: 6039.46 | AM15: 1065.26 | AN15: 4309.05 | AO15: 313.96 | AP15: 8445.32 | AQ15: 3866.9 | AR15: 455.5 | AS15: 2471.92 | AT15: 179.66 | AU15: 59831.71 | AW15: 4.92 | AX15: 7.44 | AY15: 5.52 | AZ15: 15.12 | BA15: 6.12 | BB15: 18.48 | BD15: 20.04
A16: 2006-06-01 | B16: 27538.088 | C16: 6095.037 | D16: 9949.017 | E16: 4700.001 | F16: 48282.143 | G16: 27.54061454 | H16: 29.12 | I16: 33.02 | J16: 25.11 | K16: 23.28 | L16: 10.0914888 | M16: 9.27 | N16: 7.62 | O16: 8.68 | P16: 12.12 | Q16: 12.35 | R16: 6.098626848 | S16: 5.69 | T16: 6.04 | U16: 6.54 | V16: 6.68 | W16: 6.24 | X16: 5 | Y16: 2910.9 | Z16: 1755.2 | AA16: 4449.54 | AB16: 1617.06 | AC16: 7821.82 | AD16: 24651.76 | AE16: 2289.71 | AF16: 4054.03 | AG16: 128.52 | AH16: 3856.88 | AI16: 7.17 | AJ16: 35081.8 | AK16: 3629.06 | AL16: 5881.13 | AM16: 1057.38 | AN16: 4419.18 | AO16: 316.05 | AP16: 8469.06 | AQ16: 3777.34 | AR16: 452.49 | AS16: 2419.68 | AT16: 184.36 | AU16: 60479.45 | AW16: 5.04 | AX16: 7.56 | AY16: 5.4 | AZ16: 14.28 | BA16: 6.12 | BB16: 17.04 | BC16: 7.56 | BD16: 16.8
A17: 2006-07-01 | B17: 27878.936 | C17: 6188.033 | D17: 10134.075 | E17: 4504.95 | F17: 48705.994 | G17: 27.28323577 | H17: 29.05 | I17: 33.05 | J17: 24.82 | K17: 22.78 | L17: 9.956696994 | M17: 9.08 | N17: 7.96 | O17: 8.56 | P17: 11.3 | Q17: 13.63 | R17: 6.294930372 | S17: 6.05 | T17: 6.14 | U17: 6.57 | V17: 6.56 | W17: 6.19 | X17: 5.1 | Y17: 2889.3 | Z17: 1744.3 | AA17: 4319.55 | AB17: 1626.34 | AC17: 7690.16 | AD17: 24894.17 | AE17: 2298.52 | AF17: 4091.77 | AG17: 128.53 | AH17: 3878.73 | AI17: 8.41 | AJ17: 35216.02 | AK17: 3630.31 | AL17: 5722.86 | AM17: 1063.1 | AN17: 4334.56 | AO17: 337.86 | AP17: 8430.67 | AQ17: 3818.66 | AR17: 455.8 | AS17: 2486.57 | AT17: 185.74 | AU17: 60337.53 | AW17: 5.04 | AX17: 7.8 | AY17: 5.52 | AZ17: 13.92 | BA17: 6.12 | BB17: 17.88 | BC17: 7.68 | BD17: 19.32
A18: 2006-08-01 | B18: 28247.624 | C18: 6337.786 | D18: 10348.575 | E18: 4524.201 | F18: 49458.186 | G18: 26.63961018 | H18: 27.92 | I18: 32.8 | J18: 24.22 | K18: 22.36 | L18: 10.30839481 | M18: 9.53 | N18: 8.11 | O18: 8.37 | P18: 12.31 | Q18: 11.93 | R18: 6.222757439 | S18: 6.07 | T18: 6 | U18: 6.49 | V18: 6.52 | W18: 5.84 | X18: 5.05 | Y18: 2764.6 | Z18: 1724.9 | AA18: 4273.77 | AB18: 1658.92 | AC18: 7657.62 | AD18: 25240.11 | AE18: 2303.31 | AF18: 3801.64 | AG18: 127.65 | AH18: 3148.09 | AI18: 9.9 | AJ18: 35972.35 | AK18: 3597.79 | AL18: 6004.8 | AM18: 1071.25 | AN18: 4281.36 | AO18: 363.45 | AP18: 8510.22 | AQ18: 4004.45 | AR18: 469 | AS18: 2893.12 | AT18: 189.31 | AU18: 61192.22 | AW18: 5.16 | AX18: 8.16 | AY18: 5.52 | AZ18: 14.16 | BA18: 6.12 | BB18: 17.28 | BC18: 7.8 | BD18: 15.96
A19: 2006-09-01 | B19: 28286.672 | C19: 6452.131 | D19: 10481.288 | E19: 4639.071 | F19: 49859.162 | G19: 26.5372798 | H19: 25.1 | I19: 32.81 | J19: 24.59 | K19: 22.48 | L19: 10.34509493 | M19: 9.64 | N19: 8.29 | O19: 8.72 | P19: 11.87 | Q19: 12.05 | R19: 6.288846604 | S19: 6.31 | T19: 6.02 | U19: 6.48 | V19: 6.36 | W19: 6.69 | X19: 5.01 | Y19: 3018.5 | Z19: 1805.7 | AA19: 4356.11 | AB19: 1763.2 | AC19: 7925.03 | AD19: 25631.79 | AE19: 2309.45 | AF19: 4298.29 | AG19: 151.95 | AH19: 3592.98 | AI19: 9.93 | AJ19: 36713.6 | AK19: 3605.23 | AL19: 6394.11 | AM19: 1079.8 | AN19: 4379.06 | AO19: 371.07 | AP19: 8652.03 | AQ19: 4126.88 | AR19: 482.11 | AS19: 2999.78 | AT19: 191.47 | AU19: 62612.63 | AW19: 5.16 | AX19: 8.16 | AY19: 5.52 | AZ19: 14.4 | BA19: 6 | BB19: 17.28 | BC19: 6.12 | BD19: 15.6
A20: 2006-10-01 | B20: 28525.246 | C20: 6567.021 | D20: 10583.667 | E20: 4580.337 | F20: 50256.271 | G20: 26.87426644 | H20: 25.03 | I20: 32.75 | J20: 24.94 | K20: 23.15 | L20: 10.32842561 | M20: 9.5 | N20: 8.07 | O20: 8.73 | P20: 11.71 | Q20: 14.66 | R20: 6.177634104 | S20: 6.01 | T20: 5.94 | U20: 6.59 | V20: 6.26 | W20: 5.61 | X20: 4.95 | Y20: 3003.1 | Z20: 1781.4 | AA20: 4251.24 | AB20: 1706.93 | AC20: 7739.56 | AD20: 26090.65 | AE20: 2313.98 | AF20: 4781.81 | AG20: 176.88 | AH20: 4504.55 | AI20: 11.2 | AJ20: 36587.13 | AK20: 3638.46 | AL20: 6187.42 | AM20: 1089.92 | AN20: 4337.05 | AO20: 371.05 | AP20: 8713.07 | AQ20: 4168.04 | AR20: 498.26 | AS20: 2737.7 | AT20: 193.7 | AU20: 62659.01 | AW20: 5.16 | AX20: 8.04 | AY20: 5.52 | AZ20: 14.16 | BA20: 5.88 | BB20: 18.6 | BC20: 6.48 | BD20: 20.28
A21: 2006-11-01 | B21: 29148.369 | C21: 6690.599 | D21: 10695.628 | E21: 4696.927 | F21: 51231.523 | G21: 26.97083773 | H21: 25.29 | I21: 32.93 | J21: 25.19 | K21: 22.82 | L21: 10.16942247 | M21: 9.25 | N21: 8.08 | O21: 8.55 | P21: 12.14 | Q21: 12.7 | R21: 6.107811217 | S21: 5.96 | T21: 5.92 | U21: 6.44 | V21: 6.16 | W21: 5.73 | X21: 4.82 | Y21: 3011.8 | Z21: 1804.2 | AA21: 4348.96 | AB21: 1714.08 | AC21: 7867.27 | AD21: 26364 | AE21: 2304.87 | AF21: 4571.5 | AG21: 177.92 | AH21: 4354.2 | AI21: 12.42 | AJ21: 36918.94 | AK21: 3679.09 | AL21: 6044.24 | AM21: 1082.9 | AN21: 4440.1 | AO21: 368.02 | AP21: 8780.32 | AQ21: 4245.68 | AR21: 516.44 | AS21: 2714.6 | AT21: 197.76 | AU21: 63163.38 | AW21: 5.16 | AX21: 7.92 | AY21: 5.52 | AZ21: 14.4 | BA21: 5.76 | BB21: 18.12 | BC21: 7.08 | BD21: 16.92
A22: 2006-12-01 | B22: 29910.708 | C22: 6786.221 | D22: 10799.63 | E22: 4805.611 | F22: 52302.17 | G22: 27.08498 | H22: 25.03 | I22: 33.04 | J22: 24.98 | K22: 22.99 | L22: 10.24621563 | M22: 9.73 | N22: 7.78 | O22: 8.53 | P22: 11.56 | Q22: 14.17 | R22: 6.077732562 | S22: 5.88 | T22: 6.11 | U22: 6.25 | V22: 6.26 | W22: 5.79 | X22: 4.77 | Y22: 3504.1 | Z22: 1958.1 | AA22: 4738.61 | AB22: 1883.39 | AC22: 8580.14 | AD22: 26945.88 | AE22: 2282.73 | AF22: 4613.79 | AG22: 174.56 | AH22: 4388.79 | AI22: 12.87 | AJ22: 38195.43 | AK22: 3630.32 | AL22: 5879.37 | AM22: 1058.49 | AN22: 4467.42 | AO22: 364.22 | AP22: 8999.03 | AQ22: 4359.52 | AR22: 538.89 | AS22: 2696.8 | AT22: 202.16 | AU22: 64593.74 | AW22: 5.28 | AX22: 7.68 | AY22: 5.64 | AZ22: 13.44 | BA22: 5.88 | BB22: 18 | BC22: 6.12 | BD22: 18.72
A23: 2007-01-01 | B23: 30104.209 | C23: 6864.27 | D23: 10928.962 | E23: 4950.368 | F23: 52847.809 | G23: 27.90456465 | H23: 25.46 | I23: 33.43 | J23: 25.61 | K23: 24.11 | L23: 10.08135097 | M23: 10.04 | N23: 7.69 | O23: 8.34 | P23: 11.02 | Q23: 13.73 | R23: 6.104881737 | S23: 5.88 | T23: 5.92 | U23: 6.43 | V23: 6.42 | W23: 6.28 | X23: 4.68 | Y23: 3035.9 | Z23: 1944.3 | AA23: 4940.37 | AB23: 1907.18 | AC23: 8791.89 | AD23: 27722.48 | AE23: 2275.7 | AF23: 4558.09 | AG23: 170.67 | AH23: 4356.94 | AI23: 12.05 | AJ23: 39149.84 | AK23: 3630.65 | AL23: 5344.41 | AM23: 1039.43 | AN23: 4352.59 | AO23: 361.04 | AP23: 9272.74 | AQ23: 4565.59 | AR23: 558.19 | AS23: 2684.67 | AT23: 208.05 | AU23: 65381.76 | AW23: 5.04 | AX23: 7.44 | AY23: 5.4 | AZ23: 13.56 | BA23: 5.64 | BB23: 17.88 | BC23: 6.12 | BD23: 20.04
A24: 2007-02-01 | B24: 30453.855 | C24: 6925.246 | D24: 11070.237 | E24: 4981.741 | F24: 53431.079 | G24: 28.68203617 | H24: 25.09 | I24: 33.95 | J24: 26.74 | K24: 25.51 | L24: 9.948701138 | M24: 9.76 | N24: 8.12 | O24: 8.25 | P24: 11.24 | Q24: 11.05 | R24: 6.092187817 | S24: 6.14 | T24: 5.72 | U24: 6.34 | V24: 6.38 | W24: 0 | X24: 4.58 | Y24: 3250.9 | Z24: 1974 | AA24: 4840.67 | AB24: 1924.77 | AC24: 8739.45 | AD24: 28168.01 | AE24: 2273.95 | AF24: 4242.7 | AG24: 172.72 | AH24: 4138.21 | AI24: 12.09 | AJ24: 39446.53 | AK24: 3755.68 | AL24: 5159.6 | AM24: 1049.47 | AN24: 4365.9 | AO24: 363.87 | AP24: 9393.7 | AQ24: 4755.82 | AR24: 566.44 | AS24: 2714.44 | AT24: 205.13 | AU24: 65937.43 | AW24: 5.04 | AX24: 8.04 | AY24: 5.4 | AZ24: 14.16 | BA24: 5.64 | BB24: 19.2 | BC24: 6.6 | BD24: 16.32
A25: 2007-03-01 | B25: 30797.955 | C25: 7057.045 | D25: 11237.238 | E25: 4974.938 | F25: 54067.176 | G25: 26.98843784 | H25: 25.08 | I25: 34.08 | J25: 24.51 | K25: 22.77 | L25: 9.818966191 | M25: 9.78 | N25: 8.2 | O25: 8.33 | P25: 11.53 | Q25: 9.8 | R25: 5.992904891 | S25: 5.83 | T25: 5.74 | U25: 6.54 | V25: 6.27 | W25: 6.29 | X25: 4.56 | Y25: 3466.2 | Z25: 1967.6 | AA25: 4882.75 | AB25: 1931.18 | AC25: 8781.56 | AD25: 28824.3 | AE25: 2277.19 | AF25: 4764.35 | AG25: 176.15 | AH25: 4639.47 | AI25: 11.9 | AJ25: 40172.18 | AK25: 3758.09 | AL25: 5135.92 | AM25: 1035.84 | AN25: 4402.84 | AO25: 369.8 | AP25: 9433.62 | AQ25: 4940.53 | AR25: 574.64 | AS25: 2836.48 | AT25: 210.66 | AU25: 66776.33 | AW25: 5.04 | AX25: 7.8 | AY25: 5.28 | AZ25: 14.16 | BA25: 5.52 | BB25: 17.64 | BC25: 6.6 | BD25: 13.32
A26: 2007-04-01 | B26: 31287.592 | C26: 7145.561 | D26: 11391.856 | E26: 5143.099 | F26: 54968.108 | G26: 27.73739058 | H26: 25.86 | I26: 34.24 | J26: 25.45 | K26: 23.39 | L26: 9.949041121 | M26: 10.03 | N26: 8.23 | O26: 7.51 | P26: 10.88 | Q26: 12.68 | R26: 6.026521309 | S26: 5.77 | T26: 5.98 | U26: 6.34 | V26: 6.22 | W26: 5.55 | X26: 4.54 | Y26: 3604.7 | Z26: 1972.8 | AA26: 4974.98 | AB26: 2048.24 | AC26: 8996.06 | AD26: 29174.45 | AE26: 2277.08 | AF26: 5255.88 | AG26: 177.89 | AH26: 5054.87 | AI26: 14.28 | AJ26: 40812.2 | AK26: 3808.68 | AL26: 5050.13 | AM26: 1012.14 | AN26: 4048.81 | AO26: 372.27 | AP26: 9423.35 | AQ26: 5234.03 | AR26: 598.3 | AS26: 2952.32 | AT26: 213.44 | AU26: 67194.14 | AW26: 5.04 | AX26: 7.8 | AY26: 5.4 | AZ26: 13.08 | BA26: 5.64 | BB26: 17.16 | BC26: 6 | BD26: 18.48
A27: 2007-05-01 | B27: 31686.086 | C27: 7187.303 | D27: 11616.996 | E27: 5319.282 | F27: 55809.667 | G27: 27.88672215 | H27: 25.51 | I27: 34 | J27: 25.84 | K27: 23.69 | L27: 10.02925436 | M27: 10 | N27: 8.16 | O27: 8.38 | P27: 10.97 | Q27: 11.1 | R27: 6.07313798 | S27: 6.31 | T27: 5.65 | U27: 6.38 | V27: 6.45 | W27: 6.6 | X27: 4.39 | Y27: 3718.4 | Z27: 1985.9 | AA27: 5068.25 | AB27: 1994.74 | AC27: 9048.91 | AD27: 29712.25 | AE27: 2292.68 | AF27: 5086.24 | AG27: 189.13 | AH27: 4850.32 | AI27: 16.92 | AJ27: 41461.96 | AK27: 3961.75 | AL27: 4914.41 | AM27: 1067.46 | AN27: 4189.04 | AO27: 372.17 | AP27: 9500.48 | AQ27: 5422.62 | AR27: 625.74 | AS27: 2894.61 | AT27: 220.86 | AU27: 68400.15 | AW27: 5.04 | AX27: 7.92 | AY27: 5.64 | AZ27: 13.44 | BA27: 5.76 | BB27: 14.64 | BC27: 6.72 | BD27: 17.64
A28: 2007-06-01 | B28: 32190.674 | C28: 7240.03 | D28: 11889.188 | E28: 5286.989 | F28: 56606.881 | G28: 27.94304786 | H28: 25.96 | I28: 33.58 | J28: 26.39 | K28: 24.62 | L28: 9.824916651 | M28: 9.79 | N28: 8.08 | O28: 8.56 | P28: 10.51 | Q28: 10.91 | R28: 6.135268702 | S28: 5.85 | T28: 6.01 | U28: 6.57 | V28: 6.25 | W28: 5.88 | X28: 4.42 | Y28: 3666.5 | Z28: 2006.5 | AA28: 5052.45 | AB28: 2033.84 | AC28: 9092.79 | AD28: 30370.14 | AE28: 2317.05 | AF28: 5315.17 | AG28: 203.23 | AH28: 5089.07 | AI28: 16.45 | AJ28: 42192.86 | AK28: 3932.11 | AL28: 4718.73 | AM28: 1133.57 | AN28: 4213.57 | AO28: 381.92 | AP28: 9597.02 | AQ28: 5560.25 | AR28: 650.12 | AS28: 2805.23 | AT28: 228.88 | AU28: 69346.04 | AW28: 5.4 | AX28: 7.44 | AY28: 5.52 | AZ28: 12.84 | BA28: 6.36 | BB28: 16.2 | BC28: 7.56 | BD28: 17.16
A29: 2007-07-01 | B29: 32687.58 | C29: 7329.254 | D29: 12122.924 | E29: 5263.157 | F29: 57402.915 | G29: 28.85455598 | H29: 26.59 | I29: 34.54 | J29: 26.87 | K29: 25.04 | L29: 9.985638792 | M29: 10.01 | N29: 7.93 | O29: 8.45 | P29: 10.48 | Q29: 11.56 | R29: 6.062530955 | S29: 6.01 | T29: 5.8 | U29: 6.4 | V29: 6.39 | W29: 6.54 | X29: 4.51 | Y29: 3650.6 | Z29: 1991.3 | AA29: 5086.13 | AB29: 2063.76 | AC29: 9141.21 | AD29: 30765.41 | AE29: 2321.37 | AF29: 5253.62 | AG29: 211.65 | AH29: 4889.29 | AI29: 17.42 | AJ29: 42786.55 | AK29: 3926.29 | AL29: 4653.62 | AM29: 1160.63 | AN29: 4096.74 | AO29: 389.69 | AP29: 9609.62 | AQ29: 5782.33 | AR29: 671.26 | AS29: 2805.97 | AT29: 234.6 | AU29: 70036.16 | AW29: 5.4 | AX29: 7.56 | AY29: 5.76 | AZ29: 13.08 | BA29: 6.36 | BB29: 15.36 | BC29: 7.08 | BD29: 17.88
A30: 2007-08-01 | B30: 33344.21 | C30: 7456.144 | D30: 12409.393 | E30: 5359.948 | F30: 58569.695 | G30: 27.59263685 | H30: 24.32 | I30: 34.65 | J30: 25.44 | K30: 23.57 | L30: 9.911397133 | M30: 10.02 | N30: 7.98 | O30: 8.89 | P30: 10.09 | Q30: 11.97 | R30: 6.19990909 | S30: 6.02 | T30: 6 | U30: 6.51 | V30: 6.39 | W30: 6.48 | X30: 4.69 | Y30: 3503 | Z30: 1969.9 | AA30: 5021.79 | AB30: 2129.76 | AC30: 9121.45 | AD30: 30781.62 | AE30: 2327.08 | AF30: 5407.28 | AG30: 220.73 | AH30: 4995.61 | AI30: 19.91 | AJ30: 42842.64 | AK30: 3958.81 | AL30: 4744.24 | AM30: 1160.28 | AN30: 4146.57 | AO30: 397.83 | AP30: 9734.06 | AQ30: 5885.32 | AR30: 672.26 | AS30: 2898.11 | AT30: 233.27 | AU30: 70410.63 | AW30: 5.52 | AX30: 7.68 | AY30: 6.12 | AZ30: 12.84 | BA30: 6.6 | BB30: 15.72 | BC30: 7.8 | BD30: 18.6
A31: 2007-09-01 | B31: 34064.347 | C31: 7529.568 | D31: 12721.028 | E31: 5310.816 | F31: 59625.759 | G31: 28.88864487 | H31: 25.43 | I31: 35.09 | J31: 27 | K31: 24.95 | L31: 10.12611294 | M31: 8.97 | N31: 9.17 | O31: 9.38 | P31: 11.3 | Q31: 12.5 | R31: 6.144116389 | S31: 6 | T31: 5.99 | U31: 6.53 | V31: 6.33 | W31: 5.95 | X31: 4.79 | Y31: 4118.5 | Z31: 2059.3 | AA31: 4968.59 | AB31: 2381.34 | AC31: 9409.22 | AD31: 31125.25 | AE31: 2340.96 | AF31: 5425.09 | AG31: 229.26 | AH31: 5262.59 | AI31: 19.99 | AJ31: 43247.2 | AK31: 3967.61 | AL31: 4687.45 | AM31: 1185.22 | AN31: 4227.91 | AO31: 397.53 | AP31: 9905.39 | AQ31: 5964.2 | AR31: 681.5 | AS31: 2984.07 | AT31: 225.16 | AU31: 71054.77 | AW31: 5.88 | AX31: 8.4 | AY31: 6.36 | AZ31: 14.04 | BA31: 6.72 | BB31: 16.32 | BC31: 7.68 | BD31: 19.68
A32: 2007-10-01 | B32: 34709.024 | C32: 7628.024 | D32: 12982.869 | E32: 5237.779 | F32: 60557.696 | G32: 29.01098504 | H32: 24.57 | I32: 35.4 | J32: 27.09 | K32: 25.07 | L32: 10.15083518 | M32: 8.16 | N32: 9.71 | O32: 9.07 | P32: 11.68 | Q32: 12.28 | R32: 5.853360697 | S32: 5.7 | T32: 5.78 | U32: 5.99 | V32: 5.96 | W32: 6.53 | X32: 4.83 | Y32: 3533.6 | Z32: 2018.9 | AA32: 4965.54 | AB32: 2206.39 | AC32: 9190.89 | AD32: 31971.79 | AE32: 2357.69 | AF32: 5528.08 | AG32: 234.83 | AH32: 5508.11 | AI32: 17.06 | AJ32: 43758.11 | AK32: 4089.22 | AL32: 4596.54 | AM32: 1184.14 | AN32: 4137.27 | AO32: 393.47 | AP32: 10064.37 | AQ32: 6212.2 | AR32: 716.88 | AS32: 3014.92 | AT32: 230.2 | AU32: 71907.08 | AW32: 5.88 | AX32: 9.72 | AY32: 6.36 | AZ32: 14.4 | BA32: 6.84 | BB32: 15.84 | BC32: 7.44 | BD32: 19.44
A33: 2007-11-01 | B33: 35764.525 | C33: 7740.683 | D33: 13182.559 | E33: 5543.69 | F33: 62231.457 | G33: 28.91827827 | H33: 25.34 | I33: 35.46 | J33: 27.11 | K33: 25.02 | L33: 10.16639217 | M33: 8.09 | N33: 10.45 | O33: 8.97 | P33: 11.26 | Q33: 12.01 | R33: 5.682430127 | S33: 5.48 | T33: 5.68 | U33: 6.09 | V33: 5.68 | W33: 5.53 | X33: 4.81 | Y33: 3515.1 | Z33: 2041.2 | AA33: 4863.48 | AB33: 2665.85 | AC33: 9570.56 | AD33: 32853.27 | AE33: 2363.57 | AF33: 6338.14 | AG33: 229.9 | AH33: 6247.86 | AI33: 15.74 | AJ33: 45091.84 | AK33: 4144.98 | AL33: 4450.98 | AM33: 1231.92 | AN33: 4167.13 | AO33: 405.73 | AP33: 10272.13 | AQ33: 6296.57 | AR33: 723.79 | AS33: 3081.23 | AT33: 242.1 | AU33: 73461.74 | AW33: 5.88 | AX33: 10.44 | AY33: 6.36 | AZ33: 14.04 | BA33: 6.84 | BB33: 15.96 | BC33: 10.2 | BD33: 18.24
A34: 2007-12-01 | B34: 36669.066 | C34: 7827.114911 | D34: 13431.649 | E34: 5403.179 | F34: 63331.00891 | G34: 29.9564244 | H34: 26.49 | I34: 35.96 | J34: 28.02 | K34: 26.24 | L34: 10.20759446 | M34: 8.88 | N34: 9.75 | O34: 8.88 | P34: 11.52 | Q34: 12.43 | R34: 5.890780774 | S34: 5.93 | T34: 5.97 | U34: 5.97 | V34: 5.86 | W34: 5.29 | X34: 4.83 | Y34: 3660.6 | Z34: 2210.3 | AA34: 5417.21 | AB34: 2502.35 | AC34: 10129.84 | AD34: 33217.52 | AE34: 2356.44 | AF34: 6176.76 | AG34: 221.39 | AH34: 6053.72 | AI34: 16.56 | AJ34: 46031.67 | AK34: 4142.89 | AL34: 4082.7 | AM34: 1327.55 | AN34: 4138.16 | AO34: 389.53 | AP34: 10443.17 | AQ34: 6094.77 | AR34: 706.55 | AS34: 3017.96 | AT34: 248.08 | AU34: 74090.94 | AW34: 6.48 | AX34: 9.84 | AY34: 6.96 | AZ34: 13.32 | BA34: 7.08 | BB34: 16.08 | BC34: 7.32 | BD34: 19.2
A35: 2008-01-01 | B35: 36532.93751 | C35: 7916.375832 | D35: 13711.53259 | E35: 5095.808267 | F35: 63256.6542 | G35: 32.06297709 | H35: 27.01 | I35: 36.35 | J35: 31.72 | K35: 29.85 | L35: 10.54607256 | M35: 9.2 | N35: 10.65 | O35: 9.37 | P35: 11.5 | Q35: 12.21 | R35: 4.909974714 | S35: 4.91 | T35: 4.86 | U35: 4.98 | V35: 4.91 | W35: 4.91 | X35: 4.8 | Y35: 3746.5 | Z35: 2190.6 | AA35: 5469.3 | AB35: 2544.2 | AC35: 10204 | AD35: 34957.5 | AE35: 2362.9 | AF35: 5566.9 | AG35: 229.4 | AH35: 5520 | AI35: 18.5 | AJ35: 47782.3 | AK35: 4208.8 | AL35: 4142.8 | AM35: 1397.2 | AN35: 4131.3 | AO35: 368.7 | AP35: 10541.2 | AQ35: 5674.1 | AR35: 666 | AS35: 2953.2 | AT35: 253.8 | AU35: 75705.4 | AW35: 6.36 | AX35: 10.68 | AY35: 6.6 | AZ35: 14.04 | BA35: 7.32 | BB35: 18 | BC35: 7.92 | BD35: 21.36
A36: 2008-02-01 | B36: 36902.59123 | C36: 7975.891219 | D36: 13854.58514 | E36: 5196.531323 | F36: 63929.59891 | G36: 31.96068943 | H36: 26.98 | I36: 37.01 | J36: 30.71 | K36: 29.55 | L36: 10.52429586 | M36: 9.61 | N36: 10.72 | O36: 8.88 | P36: 11.24 | Q36: 11.61 | R36: 4.19445297 | S36: 4.2 | T36: 4.08 | U36: 4.29 | V36: 4.21 | W36: 4.06 | X36: 4.9 | Y36: 3755.4 | Z36: 2228.8 | AA36: 5374.2 | AB36: 2553.8 | AC36: 10156.8 | AD36: 35352.7 | AE36: 2374.7 | AF36: 5860.6 | AG36: 240.4 | AH36: 5697.6 | AI36: 16.6 | AJ36: 48271.1 | AK36: 4258.9 | AL36: 4376.3 | AM36: 1301.8 | AN36: 4084 | AO36: 369.8 | AP36: 10558.6 | AQ36: 5491.9 | AR36: 638.8 | AS36: 3171 | AT36: 249 | AU36: 75931.2 | AW36: 6.24 | AX36: 10.68 | AY36: 6.6 | AZ36: 13.8 | BA36: 7.08 | BB36: 17.88 | BC36: 7.68 | BD36: 19.68
A37: 2008-03-01 | B37: 37065.95947 | C37: 8059.479026 | D37: 14054.6845 | E37: 5151.148232 | F37: 64331.27123 | G37: 29.8751708 | H37: 25.78 | I37: 36.89 | J37: 27.18 | K37: 26.54 | L37: 10.60816322 | M37: 8.83 | N37: 10.67 | O37: 9.52 | P37: 11.57 | Q37: 12.21 | R37: 3.909952199 | S37: 3.9 | T37: 3.77 | U37: 4.06 | V37: 3.97 | W37: 4.24 | X37: 4.82 | Y37: 3909.5 | Z37: 2229.3 | AA37: 5347.5 | AB37: 2524.9 | AC37: 10101.7 | AD37: 35841 | AE37: 2380.3 | AF37: 5949.5 | AG37: 250.8 | AH37: 5714.1 | AI37: 14.8 | AJ37: 48794.4 | AK37: 4172.9 | AL37: 4370.4 | AM37: 1336.5 | AN37: 4081.2 | AO37: 365.9 | AP37: 10620.1 | AQ37: 5702.6 | AR37: 638.3 | AS37: 3450 | AT37: 258.2 | AU37: 76374.2 | AW37: 6.48 | AX37: 10.68 | AY37: 6.96 | AZ37: 14.16 | BA37: 7.32 | BB37: 16.44 | BC37: 7.44 | BD37: 19.08
A38: 2008-04-01 | B38: 37929.25986 | C38: 8157.740165 | D38: 14333.60615 | E38: 5818.984932 | F38: 66239.59111 | G38: 30.12632972 | H38: 26.55 | I38: 36.76 | J38: 28.41 | K38: 26.91 | L38: 10.5928774 | M38: 8.77 | N38: 10.79 | O38: 9.84 | P38: 11.8 | Q38: 12.55 | R38: 4.016354928 | S38: 3.97 | T38: 3.96 | U38: 4.04 | V38: 4.08 | W38: 4.33 | X38: 4.76 | Y38: 3768.9 | Z38: 2213.8 | AA38: 5333.4 | AB38: 2554.1 | AC38: 10101.3 | AD38: 36588.2 | AE38: 2392.4 | AF38: 6075.6 | AG38: 261.4 | AH38: 5909.6 | AI38: 16.1 | AJ38: 49493.3 | AK38: 4431.3 | AL38: 4342.6 | AM38: 1426.3 | AN38: 4082.3 | AO38: 375.2 | AP38: 10823.6 | AQ38: 5906.2 | AR38: 636.6 | AS38: 3513.8 | AT38: 252.7 | AU38: 77750.9 | AW38: 6.48 | AX38: 10.92 | AY38: 6.96 | AZ38: 14.64 | BA38: 7.32 | BB38: 17.28 | BC38: 7.44 | BD38: 19.8
A39: 2008-05-01 | B39: 38480.92771 | C39: 8155.671818 | D39: 14529.4222 | E39: 6335.393903 | F39: 67501.41563 | G39: 30.9324869 | H39: 27.72 | I39: 36.92 | J39: 29.28 | K39: 28.37 | L39: 10.67956961 | M39: 8.94 | N39: 10.83 | O39: 9.32 | P39: 11.59 | Q39: 13.46 | R39: 4.116003773 | S39: 3.87 | T39: 3.91 | U39: 4.44 | V39: 4.35 | W39: 4.89 | X39: 4.63 | Y39: 3922.1 | Z39: 2257.2 | AA39: 5535.4 | AB39: 2623.8 | AC39: 10416.5 | AD39: 36375.2 | AE39: 2427.4 | AF39: 6895.9 | AG39: 274.5 | AH39: 6684 | AI39: 18.8 | AJ39: 49686.6 | AK39: 4876.2 | AL39: 4531.7 | AM39: 1556.6 | AN39: 3987.2 | AO39: 396 | AP39: 11137.4 | AQ39: 6041 | AR39: 655.2 | AS39: 3503.9 | AT39: 251 | AU39: 79112.9 | AW39: 6.6 | AX39: 10.92 | AY39: 6.96 | AZ39: 13.68 | BA39: 7.32 | BB39: 17.28 | BC39: 7.8 | BD39: 20.4
A40: 2008-06-01 | B40: 39280.5813 | C40: 8190.377374 | D40: 14847.07102 | E40: 7018.991106 | F40: 69337.0208 | G40: 30.74424815 | H40: 27.54 | I40: 36.89 | J40: 29.43 | K40: 28.09 | L40: 10.87630127 | M40: 9.16 | N40: 11.08 | O40: 9.79 | P40: 12.05 | Q40: 13 | R40: 4.238679367 | S40: 4 | T40: 3.87 | U40: 4.65 | V40: 4.91 | W40: 4.91 | X40: 4.72 | Y40: 3942.2 | Z40: 2274.2 | AA40: 5585.8 | AB40: 2631.7 | AC40: 10491.8 | AD40: 36715.1 | AE40: 2468.3 | AF40: 6562.2 | AG40: 293.5 | AH40: 6357.7 | AI40: 22 | AJ40: 50151.2 | AK40: 5370 | AL40: 4879.8 | AM40: 1630.8 | AN40: 4083.1 | AO40: 413.2 | AP40: 11329.1 | AQ40: 6013.4 | AR40: 657.3 | AS40: 3453.4 | AT40: 250.4 | AU40: 80824.3 | AW40: 6.72 | AX40: 11.28 | AY40: 7.32 | AZ40: 14.28 | BA40: 7.68 | BB40: 18 | BC40: 8.52 | BD40: 20.28
A41: 2008-07-01 | B41: 39742.06483 | C41: 8230.370095 | D41: 15178.60382 | E41: 6694.507948 | F41: 69845.54669 | G41: 31.24031374 | H41: 22.76 | I41: 37.73 | J41: 30.04 | K41: 29.99 | L41: 11.42875372 | M41: 9.67 | N41: 10.4 | O41: 10.6 | P41: 12.96 | Q41: 13.61 | R41: 4.404424868 | S41: 4.14 | T41: 4.26 | U41: 4.52 | V41: 5.12 | W41: 5.31 | X41: 4.87 | Y41: 3885.2 | Z41: 2254.4 | AA41: 5357.3 | AB41: 2338.5 | AC41: 9950.3 | AD41: 36965.8 | AE41: 2498.7 | AF41: 6257 | AG41: 307.9 | AH41: 6006.6 | AI41: 23.7 | AJ41: 49949.3 | AK41: 5832.1 | AL41: 5436.9 | AM41: 1685.6 | AN41: 4002.9 | AO41: 420.3 | AP41: 11377.4 | AQ41: 5891.9 | AR41: 638.9 | AS41: 3507.2 | AT41: 263.5 | AU41: 81464.6 | AW41: 6.84 | AX41: 10.56 | AY41: 7.56 | AZ41: 15.36 | BA41: 8.64 | BB41: 18.12 | BC41: 8.76 | BD41: 21
A42: 2008-08-01 | B42: 40257.88392 | C42: 8288.808897 | D42: 15482.081 | E42: 6706.784942 | F42: 70735.55877 | G42: 32.01457109 | H42: 26.13 | I42: 37.34 | J42: 29.91 | K42: 31.11 | L42: 11.87277186 | M42: 9.93 | N42: 11.55 | O42: 10.53 | P42: 13.23 | Q42: 15.38 | R42: 4.682843065 | S42: 4.57 | T42: 4.34 | U42: 4.86 | V42: 5.16 | W42: 5.47 | X42: 4.82 | Y42: 3888.7 | Z42: 2232 | AA42: 5252.6 | AB42: 2578.2 | AC42: 10062.7 | AD42: 36845.8 | AE42: 2523.5 | AF42: 6316.2 | AG42: 321.3 | AH42: 5907.8 | AI42: 24.4 | AJ42: 50137.3 | AK42: 6044.2 | AL42: 6257.8 | AM42: 1827.6 | AN42: 4007.5 | AO42: 436.4 | AP42: 11696.9 | AQ42: 5802.1 | AR42: 619.6 | AS42: 3699.5 | AT42: 266.2 | AU42: 82863.6 | AW42: 7.44 | AX42: 11.64 | AY42: 8.04 | AZ42: 15.24 | BA42: 8.64 | BB42: 19.2 | BC42: 9.24 | BD42: 23.28
A43: 2008-09-01 | B43: 40957.88284 | C43: 8315.656005 | D43: 15741.79555 | E43: 7268.870571 | F43: 72284.20497 | G43: 34.02436491 | H43: 27.59 | I43: 39.39 | J43: 31.78 | K43: 32.37 | L43: 12.80472031 | M43: 11.27 | N43: 12.36 | O43: 12.29 | P43: 13.81 | Q43: 15.58 | R43: 5.126385627 | S43: 4.75 | T43: 5.12 | U43: 5.23 | V43: 5.63 | W43: 5.49 | X43: 4.8 | Y43: 3946.5 | Z43: 2315 | AA43: 5278.6 | AB43: 2599.7 | AC43: 10193.3 | AD43: 37274.3 | AE43: 2546.6 | AF43: 5893.7 | AG43: 328.1 | AH43: 5393 | AI43: 22.8 | AJ43: 50820.2 | AK43: 6220.8 | AL43: 6968.1 | AM43: 1974.3 | AN43: 3983.4 | AO43: 457.6 | AP43: 12067.3 | AQ43: 5505.3 | AR43: 582.1 | AS43: 3542.9 | AT43: 271.1 | AU43: 84765 | AW43: 8.4 | AX43: 12.48 | AY43: 9.48 | AZ43: 16.44 | BA43: 9.6 | BB43: 19.08 | BC43: 9.36 | BD43: 24.36
A44: 2008-10-01 | B44: 42404.14236 | C44: 8325.853397 | D44: 15986.53123 | E44: 8464.093896 | F44: 75180.62088 | G44: 35.7608978 | H44: 29.44 | I44: 39.96 | J44: 34.02 | K44: 35.08 | L44: 15.14850576 | M44: 14.18 | N44: 16.55 | O44: 13.55 | P44: 14.44 | Q44: 16.5 | R44: 8.027125743 | S44: 7.66 | T44: 8.57 | U44: 7.87 | V44: 7.79 | W44: 6.13 | X44: 5.34 | Y44: 3936.6 | Z44: 2305.9 | AA44: 5486.3 | AB44: 2624.3 | AC44: 10416.5 | AD44: 38920.1 | AE44: 2563.5 | AF44: 6055.2 | AG44: 326.4 | AH44: 5559.3 | AI44: 18.1 | AJ44: 52704.3 | AK44: 6550.1 | AL44: 6842 | AM44: 2137.4 | AN44: 3925.9 | AO44: 465.1 | AP44: 12231.4 | AQ44: 4853.4 | AR44: 510.9 | AS44: 3183 | AT44: 268.3 | AU44: 86769.1 | AW44: 9 | AX44: 16.56 | AY44: 9.96 | AZ44: 17.16 | BA44: 9.84 | BB44: 22.56 | BD44: 23.52
A45: 2008-11-01 | B45: 42751.92068 | C45: 8365.910376 | D45: 16177.99934 | E45: 8393.288363 | F45: 75689.11876 | G45: 36.07184204 | H45: 29.36 | I45: 40.05 | J45: 34.97 | K45: 35.47 | L45: 15.12878623 | M45: 13.18 | N45: 17 | O45: 12.56 | P45: 14.1 | Q45: 18.32 | R45: 5.927597244 | S45: 5.78 | T45: 6.02 | U45: 5.82 | V45: 6.26 | W45: 7.64 | X45: 5.69 | Y45: 4137.2 | Z45: 2331.1 | AA45: 5394.2 | AB45: 2557.5 | AC45: 10282.8 | AD45: 39857.8 | AE45: 2571.9 | AF45: 6236.7 | AG45: 330.4 | AH45: 5757.5 | AI45: 18.4 | AJ45: 53503.7 | AK45: 6857.2 | AL45: 6481.1 | AM45: 2293.6 | AN45: 3944.6 | AO45: 487 | AP45: 12405 | AQ45: 4328.1 | AR45: 465.9 | AS45: 3078.7 | AT45: 255 | AU45: 87432.5 | AW45: 8.04 | AX45: 17.04 | AY45: 8.88 | AZ45: 16.68 | BA45: 9.24 | BB45: 22.44 | BC45: 8.88 | BD45: 27
A46: 2008-12-01 | B46: 42262.40887 | C46: 8356.583898 | D46: 16275.07166 | E46: 7828.050024 | F46: 74722.11446 | G46: 36.85158168 | H46: 30.17 | I46: 41.1 | J46: 32.93 | K46: 37.18 | L46: 14.91091061 | M46: 13.21 | N46: 16.47 | O46: 12.06 | P46: 14.93 | Q46: 16.95 | R46: 5.831500249 | S46: 5.26 | T46: 5.87 | U46: 5.96 | V46: 6.2 | W46: 4.44 | X46: 5.77 | Y46: 4287.6 | Z46: 2484.8 | AA46: 5621.4 | AB46: 2701.7 | AC46: 10807.8 | AD46: 40415.5 | AE46: 2563.5 | AF46: 6512 | AG46: 342.6 | AH46: 6021.2 | AI46: 22.2 | AJ46: 54598 | AK46: 6666.5 | AL46: 6330.6 | AM46: 2335.7 | AN46: 3816.7 | AO46: 503.4 | AP46: 12650.5 | AQ46: 4091.8 | AR46: 459.9 | AS46: 2953.5 | AT46: 248.3 | AU46: 88251.3 | AW46: 8.28 | AX46: 16.44 | AY46: 8.76 | AZ46: 16.92 | BA46: 8.52 | BB46: 22.32 | BC46: 7.2 | BD46: 24.96
A47: 2009-01-01 | B47: 41620.5329 | C47: 8342.315144 | D47: 16266.58066 | E47: 7488.709613 | F47: 73718.13831 | G47: 36.33417145 | H47: 30.6 | I47: 41.71 | J47: 33.18 | K47: 34.79 | L47: 13.51124586 | M47: 12.2 | N47: 13.97 | O47: 10.8 | P47: 14.35 | Q47: 16.14 | R47: 5.323566282 | S47: 5.23 | T47: 4.92 | U47: 6.1 | V47: 5.94 | W47: 6.26 | X47: 5.92 | Y47: 4305.8 | Z47: 2445.4 | AA47: 5600.8 | AB47: 2706.6 | AC47: 10752.8 | AD47: 40571.9 | AE47: 2555 | AF47: 7657.4 | AG47: 348.9 | AH47: 7157.4 | AI47: 24.9 | AJ47: 54703.7 | AK47: 6548.5 | AL47: 6051.9 | AM47: 2350.2 | AN47: 3670.3 | AO47: 500.4 | AP47: 13010.6 | AQ47: 4144.4 | AR47: 453.1 | AS47: 3108.8 | AT47: 239 | AU47: 88085.3 | AW47: 7.08 | AX47: 14.04 | AY47: 6.72 | AZ47: 19.56 | BA47: 6.6 | BB47: 22.08 | BD47: 23.04
A48: 2009-02-01 | B48: 41119.3856 | C48: 8282.983976 | D48: 16154.00607 | E48: 7068.389425 | F48: 72624.76507 | G48: 36.18977679 | H48: 30.19 | I48: 42.67 | J48: 33.02 | K48: 33.74 | L48: 12.21579471 | M48: 10.88 | N48: 12.88 | O48: 10.11 | P48: 12.06 | Q48: 15.67 | R48: 5.117256562 | S48: 5.03 | T48: 5.06 | U48: 5.32 | V48: 5.1 | W48: 7 | X48: 5.53 | Y48: 4164.8 | Z48: 2446 | AA48: 5652.6 | AB48: 2436.6 | AC48: 10535.2 | AD48: 40313.1 | AE48: 2541.2 | AF48: 8278.8 | AG48: 355.9 | AH48: 7709 | AI48: 25.7 | AJ48: 54289.4 | AK48: 6554.7 | AL48: 6124.9 | AM48: 2445.3 | AN48: 3715.3 | AO48: 529 | AP48: 13196.2 | AQ48: 4551 | AR48: 446.6 | AS48: 3610.3 | AT48: 239 | AU48: 88003 | AW48: 5.16 | AX48: 12.96 | AY48: 4.92 | AZ48: 15.12 | BA48: 4.68 | BB48: 19.92 | BC48: 5.76 | BD48: 24.24
A49: 2009-03-01 | B49: 40445.08225 | C49: 8286.758878 | D49: 16177.83183 | E49: 6733.923758 | F49: 71643.59671 | G49: 32.23109006 | H49: 28.89 | I49: 42.45 | J49: 29.17 | K49: 31.64 | L49: 10.05881629 | M49: 8.39 | N49: 10.3 | O49: 7.83 | P49: 12.65 | Q49: 14.25 | R49: 4.683590798 | S49: 5.01 | T49: 4.68 | U49: 5.25 | V49: 4.41 | W49: 4.43 | X49: 4.9 | Y49: 4218.5 | Z49: 2459.9 | AA49: 5902.3 | AB49: 2280.3 | AC49: 10642.5 | AD49: 37600.8 | AE49: 2533.7 | AF49: 8098.2 | AG49: 363.2 | AH49: 7551.7 | AI49: 25.9 | AJ49: 51660.8 | AK49: 6489.1 | AL49: 6655.6 | AM49: 2500.7 | AN49: 3599.9 | AO49: 559.5 | AP49: 13297.4 | AQ49: 4865.2 | AR49: 445 | AS49: 4017.7 | AT49: 241.5 | AU49: 85813.8 | AW49: 2.88 | AX49: 10.08 | AY49: 3.12 | AZ49: 14.88 | BA49: 3.24 | BB49: 15.12 | BD49: 20.64
A50: 2009-04-01 | B50: 40860.99227 | C50: 8322.734132 | D50: 16217.03066 | E50: 6398.891221 | F50: 71799.64829 | G50: 29.97497029 | H50: 28.32 | I50: 40.55 | J50: 22.84 | K50: 25.95 | L50: 8.766351447 | M50: 6.64 | N50: 8.7 | O50: 5.93 | P50: 10.99 | Q50: 9.91 | R50: 3.947299689 | S50: 4.45 | T50: 3.35 | U50: 4.96 | V50: 4.65 | W50: 4.71 | X50: 4.42 | Y50: 4234.4 | Z50: 2462.6 | AA50: 6024.4 | AB50: 2402.8 | AC50: 10889.7 | AD50: 36814.3 | AE50: 2549.4 | AF50: 8882.9 | AG50: 367.1 | AH50: 8634.1 | AI50: 22.1 | AJ50: 50847.2 | AK50: 6254.1 | AL50: 6811.1 | AM50: 2540.2 | AN50: 3479.9 | AO50: 581.5 | AP50: 13804.3 | AQ50: 5011.4 | AR50: 457.7 | AS50: 4069.3 | AT50: 234.3 | AU50: 85483.7 | AW50: 2.28 | AX50: 9.48 | AY50: 2.52 | AZ50: 13.08 | BA50: 2.88 | BB50: 11.76 | BD50: 17.64
A51: 2009-05-01 | B51: 40716.10378 | C51: 8264.660025 | D51: 16297.69606 | E51: 6183.376553 | F51: 71461.83641 | G51: 29.56658702 | H51: 26.24666031 | I51: 38.55766229 | J51: 22.91899734 | K51: 26.76687694 | L51: 8.071368334 | M51: 6.094105175 | N51: 6.835141982 | O51: 5.277296092 | P51: 9.985140566 | Q51: 11.6870111 | R51: 3.776842156 | S51: 3.677971301 | T51: 3.923672315 | U51: 4.169704853 | V51: 3.139679115 | W51: 5.339193205 | X51: 4.455645369 | Y51: 4344.9 | Z51: 2493.5 | AA51: 6188.7 | AB51: 2652.1 | AC51: 11334.3 | AD51: 36523.8 | AE51: 2589.9 | AF51: 9185.3 | AG51: 373.4 | AH51: 8999.2 | AI51: 23 | AJ51: 50984.5 | AK51: 5840.2 | AL51: 6723.3 | AM51: 2596.2 | AN51: 3469 | AO51: 600.2 | AP51: 14288.6 | AQ51: 5157.5 | AR51: 484.1 | AS51: 3958.6 | AT51: 222.5 | AU51: 85962.6 | AW51: 1.56 | AX51: 7.08 | AY51: 1.8 | AZ51: 12.12 | BA51: 2.52 | BB51: 13.56 | BD51: 18.96
A52: 2009-06-01 | B52: 40399.39512 | C52: 8203.665652 | D52: 16441.35447 | E52: 5403.769367 | F52: 70448.18461 | G52: 28.9061915 | H52: 24.19 | I52: 38.48 | J52: 21.24 | K52: 25.39 | L52: 7.984518349 | M52: 5.84 | N52: 5.42 | O52: 5.03 | P52: 11.53 | Q52: 9.14 | R52: 3.496964596 | S52: 3.6 | T52: 3.27 | U52: 4.12 | V52: 3.57 | W52: 3.12 | X52: 4.61 | Y52: 4430.6 | Z52: 2504.8 | AA52: 6291.6 | AB52: 2818.5 | AC52: 11614.8 | AD52: 36470.2 | AE52: 2627.5 | AF52: 8599.7 | AG52: 371.3 | AH52: 8163.3 | AI52: 26.3 | AJ52: 51494 | AK52: 5373.4 | AL52: 6917.2 | AM52: 2653.5 | AN52: 3435.3 | AO52: 598 | AP52: 14355.7 | AQ52: 5191.6 | AR52: 506.4 | AS52: 3819.8 | AT52: 208.4 | AU52: 86497 | AW52: 1.32 | AX52: 5.88 | AY52: 1.68 | AZ52: 14.16 | BA52: 2.76 | BB52: 13.08 | BD52: 14.88
A53: 2009-07-01 | B53: 40444.88165 | C53: 8213.907189 | D53: 16579.80784 | E53: 5362.954307 | F53: 70601.55098 | G53: 27.90935239 | H53: 24.23 | I53: 36.83 | J53: 22.73 | K53: 25.36 | L53: 7.240847234 | M53: 5.11 | N53: 4.82 | O53: 4.52 | P53: 8.7 | Q53: 12.15 | R53: 2.713315794 | S53: 2.38 | T53: 2.64 | U53: 3.09 | V53: 3.91 | W53: 2.64 | X53: 4.62 | Y53: 4308.2 | Z53: 2487 | AA53: 6303.6 | AB53: 2811.5 | AC53: 11602.2 | AD53: 36705.1 | AE53: 2640.4 | AF53: 9977.7 | AG53: 367.8 | AH53: 9280 | AI53: 24.2 | AJ53: 51989 | AK53: 5141.7 | AL53: 6460 | AM53: 2778.2 | AN53: 3339.5 | AO53: 609.4 | AP53: 14256.1 | AQ53: 5355 | AR53: 527.9 | AS53: 3911.6 | AT53: 206.6 | AU53: 86338.6 | AW53: 0.84 | AX53: 5.04 | AY53: 1.44 | AZ53: 11.4 | BA53: 1.8 | BB53: 16.2 | BD53: 18.84
A54: 2009-08-01 | B54: 40852.69961 | C54: 8220.545874 | D54: 16692.06583 | E54: 5389.531063 | F54: 71154.84237 | G54: 24.57374351 | H54: 21.67 | I54: 35.27 | J54: 19.58 | K54: 21.54 | L54: 5.987396699 | M54: 4.87 | N54: 3.94 | O54: 4.25 | P54: 7.82 | Q54: 7.89 | R54: 3.394973906 | S54: 3.87 | T54: 3.5 | U54: 2.81 | V54: 3.27 | W54: 2.96 | X54: 4.56 | Y54: 4487.9 | Z54: 2505.8 | AA54: 6290.1 | AB54: 2952.3 | AC54: 11748.2 | AD54: 36460 | AE54: 2652.7 | AF54: 10236.6 | AG54: 365.5 | AH54: 9492.9 | AI54: 21.6 | AJ54: 51948.5 | AK54: 5360.1 | AL54: 6128.7 | AM54: 2906.9 | AN54: 3309.1 | AO54: 614.3 | AP54: 14330.7 | AQ54: 5723.9 | AR54: 552.7 | AS54: 4174.6 | AT54: 200.9 | AU54: 86499.3 | AW54: 0.48 | AX54: 4.2 | AY54: 0.72 | AZ54: 10.56 | BA54: 1.44 | BB54: 9.48 | BC54: 4.68 | BD54: 14.76
A55: 2009-09-01 | B55: 41035.87044 | C55: 8242.085323 | D55: 16810.68889 | E55: 5246.605182 | F55: 71335.24984 | G55: 26.52326424 | H55: 20.52 | I55: 34.33 | J55: 20.8 | K55: 24.63 | L55: 5.774980921 | M55: 4.05 | N55: 3.72 | O55: 4.43 | P55: 7.88 | Q55: 9.41 | R55: 2.545047012 | S55: 2.14 | T55: 2.26 | U55: 2.94 | V55: 3.21 | W55: 3.03 | X55: 4.49 | Y55: 4558.8 | Z55: 2612.6 | AA55: 6470.7 | AB55: 3214.1 | AC55: 12297.4 | AD55: 36281.5 | AE55: 2663.4 | AF55: 9042 | AG55: 363.8 | AH55: 8393.2 | AI55: 21.5 | AJ55: 52233.4 | AK55: 5369 | AL55: 6576.2 | AM55: 3040.4 | AN55: 3282.4 | AO55: 607 | AP55: 13900.9 | AQ55: 6234.5 | AR55: 580.9 | AS55: 4371.3 | AT55: 200.3 | AU55: 87253 | AW55: 0.6 | AX55: 3.84 | AY55: 1.08 | AZ55: 11.4 | BA55: 2.16 | BB55: 12.24 | BC55: 4.44 | BD55: 17.4
A56: 2009-10-01 | B56: 41079.07672 | C56: 8300.790008 | D56: 17052.11346 | E56: 5224.977959 | F56: 71656.95815 | G56: 26.66781426 | H56: 19.94 | I56: 34.49 | J56: 21.97 | K56: 24.64 | L56: 5.613465454 | M56: 3.81 | N56: 3.61 | O56: 4.26 | P56: 8.15 | Q56: 8.59 | R56: 2.660928912 | S56: 2.61 | T56: 2.38 | U56: 3.24 | V56: 2.94 | W56: 3.46 | X56: 4.35 | Y56: 4379.1 | Z56: 2571.2 | AA56: 6492.6 | AB56: 3280.4 | AC56: 12344.2 | AD56: 35231.4 | AE56: 2670.1 | AF56: 9653.9 | AG56: 358.3 | AH56: 8873.3 | AI56: 24.8 | AJ56: 51359.7 | AK56: 5266 | AL56: 6458.5 | AM56: 3201.8 | AN56: 3182 | AO56: 591.6 | AP56: 13440.4 | AQ56: 6669.4 | AR56: 607.5 | AS56: 4552.1 | AT56: 192.7 | AU56: 86032.1 | AW56: 0.6 | AX56: 3.72 | AY56: 1.2 | AZ56: 11.64 | BA56: 2.52 | BB56: 11.88 | BC56: 5.04 | BD56: 16.56
A57: 2009-11-01 | B57: 40973.89827 | C57: 8346.10289 | D57: 17292.09993 | E57: 4819.113992 | F57: 71431.21508 | G57: 27.25833994 | H57: 19.46 | I57: 34.85 | J57: 22.24 | K57: 25.47 | L57: 5.247571939 | M57: 3.09 | N57: 3.58 | O57: 4.21 | P57: 7.4 | Q57: 8.59 | R57: 2.546599361 | S57: 2.567053807 | T57: 2.17 | U57: 2.94 | V57: 2.73 | W57: 4.74 | X57: 4.28 | Y57: 4558.9 | Z57: 2585.4 | AA57: 6575.7 | AB57: 3161.3 | AC57: 12322.4 | AD57: 35176.8 | AE57: 2643.8 | AF57: 9434.3 | AG57: 347.8 | AH57: 8629 | AI57: 23.9 | AJ57: 51272.2 | AK57: 5365.9 | AL57: 6421.3 | AM57: 3396.7 | AN57: 2992.3 | AO57: 533.7 | AP57: 13640.6 | AQ57: 6644.4 | AR57: 615.5 | AS57: 4382.8 | AT57: 183.4 | AU57: 86316.4 | AW57: 0.6 | AX57: 3.72 | AY57: 1.44 | AZ57: 11.28 | BA57: 2.88 | BB57: 12.36 | BC57: 4.8 | BD57: 16.68
A58: 2009-12-01 | B58: 42490.42915 | C58: 8424.088013 | D58: 17435.79351 | E58: 4624.035573 | F58: 72974.34625 | G58: 26.55652398 | H58: 19.81603166 | I58: 34.00043454 | J58: 21.09527283 | K58: 25.12893744 | L58: 4.739766636 | M58: 2.593973225 | N58: 3.447734223 | O58: 4.58394152 | P58: 7.11282064 | Q58: 6.453405703 | R58: 2.220797364 | S58: 2.561267104 | T58: 1.546123714 | U58: 2.695759656 | V58: 2.809611722 | W58: 2.087222085 | X58: 4.541432542 | Y58: 4735.2 | Z58: 2754.5 | AA58: 7257.6 | AB58: 3267 | AC58: 13279.1 | AD58: 34751.3 | AE58: 2628 | AF58: 9448.2 | AG58: 346.3 | AH58: 8712.9 | AI58: 24 | AJ58: 51716 | AK58: 5387.9 | AL58: 6214.4 | AM58: 3451.2 | AN58: 2965.1 | AO58: 496.9 | AP58: 13853.4 | AQ58: 6548.9 | AR58: 624.2 | AS58: 4071.8 | AT58: 180 | AU58: 87006.1 | AW58: 0.72 | AX58: 3.48 | AY58: 1.44 | AZ58: 9.84 | BA58: 2.52 | BB58: 7.68 | BC58: 4.68 | BD58: 14.76
A59: 2010-01-01 | B59: 42328.99862 | C59: 8459.64858 | D59: 17483.62977 | E59: 5245.58657 | F59: 73517.86355 | G59: 30.35391496 | H59: 22.311541 | I59: 36.91672581 | J59: 25.9464745 | K59: 27.49996571 | L59: 7.040624887 | M59: 3.401414768 | N59: 3.867547044 | O59: 4.972694624 | P59: 10.60487161 | Q59: 13.35882295 | R59: 1.837065704 | S59: 1.804222465 | T59: 1.23755271 | U59: 2.653003874 | V59: 2.542628365 | W59: 6.517195134 | X59: 4.583830998 | Y59: 4802.9 | Z59: 2744.3 | AA59: 7443.5 | AB59: 3592.8 | AC59: 13780.7 | AD59: 35378.8 | AE59: 2656.8 | AF59: 9729.9 | AG59: 351.9 | AH59: 8973 | AI59: 25 | AJ59: 52900.2 | AK59: 5513.4 | AL59: 5823.5 | AM59: 3528.4 | AN59: 2818.5 | AO59: 495.1 | AP59: 13930.3 | AQ59: 6640.9 | AR59: 635.4 | AS59: 4138.9 | AT59: 218.4 | AU59: 87928.3 | AW59: 0.6 | AX59: 3.96 | AY59: 1.2 | AZ59: 11.88 | BA59: 2.28 | BB59: 13.32 | BC59: 5.04 | BD59: 20.28
A60: 2010-02-01 | B60: 42565.73597 | C60: 8474.471061 | D60: 17597.78179 | E60: 5118.180715 | F60: 73756.16954 | G60: 29.546126 | H60: 21.22234936 | I60: 35.96424888 | J60: 26.28868658 | K60: 28.00828624 | L60: 5.62794949 | M60: 3.259400736 | N60: 3.901088786 | O60: 4.505729052 | P60: 9.229745185 | Q60: 9.554482386 | R60: 1.978243918 | S60: 1.533644065 | T60: 1.828072385 | U60: 2.60687515 | V60: 2.434598207 | X60: 4.602983966 | Y60: 4952.2 | Z60: 2801.8 | AA60: 7361.1 | AB60: 3713.2 | AC60: 13876 | AD60: 35333 | AE60: 2634.1 | AF60: 8937.2 | AG60: 358.3 | AH60: 8217.1 | AI60: 25.2 | AJ60: 52896.2 | AK60: 5581.3 | AL60: 6024.2 | AM60: 3639.8 | AN60: 2773.5 | AO60: 477.8 | AP60: 13893.7 | AQ60: 6848.9 | AR60: 639.3 | AS60: 4291.7 | AT60: 219.3 | AU60: 88263.7 | AW60: 0.6 | AX60: 4.08 | AY60: 1.56 | AZ60: 13.8 | BA60: 2.88 | BB60: 17.64 | BC60: 4.8 | BD60: 19.08
A61: 2010-03-01 | B61: 42411.28149 | C61: 8531.434368 | D61: 17711.91058 | E61: 5141.598752 | F61: 73796.2252 | G61: 27.98245903 | H61: 20.89873265 | I61: 34.85762233 | J61: 26.72539264 | K61: 25.3719736 | L61: 5.420358692 | M61: 3.66392238 | N61: 3.761178009 | O61: 3.838209059 | P61: 8.288899942 | Q61: 7.451673948 | R61: 2.201231503 | S61: 1.71234895 | T61: 2.177729933 | U61: 2.875538322 | V61: 2.435731665 | W61: 1.830059399 | X61: 4.275585515 | Y61: 5066 | Z61: 2869.8 | AA61: 7629.4 | AB61: 3705.5 | AC61: 14204.7 | AD61: 35235.3 | AE61: 2654.9 | AF61: 9111.7 | AG61: 363.7 | AH61: 8195.2 | AI61: 22.5 | AJ61: 53352.6 | AK61: 5580.5 | AL61: 6253.2 | AM61: 3908.2 | AN61: 2940 | AO61: 465.5 | AP61: 13899.1 | AQ61: 7295 | AR61: 656.9 | AS61: 4671.3 | AT61: 222.4 | AU61: 89457.4 | AW61: 0.6 | AX61: 3.96 | AY61: 1.32 | AZ61: 11.52 | BA61: 2.52 | BB61: 13.92 | BC61: 5.64 | BD61: 15.24
A62: 2010-04-01 | B62: 42721.57489 | C62: 8650.120887 | D62: 17821.45227 | E62: 5346.385341 | F62: 74539.53339 | G62: 27.30835546 | H62: 21.35640025 | I62: 34.77264967 | J62: 23.11688476 | K62: 25.14384494 | L62: 5.444336526 | M62: 3.787558594 | N62: 3.539037675 | O62: 4.01302618 | P62: 7.843802438 | Q62: 8.7 | R62: 1.820821489 | S62: 1.875056435 | T62: 2.200089043 | U62: 1.410022672 | V62: 2.114681559 | W62: 3.44696964 | X62: 4.127527784 | Y62: 4965.6 | Z62: 2918.6 | AA62: 7687.8 | AB62: 3727.4 | AC62: 14333.8 | AD62: 35446.4 | AE62: 2726.8 | AF62: 10228.3 | AG62: 378.7 | AH62: 9122 | AI62: 21 | AJ62: 53971 | AK62: 5716.3 | AL62: 6582.8 | AM62: 4137.5 | AN62: 2734 | AO62: 468.9 | AP62: 13936 | AQ62: 7771.4 | AR62: 680.1 | AS62: 5179.6 | AT62: 225 | AU62: 90593.3 | AW62: 0.6 | AX62: 3.72 | AY62: 1.2 | AZ62: 11.28 | BA62: 2.88 | BB62: 12.12 | BC62: 6.24 | BD62: 17.52
A63: 2010-05-01 | B63: 43016.76997 | C63: 8664.317883 | D63: 18041.26693 | E63: 5634.652399 | F63: 75357.00718 | G63: 27.304549 | H63: 20.87551957 | I63: 34.66643716 | J63: 23.06026839 | K63: 25.48703758 | L63: 5.104336024 | M63: 2.610937364 | N63: 3.639255642 | O63: 4.398213745 | P63: 8.801457545 | Q63: 7.133936312 | R63: 2.343192732 | S63: 2.693959324 | T63: 2.067121813 | U63: 2.355033951 | V63: 2.58529002 | W63: 2.598625804 | X63: 4.180987597 | Y63: 5140.5 | Z63: 2982.1 | AA63: 7971.9 | AB63: 4072.7 | AC63: 15026.6 | AD63: 35833.7 | AE63: 2738.3 | AF63: 10010.7 | AG63: 397.4 | AH63: 9143 | AI63: 22.6 | AJ63: 54841.1 | AK63: 5942 | AL63: 5973.6 | AM63: 4394 | AN63: 2760.5 | AO63: 465.6 | AP63: 14023.2 | AQ63: 7915.7 | AR63: 678.3 | AS63: 5058.8 | AT63: 230.5 | AU63: 91704.6 | AW63: 0.72 | AX63: 3.84 | AY63: 1.8 | AZ63: 12.48 | BA63: 3.84 | BB63: 10.2 | BC63: 6 | BD63: 15.12
A64: 2010-06-01 | B64: 43297.5842 | C64: 8717.965819 | D64: 18296.44437 | E64: 5852.445006 | F64: 76164.43939 | G64: 27.30581746 | H64: 22.02349102 | I64: 35.21634701 | J64: 23.06283495 | K64: 24.78810891 | L64: 5.264501639 | M64: 3.120646728 | N64: 3.46458415 | O64: 4.402196826 | P64: 7.468893929 | Q64: 8.849441622 | R64: 2.17113661 | S64: 1.876467075 | T64: 1.990638924 | U64: 2.729247237 | V64: 2.38143943 | W64: 2.318269762 | X64: 4.064804216 | Y64: 5258.3 | Z64: 3009.4 | AA64: 8098.3 | AB64: 4214.7 | AC64: 15322.4 | AD64: 35769.6 | AE64: 2798.4 | AF64: 8713.5 | AG64: 407 | AH64: 8152.6 | AI64: 22.9 | AJ64: 54835.4 | AK64: 6170 | AL64: 5144.3 | AM64: 4613.5 | AN64: 2870.4 | AO64: 457 | AP64: 14141.4 | AQ64: 7964.7 | AR64: 677.6 | AS64: 4616.6 | AT64: 233.2 | AU64: 92024.4 | AW64: 0.96 | AX64: 3.6 | AY64: 2.16 | AZ64: 10.44 | BA64: 3.96 | BB64: 13.56 | BC64: 5.28 | BD64: 16.08
A65: 2010-07-01 | B65: 42961.69648 | C65: 8799.311256 | D65: 18435.64867 | E65: 5574.450985 | F65: 75771.10739 | G65: 28.12090691 | H65: 23.39403396 | I65: 35.59254891 | J65: 24.82489296 | K65: 25.53624346 | L65: 5.864711137 | M65: 3.381370971 | N65: 4.010550957 | O65: 5.377552179 | P65: 8.339702809 | Q65: 8.870093252 | R65: 2.049669513 | S65: 2.432025408 | T65: 1.709696418 | U65: 1.904618044 | V65: 3.162283651 | W65: 1.284960667 | X65: 4.025876708 | Y65: 5172.6 | Z65: 3005.2 | AA65: 7956.5 | AB65: 4183.6 | AC65: 15145.3 | AD65: 35315 | AE65: 2838.2 | AF65: 9277.2 | AG65: 405.8 | AH65: 8628.5 | AI65: 23.8 | AJ65: 54329.3 | AK65: 6019.6 | AL65: 4632.7 | AM65: 4800.5 | AN65: 2778.6 | AO65: 411 | AP65: 14197.3 | AQ65: 8126.9 | AR65: 701.6 | AS65: 4952.2 | AT65: 229.6 | AU65: 90815.6 | AW65: 1.68 | AX65: 3.96 | AY65: 2.64 | AZ65: 12.12 | BA65: 4.56 | BB65: 14.4 | BC65: 5.4 | BD65: 17.4
A66: 2010-08-01 | B66: 43165.96213 | C66: 8927.681728 | D66: 18682.83754 | E66: 5506.390068 | F66: 76282.87147 | G66: 27.51463276 | H66: 23.20482055 | I66: 34.91530705 | J66: 24.13091922 | K66: 25.03281187 | L66: 6.913705921 | M66: 4.133481082 | N66: 4.826628098 | O66: 6.020002587 | P66: 9.761407376 | Q66: 10.78555402 | R66: 2.107778798 | S66: 2.222627845 | T66: 1.545288341 | U66: 2.467072032 | V66: 2.991188315 | W66: 3.212423851 | X66: 4.064727342 | Y66: 5211.8 | Z66: 2950.8 | AA66: 7878.1 | AB66: 4296.7 | AC66: 15125.6 | AD66: 34421 | AE66: 2831.9 | AF66: 8683 | AG66: 403.4 | AH66: 7991.7 | AI66: 22.9 | AJ66: 53450.3 | AK66: 5958.8 | AL66: 4398.4 | AM66: 4880.4 | AN66: 2781.2 | AO66: 356.8 | AP66: 14245.6 | AQ66: 8407.2 | AR66: 714.9 | AS66: 5060.1 | AT66: 228.1 | AU66: 89905.3 | AW66: 2.64 | AX66: 5.04 | AY66: 3.72 | AZ66: 12.96 | BA66: 5.4 | BB66: 14.28 | BC66: 6.24 | BD66: 20.4
A67: 2010-09-01 | B67: 43483.00586 | C67: 9004.575778 | D67: 18850.86494 | E67: 5320.740188 | F67: 76659.18677 | G67: 28.00297126 | H67: 23.54212629 | I67: 35.50671432 | J67: 25.51893939 | K67: 25.09402443 | L67: 6.868685981 | M67: 4.748385681 | N67: 5.537178037 | O67: 6.659448778 | P67: 8.605157224 | Q67: 8.840901422 | R67: 1.959424999 | S67: 1.831556777 | T67: 1.739324675 | U67: 2.26443136 | V67: 2.211930918 | W67: 1.313903858 | X67: 4.000279187 | Y67: 5266.2 | Z67: 3056.3 | AA67: 7790 | AB67: 4802.5 | AC67: 15648.8 | AD67: 34594.2 | AE67: 2869.5 | AF67: 7354.6 | AG67: 404.1 | AH67: 6787.8 | AI67: 21.9 | AJ67: 54061.5 | AK67: 6293.5 | AL67: 4471.1 | AM67: 5042 | AN67: 2817 | AO67: 342.7 | AP67: 14343.3 | AQ67: 8619.4 | AR67: 728.6 | AS67: 4535.9 | AT67: 227.1 | AU67: 91956.2 | AW67: 3 | AX67: 5.76 | AY67: 4.08 | AZ67: 11.28 | BA67: 5.52 | BB67: 12.36 | BC67: 6.36 | BD67: 15.84
A68: 2010-10-01 | B68: 43988.90595 | C68: 9116.528754 | D68: 19068.30828 | E68: 5707.592108 | F68: 77881.33509 | G68: 27.25242528 | H68: 23.27880691 | I68: 34.75053042 | J68: 25.02735843 | K68: 24.92229645 | L68: 7.13997477 | M68: 4.915324883 | N68: 5.566722729 | O68: 7.015082465 | P68: 8.473710113 | Q68: 9.984425419 | R68: 1.765055047 | S68: 1.991547755 | T68: 1.310701004 | U68: 2.206420652 | V68: 2.529210437 | W68: 2.392010624 | X68: 4.140442383 | Y68: 5293.4 | Z68: 3025.5 | AA68: 7809.4 | AB68: 4614.1 | AC68: 15449 | AD68: 35056 | AE68: 2849.5 | AF68: 8166.7 | AG68: 400.9 | AH68: 7487.8 | AI68: 21.8 | AJ68: 54412.3 | AK68: 6754.4 | AL68: 4500.4 | AM68: 5267.3 | AN68: 2697.6 | AO68: 335 | AP68: 14370 | AQ68: 8659.3 | AR68: 753.2 | AS68: 4343.3 | AT68: 223.8 | AU68: 93182.5 | AW68: 3.24 | AX68: 5.76 | AY68: 4.32 | AZ68: 11.16 | BA68: 5.4 | BB68: 15.84 | BC68: 4.68 | BD68: 16.08
A69: 2010-11-01 | B69: 44217.75877 | C69: 9262.826265 | D69: 19244.20113 | E69: 5824.234729 | F69: 78549.02089 | G69: 27.34191012 | H69: 22.10854349 | I69: 35.48190311 | J69: 26.78980385 | K69: 24.69541954 | L69: 7.187239134 | M69: 5.137470483 | N69: 5.571037815 | O69: 6.810398958 | P69: 8.248455713 | Q69: 11.51153504 | R69: 1.86573893 | S69: 1.823763918 | T69: 1.597367158 | U69: 2.275437148 | V69: 2.068143225 | W69: 1.802245165 | X69: 4.350280261 | Y69: 5330.5 | Z69: 3035.3 | AA69: 7941.6 | AB69: 4371.3 | AC69: 15348.1 | AD69: 35625.9 | AE69: 2861.7 | AF69: 8195.6 | AG69: 400 | AH69: 7605.3 | AI69: 22.9 | AJ69: 54803 | AK69: 6943.4 | AL69: 4609.8 | AM69: 5680.4 | AN69: 2668.5 | AO69: 338.9 | AP69: 14413.2 | AQ69: 8700.5 | AR69: 766.5 | AS69: 4126.1 | AT69: 229.9 | AU69: 94568.2 | AW69: 3.36 | AX69: 5.76 | AY69: 4.2 | AZ69: 11.16 | BA69: 5.28 | BB69: 15.96 | BC69: 6.48 | BD69: 18.96
A70: 2010-12-01 | B70: 44826.24336 | C70: 9390.75168 | D70: 19481.39258 | E70: 5283.800004 | F70: 78982.18763 | G70: 26.44170293 | H70: 20.85093618 | I70: 34.07978284 | J70: 25.80948478 | K70: 25.05272463 | L70: 7.379796927 | M70: 5.106860424 | N70: 5.993461997 | O70: 6.780399014 | P70: 9.991999263 | Q70: 10.90316979 | R70: 1.934379118 | S70: 1.810485196 | T70: 1.643357764 | U70: 2.289521023 | V70: 2.35371296 | W70: 1.93580782 | X70: 4.371130622 | Y70: 5595 | Z70: 3209.2 | AA70: 8214.1 | AB70: 4682.1 | AC70: 16105.4 | AD70: 36535.7 | AE70: 2840.7 | AF70: 8249.4 | AG70: 405 | AH70: 7601.9 | AI70: 23.3 | AJ70: 56511 | AK70: 6927.6 | AL70: 4369 | AM70: 6063.7 | AN70: 2574.1 | AO70: 325.4 | AP70: 14487.8 | AQ70: 8651.9 | AR70: 773.1 | AS70: 3735.7 | AT70: 239 | AU70: 96708.7 | AW70: 3.72 | AX70: 6.36 | AY70: 4.56 | AZ70: 11.04 | BA70: 5.52 | BB70: 15.12 | BC70: 6.6 | BD70: 17.64
A71: 2011-01-01 | B71: 45140.2364 | C71: 9515.07226 | D71: 19599.88231 | E71: 6010.49504 | F71: 80265.68601 | G71: 27.09389282 | H71: 21.184237 | I71: 34.26460483 | J71: 27.15339172 | K71: 26.09640906 | L71: 7.599103818 | M71: 5.388202506 | N71: 6.395744939 | O71: 7.071229337 | P71: 9.758591568 | Q71: 11.68732508 | R71: 1.777727046 | S71: 1.819907693 | T71: 1.260113923 | U71: 2.323631663 | V71: 2.288695656 | W71: 2.5 | X71: 4.337310721 | Y71: 5707.3 | Z71: 3195.2 | AA71: 8439 | AB71: 4851.6 | AC71: 16485.9 | AD71: 36815.9 | AE71: 2861.7 | AF71: 8329.6 | AG71: 417.4 | AH71: 7828.5 | AI71: 22.2 | AJ71: 57059.7 | AK71: 7037.6 | AL71: 4404.9 | AM71: 6945.2 | AN71: 2333.5 | AO71: 307.3 | AP71: 14665.5 | AQ71: 8534.2 | AR71: 776.7 | AS71: 3339.2 | AT71: 241.3 | AU71: 98484.1 | AW71: 3.72 | AX71: 6.72 | AY71: 4.44 | AZ71: 11.4 | BA71: 5.64 | BB71: 15.48 | BC71: 4.56 | BD71: 20.16
A72: 2011-02-01 | B72: 45314.42583 | C72: 9619.609073 | D72: 19752.34582 | E72: 6182.367385 | F72: 80868.74811 | G72: 26.44719241 | H72: 19.15238249 | I72: 35.8492855 | J72: 25.27572102 | K72: 25.19465698 | L72: 7.906570832 | M72: 5.613207155 | N72: 6.921755541 | O72: 7.087753307 | P72: 10.27762428 | Q72: 11.73554203 | R72: 1.742377773 | S72: 1.861031586 | T72: 1.51835621 | U72: 1.681191982 | V72: 2.269364833 | W72: 2.725717054 | X72: 4.353309404 | Y72: 5661.5 | Z72: 3217.8 | AA72: 8703.8 | AB72: 4176.3 | AC72: 16097.9 | AD72: 36593.3 | AE72: 2841.1 | AF72: 7469.7 | AG72: 427 | AH72: 7173.2 | AI72: 23.4 | AJ72: 56232.4 | AK72: 6993.2 | AL72: 5082 | AM72: 7171.5 | AN72: 2329 | AO72: 306.7 | AP72: 14864.9 | AQ72: 8344.2 | AR72: 774.5 | AS72: 3128.1 | AT72: 243.7 | AU72: 98733.1 | AW72: 3.84 | AX72: 7.44 | AY72: 4.8 | AZ72: 12 | BA72: 5.4 | BB72: 14.76 | BC72: 4.56 | BD72: 20.04
A73: 2011-03-01 | B73: 45890.50077 | C73: 9832.270987 | D73: 19950.67805 | E73: 6472.759263 | F73: 82146.20908 | G73: 25.88126176 | H73: 21.72150105 | I73: 34.8968915 | J73: 23.40006324 | K73: 24.22047744 | L73: 8.252341346 | M73: 5.765078385 | N73: 6.861265383 | O73: 7.602728001 | P73: 10.05031235 | Q73: 12.42053503 | R73: 1.894617682 | S73: 1.891604756 | T73: 1.518364279 | U73: 2.174038145 | V73: 2.137803758 | W73: 3.58932612 | X73: 4.392648861 | Y73: 5614.7 | Z73: 3174.1 | AA73: 8733.8 | AB73: 4118.6 | AC73: 16026.5 | AD73: 36762.8 | AE73: 2827.7 | AF73: 7470.1 | AG73: 441.8 | AH73: 7029 | AI73: 23.3 | AJ73: 56476.7 | AK73: 6759.6 | AL73: 5282.3 | AM73: 7513.8 | AN73: 2501.8 | AO73: 306.5 | AP73: 14920.9 | AQ73: 8378.6 | AR73: 521.9 | AS73: 3397.7 | AT73: 250.4 | AU73: 99283.6 | AW73: 4.2 | AX73: 7.2 | AY73: 5.16 | AZ73: 13.08 | BA73: 6.72 | BB73: 17.16 | BC73: 4.68 | BD73: 18.84
A74: 2011-04-01 | B74: 46504.27644 | C74: 9997.982936 | D74: 20168.48584 | E74: 6537.726729 | F74: 83208.47194 | G74: 27.11788572 | H74: 22.27921061 | I74: 36.25978272 | J74: 26.69722635 | K74: 25.05327019 | L74: 8.423425558 | M74: 6.466375081 | N74: 7.153784824 | O74: 7.765316632 | P74: 10.2531279 | Q74: 11.92302102 | R74: 1.639951833 | S74: 1.681377341 | T74: 1.272990637 | U74: 1.771238651 | V74: 2.409197423 | W74: 3.420918248 | X74: 4.305976651 | Y74: 5685.5 | Z74: 3199.8 | AA74: 8829.8 | AB74: 4271.9 | AC74: 16301.5 | AD74: 37693.7 | AE74: 2869 | AF74: 8298.4 | AG74: 473.1 | AH74: 7876.4 | AI74: 20.3 | AJ74: 57738.9 | AK74: 6689.8 | AL74: 5349.9 | AM74: 7688.1 | AN74: 2367.1 | AO74: 287.5 | AP74: 14987.4 | AQ74: 8608.8 | AR74: 801.3 | AS74: 3825.1 | AT74: 258.7 | AU74: 100434.9 | AW74: 4.68 | AX74: 7.44 | AY74: 5.52 | AZ74: 12.84 | BA74: 6.36 | BB74: 16.2 | BC74: 5.4 | BD74: 18.84
A75: 2011-05-01 | B75: 47315.03892 | C75: 10061.32488 | D75: 20375.73539 | E75: 6969.563642 | F75: 84721.66284 | G75: 27.31975229 | H75: 23 | I75: 36.04 | J75: 27.52 | K75: 25.27 | L75: 8.658781184 | M75: 6.91 | N75: 7.67 | O75: 8.33 | P75: 9.92 | Q75: 11.15 | R75: 1.628783103 | S75: 1.74 | T75: 1.28 | U75: 1.81 | V75: 1.86 | W75: 2.03 | X75: 4.16 | Y75: 5966.3 | Z75: 3250.6 | AA75: 8952.6 | AB75: 4376.4 | AC75: 16579.5 | AD75: 38275.7 | AE75: 2878.3 | AF75: 8297.7 | AG75: 490.6 | AH75: 7890.4 | AI75: 22.6 | AJ75: 58608.9 | AK75: 6778.7 | AL75: 5639.5 | AM75: 7823.7 | AN75: 2166.5 | AO75: 268.1 | AP75: 15081.7 | AQ75: 8691.3 | AR75: 811.3 | AS75: 3977.4 | AT75: 263.5 | AU75: 101628.8 | AW75: 5.4 | AX75: 7.8 | AY75: 6 | AZ75: 12.48 | BA75: 6.48 | BB75: 15.36 | BC75: 4.8 | BD75: 18.48
A76: 2011-06-01 | B76: 47636.25474 | C76: 10177.31521 | D76: 20615.75739 | E76: 6805.410625 | F76: 85234.73796 | G76: 26.94085067 | H76: 22.97 | I76: 35.23 | J76: 26.91 | K76: 24.72 | L76: 9.099138038 | M76: 7.03 | N76: 8.53 | O76: 8.54 | P76: 9.96 | Q76: 11.54 | R76: 1.775944227 | S76: 1.69 | T76: 1.4 | U76: 1.86 | V76: 2.18 | W76: 2.6 | X76: 4.13 | Y76: 5832.1 | Z76: 3289.4 | AA76: 9209.6 | AB76: 4208 | AC76: 16707 | AD76: 39544.8 | AE76: 2918.6 | AF76: 7394.5 | AG76: 495.5 | AH76: 6916.6 | AI76: 24.5 | AJ76: 60119.2 | AK76: 6771.4 | AL76: 5987.1 | AM76: 7918.3 | AN76: 2094.7 | AO76: 291.5 | AP76: 15310.3 | AQ76: 8611.6 | AR76: 809.6 | AS76: 3903.5 | AT76: 266.5 | AU76: 103743.8 | AW76: 5.64 | AX76: 9 | AY76: 6 | AZ76: 12.36 | BA76: 5.76 | BB76: 17.4 | BC76: 4.08 | BD76: 16.8
A77: 2011-07-01 | B77: 47794.15562 | C77: 10296.95643 | D77: 20800.21688 | E77: 6964.254449 | F77: 85855.58338 | G77: 27.43814138 | H77: 22.82 | I77: 36 | J77: 27.37 | K77: 25.36 | L77: 9.480908349 | M77: 7.98 | N77: 8.54 | O77: 8.11 | P77: 10.51 | Q77: 11.56 | R77: 1.786425558 | S77: 1.92 | T77: 1.59 | U77: 1.77 | V77: 2.1 | W77: 1.74 | X77: 4.13 | Y77: 5952.7 | Z77: 3288.1 | AA77: 8868.8 | AB77: 4141.8 | AC77: 16298.7 | AD77: 41096.3 | AE77: 2933.6 | AF77: 7167.1 | AG77: 495.3 | AH77: 6714.7 | AI77: 24.5 | AJ77: 61251.8 | AK77: 6721.3 | AL77: 6584.2 | AM77: 8194.4 | AN77: 2143.8 | AO77: 309.3 | AP77: 15470 | AQ77: 8258.5 | AR77: 797.9 | AS77: 3848.4 | AT77: 277.8 | AU77: 105604.8 | AW77: 5.76 | AX77: 9 | AY77: 6.12 | AZ77: 12.96 | BA77: 6.6 | BB77: 18.24 | BD77: 17.64
A78: 2011-08-01 | B78: 48232.4719 | C78: 10469.93113 | D78: 20972.75349 | E78: 7219.442139 | F78: 86894.59866 | G78: 27.68 | H78: 23.57 | I78: 35.71 | J78: 27.53 | K78: 25.6 | L78: 9.61 | M78: 8.22 | N78: 9.09 | O78: 7.71 | P78: 9.86 | Q78: 13.08 | R78: 1.75 | S78: 1.75 | T78: 1.38 | U78: 1.87 | V78: 2.18 | W78: 2.01 | X78: 4.17 | Y78: 5765.9 | Z78: 3274.4 | AA78: 8970.5 | AB78: 4287.1 | AC78: 16532 | AD78: 42222.3 | AE78: 2935.5 | AF78: 7212 | AG78: 492.2 | AH78: 7003.4 | AI78: 25.8 | AJ78: 62364.8 | AK78: 6753.7 | AL78: 6997.6 | AM78: 8654.4 | AN78: 2182.8 | AO78: 301.6 | AP78: 15484.9 | AQ78: 7832 | AR78: 772.6 | AS78: 3849.3 | AT78: 297.5 | AU78: 107197.7 | AW78: 5.64 | AX78: 9.84 | AY78: 5.88 | AZ78: 12.36 | BA78: 6.24 | BB78: 18.48 | BC78: 5.16 | BD78: 20.28
A79: 2011-09-01 | B79: 49463.90602 | C79: 10567.06338 | D79: 21138.08055 | E79: 8180.102422 | F79: 89349.15237 | G79: 28.74 | H79: 27.28 | I79: 36.72 | J79: 27.76 | K79: 25.89 | L79: 9.3 | M79: 7.83 | N79: 8.98 | O79: 7.62 | P79: 9.91 | Q79: 11.84 | R79: 1.81 | S79: 1.93 | T79: 1.44 | U79: 1.95 | V79: 2.28 | W79: 2.45 | X79: 4.17 | Y79: 5933 | Z79: 3394 | AA79: 8784 | AB79: 4634 | AC79: 16812 | AD79: 42201 | AE79: 2964 | AF79: 8283 | AG79: 497 | AH79: 8111 | AI79: 28 | AJ79: 62618 | AK79: 7003 | AL79: 7895 | AM79: 9054 | AN79: 2287 | AO79: 310 | AP79: 15541 | AQ79: 7565 | AR79: 744 | AS79: 4006 | AT79: 313 | AU79: 108698 | AW79: 5.52 | AX79: 9.72 | AY79: 5.64 | AZ79: 13.08 | BA79: 5.76 | BB79: 18.12 | BC79: 7.2 | BD79: 18.6
A80: 2011-10-01 | B80: 50153.98998 | C80: 10687.71499 | D80: 21334.41147 | E80: 7741.481012 | F80: 89917.59745 | G80: 27.73 | H80: 25.25 | I80: 35.72 | J80: 27.09 | K80: 25.55 | L80: 9.59 | M80: 7.93 | N80: 9.11 | O80: 7.93 | P80: 10.49 | Q80: 11.84 | R80: 2.02 | S80: 2.28 | T80: 1.53 | U80: 2.35 | V80: 2.54 | W80: 3.01 | X80: 4.11 | Y80: 6166.1 | Z80: 3402.2 | AA80: 9055.4 | AB80: 4460.5 | AC80: 16918 | AD80: 44800 | AE80: 2979.3 | AF80: 9587.2 | AG80: 498.9 | AH80: 9319.3 | AI80: 28.9 | AJ80: 65435.2 | AK80: 7200.1 | AL80: 8930.2 | AM80: 9495.6 | AN80: 2069.4 | AO80: 305.8 | AP80: 15692 | AQ80: 7494.7 | AR80: 738.2 | AS80: 4041 | AT80: 313.7 | AU80: 113006.6 | AW80: 5.52 | AX80: 9.72 | AY80: 5.76 | AZ80: 13.2 | BA80: 5.76 | BB80: 15.12 | BC80: 7.2 | BD80: 20.16
A81: 2011-11-01 | B81: 50977.5773 | C81: 10939.562 | D81: 21601.08746 | E81: 8058.723701 | F81: 91576.95046 | G81: 26.96 | H81: 24.21 | I81: 34.09 | J81: 26.53 | K81: 25.32 | L81: 9.5 | M81: 7.67 | N81: 9.1 | O81: 7.29 | P81: 10.7 | Q81: 13.29 | R81: 2.22 | S81: 2.36 | T81: 1.78 | U81: 2.58 | V81: 2.41 | W81: 2.88 | X81: 4.15 | Y81: 6145.2 | Z81: 3458.7 | AA81: 9223.1 | AB81: 4124.6 | AC81: 16806.4 | AD81: 45475.5 | AE81: 2990.1 | AF81: 9160.3 | AG81: 497.2 | AH81: 8943.5 | AI81: 26.9 | AJ81: 65959.2 | AK81: 7154.2 | AL81: 9203.3 | AM81: 9532.5 | AN81: 2115.2 | AO81: 288.5 | AP81: 15880.1 | AQ81: 7413.4 | AR81: 734.9 | AS81: 3852.4 | AT81: 308.3 | AU81: 114120.6 | AW81: 5.76 | AX81: 9.96 | AY81: 5.88 | AZ81: 12 | BA81: 6 | BB81: 18.48 | BD81: 19.2
A82: 2011-12-01 | B82: 51805.62433 | C82: 11054.38578 | D82: 21895.70707 | E82: 7604.47151 | F82: 92360.1887 | G82: 27.48 | H82: 24.9 | I82: 33.58 | J82: 27.49 | K82: 25.97 | L82: 9.28 | M82: 9.15 | N82: 9.36 | O82: 7.81 | P82: 9.44 | Q82: 10.17 | R82: 2.75 | S82: 2.6 | T82: 2.52 | U82: 2.86 | V82: 3.23 | W82: 3.29 | X82: 4.26 | Y82: 6719.6 | Z82: 3646.9 | AA82: 9807.7 | AB82: 4554.5 | AC82: 18009.1 | AD82: 45170.4 | AE82: 2984.7 | AF82: 9215.7 | AG82: 500.5 | AH82: 8903.9 | AI82: 32.5 | AJ82: 66944 | AK82: 7085.4 | AL82: 8929.3 | AM82: 9719.2 | AN82: 2093.8 | AO82: 275.9 | AP82: 16073.8 | AQ82: 7228.7 | AR82: 724.2 | AS82: 3769 | AT82: 307.1 | AU82: 114998.3 | AW82: 6.24 | AX82: 10.2 | AY82: 6.12 | AZ82: 11.4 | BA82: 6.36 | BB82: 17.88 | BC82: 7.2 | BD82: 15.12
A83: 2012-01-01 | B83: 52322.87588 | C83: 11155.81596 | D83: 22101.95932 | E83: 7054.350622 | F83: 92635.00178 | G83: 28.04 | H83: 23.96 | I83: 34.45 | J83: 28.19 | K83: 27.1 | L83: 9.39 | M83: 9.02 | N83: 9.12 | O83: 7.89 | P83: 9.33 | Q83: 11.74 | R83: 2.7 | S83: 2.62 | T83: 2.49 | U83: 2.82 | V83: 3.2 | W83: 1.62 | X83: 4.33 | Y83: 6524.376273 | Z83: 3635.929 | AA83: 9930.899 | AB83: 4621.485 | AC83: 18188.313 | AD83: 46461.466 | AE83: 2999.076 | AF83: 9465.568166 | AG83: 504.8856531 | AH83: 9013.687266 | AI83: 31.25266642 | AJ83: 68574.36889 | AK83: 7411.18 | AL83: 9154.34 | AM83: 9900.314 | AN83: 2343.864 | AO83: 274.5804445 | AP83: 16247.2624 | AQ83: 7250.24569 | AR83: 726.9968395 | AS83: 3788.633171 | AT83: 306.5393002 | AU83: 117787.9798 | AW83: 5.52 | AX83: 9.84 | AY83: 5.52 | AZ83: 11.4 | BA83: 6 | BB83: 16.2 | BC83: 7.2 | BD83: 19.8
A84: 2012-02-01 | B84: 52673.6117 | C84: 11252.14866 | D84: 22284.89276 | E84: 7154.813511 | F84: 93365.46664 | G84: 29.81 | H84: 27.12 | I84: 36.22 | J84: 28.78 | K84: 28.38 | L84: 9.46 | M84: 9.04 | N84: 8.53 | O84: 7.4 | P84: 10.34 | Q84: 12.44 | R84: 2.5 | S84: 2.28 | T84: 2.23 | U84: 2.85 | V84: 3.06 | X84: 4.32 | Y84: 6450.647476 | Z84: 3661.118 | AA84: 9719.267 | AB84: 4355.706 | AC84: 17736.095 | AD84: 46117.076 | AE84: 3013.262 | AF84: 8673.488747 | AG84: 508.5559775 | AH84: 8474.064081 | AI84: 25.02642235 | AJ84: 67549.38722 | AK84: 7310.31 | AL84: 9648.501 | AM84: 9776.472 | AN84: 2434.177 | AO84: 292.4436995 | AP84: 16327.44581 | AQ84: 7455.653888 | AR84: 737.8202715 | AS84: 3820.738686 | AT84: 307.7448068 | AU84: 117403.7274 | AW84: 5.28 | AX84: 9.48 | AY84: 5.52 | AZ84: 12.6 | BA84: 6 | BB84: 20.64 | BD84: 19.8
A85: 2012-03-01 | B85: 53657.9767 | C85: 11401.10618 | D85: 22517.07119 | E85: 7478.101969 | F85: 95054.25604 | G85: 27.97 | H85: 24.31 | I85: 35.36 | J85: 25.22 | K85: 27.09 | L85: 9.33 | M85: 8.52 | N85: 9.12 | O85: 8.52 | P85: 10.15 | Q85: 9.99 | R85: 2.34 | S85: 2.25 | T85: 2.01 | U85: 2.72 | V85: 3.02 | W85: 3.48 | X85: 4.29 | Y85: 6446.219045 | Z85: 3643.521 | AA85: 9836.87 | AB85: 4382.993 | AC85: 17863.384 | AD85: 47096.806 | AE85: 3033.127 | AF85: 8949.593973 | AG85: 512.6323701 | AH85: 8924.821379 | AI85: 27.11221645 | AJ85: 68503.60975 | AK85: 7483.0155 | AL85: 9818.9 | AM85: 9856.851 | AN85: 2226.57 | AO85: 284.5983425 | AP85: 16388.61157 | AQ85: 7646.173202 | AR85: 744.4243595 | AS85: 3827.311799 | AT85: 304.3709199 | AU85: 118821.071 | AW85: 5.64 | AX85: 9.72 | AY85: 6 | AZ85: 13.08 | BA85: 6.36 | BB85: 18.24 | BC85: 5.4 | BD85: 14.28
A86: 2012-04-01 | B86: 54225.70622 | C86: 11503.0073 | D86: 22710.35047 | E86: 7703.082728 | F86: 96142.14671 | G86: 28.97 | H86: 25.78 | I86: 36.78 | J86: 26.19 | K86: 27.1 | L86: 9.84 | M86: 8.33 | N86: 9.83 | O86: 8.49 | P86: 11.19 | Q86: 10.99 | R86: 2.45 | S86: 2.36 | T86: 1.81 | U86: 3.03 | V86: 2.88 | W86: 3.03 | X86: 4.37 | Y86: 6517.71905 | Z86: 3684.829 | AA86: 10087.196 | AB86: 4497.788 | AC86: 18269.813 | AD86: 48143.584 | AE86: 3062.04 | AF86: 9762.353286 | AG86: 487.3684326 | AH86: 9732.622863 | AI86: 27.6982611 | AJ86: 69964.83759 | AK86: 7598.71 | AL86: 9889.01 | AM86: 9909.42 | AN86: 2090.987 | AO86: 265.141608 | AP86: 16544.29128 | AQ86: 7667.674436 | AR86: 742.749658 | AS86: 3734.188049 | AT86: 303.2681857 | AU86: 120635.3653 | AW86: 5.76 | AX86: 10.56 | AY86: 6.12 | AZ86: 14.4 | BA86: 6.6 | BB86: 18.12 | BC86: 10.08 | BD86: 17.88
A87: 2012-05-01 | B87: 55406.60762 | C87: 11567.54168 | D87: 22885.51588 | E87: 8574.771491 | F87: 98434.43667 | G87: 27.93154458 | H87: 25.45 | I87: 36.32 | J87: 24.59 | K87: 25.45 | L87: 9.969018526 | M87: 7.86 | N87: 9.41 | O87: 8.56 | P87: 11.23 | Q87: 12.58 | R87: 2.294966394 | S87: 2.41 | T87: 1.69 | U87: 2.56 | V87: 2.64 | W87: 3.32 | X87: 4.35 | Y87: 6701.867762 | Z87: 3749.783 | AA87: 10280.134 | AB87: 4708.899 | AC87: 18738.816 | AD87: 49058.965 | AE87: 3097.427 | AF87: 9235.778367 | AG87: 504.2732878 | AH87: 9363.780161 | AI87: 26.88665777 | AJ87: 71244.59284 | AK87: 7710.342 | AL87: 9929.83 | AM87: 9936.47 | AN87: 2022.715 | AO87: 262.152711 | AP87: 16678.41451 | AQ87: 7515.817497 | AR87: 733.5375985 | AS87: 3705.101962 | AT87: 309.9081552 | AU87: 122018.862 | AW87: 5.76 | AX87: 10.2 | AY87: 6 | AZ87: 14.04 | BA87: 6.6 | BB87: 17.16 | BC87: 6.6 | BD87: 16.92
A88: 2012-06-01 | B88: 56105.20379 | C88: 11645.66512 | D88: 23083.91106 | E88: 8315.527406 | F88: 99150.30737 | G88: 28.01329261 | H88: 24.44 | I88: 36.59 | J88: 28.96 | K88: 24.97 | L88: 9.44907718 | M88: 8.27 | N88: 9.62 | O88: 8.75 | P88: 10.8 | Q88: 9.18 | R88: 2.369475938 | S88: 2.29 | T88: 1.81 | U88: 2.75 | V88: 2.81 | W88: 2.99 | X88: 4.3 | Y88: 6716.810095 | Z88: 3788.317 | AA88: 10176.674 | AB88: 4465.405 | AC88: 18430.396 | AD88: 49244.899 | AE88: 3194.396 | AF88: 9427.956582 | AG88: 556.3529885 | AH88: 9386.651616 | AI88: 28.49766907 | AJ88: 71438.85129 | AK88: 7623.736 | AL88: 9811.431 | AM88: 9962.13 | AN88: 1941.626 | AO88: 257.99859 | AP88: 16623.34841 | AQ88: 7352.503433 | AR88: 726.6149785 | AS88: 3749.466706 | AT88: 313.6095991 | AU88: 121675.1634 | AW88: 5.76 | AX88: 10.44 | AY88: 6.12 | AZ88: 13.56 | BA88: 6.6 | BB88: 18.96 | BC88: 6.24 | BD88: 13.8
A89: 2012-07-01 | B89: 56089.79431 | C89: 11737.52164 | D89: 23172.72478 | E89: 8120.903272 | F89: 99120.944 | G89: 28.00703443 | H89: 23.35 | I89: 36.56 | J89: 29.2 | K89: 24.95 | L89: 9.428934698 | M89: 9.16 | N89: 8.15 | O89: 8.32 | P89: 11.19 | Q89: 10.71 | R89: 2.177293478 | S89: 2.38 | T89: 1.47 | U89: 2.73 | V89: 2.98 | W89: 3.18 | X89: 4.35 | Y89: 6829.8286 | Z89: 3821.878 | AA89: 10165.996 | AB89: 4351.944 | AC89: 18339.818 | AD89: 50367.881 | AE89: 3162.57 | AF89: 9877.499887 | AG89: 553.9071786 | AH89: 9748.931484 | AI89: 31.04231781 | AJ89: 72521.70226 | AK89: 7475.79 | AL89: 9741.712 | AM89: 10014.9 | AN89: 1825.82 | AO89: 220.0447975 | AP89: 16529.92883 | AQ89: 7132.421692 | AR89: 724.731136 | AS89: 3630.028803 | AT89: 313.6193411 | AU89: 122243.4026 | AW89: 5.52 | AX89: 8.64 | AY89: 5.76 | AZ89: 14.04 | BA89: 6.36 | BB89: 20.16 | BC89: 6 | BD89: 17.28
A90: 2012-08-01 | B90: 56120.19828 | C90: 11899.88833 | D90: 23334.95977 | E90: 8380.348146 | F90: 99735.39453 | G90: 27.72897033 | H90: 23.5 | I90: 36.71 | J90: 28.03 | K90: 24.84 | L90: 9.643124618 | M90: 7.99 | N90: 9.01 | O90: 8.21 | P90: 11.79 | Q90: 11.34 | R90: 1.778553408 | S90: 2.03 | T90: 1.31 | U90: 1.63 | V90: 3.1 | W90: 3.46 | X90: 4.27 | Y90: 6675.824318 | Z90: 3815.609 | AA90: 9790.391 | AB90: 4202.11 | AC90: 17808.11 | AD90: 49612.987 | AE90: 3214.391 | AF90: 10180.12029 | AG90: 553.1805573 | AH90: 10304.64565 | AI90: 32.95418359 | AJ90: 71031.18901 | AK90: 7291.74 | AL90: 10120.03029 | AM90: 10066.56 | AN90: 1844.4 | AO90: 178.745237 | AP90: 16537.1986 | AQ90: 7014.604048 | AR90: 721.011687 | AS90: 3644.445461 | AT90: 313.903513 | AU90: 120847.1299 | AW90: 5.52 | AX90: 9.72 | AY90: 5.52 | AZ90: 14.52 | BA90: 6.36 | BB90: 20.4 | BC90: 6.24 | BD90: 18.12
A91: 2012-09-01 | B91: 56659.48563 | C91: 11974.53444 | D91: 23502.78464 | E91: 8206.639969 | F91: 100343.4447 | G91: 28.48198197 | H91: 22.89 | I91: 36.82 | J91: 28.91 | K91: 26.3 | L91: 9.53469323 | M91: 8.14 | N91: 9 | O91: 8.24 | P91: 10.89 | Q91: 11.9 | R91: 1.795980594 | S91: 1.68 | T91: 1.24 | U91: 1.86 | V91: 3.05 | W91: 1.36 | X91: 4.31 | Y91: 7014.227353 | Z91: 4002.335 | AA91: 9962.572 | AB91: 4673.83 | AC91: 18638.737 | AD91: 49060.187 | AE91: 3165.861 | AF91: 10011.32435 | AG91: 552.172394 | AH91: 10183.06897 | AI91: 30.06356434 | AJ91: 71215.14921 | AK91: 7141.35 | AL91: 10073.174 | AM91: 10202.66 | AN91: 1796.84 | AO91: 176.096407 | AP91: 16526.57696 | AQ91: 7102.991203 | AR91: 725.1906475 | AS91: 3668.740828 | AT91: 315.8669362 | AU91: 120975.4207 | AW91: 5.64 | AX91: 9.36 | AY91: 5.88 | AZ91: 13.68 | BA91: 6.48 | BB91: 23.04 | BC91: 6.24 | BD91: 18.6
A92: 2012-10-01 | B92: 57336.54911 | C92: 12103.43232 | D92: 23791.32161 | E92: 8151.998381 | F92: 101383.3014 | G92: 27.42840714 | H92: 21.92 | I92: 36.03 | J92: 28.25 | K92: 24.57 | L92: 9.428074432 | M92: 8.37 | N92: 8.63 | O92: 8.5 | P92: 10.88 | Q92: 10.92 | R92: 1.806457925 | S92: 2.32 | T92: 1.36 | U92: 1.84 | V92: 2.76 | W92: 3.41 | X92: 4.34 | Y92: 6918.429 | Z92: 3917.452 | AA92: 9823.225 | AB92: 4572.12 | AC92: 18312.797 | AD92: 49858.524 | AE92: 3183.35 | AF92: 10090.47875 | AG92: 535.0446437 | AH92: 10133.0429 | AI92: 27.22417828 | AJ92: 71819.92731 | AK92: 7301.2 | AL92: 10228.42 | AM92: 10347.36 | AN92: 1551.78 | AO92: 181.2706465 | AP92: 16438.67503 | AQ92: 7231.505002 | AR92: 732.3382395 | AS92: 3768.891909 | AT92: 315.7486086 | AU92: 121747.8357 | AW92: 5.76 | AX92: 9.36 | AY92: 6.12 | AZ92: 13.68 | BA92: 6.6 | BB92: 18.96 | BC92: 6.72 | BD92: 18.72
A93: 2012-11-01 | B93: 58331.72678 | C93: 12245.00659 | D93: 24113.22909 | E93: 8170.371623 | F93: 102860.3341 | G93: 25.90477067 | H93: 17.1 | I93: 35.53 | J93: 28.6 | K93: 22.53 | L93: 9.191525358 | M93: 7.95 | N93: 8.3 | O93: 8.44 | P93: 11.16 | Q93: 10.67 | R93: 1.992071979 | S93: 2.16 | T93: 1.6 | U93: 1.89 | V93: 2.68 | W93: 2.2 | X93: 4.34 | Y93: 7052.075 | Z93: 3957.408 | AA93: 9969.626 | AB93: 4345 | AC93: 18272.034 | AD93: 49658.112 | AE93: 3196.913 | AF93: 11169.68116 | AG93: 527.5382424 | AH93: 11179.92304 | AI93: 28.92422472 | AJ93: 71615.43113 | AK93: 7697.52 | AL93: 10694.7 | AM93: 10373.4 | AN93: 1419.86 | AO93: 196.574506 | AP93: 16453.53462 | AQ93: 7291.999692 | AR93: 733.36134 | AS93: 3955.957098 | AT93: 310.8083738 | AU93: 122209.6158 | AW93: 5.64 | AX93: 8.88 | AY93: 6.12 | AZ93: 14.16 | BA93: 6.6 | BB93: 19.44 | BC93: 5.88 | BD93: 15.96
A94: 2012-12-01 | B94: 59124.14304 | C94: 12332.83773 | D94: 24293.66394 | E94: 8052.019846 | F94: 103802.6645 | G94: 25.65805527 | H94: 15.24 | I94: 35.88 | J94: 28.58 | K94: 22.92 | L94: 8.938005482 | M94: 7.52 | N94: 8.82 | O94: 8.32 | P94: 10.64 | Q94: 11.25 | R94: 1.93347586 | S94: 2.09 | T94: 1.76 | U94: 1.88 | V94: 2.05 | W94: 2.71 | X94: 4.38 | Y94: 7659.542 | Z94: 4199.081 | AA94: 10634.747 | AB94: 4764.588 | AC94: 19598.416 | AD94: 48631.315 | AE94: 3189.679 | AF94: 10935.48089 | AG94: 523.7141161 | AH94: 10835.85506 | AI94: 26.46338428 | AJ94: 72016.28657 | AK94: 8068.6 | AL94: 9420.48 | AM94: 10453.84 | AN94: 1490.72 | AO94: 209.4110235 | AP94: 16610.99121 | AQ94: 7217.612406 | AR94: 736.3422055 | AS94: 3745.45057 | AT94: 306.9823773 | AU94: 122171.8505 | AW94: 5.88 | AX94: 9.24 | AY94: 6.12 | AZ94: 12.96 | BA94: 6.72 | BB94: 21.36 | BC94: 6 | BD94: 16.8
A95: 2013-01-01 | B95: 59058.49678 | C95: 12430.11316 | D95: 24441.38699 | E95: 7941.888238 | F95: 103871.8852 | G95: 25.89170233 | H95: 14.52 | I95: 36.81 | J95: 29.08 | K95: 23.25 | L95: 9.311266328 | M95: 9.4 | N95: 8.37 | O95: 8.06 | P95: 10.16 | Q95: 10.62 | R95: 1.871029095 | S95: 2.34 | T95: 1.43 | U95: 1.92 | V95: 2.22 | W95: 3.58 | X95: 4.43 | Y95: 7586.608409 | Z95: 4180.455 | AA95: 10934.297 | AB95: 4998.801 | AC95: 20113.553 | AD95: 49943.276 | AE95: 3186.914 | AF95: 10177.68155 | AG95: 524.6539743 | AH95: 9749.685055 | AI95: 26.63459876 | AJ95: 74169.75887 | AK95: 8082.71 | AL95: 9113.26 | AM95: 11068.03 | AN95: 1478.92 | AO95: 222.8338685 | AP95: 16821.84678 | AQ95: 7191.878636 | AR95: 745.356212 | AS95: 3654.971506 | AT95: 301.0859187 | AU95: 124938.5369 | AW95: 5.52 | AX95: 8.76 | AY95: 5.52 | AZ95: 12.72 | BA95: 6.6 | BB95: 19.56 | BC95: 6.84 | BD95: 17.64
A96: 2013-02-01 | B96: 59462.1138 | C96: 12490.05634 | D96: 24646.68703 | E96: 8031.979076 | F96: 104630.8362 | G96: 26.68675123 | H96: 15.51 | I96: 37.94 | J96: 29.62 | K96: 23.29 | L96: 9.676705484 | M96: 8.98 | N96: 9.09 | O96: 8.42 | P96: 10.78 | Q96: 11.28 | R96: 1.841396797 | S96: 2.2 | T96: 1.5 | U96: 2.17 | V96: 2.1 | W96: 3.91 | X96: 4.52 | Y96: 7432.5704 | Z96: 4212.295208 | AA96: 10693.768 | AB96: 4729.77855 | AC96: 19635.84176 | AD96: 50246.544 | AE96: 3193.579 | AF96: 9289.00913 | AG96: 530.6521215 | AH96: 9063.626735 | AI96: 30.35186009 | AJ96: 73801.64741 | AK96: 8002.754 | AL96: 9729.96 | AM96: 11053.27 | AN96: 1450.55 | AO96: 231.037621 | AP96: 16932.29529 | AQ96: 7475.159899 | AR96: 754.293234 | AS96: 3881.956594 | AT96: 299.3039784 | AU96: 125249.7069 | AW96: 5.28 | AX96: 9.6 | AY96: 5.4 | AZ96: 14.16 | BA96: 5.64 | BB96: 23.28 | BC96: 5.76 | BD96: 17.64
A97: 2013-03-01 | B97: 59953.7 | C97: 12643.5 | D97: 24884.6 | E97: 8215 | F97: 105696.8 | G97: 26.56176715 | H97: 22.88 | I97: 35.74 | J97: 28.39 | K97: 21.24 | L97: 9.285254494 | M97: 8.29 | N97: 8.69 | O97: 7.93 | P97: 10.76 | Q97: 11.8 | R97: 1.721195408 | S97: 2.02 | T97: 1.5 | U97: 1.54 | V97: 2.39 | W97: 3.19 | X97: 4.53 | Y97: 7537.5744 | Z97: 4204.371923 | AA97: 10800.172 | AB97: 4921.77945 | AC97: 19926.32337 | AD97: 51363.183 | AE97: 3214.194 | AF97: 8848.715489 | AG97: 540.2446586 | AH97: 9174.924468 | AI97: 30.67166512 | AJ97: 74687.06439 | AK97: 8012.34 | AL97: 9597.14 | AM97: 11168.83 | AN97: 1527.664 | AO97: 218.2914475 | AP97: 16967.06351 | AQ97: 7942.659691 | AR97: 760.2649925 | AS97: 4030.237996 | AT97: 302.6438966 | AU97: 126548.4361 | AW97: 5.28 | AX97: 9 | AY97: 5.4 | AZ97: 14.16 | BA97: 6 | BB97: 23.28 | BC97: 5.52 | BD97: 16.92
A98: 2013-04-01 | B98: 60066.75263 | C98: 12768.33474 | D98: 25126.47963 | E98: 8447.866076 | F98: 106409.4331 | G98: 25.74 | H98: 21.77 | I98: 36.07 | J98: 28.66 | K98: 19.59 | L98: 9.22 | M98: 8.43 | N98: 8.82 | O98: 7.29 | P98: 10.49 | Q98: 11.1 | R98: 1.52 | S98: 1.83 | T98: 1.15 | U98: 1.4 | V98: 2.24 | W98: 3.1 | X98: 4.53 | Y98: 7364.748773 | Z98: 4208.288 | AA98: 10876 | AB98: 4907.674 | AC98: 19991.962 | AD98: 52377.928 | AE98: 3241.144 | AF98: 10142.09149 | AG98: 545.5120548 | AH98: 10287.60457 | AI98: 30.5164186 | AJ98: 75980.51656 | AK98: 8184.93 | AL98: 10276.59 | AM98: 11433.98 | AN98: 1333.83 | AO98: 212.920044 | AP98: 17134.2639 | AQ98: 8377.399505 | AR98: 764.0567085 | AS98: 4024.679409 | AT98: 312.8101646 | AU98: 129360.9971 | AW98: 4.92 | AX98: 9.12 | AY98: 5.04 | AZ98: 13.8 | BA98: 5.76 | BB98: 22.08 | BC98: 5.28 | BD98: 16.44
A99: 2013-05-01 | B99: 60844.64044 | C99: 12814.39697 | D99: 25239.42067 | E99: 9149.131648 | F99: 108047.5897 | G99: 26.62 | H99: 23.03 | I99: 37.01 | J99: 29.56 | K99: 20.32 | L99: 9.13 | M99: 8.35 | N99: 8.85 | O99: 7.75 | P99: 9.73 | Q99: 10.49 | R99: 1.44 | S99: 1 | T99: 1.24 | U99: 1.64 | V99: 2.39 | W99: 2.4 | X99: 4.51 | Y99: 7436.335619 | Z99: 4336.638 | AA99: 11106.963 | AB99: 4926.933 | AC99: 20370.534 | AD99: 53405.278 | AE99: 3267.82 | AF99: 11573.42112 | AG99: 548.2430393 | AH99: 11585.0931 | AI99: 31.77693609 | AJ99: 77548.42612 | AK99: 8517.53 | AL99: 10687.8 | AM99: 11865.38 | AN99: 1390.55 | AO99: 216.2504905 | AP99: 17265.9813 | AQ99: 7487.394721 | AR99: 770.9913175 | AS99: 4156.63852 | AT99: 325.0270946 | AU99: 131268.6383 | AW99: 4.8 | AX99: 9.24 | AY99: 5.04 | AZ99: 13.2 | BA99: 5.52 | BB99: 22.08 | BC99: 5.4 | BD99: 16.2
A100: 2013-06-01 | B100: 61379.84658 | C100: 12885.66427 | D100: 25410.53529 | E100: 9282.431959 | F100: 108958.4781 | G100: 26.36 | H100: 23.11 | I100: 36.96 | J100: 29.76 | K100: 20.28 | L100: 9.036 | M100: 7.8 | N100: 8.76 | O100: 7.56 | P100: 10.32 | Q100: 9.72 | R100: 1.43 | S100: 1.69 | T100: 0.98 | U100: 1.95 | V100: 1.89 | W100: 2.42 | X100: 4.45 | Y100: 7677.1089 | Z100: 4325.13525 | AA100: 11107.2716 | AB100: 5370.086715 | AC100: 20802.49356 | AD100: 54033.3746 | AE100: 3295.75065 | AF100: 11106.50858 | AG100: 622.7265486 | AH100: 11186.44959 | AI100: 31.3842248 | AJ100: 78643.02012 | AK100: 7870.671095 | AL100: 10956.43861 | AM100: 12256.21929 | AN100: 1266.7326 | AO100: 197.889015 | AP100: 17210.08561 | AQ100: 9288.256849 | AR100: 747.459178 | AS100: 4377.105787 | AT100: 324.2877325 | AU100: 133735.3788 | AW100: 5.04 | AX100: 9 | AY100: 5.16 | AZ100: 13.32 | BA100: 5.4 | BB100: 19.68 | BC100: 5.64 | BD100: 15.48
A101: 2013-07-01 | B101: 61638.65262 | C101: 12968.27827 | D101: 25677.00684 | E101: 9555.318032 | F101: 109839.2558 | G101: 26.99 | H101: 20.21 | I101: 37.05 | J101: 29.52 | K101: 23.1 | L101: 9.22 | M101: 8.19 | N101: 9.07 | O101: 7.36 | P101: 10.88 | Q101: 9.64 | R101: 1.48 | S101: 2.04 | T101: 0.97 | U101: 1.98 | V101: 2.26 | W101: 3.11 | X101: 4.46 | Y101: 7727.267 | Z101: 4372.739273 | AA101: 11179.91391 | AB101: 5404.731627 | AC101: 20957.38481 | AD101: 54095.83487 | AE101: 3317.707727 | AF101: 11967.07366 | AG101: 619.9889507 | AH101: 12045.7363 | AI101: 34.19248785 | AJ101: 78878.06123 | AK101: 8435.900752 | AL101: 11360.03576 | AM101: 12499.89571 | AN101: 1099.680091 | AO101: 176.7053776 | AP101: 17119.38928 | AQ101: 9754.016331 | AR101: 745.5212942 | AS101: 4351.514835 | AT101: 325.0831552 | AU101: 135392.6078 | AW101: 5.16 | AX101: 9 | AY101: 5.28 | AZ101: 13.08 | BA101: 5.52 | BB101: 23.52 | BC101: 5.76 | BD101: 15.72
A102: 2013-08-01 | B102: 62333.40167 | C102: 13090.61518 | D102: 25941.1117 | E102: 9680.793691 | F102: 111045.9222 | G102: 27.4107645 | H102: 18.31 | I102: 35.82 | J102: 28.51 | K102: 25.43 | L102: 8.896549356 | M102: 7.96 | N102: 8.63 | O102: 7.26 | P102: 11.1 | Q102: 10.08 | R102: 1.682150506 | S102: 1.92 | T102: 1.11 | U102: 1.89 | V102: 2.21 | W102: 2.98 | X102: 4.49 | Y102: 7587.377857 | Z102: 4333.632619 | AA102: 10964.69124 | AB102: 5191.5041 | AC102: 20489.82796 | AD102: 54548.34756 | AE102: 3335.793857 | AF102: 12280.61521 | AG102: 556.3290838 | AH102: 12143.94301 | AI102: 43.94533633 | AJ102: 79023.02532 | AK102: 8656.045971 | AL102: 11297.3414 | AM102: 12790.37968 | AN102: 1130.153333 | AO102: 147.0260798 | AP102: 17080.94122 | AQ102: 7963.33978 | AR102: 763.131608 | AS102: 4174.984959 | AT102: 329.9804222 | AU102: 134346.419 | AW102: 5.16 | AX102: 8.64 | AY102: 5.28 | AZ102: 12.6 | BA102: 5.4 | BB102: 21.6 | BC102: 5.52 | BD102: 19.08

Sheet Base gráficos 1
B1: COLOCACIONES | G1: TASAS DE INTERÉS | Y1: AGREGADOS MONETARIOS
B2: Colocaciones balances individuales | G2: consumo ($) | L2: comerciales ($) | R2: comercio exterior (US$) | X2: vivienda (UF) | Y2: M1 | AC2: M2 | AM2: M3
B3: comerciales | C3: consumo | D3: vivienda | E3: comercio exterior | F3: Total | G3: Menos de 6 meses | H3: 180 - 360 días | I3: 1 - 3 años | J3: Más de 3 años | K3: Promedio | L3: Menos de 1 mes | M3: 30 - 89 días | N3: 90 - 180 días | O3: 180 - 360 días | P3: Más de 1 año | Q3: Promedio | R3: Menos de 1 mes | S3: 30 - 89 días | T3: 90 - 180 días | U3: 180 - 360 días | V3: Más de 1 año | W3: Promedio | X3: más de 3 años | Y3: Circulante | Z3: Cuentas corrientes netas de canje | AA3: Depósitos y ahorros a la vista | AB3: M1 | AC3: M1 | AD3: Depósitos plazo | AE3: Ahorro plazo | AF3: Cuotas de fondos mutuos en instrumentos < 1 año | AG3: Captaciones de Cooperativas | AH3: Inversiones de fondos mutuos en instrumentos < 1 año | AI3: Inversiones de Cooperativas | AJ3: Fondos mutuos neto en M2 | AK3: Cooperativas neto en M2 | AL3: M2 | AM3: M2 | AN3: Dep en moneda extranjera | AO3: Doc del BCCH | AP3: Bonos de Tesoreria | AQ3: Letras de crédito | AR3: Efectos de comercio | AS3: Bono de Empresa | AT3: Cuotas del resto de FM | AU3: Cuotas de APV AFP | AV3: Inversión del resto FM | AW3: Inversión de AFP | AX3: Fondos mutuos neto en M3 | AY3: AFP neto en M3 | AZ3: M3
B4: Variación anual, porcentaje | G4: Tasas base anual 360 días, porcentaje | Y4: Incidencia en la variación anual, porcentaje | AB4: Variación anual, porcentaje | AC4: Incidencia en la variación anual, porcentaje | AL4: Variación anual, porcentaje | AM4: Incidencia en la variación anual, porcentaje | AZ4: Variación anual, porcentaje
B5: Fuente: Banco Central de Chile y Superintendencia de Bancos e Instituciones Financieras. | G5: Fuente: Banco Central de Chile | Y5: Fuente: Banco Central de Chile
A7: 2006-01-01 | G7: ='Base original'!H11 -> 27.02 | H7: ='Base original'!I11 -> 31.99 | I7: ='Base original'!J11 -> 24.95 | J7: ='Base original'!K11 -> 22.13 | K7: ='Base original'!G11 -> 26.84010551 | L7: ='Base original'!M11 -> 9.25 | M7: ='Base original'!N11 -> 7.9 | N7: ='Base original'!O11 -> 8.66 | O7: ='Base original'!P11 -> 12.71 | P7: ='Base original'!Q11 -> 14.03 | Q7: ='Base original'!L11 -> 10.27317257 | R7: ='Base original'!S11 -> 5.03 | S7: ='Base original'!T11 -> 5.05 | T7: ='Base original'!U11 -> 5.75 | U7: ='Base original'!V11 -> 6.03 | V7: ='Base original'!W11 -> 6.1 | W7: ='Base original'!R11 -> 5.289234388 | X7: ='Base original'!X11 -> 5.31
A8: 2006-02-01 | G8: ='Base original'!H12 -> 28.43 | H8: ='Base original'!I12 -> 32.41 | I8: ='Base original'!J12 -> 26.06 | J8: ='Base original'!K12 -> 24.43 | K8: ='Base original'!G12 -> 28.08001067 | L8: ='Base original'!M12 -> 9.49 | M8: ='Base original'!N12 -> 7.92 | N8: ='Base original'!O12 -> 8.26 | O8: ='Base original'!P12 -> 13.8 | P8: ='Base original'!Q12 -> 12.93 | Q8: ='Base original'!L12 -> 10.69175166 | R8: ='Base original'!S12 -> 5.61 | S8: ='Base original'!T12 -> 5.03 | T8: ='Base original'!U12 -> 6.11 | U8: ='Base original'!V12 -> 6.08 | V8: ='Base original'!W12 -> 7.9 | W8: ='Base original'!R12 -> 5.488292681 | X8: ='Base original'!X12 -> 5.33
A9: 2006-03-01 | G9: ='Base original'!H13 -> 27.58 | H9: ='Base original'!I13 -> 31.42 | I9: ='Base original'!J13 -> 22.94 | J9: ='Base original'!K13 -> 21.26 | K9: ='Base original'!G13 -> 25.2206299 | L9: ='Base original'!M13 -> 9.38 | M9: ='Base original'!N13 -> 7.46 | N9: ='Base original'!O13 -> 8.24 | O9: ='Base original'!P13 -> 13.47 | P9: ='Base original'!Q13 -> 13.68 | Q9: ='Base original'!L13 -> 10.24201215 | R9: ='Base original'!S13 -> 5.5 | S9: ='Base original'!T13 -> 5.64 | T9: ='Base original'!U13 -> 6.25 | U9: ='Base original'!V13 -> 6.26 | V9: ='Base original'!W13 -> 8.15 | W9: ='Base original'!R13 -> 5.847508201 | X9: ='Base original'!X13 -> 5.22
A10: 2006-04-01 | G10: ='Base original'!H14 -> 27.85 | H10: ='Base original'!I14 -> 32.07 | I10: ='Base original'!J14 -> 25.09 | J10: ='Base original'!K14 -> 22.94 | K10: ='Base original'!G14 -> 26.81238125 | L10: ='Base original'!M14 -> 9.61 | M10: ='Base original'!N14 -> 7.62 | N10: ='Base original'!O14 -> 8.19 | O10: ='Base original'!P14 -> 13.17 | P10: ='Base original'!Q14 -> 15.02 | Q10: ='Base original'!L14 -> 10.69633422 | R10: ='Base original'!S14 -> 5.55 | S10: ='Base original'!T14 -> 5.39 | T10: ='Base original'!U14 -> 6.15 | U10: ='Base original'!V14 -> 5.98 | V10: ='Base original'!W14 -> 5.13 | W10: ='Base original'!R14 -> 5.653472987 | X10: ='Base original'!X14 -> 5.04
A11: 2006-05-01 | G11: ='Base original'!H15 -> 28.48 | H11: ='Base original'!I15 -> 32.75 | I11: ='Base original'!J15 -> 25.38 | J11: ='Base original'!K15 -> 23.44 | K11: ='Base original'!G15 -> 27.49968525 | L11: ='Base original'!M15 -> 9.62 | M11: ='Base original'!N15 -> 7.62 | N11: ='Base original'!O15 -> 8.29 | O11: ='Base original'!P15 -> 14.04 | P11: ='Base original'!Q15 -> 14.48 | Q11: ='Base original'!L15 -> 10.69976304 | R11: ='Base original'!S15 -> 5.83 | S11: ='Base original'!T15 -> 5.9 | T11: ='Base original'!U15 -> 6.29 | U11: ='Base original'!V15 -> 6.48 | V11: ='Base original'!W15 -> 5.77 | W11: ='Base original'!R15 -> 6.069324926 | X11: ='Base original'!X15 -> 5.03
A12: 2006-06-01 | G12: ='Base original'!H16 -> 29.12 | H12: ='Base original'!I16 -> 33.02 | I12: ='Base original'!J16 -> 25.11 | J12: ='Base original'!K16 -> 23.28 | K12: ='Base original'!G16 -> 27.54061454 | L12: ='Base original'!M16 -> 9.27 | M12: ='Base original'!N16 -> 7.62 | N12: ='Base original'!O16 -> 8.68 | O12: ='Base original'!P16 -> 12.12 | P12: ='Base original'!Q16 -> 12.35 | Q12: ='Base original'!L16 -> 10.0914888 | R12: ='Base original'!S16 -> 5.69 | S12: ='Base original'!T16 -> 6.04 | T12: ='Base original'!U16 -> 6.54 | U12: ='Base original'!V16 -> 6.68 | V12: ='Base original'!W16 -> 6.24 | W12: ='Base original'!R16 -> 6.098626848 | X12: ='Base original'!X16 -> 5
A13: 2006-07-01 | G13: ='Base original'!H17 -> 29.05 | H13: ='Base original'!I17 -> 33.05 | I13: ='Base original'!J17 -> 24.82 | J13: ='Base original'!K17 -> 22.78 | K13: ='Base original'!G17 -> 27.28323577 | L13: ='Base original'!M17 -> 9.08 | M13: ='Base original'!N17 -> 7.96 | N13: ='Base original'!O17 -> 8.56 | O13: ='Base original'!P17 -> 11.3 | P13: ='Base original'!Q17 -> 13.63 | Q13: ='Base original'!L17 -> 9.956696994 | R13: ='Base original'!S17 -> 6.05 | S13: ='Base original'!T17 -> 6.14 | T13: ='Base original'!U17 -> 6.57 | U13: ='Base original'!V17 -> 6.56 | V13: ='Base original'!W17 -> 6.19 | W13: ='Base original'!R17 -> 6.294930372 | X13: ='Base original'!X17 -> 5.1
A14: 2006-08-01 | G14: ='Base original'!H18 -> 27.92 | H14: ='Base original'!I18 -> 32.8 | I14: ='Base original'!J18 -> 24.22 | J14: ='Base original'!K18 -> 22.36 | K14: ='Base original'!G18 -> 26.63961018 | L14: ='Base original'!M18 -> 9.53 | M14: ='Base original'!N18 -> 8.11 | N14: ='Base original'!O18 -> 8.37 | O14: ='Base original'!P18 -> 12.31 | P14: ='Base original'!Q18 -> 11.93 | Q14: ='Base original'!L18 -> 10.30839481 | R14: ='Base original'!S18 -> 6.07 | S14: ='Base original'!T18 -> 6 | T14: ='Base original'!U18 -> 6.49 | U14: ='Base original'!V18 -> 6.52 | V14: ='Base original'!W18 -> 5.84 | W14: ='Base original'!R18 -> 6.222757439 | X14: ='Base original'!X18 -> 5.05
A15: 2006-09-01 | G15: ='Base original'!H19 -> 25.1 | H15: ='Base original'!I19 -> 32.81 | I15: ='Base original'!J19 -> 24.59 | J15: ='Base original'!K19 -> 22.48 | K15: ='Base original'!G19 -> 26.5372798 | L15: ='Base original'!M19 -> 9.64 | M15: ='Base original'!N19 -> 8.29 | N15: ='Base original'!O19 -> 8.72 | O15: ='Base original'!P19 -> 11.87 | P15: ='Base original'!Q19 -> 12.05 | Q15: ='Base original'!L19 -> 10.34509493 | R15: ='Base original'!S19 -> 6.31 | S15: ='Base original'!T19 -> 6.02 | T15: ='Base original'!U19 -> 6.48 | U15: ='Base original'!V19 -> 6.36 | V15: ='Base original'!W19 -> 6.69 | W15: ='Base original'!R19 -> 6.288846604 | X15: ='Base original'!X19 -> 5.01
A16: 2006-10-01 | G16: ='Base original'!H20 -> 25.03 | H16: ='Base original'!I20 -> 32.75 | I16: ='Base original'!J20 -> 24.94 | J16: ='Base original'!K20 -> 23.15 | K16: ='Base original'!G20 -> 26.87426644 | L16: ='Base original'!M20 -> 9.5 | M16: ='Base original'!N20 -> 8.07 | N16: ='Base original'!O20 -> 8.73 | O16: ='Base original'!P20 -> 11.71 | P16: ='Base original'!Q20 -> 14.66 | Q16: ='Base original'!L20 -> 10.32842561 | R16: ='Base original'!S20 -> 6.01 | S16: ='Base original'!T20 -> 5.94 | T16: ='Base original'!U20 -> 6.59 | U16: ='Base original'!V20 -> 6.26 | V16: ='Base original'!W20 -> 5.61 | W16: ='Base original'!R20 -> 6.177634104 | X16: ='Base original'!X20 -> 4.95
A17: 2006-11-01 | G17: ='Base original'!H21 -> 25.29 | H17: ='Base original'!I21 -> 32.93 | I17: ='Base original'!J21 -> 25.19 | J17: ='Base original'!K21 -> 22.82 | K17: ='Base original'!G21 -> 26.97083773 | L17: ='Base original'!M21 -> 9.25 | M17: ='Base original'!N21 -> 8.08 | N17: ='Base original'!O21 -> 8.55 | O17: ='Base original'!P21 -> 12.14 | P17: ='Base original'!Q21 -> 12.7 | Q17: ='Base original'!L21 -> 10.16942247 | R17: ='Base original'!S21 -> 5.96 | S17: ='Base original'!T21 -> 5.92 | T17: ='Base original'!U21 -> 6.44 | U17: ='Base original'!V21 -> 6.16 | V17: ='Base original'!W21 -> 5.73 | W17: ='Base original'!R21 -> 6.107811217 | X17: ='Base original'!X21 -> 4.82
A18: 2006-12-01 | G18: ='Base original'!H22 -> 25.03 | H18: ='Base original'!I22 -> 33.04 | I18: ='Base original'!J22 -> 24.98 | J18: ='Base original'!K22 -> 22.99 | K18: ='Base original'!G22 -> 27.08498 | L18: ='Base original'!M22 -> 9.73 | M18: ='Base original'!N22 -> 7.78 | N18: ='Base original'!O22 -> 8.53 | O18: ='Base original'!P22 -> 11.56 | P18: ='Base original'!Q22 -> 14.17 | Q18: ='Base original'!L22 -> 10.24621563 | R18: ='Base original'!S22 -> 5.88 | S18: ='Base original'!T22 -> 6.11 | T18: ='Base original'!U22 -> 6.25 | U18: ='Base original'!V22 -> 6.26 | V18: ='Base original'!W22 -> 5.79 | W18: ='Base original'!R22 -> 6.077732562 | X18: ='Base original'!X22 -> 4.77
A19: 2007-01-01 | B19: ='Base original'!B23/'Base original'!B11*100-100 -> 16.33492726 | C19: ='Base original'!C23/'Base original'!C11*100-100 -> 23.21425783 | D19: ='Base original'!D23/'Base original'!D11*100-100 -> 17.29515509 | E19: ='Base original'!E23/'Base original'!E11*100-100 -> 26.75615925 | F19: ='Base original'!F23/'Base original'!F11*100-100 -> 18.30423227 | G19: ='Base original'!H23 -> 25.46 | H19: ='Base original'!I23 -> 33.43 | I19: ='Base original'!J23 -> 25.61 | J19: ='Base original'!K23 -> 24.11 | K19: ='Base original'!G23 -> 27.90456465 | L19: ='Base original'!M23 -> 10.04 | M19: ='Base original'!N23 -> 7.69 | N19: ='Base original'!O23 -> 8.34 | O19: ='Base original'!P23 -> 11.02 | P19: ='Base original'!Q23 -> 13.73 | Q19: ='Base original'!L23 -> 10.08135097 | R19: ='Base original'!S23 -> 5.88 | S19: ='Base original'!T23 -> 5.92 | T19: ='Base original'!U23 -> 6.43 | U19: ='Base original'!V23 -> 6.42 | V19: ='Base original'!W23 -> 6.28 | W19: ='Base original'!R23 -> 6.104881737 | X19: ='Base original'!X23 -> 4.68 | Y19: =('Base original'!Z23/'Base original'!Z11*100-100)*'Base original'!Z11/'Base original'!$AC11 -> 3.30316975 | Z19: =('Base original'!AA23/'Base original'!AA11*100-100)*'Base original'!AA11/'Base original'!$AC11 -> 8.926212493 | AA19: =('Base original'!AB23/'Base original'!AB11*100-100)*'Base original'!AB11/'Base original'!$AC11 -> 3.794752143 | AB19: =('Base original'!AC23/'Base original'!AC11*100-100)*'Base original'!AC11/'Base original'!$AC11 -> 16.02519013 | AC19: =('Base original'!AC23/'Base original'!AC11*100-100)*'Base original'!AC11/('Base original'!$AJ11) -> 3.675722078 | AD19: =('Base original'!AD23/'Base original'!AD11*100-100)*'Base original'!AD11/('Base original'!$AJ11) -> 14.61843558 | AE19: =('Base original'!AE23/'Base original'!AE11*100-100)*'Base original'!AE11/('Base original'!$AJ11) -> 0.09301908844 | AF19: =('Base original'!AF23/'Base original'!AF11*100-100)*'Base original'!AF11/('Base original'!$AJ11) -> 3.715678211 | AG19: =('Base original'!AG23/'Base original'!AG11*100-100)*'Base original'!AG11/('Base original'!$AJ11) -> 0.1831625461 | AH19: =-('Base original'!AH23/'Base original'!AH11*100-100)*'Base original'!AH11/('Base original'!$AJ11) -> -3.769437372 | AI19: =-('Base original'!AI23/'Base original'!AI11*100-100)*'Base original'!AI11/('Base original'!$AJ11) -> -0.01083658759 | AJ19: =(('Base original'!AF23-'Base original'!AH23)/('Base original'!AF11-'Base original'!AH11)*100-100)*(('Base original'!AF11-'Base original'!AH11)/'Base original'!AJ11) -> -0.05375916078 | AK19: =(('Base original'!AG23-'Base original'!AI23)/('Base original'!AG11-'Base original'!AI11)*100-100)*(('Base original'!AG11-'Base original'!AI11)/'Base original'!AJ11) -> 0.1723259585 | AL19: =('Base original'!AJ23/'Base original'!AJ11*100-100)*'Base original'!AJ11/('Base original'!$AJ11) -> 18.50577381 | AM19: =('Base original'!AJ23/'Base original'!AJ11*100-100)*'Base original'!AJ11/('Base original'!$AU11) -> 10.50936001 | AN19: =('Base original'!AK23/'Base original'!AK11*100-100)*'Base original'!AK11/('Base original'!$AU11) -> 0.6304127344 | AO19: =('Base original'!AL23/'Base original'!AL11*100-100)*'Base original'!AL11/('Base original'!$AU11) -> -2.163649803 | AP19: =('Base original'!AM23/'Base original'!AM11*100-100)*'Base original'!AM11/('Base original'!$AU11) -> -0.002681656439 | AQ19: =('Base original'!AN23/'Base original'!AN11*100-100)*'Base original'!AN11/('Base original'!$AU11) -> 0.1695460093 | AR19: =('Base original'!AO23/'Base original'!AO11*100-100)*'Base original'!AO11/('Base original'!$AU11) -> 0.01426778746 | AS19: =('Base original'!AP23/'Base original'!AP11*100-100)*'Base original'!AP11/('Base original'!$AU11) -> 1.768500851 | AT19: =('Base original'!AQ23/'Base original'!AQ11*100-100)*'Base original'!AQ11/('Base original'!$AU11) -> 1.928437591 | AU19: =('Base original'!AR23/'Base original'!AR11*100-100)*'Base original'!AR11/('Base original'!$AU11) -> 0.2570608358 | AV19: =-('Base original'!AS23/'Base original'!AS11*100-100)*'Base original'!AS11/('Base original'!$AU11) -> -0.639145308 | AW19: =-('Base original'!AT23/'Base original'!AT11*100-100)*'Base original'!AT11/('Base original'!$AU11) -> -0.08017465147 | AX19: =(('Base original'!AQ23-'Base original'!AS23)/('Base original'!AQ11-'Base original'!AS11)*100-100)*(('Base original'!AQ11-'Base original'!AS11)/'Base original'!AU11) -> 1.289292283 | AY19: =(('Base original'!AR23-'Base original'!AT23)/('Base original'!AR11-'Base original'!AT11)*100-100)*(('Base original'!AR11-'Base original'!AT11)/'Base original'!AU11) -> 0.1768861843 | AZ19: =('Base original'!AU23/'Base original'!AU11*100-100)*'Base original'!AU11/('Base original'!$AU11) -> 12.3919344
A20: 2007-02-01 | B20: ='Base original'!B24/'Base original'!B12*100-100 -> 17.14859936 | C20: ='Base original'!C24/'Base original'!C12*100-100 -> 22.5728734 | D20: ='Base original'!D24/'Base original'!D12*100-100 -> 17.64643932 | E20: ='Base original'!E24/'Base original'!E12*100-100 -> 25.44007659 | F20: ='Base original'!F24/'Base original'!F12*100-100 -> 18.66457983 | G20: ='Base original'!H24 -> 25.09 | H20: ='Base original'!I24 -> 33.95 | I20: ='Base original'!J24 -> 26.74 | J20: ='Base original'!K24 -> 25.51 | K20: ='Base original'!G24 -> 28.68203617 | L20: ='Base original'!M24 -> 9.76 | M20: ='Base original'!N24 -> 8.12 | N20: ='Base original'!O24 -> 8.25 | O20: ='Base original'!P24 -> 11.24 | P20: ='Base original'!Q24 -> 11.05 | Q20: ='Base original'!L24 -> 9.948701138 | R20: ='Base original'!S24 -> 6.14 | S20: ='Base original'!T24 -> 5.72 | T20: ='Base original'!U24 -> 6.34 | U20: ='Base original'!V24 -> 6.38 | V20: ='Base original'!W24 -> 0 | W20: ='Base original'!R24 -> 6.092187817 | X20: ='Base original'!X24 -> 4.58 | Y20: =('Base original'!Z24/'Base original'!Z12*100-100)*'Base original'!Z12/'Base original'!$AC12 -> 3.383507455 | Z20: =('Base original'!AA24/'Base original'!AA12*100-100)*'Base original'!AA12/'Base original'!$AC12 -> 8.132605937 | AA20: =('Base original'!AB24/'Base original'!AB12*100-100)*'Base original'!AB12/'Base original'!$AC12 -> 4.263033923 | AB20: =('Base original'!AC24/'Base original'!AC12*100-100)*'Base original'!AC12/'Base original'!$AC12 -> 15.77914731 | AC20: =('Base original'!AC24/'Base original'!AC12*100-100)*'Base original'!AC12/('Base original'!$AJ12) -> 3.589341938 | AD20: =('Base original'!AD24/'Base original'!AD12*100-100)*'Base original'!AD12/('Base original'!$AJ12) -> 15.3280303 | AE20: =('Base original'!AE24/'Base original'!AE12*100-100)*'Base original'!AE12/('Base original'!$AJ12) -> 0.1096930042 | AF20: =('Base original'!AF24/'Base original'!AF12*100-100)*'Base original'!AF12/('Base original'!$AJ12) -> 3.040605698 | AG20: =('Base original'!AG24/'Base original'!AG12*100-100)*'Base original'!AG12/('Base original'!$AJ12) -> 0.1498032758 | AH20: =-('Base original'!AH24/'Base original'!AH12*100-100)*'Base original'!AH12/('Base original'!$AJ12) -> -3.324782904 | AI20: =-('Base original'!AI24/'Base original'!AI12*100-100)*'Base original'!AI12/('Base original'!$AJ12) -> -0.01883465045 | AJ20: =(('Base original'!AF24-'Base original'!AH24)/('Base original'!AF12-'Base original'!AH12)*100-100)*(('Base original'!AF12-'Base original'!AH12)/'Base original'!AJ12) -> -0.284177206 | AK20: =(('Base original'!AG24-'Base original'!AI24)/('Base original'!AG12-'Base original'!AI12)*100-100)*(('Base original'!AG12-'Base original'!AI12)/'Base original'!AJ12) -> 0.1309686254 | AL20: =('Base original'!AJ24/'Base original'!AJ12*100-100)*'Base original'!AJ12/('Base original'!$AJ12) -> 18.87385666 | AM20: =('Base original'!AJ24/'Base original'!AJ12*100-100)*'Base original'!AJ12/('Base original'!$AU12) -> 10.71502443 | AN20: =('Base original'!AK24/'Base original'!AK12*100-100)*'Base original'!AK12/('Base original'!$AU12) -> 0.6436703186 | AO20: =('Base original'!AL24/'Base original'!AL12*100-100)*'Base original'!AL12/('Base original'!$AU12) -> -2.241169614 | AP20: =('Base original'!AM24/'Base original'!AM12*100-100)*'Base original'!AM12/('Base original'!$AU12) -> -0.006193250281 | AQ20: =('Base original'!AN24/'Base original'!AN12*100-100)*'Base original'!AN12/('Base original'!$AU12) -> 0.164104024 | AR20: =('Base original'!AO24/'Base original'!AO12*100-100)*'Base original'!AO12/('Base original'!$AU12) -> 0.009221441717 | AS20: =('Base original'!AP24/'Base original'!AP12*100-100)*'Base original'!AP12/('Base original'!$AU12) -> 2.085944863 | AT20: =('Base original'!AQ24/'Base original'!AQ12*100-100)*'Base original'!AQ12/('Base original'!$AU12) -> 1.855990507 | AU20: =('Base original'!AR24/'Base original'!AR12*100-100)*'Base original'!AR12/('Base original'!$AU12) -> 0.2498856729 | AV20: =-('Base original'!AS24/'Base original'!AS12*100-100)*'Base original'!AS12/('Base original'!$AU12) -> -0.5974604594 | AW20: =-('Base original'!AT24/'Base original'!AT12*100-100)*'Base original'!AT12/('Base original'!$AU12) -> -0.0704182822 | AX20: =(('Base original'!AQ24-'Base original'!AS24)/('Base original'!AQ12-'Base original'!AS12)*100-100)*(('Base original'!AQ12-'Base original'!AS12)/'Base original'!AU12) -> 1.258530047 | AY20: =(('Base original'!AR24-'Base original'!AT24)/('Base original'!AR12-'Base original'!AT12)*100-100)*(('Base original'!AR12-'Base original'!AT12)/'Base original'!AU12) -> 0.1794673907 | AZ20: =('Base original'!AU24/'Base original'!AU12*100-100)*'Base original'!AU12/('Base original'!$AU12) -> 12.80856544
A21: 2007-03-01 | B21: ='Base original'!B25/'Base original'!B13*100-100 -> 16.07735532 | C21: ='Base original'!C25/'Base original'!C13*100-100 -> 21.01775333 | D21: ='Base original'!D25/'Base original'!D13*100-100 -> 17.78992747 | E21: ='Base original'!E25/'Base original'!E13*100-100 -> 21.75534482 | F21: ='Base original'!F25/'Base original'!F13*100-100 -> 17.56350979 | G21: ='Base original'!H25 -> 25.08 | H21: ='Base original'!I25 -> 34.08 | I21: ='Base original'!J25 -> 24.51 | J21: ='Base original'!K25 -> 22.77 | K21: ='Base original'!G25 -> 26.98843784 | L21: ='Base original'!M25 -> 9.78 | M21: ='Base original'!N25 -> 8.2 | N21: ='Base original'!O25 -> 8.33 | O21: ='Base original'!P25 -> 11.53 | P21: ='Base original'!Q25 -> 9.8 | Q21: ='Base original'!L25 -> 9.818966191 | R21: ='Base original'!S25 -> 5.83 | S21: ='Base original'!T25 -> 5.74 | T21: ='Base original'!U25 -> 6.54 | U21: ='Base original'!V25 -> 6.27 | V21: ='Base original'!W25 -> 6.29 | W21: ='Base original'!R25 -> 5.992904891 | X21: ='Base original'!X25 -> 4.56 | Y21: =('Base original'!Z25/'Base original'!Z13*100-100)*'Base original'!Z13/'Base original'!$AC13 -> 3.439165369 | Z21: =('Base original'!AA25/'Base original'!AA13*100-100)*'Base original'!AA13/'Base original'!$AC13 -> 8.104519856 | AA21: =('Base original'!AB25/'Base original'!AB13*100-100)*'Base original'!AB13/'Base original'!$AC13 -> 4.928630355 | AB21: =('Base original'!AC25/'Base original'!AC13*100-100)*'Base original'!AC13/'Base original'!$AC13 -> 16.47218295 | AC21: =('Base original'!AC25/'Base original'!AC13*100-100)*'Base original'!AC13/('Base original'!$AJ13) -> 3.697704871 | AD21: =('Base original'!AD25/'Base original'!AD13*100-100)*'Base original'!AD13/('Base original'!$AJ13) -> 15.90655609 | AE21: =('Base original'!AE25/'Base original'!AE13*100-100)*'Base original'!AE13/('Base original'!$AJ13) -> 0.1141222826 | AF21: =('Base original'!AF25/'Base original'!AF13*100-100)*'Base original'!AF13/('Base original'!$AJ13) -> 3.012613892 | AG21: =('Base original'!AG25/'Base original'!AG13*100-100)*'Base original'!AG13/('Base original'!$AJ13) -> 0.1459502816 | AH21: =-('Base original'!AH25/'Base original'!AH13*100-100)*'Base original'!AH13/('Base original'!$AJ13) -> -3.252708357 | AI21: =-('Base original'!AI25/'Base original'!AI13*100-100)*'Base original'!AI13/('Base original'!$AJ13) -> -0.01711983108 | AJ21: =(('Base original'!AF25-'Base original'!AH25)/('Base original'!AF13-'Base original'!AH13)*100-100)*(('Base original'!AF13-'Base original'!AH13)/'Base original'!AJ13) -> -0.2400944657 | AK21: =(('Base original'!AG25-'Base original'!AI25)/('Base original'!AG13-'Base original'!AI13)*100-100)*(('Base original'!AG13-'Base original'!AI13)/'Base original'!AJ13) -> 0.1288304506 | AL21: =('Base original'!AJ25/'Base original'!AJ13*100-100)*'Base original'!AJ13/('Base original'!$AJ13) -> 19.60711923 | AM21: =('Base original'!AJ25/'Base original'!AJ13*100-100)*'Base original'!AJ13/('Base original'!$AU13) -> 11.18611477 | AN21: =('Base original'!AK25/'Base original'!AK13*100-100)*'Base original'!AK13/('Base original'!$AU13) -> 0.7589959097 | AO21: =('Base original'!AL25/'Base original'!AL13*100-100)*'Base original'!AL13/('Base original'!$AU13) -> -2.051155743 | AP21: =('Base original'!AM25/'Base original'!AM13*100-100)*'Base original'!AM13/('Base original'!$AU13) -> -0.04659324084 | AQ21: =('Base original'!AN25/'Base original'!AN13*100-100)*'Base original'!AN13/('Base original'!$AU13) -> 0.09189552786 | AR21: =('Base original'!AO25/'Base original'!AO13*100-100)*'Base original'!AO13/('Base original'!$AU13) -> 0.026600443 | AS21: =('Base original'!AP25/'Base original'!AP13*100-100)*'Base original'!AP13/('Base original'!$AU13) -> 2.023722975 | AT21: =('Base original'!AQ25/'Base original'!AQ13*100-100)*'Base original'!AQ13/('Base original'!$AU13) -> 1.97583878 | AU21: =('Base original'!AR25/'Base original'!AR13*100-100)*'Base original'!AR13/('Base original'!$AU13) -> 0.2446697197 | AV21: =-('Base original'!AS25/'Base original'!AS13*100-100)*'Base original'!AS13/('Base original'!$AU13) -> -0.7064405006 | AW21: =-('Base original'!AT25/'Base original'!AT13*100-100)*'Base original'!AT13/('Base original'!$AU13) -> -0.0758435364 | AX21: =(('Base original'!AQ25-'Base original'!AS25)/('Base original'!AQ13-'Base original'!AS13)*100-100)*(('Base original'!AQ13-'Base original'!AS13)/'Base original'!AU13) -> 1.26939828 | AY21: =(('Base original'!AR25-'Base original'!AT25)/('Base original'!AR13-'Base original'!AT13)*100-100)*(('Base original'!AR13-'Base original'!AT13)/'Base original'!AU13) -> 0.1688261833 | AZ21: =('Base original'!AU25/'Base original'!AU13*100-100)*'Base original'!AU13/('Base original'!$AU13) -> 13.42783908
A22: 2007-04-01 | B22: ='Base original'!B26/'Base original'!B14*100-100 -> 15.2637193 | C22: ='Base original'!C26/'Base original'!C14*100-100 -> 20.40501776 | D22: ='Base original'!D26/'Base original'!D14*100-100 -> 18.23745499 | E22: ='Base original'!E26/'Base original'!E14*100-100 -> 24.63912784 | F22: ='Base original'!F26/'Base original'!F14*100-100 -> 17.35272767 | G22: ='Base original'!H26 -> 25.86 | H22: ='Base original'!I26 -> 34.24 | I22: ='Base original'!J26 -> 25.45 | J22: ='Base original'!K26 -> 23.39 | K22: ='Base original'!G26 -> 27.73739058 | L22: ='Base original'!M26 -> 10.03 | M22: ='Base original'!N26 -> 8.23 | N22: ='Base original'!O26 -> 7.51 | O22: ='Base original'!P26 -> 10.88 | P22: ='Base original'!Q26 -> 12.68 | Q22: ='Base original'!L26 -> 9.949041121 | R22: ='Base original'!S26 -> 5.77 | S22: ='Base original'!T26 -> 5.98 | T22: ='Base original'!U26 -> 6.34 | U22: ='Base original'!V26 -> 6.22 | V22: ='Base original'!W26 -> 5.55 | W22: ='Base original'!R26 -> 6.026521309 | X22: ='Base original'!X26 -> 4.54 | Y22: =('Base original'!Z26/'Base original'!Z14*100-100)*'Base original'!Z14/'Base original'!$AC14 -> 3.429536705 | Z22: =('Base original'!AA26/'Base original'!AA14*100-100)*'Base original'!AA14/'Base original'!$AC14 -> 8.758478904 | AA22: =('Base original'!AB26/'Base original'!AB14*100-100)*'Base original'!AB14/'Base original'!$AC14 -> 5.612838174 | AB22: =('Base original'!AC26/'Base original'!AC14*100-100)*'Base original'!AC14/'Base original'!$AC14 -> 17.80190137 | AC22: =('Base original'!AC26/'Base original'!AC14*100-100)*'Base original'!AC14/('Base original'!$AJ14) -> 3.985759323 | AD22: =('Base original'!AD26/'Base original'!AD14*100-100)*'Base original'!AD14/('Base original'!$AJ14) -> 15.37885764 | AE22: =('Base original'!AE26/'Base original'!AE14*100-100)*'Base original'!AE14/('Base original'!$AJ14) -> 0.1095639636 | AF22: =('Base original'!AF26/'Base original'!AF14*100-100)*'Base original'!AF14/('Base original'!$AJ14) -> 3.029383489 | AG22: =('Base original'!AG26/'Base original'!AG14*100-100)*'Base original'!AG14/('Base original'!$AJ14) -> 0.1596109761 | AH22: =-('Base original'!AH26/'Base original'!AH14*100-100)*'Base original'!AH14/('Base original'!$AJ14) -> -2.998393629 | AI22: =-('Base original'!AI26/'Base original'!AI14*100-100)*'Base original'!AI14/('Base original'!$AJ14) -> -0.008678333748 | AJ22: =(('Base original'!AF26-'Base original'!AH26)/('Base original'!AF14-'Base original'!AH14)*100-100)*(('Base original'!AF14-'Base original'!AH14)/'Base original'!AJ14) -> 0.03098986072 | AK22: =(('Base original'!AG26-'Base original'!AI26)/('Base original'!AG14-'Base original'!AI14)*100-100)*(('Base original'!AG14-'Base original'!AI14)/'Base original'!AJ14) -> 0.1509326424 | AL22: =('Base original'!AJ26/'Base original'!AJ14*100-100)*'Base original'!AJ14/('Base original'!$AJ14) -> 19.6560448 | AM22: =('Base original'!AJ26/'Base original'!AJ14*100-100)*'Base original'!AJ14/('Base original'!$AU14) -> 11.29706824 | AN22: =('Base original'!AK26/'Base original'!AK14*100-100)*'Base original'!AK14/('Base original'!$AU14) -> 0.7855055555 | AO22: =('Base original'!AL26/'Base original'!AL14*100-100)*'Base original'!AL14/('Base original'!$AU14) -> -2.026886074 | AP22: =('Base original'!AM26/'Base original'!AM14*100-100)*'Base original'!AM14/('Base original'!$AU14) -> -0.09385760134 | AQ22: =('Base original'!AN26/'Base original'!AN14*100-100)*'Base original'!AN14/('Base original'!$AU14) -> -0.3395218688 | AR22: =('Base original'!AO26/'Base original'!AO14*100-100)*'Base original'!AO14/('Base original'!$AU14) -> 0.07014886793 | AS22: =('Base original'!AP26/'Base original'!AP14*100-100)*'Base original'!AP14/('Base original'!$AU14) -> 1.770909266 | AT22: =('Base original'!AQ26/'Base original'!AQ14*100-100)*'Base original'!AQ14/('Base original'!$AU14) -> 2.369070331 | AU22: =('Base original'!AR26/'Base original'!AR14*100-100)*'Base original'!AR14/('Base original'!$AU14) -> 0.2568867383 | AV22: =-('Base original'!AS26/'Base original'!AS14*100-100)*'Base original'!AS14/('Base original'!$AU14) -> -0.7872917145 | AW22: =-('Base original'!AT26/'Base original'!AT14*100-100)*'Base original'!AT14/('Base original'!$AU14) -> -0.07613081559 | AX22: =(('Base original'!AQ26-'Base original'!AS26)/('Base original'!AQ14-'Base original'!AS14)*100-100)*(('Base original'!AQ14-'Base original'!AS14)/'Base original'!AU14) -> 1.581778617 | AY22: =(('Base original'!AR26-'Base original'!AT26)/('Base original'!AR14-'Base original'!AT14)*100-100)*(('Base original'!AR14-'Base original'!AT14)/'Base original'!AU14) -> 0.1807559227 | AZ22: =('Base original'!AU26/'Base original'!AU14*100-100)*'Base original'!AU14/('Base original'!$AU14) -> 13.22586722
A23: 2007-05-01 | B23: ='Base original'!B27/'Base original'!B15*100-100 -> 16.38686719 | C23: ='Base original'!C27/'Base original'!C15*100-100 -> 19.58556621 | D23: ='Base original'!D27/'Base original'!D15*100-100 -> 18.58973613 | E23: ='Base original'!E27/'Base original'!E15*100-100 -> 21.97933134 | F23: ='Base original'!F27/'Base original'!F15*100-100 -> 17.76245734 | G23: ='Base original'!H27 -> 25.51 | H23: ='Base original'!I27 -> 34 | I23: ='Base original'!J27 -> 25.84 | J23: ='Base original'!K27 -> 23.69 | K23: ='Base original'!G27 -> 27.88672215 | L23: ='Base original'!M27 -> 10 | M23: ='Base original'!N27 -> 8.16 | N23: ='Base original'!O27 -> 8.38 | O23: ='Base original'!P27 -> 10.97 | P23: ='Base original'!Q27 -> 11.1 | Q23: ='Base original'!L27 -> 10.02925436 | R23: ='Base original'!S27 -> 6.31 | S23: ='Base original'!T27 -> 5.65 | T23: ='Base original'!U27 -> 6.38 | U23: ='Base original'!V27 -> 6.45 | V23: ='Base original'!W27 -> 6.6 | W23: ='Base original'!R27 -> 6.07313798 | X23: ='Base original'!X27 -> 4.39 | Y23: =('Base original'!Z27/'Base original'!Z15*100-100)*'Base original'!Z15/'Base original'!$AC15 -> 3.468251658 | Z23: =('Base original'!AA27/'Base original'!AA15*100-100)*'Base original'!AA15/'Base original'!$AC15 -> 8.998872071 | AA23: =('Base original'!AB27/'Base original'!AB15*100-100)*'Base original'!AB15/'Base original'!$AC15 -> 5.119082271 | AB23: =('Base original'!AC27/'Base original'!AC15*100-100)*'Base original'!AC15/'Base original'!$AC15 -> 17.58672578 | AC23: =('Base original'!AC27/'Base original'!AC15*100-100)*'Base original'!AC15/('Base original'!$AJ15) -> 3.925903321 | AD23: =('Base original'!AD27/'Base original'!AD15*100-100)*'Base original'!AD15/('Base original'!$AJ15) -> 15.85575984 | AE23: =('Base original'!AE27/'Base original'!AE15*100-100)*'Base original'!AE15/('Base original'!$AJ15) -> 0.1004254302 | AF23: =('Base original'!AF27/'Base original'!AF15*100-100)*'Base original'!AF15/('Base original'!$AJ15) -> 3.273312072 | AG23: =('Base original'!AG27/'Base original'!AG15*100-100)*'Base original'!AG15/('Base original'!$AJ15) -> 0.1870430889 | AH23: =-('Base original'!AH27/'Base original'!AH15*100-100)*'Base original'!AH15/('Base original'!$AJ15) -> -3.054766379 | AI23: =-('Base original'!AI27/'Base original'!AI15*100-100)*'Base original'!AI15/('Base original'!$AJ15) -> -0.015113128 | AJ23: =(('Base original'!AF27-'Base original'!AH27)/('Base original'!AF15-'Base original'!AH15)*100-100)*(('Base original'!AF15-'Base original'!AH15)/'Base original'!AJ15) -> 0.2185456936 | AK23: =(('Base original'!AG27-'Base original'!AI27)/('Base original'!AG15-'Base original'!AI15)*100-100)*(('Base original'!AG15-'Base original'!AI15)/'Base original'!AJ15) -> 0.1719299609 | AL23: =('Base original'!AJ27/'Base original'!AJ15*100-100)*'Base original'!AJ15/('Base original'!$AJ15) -> 20.27253524 | AM23: =('Base original'!AJ27/'Base original'!AJ15*100-100)*'Base original'!AJ15/('Base original'!$AU15) -> 11.68046175 | AN23: =('Base original'!AK27/'Base original'!AK15*100-100)*'Base original'!AK15/('Base original'!$AU15) -> 0.7474798898 | AO23: =('Base original'!AL27/'Base original'!AL15*100-100)*'Base original'!AL15/('Base original'!$AU15) -> -1.880357423 | AP23: =('Base original'!AM27/'Base original'!AM15*100-100)*'Base original'!AM15/('Base original'!$AU15) -> 0.003676979983 | AQ23: =('Base original'!AN27/'Base original'!AN15*100-100)*'Base original'!AN15/('Base original'!$AU15) -> -0.2005792581 | AR23: =('Base original'!AO27/'Base original'!AO15*100-100)*'Base original'!AO15/('Base original'!$AU15) -> 0.09728954763 | AS23: =('Base original'!AP27/'Base original'!AP15*100-100)*'Base original'!AP15/('Base original'!$AU15) -> 1.763546454 | AT23: =('Base original'!AQ27/'Base original'!AQ15*100-100)*'Base original'!AQ15/('Base original'!$AU15) -> 2.600159681 | AU23: =('Base original'!AR27/'Base original'!AR15*100-100)*'Base original'!AR15/('Base original'!$AU15) -> 0.2845313965 | AV23: =-('Base original'!AS27/'Base original'!AS15*100-100)*'Base original'!AS15/('Base original'!$AU15) -> -0.7064648495 | AW23: =-('Base original'!AT27/'Base original'!AT15*100-100)*'Base original'!AT15/('Base original'!$AU15) -> -0.06885980695 | AX23: =(('Base original'!AQ27-'Base original'!AS27)/('Base original'!AQ15-'Base original'!AS15)*100-100)*(('Base original'!AQ15-'Base original'!AS15)/'Base original'!AU15) -> 1.893694832 | AY23: =(('Base original'!AR27-'Base original'!AT27)/('Base original'!AR15-'Base original'!AT15)*100-100)*(('Base original'!AR15-'Base original'!AT15)/'Base original'!AU15) -> 0.2156715895 | AZ23: =('Base original'!AU27/'Base original'!AU15*100-100)*'Base original'!AU15/('Base original'!$AU15) -> 14.32090107
A24: 2007-06-01 | B24: ='Base original'!B28/'Base original'!B16*100-100 -> 16.89509453 | C24: ='Base original'!C28/'Base original'!C16*100-100 -> 18.78566119 | D24: ='Base original'!D28/'Base original'!D16*100-100 -> 19.50113262 | E24: ='Base original'!E28/'Base original'!E16*100-100 -> 12.48910373 | F24: ='Base original'!F28/'Base original'!F16*100-100 -> 17.24185689 | G24: ='Base original'!H28 -> 25.96 | H24: ='Base original'!I28 -> 33.58 | I24: ='Base original'!J28 -> 26.39 | J24: ='Base original'!K28 -> 24.62 | K24: ='Base original'!G28 -> 27.94304786 | L24: ='Base original'!M28 -> 9.79 | M24: ='Base original'!N28 -> 8.08 | N24: ='Base original'!O28 -> 8.56 | O24: ='Base original'!P28 -> 10.51 | P24: ='Base original'!Q28 -> 10.91 | Q24: ='Base original'!L28 -> 9.824916651 | R24: ='Base original'!S28 -> 5.85 | S24: ='Base original'!T28 -> 6.01 | T24: ='Base original'!U28 -> 6.57 | U24: ='Base original'!V28 -> 6.25 | V24: ='Base original'!W28 -> 5.88 | W24: ='Base original'!R28 -> 6.135268702 | X24: ='Base original'!X28 -> 4.42 | Y24: =('Base original'!Z28/'Base original'!Z16*100-100)*'Base original'!Z16/'Base original'!$AC16 -> 3.212807249 | Z24: =('Base original'!AA28/'Base original'!AA16*100-100)*'Base original'!AA16/'Base original'!$AC16 -> 7.708052602 | AA24: =('Base original'!AB28/'Base original'!AB16*100-100)*'Base original'!AB16/'Base original'!$AC16 -> 5.328427399 | AB24: =('Base original'!AC28/'Base original'!AC16*100-100)*'Base original'!AC16/'Base original'!$AC16 -> 16.24903156 | AC24: =('Base original'!AC28/'Base original'!AC16*100-100)*'Base original'!AC16/('Base original'!$AJ16) -> 3.622875679 | AD24: =('Base original'!AD28/'Base original'!AD16*100-100)*'Base original'!AD16/('Base original'!$AJ16) -> 16.30013283 | AE24: =('Base original'!AE28/'Base original'!AE16*100-100)*'Base original'!AE16/('Base original'!$AJ16) -> 0.07793214715 | AF24: =('Base original'!AF28/'Base original'!AF16*100-100)*'Base original'!AF16/('Base original'!$AJ16) -> 3.594855452 | AG24: =('Base original'!AG28/'Base original'!AG16*100-100)*'Base original'!AG16/('Base original'!$AJ16) -> 0.2129594263 | AH24: =-('Base original'!AH28/'Base original'!AH16*100-100)*'Base original'!AH16/('Base original'!$AJ16) -> -3.512334031 | AI24: =-('Base original'!AI28/'Base original'!AI16*100-100)*'Base original'!AI16/('Base original'!$AJ16) -> -0.02645246253 | AJ24: =(('Base original'!AF28-'Base original'!AH28)/('Base original'!AF16-'Base original'!AH16)*100-100)*(('Base original'!AF16-'Base original'!AH16)/'Base original'!AJ16) -> 0.08252142136 | AK24: =(('Base original'!AG28-'Base original'!AI28)/('Base original'!AG16-'Base original'!AI16)*100-100)*(('Base original'!AG16-'Base original'!AI16)/'Base original'!AJ16) -> 0.1865069637 | AL24: =('Base original'!AJ28/'Base original'!AJ16*100-100)*'Base original'!AJ16/('Base original'!$AJ16) -> 20.26994054 | AM24: =('Base original'!AJ28/'Base original'!AJ16*100-100)*'Base original'!AJ16/('Base original'!$AU16) -> 11.75781195 | AN24: =('Base original'!AK28/'Base original'!AK16*100-100)*'Base original'!AK16/('Base original'!$AU16) -> 0.5010792922 | AO24: =('Base original'!AL28/'Base original'!AL16*100-100)*'Base original'!AL16/('Base original'!$AU16) -> -1.92197515 | AP24: =('Base original'!AM28/'Base original'!AM16*100-100)*'Base original'!AM16/('Base original'!$AU16) -> 0.1259766747 | AQ24: =('Base original'!AN28/'Base original'!AN16*100-100)*'Base original'!AN16/('Base original'!$AU16) -> -0.339966716 | AR24: =('Base original'!AO28/'Base original'!AO16*100-100)*'Base original'!AO16/('Base original'!$AU16) -> 0.1089130275 | AS24: =('Base original'!AP28/'Base original'!AP16*100-100)*'Base original'!AP16/('Base original'!$AU16) -> 1.865030188 | AT24: =('Base original'!AQ28/'Base original'!AQ16*100-100)*'Base original'!AQ16/('Base original'!$AU16) -> 2.94796001 | AU24: =('Base original'!AR28/'Base original'!AR16*100-100)*'Base original'!AR16/('Base original'!$AU16) -> 0.3267721515 | AV24: =-('Base original'!AS28/'Base original'!AS16*100-100)*'Base original'!AS16/('Base original'!$AU16) -> -0.6374892629 | AW24: =-('Base original'!AT28/'Base original'!AT16*100-100)*'Base original'!AT16/('Base original'!$AU16) -> -0.07361178053 | AX24: =(('Base original'!AQ28-'Base original'!AS28)/('Base original'!AQ16-'Base original'!AS16)*100-100)*(('Base original'!AQ16-'Base original'!AS16)/'Base original'!AU16) -> 2.310470747 | AY24: =(('Base original'!AR28-'Base original'!AT28)/('Base original'!AR16-'Base original'!AT16)*100-100)*(('Base original'!AR16-'Base original'!AT16)/'Base original'!AU16) -> 0.253160371 | AZ24: =('Base original'!AU28/'Base original'!AU16*100-100)*'Base original'!AU16/('Base original'!$AU16) -> 14.66050038
A25: 2007-07-01 | B25: ='Base original'!B29/'Base original'!B17*100-100 -> 17.24830532 | C25: ='Base original'!C29/'Base original'!C17*100-100 -> 18.4423871 | D25: ='Base original'!D29/'Base original'!D17*100-100 -> 19.62536295 | E25: ='Base original'!E29/'Base original'!E17*100-100 -> 16.83053086 | F25: ='Base original'!F29/'Base original'!F17*100-100 -> 17.85595629 | G25: ='Base original'!H29 -> 26.59 | H25: ='Base original'!I29 -> 34.54 | I25: ='Base original'!J29 -> 26.87 | J25: ='Base original'!K29 -> 25.04 | K25: ='Base original'!G29 -> 28.85455598 | L25: ='Base original'!M29 -> 10.01 | M25: ='Base original'!N29 -> 7.93 | N25: ='Base original'!O29 -> 8.45 | O25: ='Base original'!P29 -> 10.48 | P25: ='Base original'!Q29 -> 11.56 | Q25: ='Base original'!L29 -> 9.985638792 | R25: ='Base original'!S29 -> 6.01 | S25: ='Base original'!T29 -> 5.8 | T25: ='Base original'!U29 -> 6.4 | U25: ='Base original'!V29 -> 6.39 | V25: ='Base original'!W29 -> 6.54 | W25: ='Base original'!R29 -> 6.062530955 | X25: ='Base original'!X29 -> 4.51 | Y25: =('Base original'!Z29/'Base original'!Z17*100-100)*'Base original'!Z17/'Base original'!$AC17 -> 3.211896762 | Z25: =('Base original'!AA29/'Base original'!AA17*100-100)*'Base original'!AA17/'Base original'!$AC17 -> 9.968323156 | AA25: =('Base original'!AB29/'Base original'!AB17*100-100)*'Base original'!AB17/'Base original'!$AC17 -> 5.688048103 | AB25: =('Base original'!AC29/'Base original'!AC17*100-100)*'Base original'!AC17/'Base original'!$AC17 -> 18.8689182 | AC25: =('Base original'!AC29/'Base original'!AC17*100-100)*'Base original'!AC17/('Base original'!$AJ17) -> 4.120425874 | AD25: =('Base original'!AD29/'Base original'!AD17*100-100)*'Base original'!AD17/('Base original'!$AJ17) -> 16.6720714 | AE25: =('Base original'!AE29/'Base original'!AE17*100-100)*'Base original'!AE17/('Base original'!$AJ17) -> 0.06488524257 | AF25: =('Base original'!AF29/'Base original'!AF17*100-100)*'Base original'!AF17/('Base original'!$AJ17) -> 3.299208712 | AG25: =('Base original'!AG29/'Base original'!AG17*100-100)*'Base original'!AG17/('Base original'!$AJ17) -> 0.2360289436 | AH25: =-('Base original'!AH29/'Base original'!AH17*100-100)*'Base original'!AH17/('Base original'!$AJ17) -> -2.869603095 | AI25: =-('Base original'!AI29/'Base original'!AI17*100-100)*'Base original'!AI17/('Base original'!$AJ17) -> -0.02558494685 | AJ25: =(('Base original'!AF29-'Base original'!AH29)/('Base original'!AF17-'Base original'!AH17)*100-100)*(('Base original'!AF17-'Base original'!AH17)/'Base original'!AJ17) -> 0.429605617 | AK25: =(('Base original'!AG29-'Base original'!AI29)/('Base original'!AG17-'Base original'!AI17)*100-100)*(('Base original'!AG17-'Base original'!AI17)/'Base original'!AJ17) -> 0.2104439968 | AL25: =('Base original'!AJ29/'Base original'!AJ17*100-100)*'Base original'!AJ17/('Base original'!$AJ17) -> 21.49740374 | AM25: =('Base original'!AJ29/'Base original'!AJ17*100-100)*'Base original'!AJ17/('Base original'!$AU17) -> 12.54696704 | AN25: =('Base original'!AK29/'Base original'!AK17*100-100)*'Base original'!AK17/('Base original'!$AU17) -> 0.4905404646 | AO25: =('Base original'!AL29/'Base original'!AL17*100-100)*'Base original'!AL17/('Base original'!$AU17) -> -1.772097731 | AP25: =('Base original'!AM29/'Base original'!AM17*100-100)*'Base original'!AM17/('Base original'!$AU17) -> 0.1616406903 | AQ25: =('Base original'!AN29/'Base original'!AN17*100-100)*'Base original'!AN17/('Base original'!$AU17) -> -0.3941493793 | AR25: =('Base original'!AO29/'Base original'!AO17*100-100)*'Base original'!AO17/('Base original'!$AU17) -> 0.08590010231 | AS25: =('Base original'!AP29/'Base original'!AP17*100-100)*'Base original'!AP17/('Base original'!$AU17) -> 1.953924862 | AT25: =('Base original'!AQ29/'Base original'!AQ17*100-100)*'Base original'!AQ17/('Base original'!$AU17) -> 3.254475283 | AU25: =('Base original'!AR29/'Base original'!AR17*100-100)*'Base original'!AR17/('Base original'!$AU17) -> 0.3570911835 | AV25: =-('Base original'!AS29/'Base original'!AS17*100-100)*'Base original'!AS17/('Base original'!$AU17) -> -0.5293554443 | AW25: =-('Base original'!AT29/'Base original'!AT17*100-100)*'Base original'!AT17/('Base original'!$AU17) -> -0.08097779276 | AX25: =(('Base original'!AQ29-'Base original'!AS29)/('Base original'!AQ17-'Base original'!AS17)*100-100)*(('Base original'!AQ17-'Base original'!AS17)/'Base original'!AU17) -> 2.725119838 | AY25: =(('Base original'!AR29-'Base original'!AT29)/('Base original'!AR17-'Base original'!AT17)*100-100)*(('Base original'!AR17-'Base original'!AT17)/'Base original'!AU17) -> 0.2761133908 | AZ25: =('Base original'!AU29/'Base original'!AU17*100-100)*'Base original'!AU17/('Base original'!$AU17) -> 16.07395928
A26: 2007-08-01 | B26: ='Base original'!B30/'Base original'!B18*100-100 -> 18.04252988 | C26: ='Base original'!C30/'Base original'!C18*100-100 -> 17.64587823 | D26: ='Base original'!D30/'Base original'!D18*100-100 -> 19.91402681 | E26: ='Base original'!E30/'Base original'!E18*100-100 -> 18.47280879 | F26: ='Base original'!F30/'Base original'!F18*100-100 -> 18.422651 | G26: ='Base original'!H30 -> 24.32 | H26: ='Base original'!I30 -> 34.65 | I26: ='Base original'!J30 -> 25.44 | J26: ='Base original'!K30 -> 23.57 | K26: ='Base original'!G30 -> 27.59263685 | L26: ='Base original'!M30 -> 10.02 | M26: ='Base original'!N30 -> 7.98 | N26: ='Base original'!O30 -> 8.89 | O26: ='Base original'!P30 -> 10.09 | P26: ='Base original'!Q30 -> 11.97 | Q26: ='Base original'!L30 -> 9.911397133 | R26: ='Base original'!S30 -> 6.02 | S26: ='Base original'!T30 -> 6 | T26: ='Base original'!U30 -> 6.51 | U26: ='Base original'!V30 -> 6.39 | V26: ='Base original'!W30 -> 6.48 | W26: ='Base original'!R30 -> 6.19990909 | X26: ='Base original'!X30 -> 4.69 | Y26: =('Base original'!Z30/'Base original'!Z18*100-100)*'Base original'!Z18/'Base original'!$AC18 -> 3.199427498 | Z26: =('Base original'!AA30/'Base original'!AA18*100-100)*'Base original'!AA18/'Base original'!$AC18 -> 9.768309214 | AA26: =('Base original'!AB30/'Base original'!AB18*100-100)*'Base original'!AB18/'Base original'!$AC18 -> 6.148646707 | AB26: =('Base original'!AC30/'Base original'!AC18*100-100)*'Base original'!AC18/'Base original'!$AC18 -> 19.11599165 | AC26: =('Base original'!AC30/'Base original'!AC18*100-100)*'Base original'!AC18/('Base original'!$AJ18) -> 4.069319908 | AD26: =('Base original'!AD30/'Base original'!AD18*100-100)*'Base original'!AD18/('Base original'!$AJ18) -> 15.40491516 | AE26: =('Base original'!AE30/'Base original'!AE18*100-100)*'Base original'!AE18/('Base original'!$AJ18) -> 0.06607852976 | AF26: =('Base original'!AF30/'Base original'!AF18*100-100)*'Base original'!AF18/('Base original'!$AJ18) -> 4.463539357 | AG26: =('Base original'!AG30/'Base original'!AG18*100-100)*'Base original'!AG18/('Base original'!$AJ18) -> 0.2587542932 | AH26: =-('Base original'!AH30/'Base original'!AH18*100-100)*'Base original'!AH18/('Base original'!$AJ18) -> -5.135944691 | AI26: =-('Base original'!AI30/'Base original'!AI18*100-100)*'Base original'!AI18/('Base original'!$AJ18) -> -0.02782692818 | AJ26: =(('Base original'!AF30-'Base original'!AH30)/('Base original'!AF18-'Base original'!AH18)*100-100)*(('Base original'!AF18-'Base original'!AH18)/'Base original'!AJ18) -> -0.6724053335 | AK26: =(('Base original'!AG30-'Base original'!AI30)/('Base original'!AG18-'Base original'!AI18)*100-100)*(('Base original'!AG18-'Base original'!AI18)/'Base original'!AJ18) -> 0.230927365 | AL26: =('Base original'!AJ30/'Base original'!AJ18*100-100)*'Base original'!AJ18/('Base original'!$AJ18) -> 19.09880783 | AM26: =('Base original'!AJ30/'Base original'!AJ18*100-100)*'Base original'!AJ18/('Base original'!$AU18) -> 11.22739133 | AN26: =('Base original'!AK30/'Base original'!AK18*100-100)*'Base original'!AK18/('Base original'!$AU18) -> 0.5899769611 | AO26: =('Base original'!AL30/'Base original'!AL18*100-100)*'Base original'!AL18/('Base original'!$AU18) -> -2.060000438 | AP26: =('Base original'!AM30/'Base original'!AM18*100-100)*'Base original'!AM18/('Base original'!$AU18) -> 0.1454923518 | AQ26: =('Base original'!AN30/'Base original'!AN18*100-100)*'Base original'!AN18/('Base original'!$AU18) -> -0.2202731001 | AR26: =('Base original'!AO30/'Base original'!AO18*100-100)*'Base original'!AO18/('Base original'!$AU18) -> 0.05618361288 | AS26: =('Base original'!AP30/'Base original'!AP18*100-100)*'Base original'!AP18/('Base original'!$AU18) -> 1.99999281 | AT26: =('Base original'!AQ30/'Base original'!AQ18*100-100)*'Base original'!AQ18/('Base original'!$AU18) -> 3.073707736 | AU26: =('Base original'!AR30/'Base original'!AR18*100-100)*'Base original'!AR18/('Base original'!$AU18) -> 0.3321664094 | AV26: =-('Base original'!AS30/'Base original'!AS18*100-100)*'Base original'!AS18/('Base original'!$AU18) -> -0.008154631422 | AW26: =-('Base original'!AT30/'Base original'!AT18*100-100)*'Base original'!AT18/('Base original'!$AU18) -> -0.07183919786 | AX26: =(('Base original'!AQ30-'Base original'!AS30)/('Base original'!AQ18-'Base original'!AS18)*100-100)*(('Base original'!AQ18-'Base original'!AS18)/'Base original'!AU18) -> 3.065553105 | AY26: =(('Base original'!AR30-'Base original'!AT30)/('Base original'!AR18-'Base original'!AT18)*100-100)*(('Base original'!AR18-'Base original'!AT18)/'Base original'!AU18) -> 0.2603272115 | AZ26: =('Base original'!AU30/'Base original'!AU18*100-100)*'Base original'!AU18/('Base original'!$AU18) -> 15.06467652
A27: 2007-09-01 | B27: ='Base original'!B31/'Base original'!B19*100-100 -> 20.42543216 | C27: ='Base original'!C31/'Base original'!C19*100-100 -> 16.69893249 | D27: ='Base original'!D31/'Base original'!D19*100-100 -> 21.36893863 | E27: ='Base original'!E31/'Base original'!E19*100-100 -> 14.48016208 | F27: ='Base original'!F31/'Base original'!F19*100-100 -> 19.58836974 | G27: ='Base original'!H31 -> 25.43 | H27: ='Base original'!I31 -> 35.09 | I27: ='Base original'!J31 -> 27 | J27: ='Base original'!K31 -> 24.95 | K27: ='Base original'!G31 -> 28.88864487 | L27: ='Base original'!M31 -> 8.97 | M27: ='Base original'!N31 -> 9.17 | N27: ='Base original'!O31 -> 9.38 | O27: ='Base original'!P31 -> 11.3 | P27: ='Base original'!Q31 -> 12.5 | Q27: ='Base original'!L31 -> 10.12611294 | R27: ='Base original'!S31 -> 6 | S27: ='Base original'!T31 -> 5.99 | T27: ='Base original'!U31 -> 6.53 | U27: ='Base original'!V31 -> 6.33 | V27: ='Base original'!W31 -> 5.95 | W27: ='Base original'!R31 -> 6.144116389 | X27: ='Base original'!X31 -> 4.79 | Y27: =('Base original'!Z31/'Base original'!Z19*100-100)*'Base original'!Z19/'Base original'!$AC19 -> 3.199987886 | Z27: =('Base original'!AA31/'Base original'!AA19*100-100)*'Base original'!AA19/'Base original'!$AC19 -> 7.728425003 | AA27: =('Base original'!AB31/'Base original'!AB19*100-100)*'Base original'!AB19/'Base original'!$AC19 -> 7.799844291 | AB27: =('Base original'!AC31/'Base original'!AC19*100-100)*'Base original'!AC19/'Base original'!$AC19 -> 18.72787863 | AC27: =('Base original'!AC31/'Base original'!AC19*100-100)*'Base original'!AC19/('Base original'!$AJ19) -> 4.04261636 | AD27: =('Base original'!AD31/'Base original'!AD19*100-100)*'Base original'!AD19/('Base original'!$AJ19) -> 14.96301098 | AE27: =('Base original'!AE31/'Base original'!AE19*100-100)*'Base original'!AE19/('Base original'!$AJ19) -> 0.08582650571 | AF27: =('Base original'!AF31/'Base original'!AF19*100-100)*'Base original'!AF19/('Base original'!$AJ19) -> 3.069162381 | AG27: =('Base original'!AG31/'Base original'!AG19*100-100)*'Base original'!AG19/('Base original'!$AJ19) -> 0.2105759174 | AH27: =-('Base original'!AH31/'Base original'!AH19*100-100)*'Base original'!AH19/('Base original'!$AJ19) -> -4.547660812 | AI27: =-('Base original'!AI31/'Base original'!AI19*100-100)*'Base original'!AI19/('Base original'!$AJ19) -> -0.02740128999 | AJ27: =(('Base original'!AF31-'Base original'!AH31)/('Base original'!AF19-'Base original'!AH19)*100-100)*(('Base original'!AF19-'Base original'!AH19)/'Base original'!AJ19) -> -1.478498431 | AK27: =(('Base original'!AG31-'Base original'!AI31)/('Base original'!AG19-'Base original'!AI19)*100-100)*(('Base original'!AG19-'Base original'!AI19)/'Base original'!AJ19) -> 0.1831746274 | AL27: =('Base original'!AJ31/'Base original'!AJ19*100-100)*'Base original'!AJ19/('Base original'!$AJ19) -> 17.79613004 | AM27: =('Base original'!AJ31/'Base original'!AJ19*100-100)*'Base original'!AJ19/('Base original'!$AU19) -> 10.43495538 | AN27: =('Base original'!AK31/'Base original'!AK19*100-100)*'Base original'!AK19/('Base original'!$AU19) -> 0.5787650191 | AO27: =('Base original'!AL31/'Base original'!AL19*100-100)*'Base original'!AL19/('Base original'!$AU19) -> -2.725743991 | AP27: =('Base original'!AM31/'Base original'!AM19*100-100)*'Base original'!AM19/('Base original'!$AU19) -> 0.1683685863 | AQ27: =('Base original'!AN31/'Base original'!AN19*100-100)*'Base original'!AN19/('Base original'!$AU19) -> -0.2414049689 | AR27: =('Base original'!AO31/'Base original'!AO19*100-100)*'Base original'!AO19/('Base original'!$AU19) -> 0.04225984438 | AS27: =('Base original'!AP31/'Base original'!AP19*100-100)*'Base original'!AP19/('Base original'!$AU19) -> 2.001768653 | AT27: =('Base original'!AQ31/'Base original'!AQ19*100-100)*'Base original'!AQ19/('Base original'!$AU19) -> 2.934423933 | AU27: =('Base original'!AR31/'Base original'!AR19*100-100)*'Base original'!AR19/('Base original'!$AU19) -> 0.3184501274 | AV27: =-('Base original'!AS31/'Base original'!AS19*100-100)*'Base original'!AS19/('Base original'!$AU19) -> 0.0250907844 | AW27: =-('Base original'!AT31/'Base original'!AT19*100-100)*'Base original'!AT19/('Base original'!$AU19) -> -0.05380703542 | AX27: =(('Base original'!AQ31-'Base original'!AS31)/('Base original'!AQ19-'Base original'!AS19)*100-100)*(('Base original'!AQ19-'Base original'!AS19)/'Base original'!AU19) -> 2.959514718 | AY27: =(('Base original'!AR31-'Base original'!AT31)/('Base original'!AR19-'Base original'!AT19)*100-100)*(('Base original'!AR19-'Base original'!AT19)/'Base original'!AU19) -> 0.264643092 | AZ27: =('Base original'!AU31/'Base original'!AU19*100-100)*'Base original'!AU19/('Base original'!$AU19) -> 13.48312633
A28: 2007-10-01 | B28: ='Base original'!B32/'Base original'!B20*100-100 -> 21.67826353 | C28: ='Base original'!C32/'Base original'!C20*100-100 -> 16.15653429 | D28: ='Base original'!D32/'Base original'!D20*100-100 -> 22.6689105 | E28: ='Base original'!E32/'Base original'!E20*100-100 -> 14.35357267 | F28: ='Base original'!F32/'Base original'!F20*100-100 -> 20.49779022 | G28: ='Base original'!H32 -> 24.57 | H28: ='Base original'!I32 -> 35.4 | I28: ='Base original'!J32 -> 27.09 | J28: ='Base original'!K32 -> 25.07 | K28: ='Base original'!G32 -> 29.01098504 | L28: ='Base original'!M32 -> 8.16 | M28: ='Base original'!N32 -> 9.71 | N28: ='Base original'!O32 -> 9.07 | O28: ='Base original'!P32 -> 11.68 | P28: ='Base original'!Q32 -> 12.28 | Q28: ='Base original'!L32 -> 10.15083518 | R28: ='Base original'!S32 -> 5.7 | S28: ='Base original'!T32 -> 5.78 | T28: ='Base original'!U32 -> 5.99 | U28: ='Base original'!V32 -> 5.96 | V28: ='Base original'!W32 -> 6.53 | W28: ='Base original'!R32 -> 5.853360697 | X28: ='Base original'!X32 -> 4.83 | Y28: =('Base original'!Z32/'Base original'!Z20*100-100)*'Base original'!Z20/'Base original'!$AC20 -> 3.068649897 | Z28: =('Base original'!AA32/'Base original'!AA20*100-100)*'Base original'!AA20/'Base original'!$AC20 -> 9.229206828 | AA28: =('Base original'!AB32/'Base original'!AB20*100-100)*'Base original'!AB20/'Base original'!$AC20 -> 6.453338433 | AB28: =('Base original'!AC32/'Base original'!AC20*100-100)*'Base original'!AC20/'Base original'!$AC20 -> 18.7520996 | AC28: =('Base original'!AC32/'Base original'!AC20*100-100)*'Base original'!AC20/('Base original'!$AJ20) -> 3.966777389 | AD28: =('Base original'!AD32/'Base original'!AD20*100-100)*'Base original'!AD20/('Base original'!$AJ20) -> 16.0743409 | AE28: =('Base original'!AE32/'Base original'!AE20*100-100)*'Base original'!AE20/('Base original'!$AJ20) -> 0.1194682392 | AF28: =('Base original'!AF32/'Base original'!AF20*100-100)*'Base original'!AF20/('Base original'!$AJ20) -> 2.039706312 | AG28: =('Base original'!AG32/'Base original'!AG20*100-100)*'Base original'!AG20/('Base original'!$AJ20) -> 0.1583890291 | AH28: =-('Base original'!AH32/'Base original'!AH20*100-100)*'Base original'!AH20/('Base original'!$AJ20) -> -2.742931736 | AI28: =-('Base original'!AI32/'Base original'!AI20*100-100)*'Base original'!AI20/('Base original'!$AJ20) -> -0.01601656101 | AJ28: =(('Base original'!AF32-'Base original'!AH32)/('Base original'!AF20-'Base original'!AH20)*100-100)*(('Base original'!AF20-'Base original'!AH20)/'Base original'!AJ20) -> -0.7032254238 | AK28: =(('Base original'!AG32-'Base original'!AI32)/('Base original'!AG20-'Base original'!AI20)*100-100)*(('Base original'!AG20-'Base original'!AI20)/'Base original'!AJ20) -> 0.1423724681 | AL28: =('Base original'!AJ32/'Base original'!AJ20*100-100)*'Base original'!AJ20/('Base original'!$AJ20) -> 19.59973357 | AM28: =('Base original'!AJ32/'Base original'!AJ20*100-100)*'Base original'!AJ20/('Base original'!$AU20) -> 11.44445148 | AN28: =('Base original'!AK32/'Base original'!AK20*100-100)*'Base original'!AK20/('Base original'!$AU20) -> 0.7193857675 | AO28: =('Base original'!AL32/'Base original'!AL20*100-100)*'Base original'!AL20/('Base original'!$AU20) -> -2.538948509 | AP28: =('Base original'!AM32/'Base original'!AM20*100-100)*'Base original'!AM20/('Base original'!$AU20) -> 0.1503694361 | AQ28: =('Base original'!AN32/'Base original'!AN20*100-100)*'Base original'!AN20/('Base original'!$AU20) -> -0.3188368281 | AR28: =('Base original'!AO32/'Base original'!AO20*100-100)*'Base original'!AO20/('Base original'!$AU20) -> 0.03578096749 | AS28: =('Base original'!AP32/'Base original'!AP20*100-100)*'Base original'!AP20/('Base original'!$AU20) -> 2.156593282 | AT28: =('Base original'!AQ32/'Base original'!AQ20*100-100)*'Base original'!AQ20/('Base original'!$AU20) -> 3.262356044 | AU28: =('Base original'!AR32/'Base original'!AR20*100-100)*'Base original'!AR20/('Base original'!$AU20) -> 0.3489043316 | AV28: =-('Base original'!AS32/'Base original'!AS20*100-100)*'Base original'!AS20/('Base original'!$AU20) -> -0.4424263965 | AW28: =-('Base original'!AT32/'Base original'!AT20*100-100)*'Base original'!AT20/('Base original'!$AU20) -> -0.05825179811 | AX28: =(('Base original'!AQ32-'Base original'!AS32)/('Base original'!AQ20-'Base original'!AS20)*100-100)*(('Base original'!AQ20-'Base original'!AS20)/'Base original'!AU20) -> 2.819929648 | AY28: =(('Base original'!AR32-'Base original'!AT32)/('Base original'!AR20-'Base original'!AT20)*100-100)*(('Base original'!AR20-'Base original'!AT20)/'Base original'!AU20) -> 0.2906525335 | AZ28: =('Base original'!AU32/'Base original'!AU20*100-100)*'Base original'!AU20/('Base original'!$AU20) -> 14.75936182
A29: 2007-11-01 | B29: ='Base original'!B33/'Base original'!B21*100-100 -> 22.69820311 | C29: ='Base original'!C33/'Base original'!C21*100-100 -> 15.6949176 | D29: ='Base original'!D33/'Base original'!D21*100-100 -> 23.25184646 | E29: ='Base original'!E33/'Base original'!E21*100-100 -> 18.0280213 | F29: ='Base original'!F33/'Base original'!F21*100-100 -> 21.47102673 | G29: ='Base original'!H33 -> 25.34 | H29: ='Base original'!I33 -> 35.46 | I29: ='Base original'!J33 -> 27.11 | J29: ='Base original'!K33 -> 25.02 | K29: ='Base original'!G33 -> 28.91827827 | L29: ='Base original'!M33 -> 8.09 | M29: ='Base original'!N33 -> 10.45 | N29: ='Base original'!O33 -> 8.97 | O29: ='Base original'!P33 -> 11.26 | P29: ='Base original'!Q33 -> 12.01 | Q29: ='Base original'!L33 -> 10.16639217 | R29: ='Base original'!S33 -> 5.48 | S29: ='Base original'!T33 -> 5.68 | T29: ='Base original'!U33 -> 6.09 | U29: ='Base original'!V33 -> 5.68 | V29: ='Base original'!W33 -> 5.53 | W29: ='Base original'!R33 -> 5.682430127 | X29: ='Base original'!X33 -> 4.81 | Y29: =('Base original'!Z33/'Base original'!Z21*100-100)*'Base original'!Z21/'Base original'!$AC21 -> 3.012480822 | Z29: =('Base original'!AA33/'Base original'!AA21*100-100)*'Base original'!AA21/'Base original'!$AC21 -> 6.540006889 | AA29: =('Base original'!AB33/'Base original'!AB21*100-100)*'Base original'!AB21/'Base original'!$AC21 -> 12.09784334 | AB29: =('Base original'!AC33/'Base original'!AC21*100-100)*'Base original'!AC21/'Base original'!$AC21 -> 21.65033106 | AC29: =('Base original'!AC33/'Base original'!AC21*100-100)*'Base original'!AC21/('Base original'!$AJ21) -> 4.613593998 | AD29: =('Base original'!AD33/'Base original'!AD21*100-100)*'Base original'!AD21/('Base original'!$AJ21) -> 17.57707561 | AE29: =('Base original'!AE33/'Base original'!AE21*100-100)*'Base original'!AE21/('Base original'!$AJ21) -> 0.158996981 | AF29: =('Base original'!AF33/'Base original'!AF21*100-100)*'Base original'!AF21/('Base original'!$AJ21) -> 4.78518614 | AG29: =('Base original'!AG33/'Base original'!AG21*100-100)*'Base original'!AG21/('Base original'!$AJ21) -> 0.1407949416 | AH29: =-('Base original'!AH33/'Base original'!AH21*100-100)*'Base original'!AH21/('Base original'!$AJ21) -> -5.129237188 | AI29: =-('Base original'!AI33/'Base original'!AI21*100-100)*'Base original'!AI21/('Base original'!$AJ21) -> -0.008992674221 | AJ29: =(('Base original'!AF33-'Base original'!AH33)/('Base original'!AF21-'Base original'!AH21)*100-100)*(('Base original'!AF21-'Base original'!AH21)/'Base original'!AJ21) -> -0.3440510481 | AK29: =(('Base original'!AG33-'Base original'!AI33)/('Base original'!AG21-'Base original'!AI21)*100-100)*(('Base original'!AG21-'Base original'!AI21)/'Base original'!AJ21) -> 0.1318022673 | AL29: =('Base original'!AJ33/'Base original'!AJ21*100-100)*'Base original'!AJ21/('Base original'!$AJ21) -> 22.13741781 | AM29: =('Base original'!AJ33/'Base original'!AJ21*100-100)*'Base original'!AJ21/('Base original'!$AU21) -> 12.93930122 | AN29: =('Base original'!AK33/'Base original'!AK21*100-100)*'Base original'!AK21/('Base original'!$AU21) -> 0.7375951065 | AO29: =('Base original'!AL33/'Base original'!AL21*100-100)*'Base original'!AL21/('Base original'!$AU21) -> -2.522442593 | AP29: =('Base original'!AM33/'Base original'!AM21*100-100)*'Base original'!AM21/('Base original'!$AU21) -> 0.235927843 | AQ29: =('Base original'!AN33/'Base original'!AN21*100-100)*'Base original'!AN21/('Base original'!$AU21) -> -0.4321649665 | AR29: =('Base original'!AO33/'Base original'!AO21*100-100)*'Base original'!AO21/('Base original'!$AU21) -> 0.05970231485 | AS29: =('Base original'!AP33/'Base original'!AP21*100-100)*'Base original'!AP21/('Base original'!$AU21) -> 2.361827375 | AT29: =('Base original'!AQ33/'Base original'!AQ21*100-100)*'Base original'!AQ21/('Base original'!$AU21) -> 3.246960501 | AU29: =('Base original'!AR33/'Base original'!AR21*100-100)*'Base original'!AR21/('Base original'!$AU21) -> 0.3282756559 | AV29: =-('Base original'!AS33/'Base original'!AS21*100-100)*'Base original'!AS21/('Base original'!$AU21) -> -0.5804470882 | AW29: =-('Base original'!AT33/'Base original'!AT21*100-100)*'Base original'!AT21/('Base original'!$AU21) -> -0.07019890323 | AX29: =(('Base original'!AQ33-'Base original'!AS33)/('Base original'!AQ21-'Base original'!AS21)*100-100)*(('Base original'!AQ21-'Base original'!AS21)/'Base original'!AU21) -> 2.666513413 | AY29: =(('Base original'!AR33-'Base original'!AT33)/('Base original'!AR21-'Base original'!AT21)*100-100)*(('Base original'!AR21-'Base original'!AT21)/'Base original'!AU21) -> 0.2580767527 | AZ29: =('Base original'!AU33/'Base original'!AU21*100-100)*'Base original'!AU21/('Base original'!$AU21) -> 16.30432064
A30: 2007-12-01 | B30: ='Base original'!B34/'Base original'!B22*100-100 -> 22.59511209 | C30: ='Base original'!C34/'Base original'!C22*100-100 -> 15.33834384 | D30: ='Base original'!D34/'Base original'!D22*100-100 -> 24.37138124 | E30: ='Base original'!E34/'Base original'!E22*100-100 -> 12.43479757 | F30: ='Base original'!F34/'Base original'!F22*100-100 -> 21.08677118 | G30: ='Base original'!H34 -> 26.49 | H30: ='Base original'!I34 -> 35.96 | I30: ='Base original'!J34 -> 28.02 | J30: ='Base original'!K34 -> 26.24 | K30: ='Base original'!G34 -> 29.9564244 | L30: ='Base original'!M34 -> 8.88 | M30: ='Base original'!N34 -> 9.75 | N30: ='Base original'!O34 -> 8.88 | O30: ='Base original'!P34 -> 11.52 | P30: ='Base original'!Q34 -> 12.43 | Q30: ='Base original'!L34 -> 10.20759446 | R30: ='Base original'!S34 -> 5.93 | S30: ='Base original'!T34 -> 5.97 | T30: ='Base original'!U34 -> 5.97 | U30: ='Base original'!V34 -> 5.86 | V30: ='Base original'!W34 -> 5.29 | W30: ='Base original'!R34 -> 5.890780774 | X30: ='Base original'!X34 -> 4.83 | Y30: =('Base original'!Z34/'Base original'!Z22*100-100)*'Base original'!Z22/'Base original'!$AC22 -> 2.939345978 | Z30: =('Base original'!AA34/'Base original'!AA22*100-100)*'Base original'!AA22/'Base original'!$AC22 -> 7.908961858 | AA30: =('Base original'!AB34/'Base original'!AB22*100-100)*'Base original'!AB22/'Base original'!$AC22 -> 7.213868305 | AB30: =('Base original'!AC34/'Base original'!AC22*100-100)*'Base original'!AC22/'Base original'!$AC22 -> 18.06147685 | AC30: =('Base original'!AC34/'Base original'!AC22*100-100)*'Base original'!AC22/('Base original'!$AJ22) -> 4.057291671 | AD30: =('Base original'!AD34/'Base original'!AD22*100-100)*'Base original'!AD22/('Base original'!$AJ22) -> 16.41987013 | AE30: =('Base original'!AE34/'Base original'!AE22*100-100)*'Base original'!AE22/('Base original'!$AJ22) -> 0.1929812022 | AF30: =('Base original'!AF34/'Base original'!AF22*100-100)*'Base original'!AF22/('Base original'!$AJ22) -> 4.092034047 | AG30: =('Base original'!AG34/'Base original'!AG22*100-100)*'Base original'!AG22/('Base original'!$AJ22) -> 0.1226062909 | AH30: =-('Base original'!AH34/'Base original'!AH22*100-100)*'Base original'!AH22/('Base original'!$AJ22) -> -4.358976977 | AI30: =-('Base original'!AI34/'Base original'!AI22*100-100)*'Base original'!AI22/('Base original'!$AJ22) -> -0.009660841624 | AJ30: =(('Base original'!AF34-'Base original'!AH34)/('Base original'!AF22-'Base original'!AH22)*100-100)*(('Base original'!AF22-'Base original'!AH22)/'Base original'!AJ22) -> -0.2669429301 | AK30: =(('Base original'!AG34-'Base original'!AI34)/('Base original'!AG22-'Base original'!AI22)*100-100)*(('Base original'!AG22-'Base original'!AI22)/'Base original'!AJ22) -> 0.1129454492 | AL30: =('Base original'!AJ34/'Base original'!AJ22*100-100)*'Base original'!AJ22/('Base original'!$AJ22) -> 20.5161717 | AM30: =('Base original'!AJ34/'Base original'!AJ22*100-100)*'Base original'!AJ22/('Base original'!$AU22) -> 12.13157808 | AN30: =('Base original'!AK34/'Base original'!AK22*100-100)*'Base original'!AK22/('Base original'!$AU22) -> 0.7935289085 | AO30: =('Base original'!AL34/'Base original'!AL22*100-100)*'Base original'!AL22/('Base original'!$AU22) -> -2.781492448 | AP30: =('Base original'!AM34/'Base original'!AM22*100-100)*'Base original'!AM22/('Base original'!$AU22) -> 0.4165419126 | AQ30: =('Base original'!AN34/'Base original'!AN22*100-100)*'Base original'!AN22/('Base original'!$AU22) -> -0.5097397983 | AR30: =('Base original'!AO34/'Base original'!AO22*100-100)*'Base original'!AO22/('Base original'!$AU22) -> 0.03918336359 | AS30: =('Base original'!AP34/'Base original'!AP22*100-100)*'Base original'!AP22/('Base original'!$AU22) -> 2.235727487 | AT30: =('Base original'!AQ34/'Base original'!AQ22*100-100)*'Base original'!AQ22/('Base original'!$AU22) -> 2.686405834 | AU30: =('Base original'!AR34/'Base original'!AR22*100-100)*'Base original'!AR22/('Base original'!$AU22) -> 0.2595607562 | AV30: =-('Base original'!AS34/'Base original'!AS22*100-100)*'Base original'!AS22/('Base original'!$AU22) -> -0.4971998835 | AW30: =-('Base original'!AT34/'Base original'!AT22*100-100)*'Base original'!AT22/('Base original'!$AU22) -> -0.07109048028 | AX30: =(('Base original'!AQ34-'Base original'!AS34)/('Base original'!AQ22-'Base original'!AS22)*100-100)*(('Base original'!AQ22-'Base original'!AS22)/'Base original'!AU22) -> 2.189205951 | AY30: =(('Base original'!AR34-'Base original'!AT34)/('Base original'!AR22-'Base original'!AT22)*100-100)*(('Base original'!AR22-'Base original'!AT22)/'Base original'!AU22) -> 0.1884702759 | AZ30: =('Base original'!AU34/'Base original'!AU22*100-100)*'Base original'!AU22/('Base original'!$AU22) -> 14.70297276
A31: 2008-01-01 | B31: ='Base original'!B35/'Base original'!B23*100-100 -> 21.35491589 | C31: ='Base original'!C35/'Base original'!C23*100-100 -> 15.32727926 | D31: ='Base original'!D35/'Base original'!D23*100-100 -> 25.46052031 | E31: ='Base original'!E35/'Base original'!E23*100-100 -> 2.937968793 | F31: ='Base original'!F35/'Base original'!F23*100-100 -> 19.69588787 | G31: ='Base original'!H35 -> 27.01 | H31: ='Base original'!I35 -> 36.35 | I31: ='Base original'!J35 -> 31.72 | J31: ='Base original'!K35 -> 29.85 | K31: ='Base original'!G35 -> 32.06297709 | L31: ='Base original'!M35 -> 9.2 | M31: ='Base original'!N35 -> 10.65 | N31: ='Base original'!O35 -> 9.37 | O31: ='Base original'!P35 -> 11.5 | P31: ='Base original'!Q35 -> 12.21 | Q31: ='Base original'!L35 -> 10.54607256 | R31: ='Base original'!S35 -> 4.91 | S31: ='Base original'!T35 -> 4.86 | T31: ='Base original'!U35 -> 4.98 | U31: ='Base original'!V35 -> 4.91 | V31: ='Base original'!W35 -> 4.91 | W31: ='Base original'!R35 -> 4.909974714 | X31: ='Base original'!X35 -> 4.8 | Y31: =('Base original'!Z35/'Base original'!Z23*100-100)*'Base original'!Z23/'Base original'!$AC23 -> 2.801445423 | Z31: =('Base original'!AA35/'Base original'!AA23*100-100)*'Base original'!AA23/'Base original'!$AC23 -> 6.016112576 | AA31: =('Base original'!AB35/'Base original'!AB23*100-100)*'Base original'!AB23/'Base original'!$AC23 -> 7.245541061 | AB31: =('Base original'!AC35/'Base original'!AC23*100-100)*'Base original'!AC23/'Base original'!$AC23 -> 16.06150668 | AC31: =('Base original'!AC35/'Base original'!AC23*100-100)*'Base original'!AC23/('Base original'!$AJ23) -> 3.606936836 | AD31: =('Base original'!AD35/'Base original'!AD23*100-100)*'Base original'!AD23/('Base original'!$AJ23) -> 18.48033095 | AE31: =('Base original'!AE35/'Base original'!AE23*100-100)*'Base original'!AE23/('Base original'!$AJ23) -> 0.2227339882 | AF31: =('Base original'!AF35/'Base original'!AF23*100-100)*'Base original'!AF23/('Base original'!$AJ23) -> 2.57679214 | AG31: =('Base original'!AG35/'Base original'!AG23*100-100)*'Base original'!AG23/('Base original'!$AJ23) -> 0.1500133845 | AH31: =-('Base original'!AH35/'Base original'!AH23*100-100)*'Base original'!AH23/('Base original'!$AJ23) -> -2.970791196 | AI31: =-('Base original'!AI35/'Base original'!AI23*100-100)*'Base original'!AI23/('Base original'!$AJ23) -> -0.01647516312 | AJ31: =(('Base original'!AF35-'Base original'!AH35)/('Base original'!AF23-'Base original'!AH23)*100-100)*(('Base original'!AF23-'Base original'!AH23)/'Base original'!AJ23) -> -0.3939990559 | AK31: =(('Base original'!AG35-'Base original'!AI35)/('Base original'!AG23-'Base original'!AI23)*100-100)*(('Base original'!AG23-'Base original'!AI23)/'Base original'!AJ23) -> 0.1335382214 | AL31: =('Base original'!AJ35/'Base original'!AJ23*100-100)*'Base original'!AJ23/('Base original'!$AJ23) -> 22.04979637 | AM31: =('Base original'!AJ35/'Base original'!AJ23*100-100)*'Base original'!AJ23/('Base original'!$AU23) -> 13.20316247 | AN31: =('Base original'!AK35/'Base original'!AK23*100-100)*'Base original'!AK23/('Base original'!$AU23) -> 0.8842680283 | AO31: =('Base original'!AL35/'Base original'!AL23*100-100)*'Base original'!AL23/('Base original'!$AU23) -> -1.83783673 | AP31: =('Base original'!AM35/'Base original'!AM23*100-100)*'Base original'!AM23/('Base original'!$AU23) -> 0.5472015437 | AQ31: =('Base original'!AN35/'Base original'!AN23*100-100)*'Base original'!AN23/('Base original'!$AU23) -> -0.3384583101 | AR31: =('Base original'!AO35/'Base original'!AO23*100-100)*'Base original'!AO23/('Base original'!$AU23) -> 0.01171580575 | AS31: =('Base original'!AP35/'Base original'!AP23*100-100)*'Base original'!AP23/('Base original'!$AU23) -> 1.940082372 | AT31: =('Base original'!AQ35/'Base original'!AQ23*100-100)*'Base original'!AQ23/('Base original'!$AU23) -> 1.695442276 | AU31: =('Base original'!AR35/'Base original'!AR23*100-100)*'Base original'!AR23/('Base original'!$AU23) -> 0.1648930833 | AV31: =-('Base original'!AS35/'Base original'!AS23*100-100)*'Base original'!AS23/('Base original'!$AU23) -> -0.4107108772 | AW31: =-('Base original'!AT35/'Base original'!AT23*100-100)*'Base original'!AT23/('Base original'!$AU23) -> -0.06997364403 | AX31: =(('Base original'!AQ35-'Base original'!AS35)/('Base original'!AQ23-'Base original'!AS23)*100-100)*(('Base original'!AQ23-'Base original'!AS23)/'Base original'!AU23) -> 1.284731399 | AY31: =(('Base original'!AR35-'Base original'!AT35)/('Base original'!AR23-'Base original'!AT23)*100-100)*(('Base original'!AR23-'Base original'!AT23)/'Base original'!AU23) -> 0.09491943931 | AZ31: =('Base original'!AU35/'Base original'!AU23*100-100)*'Base original'!AU23/('Base original'!$AU23) -> 15.78978602
A32: 2008-02-01 | B32: ='Base original'!B36/'Base original'!B24*100-100 -> 21.17543487 | C32: ='Base original'!C36/'Base original'!C24*100-100 -> 15.17123318 | D32: ='Base original'!D36/'Base original'!D24*100-100 -> 25.15165791 | E32: ='Base original'!E36/'Base original'!E24*100-100 -> 4.311551383 | F32: ='Base original'!F36/'Base original'!F24*100-100 -> 19.64871402 | G32: ='Base original'!H36 -> 26.98 | H32: ='Base original'!I36 -> 37.01 | I32: ='Base original'!J36 -> 30.71 | J32: ='Base original'!K36 -> 29.55 | K32: ='Base original'!G36 -> 31.96068943 | L32: ='Base original'!M36 -> 9.61 | M32: ='Base original'!N36 -> 10.72 | N32: ='Base original'!O36 -> 8.88 | O32: ='Base original'!P36 -> 11.24 | P32: ='Base original'!Q36 -> 11.61 | Q32: ='Base original'!L36 -> 10.52429586 | R32: ='Base original'!S36 -> 4.2 | S32: ='Base original'!T36 -> 4.08 | T32: ='Base original'!U36 -> 4.29 | U32: ='Base original'!V36 -> 4.21 | V32: ='Base original'!W36 -> 4.06 | W32: ='Base original'!R36 -> 4.19445297 | X32: ='Base original'!X36 -> 4.9 | Y32: =('Base original'!Z36/'Base original'!Z24*100-100)*'Base original'!Z24/'Base original'!$AC24 -> 2.915515278 | Z32: =('Base original'!AA36/'Base original'!AA24*100-100)*'Base original'!AA24/'Base original'!$AC24 -> 6.104846415 | AA32: =('Base original'!AB36/'Base original'!AB24*100-100)*'Base original'!AB24/'Base original'!$AC24 -> 7.197592526 | AB32: =('Base original'!AC36/'Base original'!AC24*100-100)*'Base original'!AC24/'Base original'!$AC24 -> 16.2178398 | AC32: =('Base original'!AC36/'Base original'!AC24*100-100)*'Base original'!AC24/('Base original'!$AJ24) -> 3.593091712 | AD32: =('Base original'!AD36/'Base original'!AD24*100-100)*'Base original'!AD24/('Base original'!$AJ24) -> 18.21374402 | AE32: =('Base original'!AE36/'Base original'!AE24*100-100)*'Base original'!AE24/('Base original'!$AJ24) -> 0.2554090309 | AF32: =('Base original'!AF36/'Base original'!AF24*100-100)*'Base original'!AF24/('Base original'!$AJ24) -> 4.10150145 | AG32: =('Base original'!AG36/'Base original'!AG24*100-100)*'Base original'!AG24/('Base original'!$AJ24) -> 0.1715740269 | AH32: =-('Base original'!AH36/'Base original'!AH24*100-100)*'Base original'!AH24/('Base original'!$AJ24) -> -3.953174081 | AI32: =-('Base original'!AI36/'Base original'!AI24*100-100)*'Base original'!AI24/('Base original'!$AJ24) -> -0.01143319831 | AJ32: =(('Base original'!AF36-'Base original'!AH36)/('Base original'!AF24-'Base original'!AH24)*100-100)*(('Base original'!AF24-'Base original'!AH24)/'Base original'!AJ24) -> 0.1483273687 | AK32: =(('Base original'!AG36-'Base original'!AI36)/('Base original'!AG24-'Base original'!AI24)*100-100)*(('Base original'!AG24-'Base original'!AI24)/'Base original'!AJ24) -> 0.1601408286 | AL32: =('Base original'!AJ36/'Base original'!AJ24*100-100)*'Base original'!AJ24/('Base original'!$AJ24) -> 22.37096647 | AM32: =('Base original'!AJ36/'Base original'!AJ24*100-100)*'Base original'!AJ24/('Base original'!$AU24) -> 13.38324833 | AN32: =('Base original'!AK36/'Base original'!AK24*100-100)*'Base original'!AK24/('Base original'!$AU24) -> 0.7631780614 | AO32: =('Base original'!AL36/'Base original'!AL24*100-100)*'Base original'!AL24/('Base original'!$AU24) -> -1.187944389 | AP32: =('Base original'!AM36/'Base original'!AM24*100-100)*'Base original'!AM24/('Base original'!$AU24) -> 0.382680975 | AQ32: =('Base original'!AN36/'Base original'!AN24*100-100)*'Base original'!AN24/('Base original'!$AU24) -> -0.4275265202 | AR32: =('Base original'!AO36/'Base original'!AO24*100-100)*'Base original'!AO24/('Base original'!$AU24) -> 0.008993374476 | AS32: =('Base original'!AP36/'Base original'!AP24*100-100)*'Base original'!AP24/('Base original'!$AU24) -> 1.766674861 | AT32: =('Base original'!AQ36/'Base original'!AQ24*100-100)*'Base original'!AQ24/('Base original'!$AU24) -> 1.116331043 | AU32: =('Base original'!AR36/'Base original'!AR24*100-100)*'Base original'!AR24/('Base original'!$AU24) -> 0.1097404009 | AV32: =-('Base original'!AS36/'Base original'!AS24*100-100)*'Base original'!AS24/('Base original'!$AU24) -> -0.6924140052 | AW32: =-('Base original'!AT36/'Base original'!AT24*100-100)*'Base original'!AT24/('Base original'!$AU24) -> -0.06653277205 | AX32: =(('Base original'!AQ36-'Base original'!AS36)/('Base original'!AQ24-'Base original'!AS24)*100-100)*(('Base original'!AQ24-'Base original'!AS24)/'Base original'!AU24) -> 0.4239170377 | AY32: =(('Base original'!AR36-'Base original'!AT36)/('Base original'!AR24-'Base original'!AT24)*100-100)*(('Base original'!AR24-'Base original'!AT24)/'Base original'!AU24) -> 0.04320762881 | AZ32: =('Base original'!AU36/'Base original'!AU24*100-100)*'Base original'!AU24/('Base original'!$AU24) -> 15.15644453
A33: 2008-03-01 | B33: ='Base original'!B37/'Base original'!B25*100-100 -> 20.35201516 | C33: ='Base original'!C37/'Base original'!C25*100-100 -> 14.2047277 | D33: ='Base original'!D37/'Base original'!D25*100-100 -> 25.07241103 | E33: ='Base original'!E37/'Base original'!E25*100-100 -> 3.541958352 | F33: ='Base original'!F37/'Base original'!F25*100-100 -> 18.9839677 | G33: ='Base original'!H37 -> 25.78 | H33: ='Base original'!I37 -> 36.89 | I33: ='Base original'!J37 -> 27.18 | J33: ='Base original'!K37 -> 26.54 | K33: ='Base original'!G37 -> 29.8751708 | L33: ='Base original'!M37 -> 8.83 | M33: ='Base original'!N37 -> 10.67 | N33: ='Base original'!O37 -> 9.52 | O33: ='Base original'!P37 -> 11.57 | P33: ='Base original'!Q37 -> 12.21 | Q33: ='Base original'!L37 -> 10.60816322 | R33: ='Base original'!S37 -> 3.9 | S33: ='Base original'!T37 -> 3.77 | T33: ='Base original'!U37 -> 4.06 | U33: ='Base original'!V37 -> 3.97 | V33: ='Base original'!W37 -> 4.24 | W33: ='Base original'!R37 -> 3.909952199 | X33: ='Base original'!X37 -> 4.82 | Y33: =('Base original'!Z37/'Base original'!Z25*100-100)*'Base original'!Z25/'Base original'!$AC25 -> 2.980108318 | Z33: =('Base original'!AA37/'Base original'!AA25*100-100)*'Base original'!AA25/'Base original'!$AC25 -> 5.292339858 | AA33: =('Base original'!AB37/'Base original'!AB25*100-100)*'Base original'!AB25/'Base original'!$AC25 -> 6.76098552 | AB33: =('Base original'!AC37/'Base original'!AC25*100-100)*'Base original'!AC25/'Base original'!$AC25 -> 15.03309207 | AC33: =('Base original'!AC37/'Base original'!AC25*100-100)*'Base original'!AC25/('Base original'!$AJ25) -> 3.286204533 | AD33: =('Base original'!AD37/'Base original'!AD25*100-100)*'Base original'!AD25/('Base original'!$AJ25) -> 17.46656517 | AE33: =('Base original'!AE37/'Base original'!AE25*100-100)*'Base original'!AE25/('Base original'!$AJ25) -> 0.2566701633 | AF33: =('Base original'!AF37/'Base original'!AF25*100-100)*'Base original'!AF25/('Base original'!$AJ25) -> 2.950175968 | AG33: =('Base original'!AG37/'Base original'!AG25*100-100)*'Base original'!AG25/('Base original'!$AJ25) -> 0.1858251158 | AH33: =-('Base original'!AH37/'Base original'!AH25*100-100)*'Base original'!AH25/('Base original'!$AJ25) -> -2.675060203 | AI33: =-('Base original'!AI37/'Base original'!AI25*100-100)*'Base original'!AI25/('Base original'!$AJ25) -> -0.007218926132 | AJ33: =(('Base original'!AF37-'Base original'!AH37)/('Base original'!AF25-'Base original'!AH25)*100-100)*(('Base original'!AF25-'Base original'!AH25)/'Base original'!AJ25) -> 0.2751157642 | AK33: =(('Base original'!AG37-'Base original'!AI37)/('Base original'!AG25-'Base original'!AI25)*100-100)*(('Base original'!AG25-'Base original'!AI25)/'Base original'!AJ25) -> 0.1786061897 | AL33: =('Base original'!AJ37/'Base original'!AJ25*100-100)*'Base original'!AJ25/('Base original'!$AJ25) -> 21.46316182 | AM33: =('Base original'!AJ37/'Base original'!AJ25*100-100)*'Base original'!AJ25/('Base original'!$AU25) -> 12.91209026 | AN33: =('Base original'!AK37/'Base original'!AK25*100-100)*'Base original'!AK25/('Base original'!$AU25) -> 0.6211931683 | AO33: =('Base original'!AL37/'Base original'!AL25*100-100)*'Base original'!AL25/('Base original'!$AU25) -> -1.146394239 | AP33: =('Base original'!AM37/'Base original'!AM25*100-100)*'Base original'!AM25/('Base original'!$AU25) -> 0.4502493623 | AQ33: =('Base original'!AN37/'Base original'!AN25*100-100)*'Base original'!AN25/('Base original'!$AU25) -> -0.4816676807 | AR33: =('Base original'!AO37/'Base original'!AO25*100-100)*'Base original'!AO25/('Base original'!$AU25) -> -0.005840392846 | AS33: =('Base original'!AP37/'Base original'!AP25*100-100)*'Base original'!AP25/('Base original'!$AU25) -> 1.776797257 | AT33: =('Base original'!AQ37/'Base original'!AQ25*100-100)*'Base original'!AQ25/('Base original'!$AU25) -> 1.141227737 | AU33: =('Base original'!AR37/'Base original'!AR25*100-100)*'Base original'!AR25/('Base original'!$AU25) -> 0.09533318168 | AV33: =-('Base original'!AS37/'Base original'!AS25*100-100)*'Base original'!AS25/('Base original'!$AU25) -> -0.9187686715 | AW33: =-('Base original'!AT37/'Base original'!AT25*100-100)*'Base original'!AT25/('Base original'!$AU25) -> -0.07119289125 | AX33: =(('Base original'!AQ37-'Base original'!AS37)/('Base original'!AQ25-'Base original'!AS25)*100-100)*(('Base original'!AQ25-'Base original'!AS25)/'Base original'!AU25) -> 0.222459066 | AY33: =(('Base original'!AR37-'Base original'!AT37)/('Base original'!AR25-'Base original'!AT25)*100-100)*(('Base original'!AR25-'Base original'!AT25)/'Base original'!AU25) -> 0.02414029043 | AZ33: =('Base original'!AU37/'Base original'!AU25*100-100)*'Base original'!AU25/('Base original'!$AU25) -> 14.37316187
A34: 2008-04-01 | B34: ='Base original'!B38/'Base original'!B26*100-100 -> 21.2278013 | C34: ='Base original'!C38/'Base original'!C26*100-100 -> 14.16514624 | D34: ='Base original'!D38/'Base original'!D26*100-100 -> 25.82327366 | E34: ='Base original'!E38/'Base original'!E26*100-100 -> 13.14160843 | F34: ='Base original'!F38/'Base original'!F26*100-100 -> 20.50549586 | G34: ='Base original'!H38 -> 26.55 | H34: ='Base original'!I38 -> 36.76 | I34: ='Base original'!J38 -> 28.41 | J34: ='Base original'!K38 -> 26.91 | K34: ='Base original'!G38 -> 30.12632972 | L34: ='Base original'!M38 -> 8.77 | M34: ='Base original'!N38 -> 10.79 | N34: ='Base original'!O38 -> 9.84 | O34: ='Base original'!P38 -> 11.8 | P34: ='Base original'!Q38 -> 12.55 | Q34: ='Base original'!L38 -> 10.5928774 | R34: ='Base original'!S38 -> 3.97 | S34: ='Base original'!T38 -> 3.96 | T34: ='Base original'!U38 -> 4.04 | U34: ='Base original'!V38 -> 4.08 | V34: ='Base original'!W38 -> 4.33 | W34: ='Base original'!R38 -> 4.016354928 | X34: ='Base original'!X38 -> 4.76 | Y34: =('Base original'!Z38/'Base original'!Z26*100-100)*'Base original'!Z26/'Base original'!$AC26 -> 2.678950563 | Z34: =('Base original'!AA38/'Base original'!AA26*100-100)*'Base original'!AA26/'Base original'!$AC26 -> 3.984188634 | AA34: =('Base original'!AB38/'Base original'!AB26*100-100)*'Base original'!AB26/'Base original'!$AC26 -> 5.623128347 | AB34: =('Base original'!AC38/'Base original'!AC26*100-100)*'Base original'!AC26/'Base original'!$AC26 -> 12.2858229 | AC34: =('Base original'!AC38/'Base original'!AC26*100-100)*'Base original'!AC26/('Base original'!$AJ26) -> 2.70811179 | AD34: =('Base original'!AD38/'Base original'!AD26*100-100)*'Base original'!AD26/('Base original'!$AJ26) -> 18.16552403 | AE34: =('Base original'!AE38/'Base original'!AE26*100-100)*'Base original'!AE26/('Base original'!$AJ26) -> 0.2825625671 | AF34: =('Base original'!AF38/'Base original'!AF26*100-100)*'Base original'!AF26/('Base original'!$AJ26) -> 2.008517061 | AG34: =('Base original'!AG38/'Base original'!AG26*100-100)*'Base original'!AG26/('Base original'!$AJ26) -> 0.2046201871 | AH34: =-('Base original'!AH38/'Base original'!AH26*100-100)*'Base original'!AH26/('Base original'!$AJ26) -> -2.094300234 | AI34: =-('Base original'!AI38/'Base original'!AI26*100-100)*'Base original'!AI26/('Base original'!$AJ26) -> -0.00445945085 | AJ34: =(('Base original'!AF38-'Base original'!AH38)/('Base original'!AF26-'Base original'!AH26)*100-100)*(('Base original'!AF26-'Base original'!AH26)/'Base original'!AJ26) -> -0.08578317268 | AK34: =(('Base original'!AG38-'Base original'!AI38)/('Base original'!AG26-'Base original'!AI26)*100-100)*(('Base original'!AG26-'Base original'!AI26)/'Base original'!AJ26) -> 0.2001607363 | AL34: =('Base original'!AJ38/'Base original'!AJ26*100-100)*'Base original'!AJ26/('Base original'!$AJ26) -> 21.27084548 | AM34: =('Base original'!AJ38/'Base original'!AJ26*100-100)*'Base original'!AJ26/('Base original'!$AU26) -> 12.91943018 | AN34: =('Base original'!AK38/'Base original'!AK26*100-100)*'Base original'!AK26/('Base original'!$AU26) -> 0.9265986588 | AO34: =('Base original'!AL38/'Base original'!AL26*100-100)*'Base original'!AL26/('Base original'!$AU26) -> -1.052963845 | AP34: =('Base original'!AM38/'Base original'!AM26*100-100)*'Base original'!AM26/('Base original'!$AU26) -> 0.6163632722 | AQ34: =('Base original'!AN38/'Base original'!AN26*100-100)*'Base original'!AN26/('Base original'!$AU26) -> 0.04984065575 | AR34: =('Base original'!AO38/'Base original'!AO26*100-100)*'Base original'!AO26/('Base original'!$AU26) -> 0.004360499294 | AS34: =('Base original'!AP38/'Base original'!AP26*100-100)*'Base original'!AP26/('Base original'!$AU26) -> 2.083887077 | AT34: =('Base original'!AQ38/'Base original'!AQ26*100-100)*'Base original'!AQ26/('Base original'!$AU26) -> 1.000340208 | AU34: =('Base original'!AR38/'Base original'!AR26*100-100)*'Base original'!AR26/('Base original'!$AU26) -> 0.05699901807 | AV34: =-('Base original'!AS38/'Base original'!AS26*100-100)*'Base original'!AS26/('Base original'!$AU26) -> -0.8356085813 | AW34: =-('Base original'!AT38/'Base original'!AT26*100-100)*'Base original'!AT26/('Base original'!$AU26) -> -0.05842771408 | AX34: =(('Base original'!AQ38-'Base original'!AS38)/('Base original'!AQ26-'Base original'!AS26)*100-100)*(('Base original'!AQ26-'Base original'!AS26)/'Base original'!AU26) -> 0.1647316269 | AY34: =(('Base original'!AR38-'Base original'!AT38)/('Base original'!AR26-'Base original'!AT26)*100-100)*(('Base original'!AR26-'Base original'!AT26)/'Base original'!AU26) -> -0.001428696014 | AZ34: =('Base original'!AU38/'Base original'!AU26*100-100)*'Base original'!AU26/('Base original'!$AU26) -> 15.71083431
A35: 2008-05-01 | B35: ='Base original'!B39/'Base original'!B27*100-100 -> 21.44424436 | C35: ='Base original'!C39/'Base original'!C27*100-100 -> 13.47332675 | D35: ='Base original'!D39/'Base original'!D27*100-100 -> 25.07038997 | E35: ='Base original'!E39/'Base original'!E27*100-100 -> 19.10242591 | F35: ='Base original'!F39/'Base original'!F27*100-100 -> 20.94932519 | G35: ='Base original'!H39 -> 27.72 | H35: ='Base original'!I39 -> 36.92 | I35: ='Base original'!J39 -> 29.28 | J35: ='Base original'!K39 -> 28.37 | K35: ='Base original'!G39 -> 30.9324869 | L35: ='Base original'!M39 -> 8.94 | M35: ='Base original'!N39 -> 10.83 | N35: ='Base original'!O39 -> 9.32 | O35: ='Base original'!P39 -> 11.59 | P35: ='Base original'!Q39 -> 13.46 | Q35: ='Base original'!L39 -> 10.67956961 | R35: ='Base original'!S39 -> 3.87 | S35: ='Base original'!T39 -> 3.91 | T35: ='Base original'!U39 -> 4.44 | U35: ='Base original'!V39 -> 4.35 | V35: ='Base original'!W39 -> 4.89 | W35: ='Base original'!R39 -> 4.116003773 | X35: ='Base original'!X39 -> 4.63 | Y35: =('Base original'!Z39/'Base original'!Z27*100-100)*'Base original'!Z27/'Base original'!$AC27 -> 2.998151159 | Z35: =('Base original'!AA39/'Base original'!AA27*100-100)*'Base original'!AA27/'Base original'!$AC27 -> 5.162500235 | AA35: =('Base original'!AB39/'Base original'!AB27*100-100)*'Base original'!AB27/'Base original'!$AC27 -> 6.951776512 | AB35: =('Base original'!AC39/'Base original'!AC27*100-100)*'Base original'!AC27/'Base original'!$AC27 -> 15.11331199 | AC35: =('Base original'!AC39/'Base original'!AC27*100-100)*'Base original'!AC27/('Base original'!$AJ27) -> 3.29842101 | AD35: =('Base original'!AD39/'Base original'!AD27*100-100)*'Base original'!AD27/('Base original'!$AJ27) -> 16.07003142 | AE35: =('Base original'!AE39/'Base original'!AE27*100-100)*'Base original'!AE27/('Base original'!$AJ27) -> 0.3249243403 | AF35: =('Base original'!AF39/'Base original'!AF27*100-100)*'Base original'!AF27/('Base original'!$AJ27) -> 4.364627239 | AG35: =('Base original'!AG39/'Base original'!AG27*100-100)*'Base original'!AG27/('Base original'!$AJ27) -> 0.2058995764 | AH35: =-('Base original'!AH39/'Base original'!AH27*100-100)*'Base original'!AH27/('Base original'!$AJ27) -> -4.42255986 | AI35: =-('Base original'!AI39/'Base original'!AI27*100-100)*'Base original'!AI27/('Base original'!$AJ27) -> -0.00453427672 | AJ35: =(('Base original'!AF39-'Base original'!AH39)/('Base original'!AF27-'Base original'!AH27)*100-100)*(('Base original'!AF27-'Base original'!AH27)/'Base original'!AJ27) -> -0.05793262065 | AK35: =(('Base original'!AG39-'Base original'!AI39)/('Base original'!AG27-'Base original'!AI27)*100-100)*(('Base original'!AG27-'Base original'!AI27)/'Base original'!AJ27) -> 0.2013652997 | AL35: =('Base original'!AJ39/'Base original'!AJ27*100-100)*'Base original'!AJ27/('Base original'!$AJ27) -> 19.83659238 | AM35: =('Base original'!AJ39/'Base original'!AJ27*100-100)*'Base original'!AJ27/('Base original'!$AU27) -> 12.02430112 | AN35: =('Base original'!AK39/'Base original'!AK27*100-100)*'Base original'!AK27/('Base original'!$AU27) -> 1.336912273 | AO35: =('Base original'!AL39/'Base original'!AL27*100-100)*'Base original'!AL27/('Base original'!$AU27) -> -0.5595163169 | AP35: =('Base original'!AM39/'Base original'!AM27*100-100)*'Base original'!AM27/('Base original'!$AU27) -> 0.7151153908 | AQ35: =('Base original'!AN39/'Base original'!AN27*100-100)*'Base original'!AN27/('Base original'!$AU27) -> -0.2950870722 | AR35: =('Base original'!AO39/'Base original'!AO27*100-100)*'Base original'!AO27/('Base original'!$AU27) -> 0.03483910489 | AS35: =('Base original'!AP39/'Base original'!AP27*100-100)*'Base original'!AP27/('Base original'!$AU27) -> 2.393152647 | AT35: =('Base original'!AQ39/'Base original'!AQ27*100-100)*'Base original'!AQ27/('Base original'!$AU27) -> 0.9040623449 | AU35: =('Base original'!AR39/'Base original'!AR27*100-100)*'Base original'!AR27/('Base original'!$AU27) -> 0.04307008099 | AV35: =-('Base original'!AS39/'Base original'!AS27*100-100)*'Base original'!AS27/('Base original'!$AU27) -> -0.8907729004 | AW35: =-('Base original'!AT39/'Base original'!AT27*100-100)*'Base original'!AT27/('Base original'!$AU27) -> -0.04406423085 | AX35: =(('Base original'!AQ39-'Base original'!AS39)/('Base original'!AQ27-'Base original'!AS27)*100-100)*(('Base original'!AQ27-'Base original'!AS27)/'Base original'!AU27) -> 0.01328944454 | AY35: =(('Base original'!AR39-'Base original'!AT39)/('Base original'!AR27-'Base original'!AT27)*100-100)*(('Base original'!AR27-'Base original'!AT27)/'Base original'!AU27) -> -0.0009941498666 | AZ35: =('Base original'!AU39/'Base original'!AU27*100-100)*'Base original'!AU27/('Base original'!$AU27) -> 15.66188086
A36: 2008-06-01 | B36: ='Base original'!B40/'Base original'!B28*100-100 -> 22.02472461 | C36: ='Base original'!C40/'Base original'!C28*100-100 -> 13.12629055 | D36: ='Base original'!D40/'Base original'!D28*100-100 -> 24.87876397 | E36: ='Base original'!E40/'Base original'!E28*100-100 -> 32.75970701 | F36: ='Base original'!F40/'Base original'!F28*100-100 -> 22.48867907 | G36: ='Base original'!H40 -> 27.54 | H36: ='Base original'!I40 -> 36.89 | I36: ='Base original'!J40 -> 29.43 | J36: ='Base original'!K40 -> 28.09 | K36: ='Base original'!G40 -> 30.74424815 | L36: ='Base original'!M40 -> 9.16 | M36: ='Base original'!N40 -> 11.08 | N36: ='Base original'!O40 -> 9.79 | O36: ='Base original'!P40 -> 12.05 | P36: ='Base original'!Q40 -> 13 | Q36: ='Base original'!L40 -> 10.87630127 | R36: ='Base original'!S40 -> 4 | S36: ='Base original'!T40 -> 3.87 | T36: ='Base original'!U40 -> 4.65 | U36: ='Base original'!V40 -> 4.91 | V36: ='Base original'!W40 -> 4.91 | W36: ='Base original'!R40 -> 4.238679367 | X36: ='Base original'!X40 -> 4.72 | Y36: =('Base original'!Z40/'Base original'!Z28*100-100)*'Base original'!Z28/'Base original'!$AC28 -> 2.944090868 | Z36: =('Base original'!AA40/'Base original'!AA28*100-100)*'Base original'!AA28/'Base original'!$AC28 -> 5.8656364 | AA36: =('Base original'!AB40/'Base original'!AB28*100-100)*'Base original'!AB28/'Base original'!$AC28 -> 6.575099612 | AB36: =('Base original'!AC40/'Base original'!AC28*100-100)*'Base original'!AC28/'Base original'!$AC28 -> 15.38592665 | AC36: =('Base original'!AC40/'Base original'!AC28*100-100)*'Base original'!AC28/('Base original'!$AJ28) -> 3.31575058 | AD36: =('Base original'!AD40/'Base original'!AD28*100-100)*'Base original'!AD28/('Base original'!$AJ28) -> 15.03799458 | AE36: =('Base original'!AE40/'Base original'!AE28*100-100)*'Base original'!AE28/('Base original'!$AJ28) -> 0.3584729739 | AF36: =('Base original'!AF40/'Base original'!AF28*100-100)*'Base original'!AF28/('Base original'!$AJ28) -> 2.955547455 | AG36: =('Base original'!AG40/'Base original'!AG28*100-100)*'Base original'!AG28/('Base original'!$AJ28) -> 0.2139461511 | AH36: =-('Base original'!AH40/'Base original'!AH28*100-100)*'Base original'!AH28/('Base original'!$AJ28) -> -3.006740951 | AI36: =-('Base original'!AI40/'Base original'!AI28*100-100)*'Base original'!AI28/('Base original'!$AJ28) -> -0.01315388433 | AJ36: =(('Base original'!AF40-'Base original'!AH40)/('Base original'!AF28-'Base original'!AH28)*100-100)*(('Base original'!AF28-'Base original'!AH28)/'Base original'!AJ28) -> -0.05119349577 | AK36: =(('Base original'!AG40-'Base original'!AI40)/('Base original'!AG28-'Base original'!AI28)*100-100)*(('Base original'!AG28-'Base original'!AI28)/'Base original'!AJ28) -> 0.2007922667 | AL36: =('Base original'!AJ40/'Base original'!AJ28*100-100)*'Base original'!AJ28/('Base original'!$AJ28) -> 18.8618169 | AM36: =('Base original'!AJ40/'Base original'!AJ28*100-100)*'Base original'!AJ28/('Base original'!$AU28) -> 11.47627175 | AN36: =('Base original'!AK40/'Base original'!AK28*100-100)*'Base original'!AK28/('Base original'!$AU28) -> 2.073499799 | AO36: =('Base original'!AL40/'Base original'!AL28*100-100)*'Base original'!AL28/('Base original'!$AU28) -> 0.2322699321 | AP36: =('Base original'!AM40/'Base original'!AM28*100-100)*'Base original'!AM28/('Base original'!$AU28) -> 0.7170272448 | AQ36: =('Base original'!AN40/'Base original'!AN28*100-100)*'Base original'!AN28/('Base original'!$AU28) -> -0.1881434037 | AR36: =('Base original'!AO40/'Base original'!AO28*100-100)*'Base original'!AO28/('Base original'!$AU28) -> 0.04510711787 | AS36: =('Base original'!AP40/'Base original'!AP28*100-100)*'Base original'!AP28/('Base original'!$AU28) -> 2.49773455 | AT36: =('Base original'!AQ40/'Base original'!AQ28*100-100)*'Base original'!AQ28/('Base original'!$AU28) -> 0.6534619713 | AU36: =('Base original'!AR40/'Base original'!AR28*100-100)*'Base original'!AR28/('Base original'!$AU28) -> 0.01035387168 | AV36: =-('Base original'!AS40/'Base original'!AS28*100-100)*'Base original'!AS28/('Base original'!$AU28) -> -0.9346892771 | AW36: =-('Base original'!AT40/'Base original'!AT28*100-100)*'Base original'!AT28/('Base original'!$AU28) -> -0.03103277419 | AX36: =(('Base original'!AQ40-'Base original'!AS40)/('Base original'!AQ28-'Base original'!AS28)*100-100)*(('Base original'!AQ28-'Base original'!AS28)/'Base original'!AU28) -> -0.2812273058 | AY36: =(('Base original'!AR40-'Base original'!AT40)/('Base original'!AR28-'Base original'!AT28)*100-100)*(('Base original'!AR28-'Base original'!AT28)/'Base original'!AU28) -> -0.0206789025 | AZ36: =('Base original'!AU40/'Base original'!AU28*100-100)*'Base original'!AU28/('Base original'!$AU28) -> 16.55214919
A37: 2008-07-01 | B37: ='Base original'!B41/'Base original'!B29*100-100 -> 21.58154513 | C37: ='Base original'!C41/'Base original'!C29*100-100 -> 12.294786 | D37: ='Base original'!D41/'Base original'!D29*100-100 -> 25.2057987 | E37: ='Base original'!E41/'Base original'!E29*100-100 -> 27.19567264 | F37: ='Base original'!F41/'Base original'!F29*100-100 -> 21.6759579 | G37: ='Base original'!H41 -> 22.76 | H37: ='Base original'!I41 -> 37.73 | I37: ='Base original'!J41 -> 30.04 | J37: ='Base original'!K41 -> 29.99 | K37: ='Base original'!G41 -> 31.24031374 | L37: ='Base original'!M41 -> 9.67 | M37: ='Base original'!N41 -> 10.4 | N37: ='Base original'!O41 -> 10.6 | O37: ='Base original'!P41 -> 12.96 | P37: ='Base original'!Q41 -> 13.61 | Q37: ='Base original'!L41 -> 11.42875372 | R37: ='Base original'!S41 -> 4.14 | S37: ='Base original'!T41 -> 4.26 | T37: ='Base original'!U41 -> 4.52 | U37: ='Base original'!V41 -> 5.12 | V37: ='Base original'!W41 -> 5.31 | W37: ='Base original'!R41 -> 4.404424868 | X37: ='Base original'!X41 -> 4.87 | Y37: =('Base original'!Z41/'Base original'!Z29*100-100)*'Base original'!Z29/'Base original'!$AC29 -> 2.878174771 | Z37: =('Base original'!AA41/'Base original'!AA29*100-100)*'Base original'!AA29/'Base original'!$AC29 -> 2.966456301 | AA37: =('Base original'!AB41/'Base original'!AB29*100-100)*'Base original'!AB29/'Base original'!$AC29 -> 3.005510211 | AB37: =('Base original'!AC41/'Base original'!AC29*100-100)*'Base original'!AC29/'Base original'!$AC29 -> 8.851016441 | AC37: =('Base original'!AC41/'Base original'!AC29*100-100)*'Base original'!AC29/('Base original'!$AJ29) -> 1.890991445 | AD37: =('Base original'!AD41/'Base original'!AD29*100-100)*'Base original'!AD29/('Base original'!$AJ29) -> 14.49144649 | AE37: =('Base original'!AE41/'Base original'!AE29*100-100)*'Base original'!AE29/('Base original'!$AJ29) -> 0.4144526726 | AF37: =('Base original'!AF41/'Base original'!AF29*100-100)*'Base original'!AF29/('Base original'!$AJ29) -> 2.345082742 | AG37: =('Base original'!AG41/'Base original'!AG29*100-100)*'Base original'!AG29/('Base original'!$AJ29) -> 0.2249538698 | AH37: =-('Base original'!AH41/'Base original'!AH29*100-100)*'Base original'!AH29/('Base original'!$AJ29) -> -2.611358009 | AI37: =-('Base original'!AI41/'Base original'!AI29*100-100)*'Base original'!AI29/('Base original'!$AJ29) -> -0.01467750964 | AJ37: =(('Base original'!AF41-'Base original'!AH41)/('Base original'!AF29-'Base original'!AH29)*100-100)*(('Base original'!AF29-'Base original'!AH29)/'Base original'!AJ29) -> -0.2662752664 | AK37: =(('Base original'!AG41-'Base original'!AI41)/('Base original'!AG29-'Base original'!AI29)*100-100)*(('Base original'!AG29-'Base original'!AI29)/'Base original'!AJ29) -> 0.2102763602 | AL37: =('Base original'!AJ41/'Base original'!AJ29*100-100)*'Base original'!AJ29/('Base original'!$AJ29) -> 16.74065799 | AM37: =('Base original'!AJ41/'Base original'!AJ29*100-100)*'Base original'!AJ29/('Base original'!$AU29) -> 10.22721691 | AN37: =('Base original'!AK41/'Base original'!AK29*100-100)*'Base original'!AK29/('Base original'!$AU29) -> 2.72118003 | AO37: =('Base original'!AL41/'Base original'!AL29*100-100)*'Base original'!AL29/('Base original'!$AU29) -> 1.118393698 | AP37: =('Base original'!AM41/'Base original'!AM29*100-100)*'Base original'!AM29/('Base original'!$AU29) -> 0.7495699364 | AQ37: =('Base original'!AN41/'Base original'!AN29*100-100)*'Base original'!AN29/('Base original'!$AU29) -> -0.1339879285 | AR37: =('Base original'!AO41/'Base original'!AO29*100-100)*'Base original'!AO29/('Base original'!$AU29) -> 0.04370599416 | AS37: =('Base original'!AP41/'Base original'!AP29*100-100)*'Base original'!AP29/('Base original'!$AU29) -> 2.524096124 | AT37: =('Base original'!AQ41/'Base original'!AQ29*100-100)*'Base original'!AQ29/('Base original'!$AU29) -> 0.156447755 | AU37: =('Base original'!AR41/'Base original'!AR29*100-100)*'Base original'!AR29/('Base original'!$AU29) -> -0.0462047034 | AV37: =-('Base original'!AS41/'Base original'!AS29*100-100)*'Base original'!AS29/('Base original'!$AU29) -> -1.001239931 | AW37: =-('Base original'!AT41/'Base original'!AT29*100-100)*'Base original'!AT29/('Base original'!$AU29) -> -0.04126439828 | AX37: =(('Base original'!AQ41-'Base original'!AS41)/('Base original'!AQ29-'Base original'!AS29)*100-100)*(('Base original'!AQ29-'Base original'!AS29)/'Base original'!AU29) -> -0.8447921759 | AY37: =(('Base original'!AR41-'Base original'!AT41)/('Base original'!AR29-'Base original'!AT29)*100-100)*(('Base original'!AR29-'Base original'!AT29)/'Base original'!AU29) -> -0.08746910168 | AZ37: =('Base original'!AU41/'Base original'!AU29*100-100)*'Base original'!AU29/('Base original'!$AU29) -> 16.31791349
A38: 2008-08-01 | B38: ='Base original'!B42/'Base original'!B30*100-100 -> 20.73425617 | C38: ='Base original'!C42/'Base original'!C30*100-100 -> 11.16750021 | D38: ='Base original'!D42/'Base original'!D30*100-100 -> 24.76098549 | E38: ='Base original'!E42/'Base original'!E30*100-100 -> 25.12779867 | F38: ='Base original'!F42/'Base original'!F30*100-100 -> 20.77160171 | G38: ='Base original'!H42 -> 26.13 | H38: ='Base original'!I42 -> 37.34 | I38: ='Base original'!J42 -> 29.91 | J38: ='Base original'!K42 -> 31.11 | K38: ='Base original'!G42 -> 32.01457109 | L38: ='Base original'!M42 -> 9.93 | M38: ='Base original'!N42 -> 11.55 | N38: ='Base original'!O42 -> 10.53 | O38: ='Base original'!P42 -> 13.23 | P38: ='Base original'!Q42 -> 15.38 | Q38: ='Base original'!L42 -> 11.87277186 | R38: ='Base original'!S42 -> 4.57 | S38: ='Base original'!T42 -> 4.34 | T38: ='Base original'!U42 -> 4.86 | U38: ='Base original'!V42 -> 5.16 | V38: ='Base original'!W42 -> 5.47 | W38: ='Base original'!R42 -> 4.682843065 | X38: ='Base original'!X42 -> 4.82 | Y38: =('Base original'!Z42/'Base original'!Z30*100-100)*'Base original'!Z30/'Base original'!$AC30 -> 2.873446656 | Z38: =('Base original'!AA42/'Base original'!AA30*100-100)*'Base original'!AA30/'Base original'!$AC30 -> 2.530409091 | AA38: =('Base original'!AB42/'Base original'!AB30*100-100)*'Base original'!AB30/'Base original'!$AC30 -> 4.916323611 | AB38: =('Base original'!AC42/'Base original'!AC30*100-100)*'Base original'!AC30/'Base original'!$AC30 -> 10.31908304 | AC38: =('Base original'!AC42/'Base original'!AC30*100-100)*'Base original'!AC30/('Base original'!$AJ30) -> 2.196993463 | AD38: =('Base original'!AD42/'Base original'!AD30*100-100)*'Base original'!AD30/('Base original'!$AJ30) -> 14.15454323 | AE38: =('Base original'!AE42/'Base original'!AE30*100-100)*'Base original'!AE30/('Base original'!$AJ30) -> 0.4584684791 | AF38: =('Base original'!AF42/'Base original'!AF30*100-100)*'Base original'!AF30/('Base original'!$AJ30) -> 2.12153126 | AG38: =('Base original'!AG42/'Base original'!AG30*100-100)*'Base original'!AG30/('Base original'!$AJ30) -> 0.2347427703 | AH38: =-('Base original'!AH42/'Base original'!AH30*100-100)*'Base original'!AH30/('Base original'!$AJ30) -> -2.129163842 | AI38: =-('Base original'!AI42/'Base original'!AI30*100-100)*'Base original'!AI30/('Base original'!$AJ30) -> -0.01048021317 | AJ38: =(('Base original'!AF42-'Base original'!AH42)/('Base original'!AF30-'Base original'!AH30)*100-100)*(('Base original'!AF30-'Base original'!AH30)/'Base original'!AJ30) -> -0.007632582866 | AK38: =(('Base original'!AG42-'Base original'!AI42)/('Base original'!AG30-'Base original'!AI30)*100-100)*(('Base original'!AG30-'Base original'!AI30)/'Base original'!AJ30) -> 0.2242625571 | AL38: =('Base original'!AJ42/'Base original'!AJ30*100-100)*'Base original'!AJ30/('Base original'!$AJ30) -> 17.02663515 | AM38: =('Base original'!AJ42/'Base original'!AJ30*100-100)*'Base original'!AJ30/('Base original'!$AU30) -> 10.36016863 | AN38: =('Base original'!AK42/'Base original'!AK30*100-100)*'Base original'!AK30/('Base original'!$AU30) -> 2.961754496 | AO38: =('Base original'!AL42/'Base original'!AL30*100-100)*'Base original'!AL30/('Base original'!$AU30) -> 2.149618602 | AP38: =('Base original'!AM42/'Base original'!AM30*100-100)*'Base original'!AM30/('Base original'!$AU30) -> 0.9477546217 | AQ38: =('Base original'!AN42/'Base original'!AN30*100-100)*'Base original'!AN30/('Base original'!$AU30) -> -0.1975127903 | AR38: =('Base original'!AO42/'Base original'!AO30*100-100)*'Base original'!AO30/('Base original'!$AU30) -> 0.05477866055 | AS38: =('Base original'!AP42/'Base original'!AP30*100-100)*'Base original'!AP30/('Base original'!$AU30) -> 2.787704073 | AT38: =('Base original'!AQ42/'Base original'!AQ30*100-100)*'Base original'!AQ30/('Base original'!$AU30) -> -0.1181923809 | AU38: =('Base original'!AR42/'Base original'!AR30*100-100)*'Base original'!AR30/('Base original'!$AU30) -> -0.07478984352 | AV38: =-('Base original'!AS42/'Base original'!AS30*100-100)*'Base original'!AS30/('Base original'!$AU30) -> -1.138166212 | AW38: =-('Base original'!AT42/'Base original'!AT30*100-100)*'Base original'!AT30/('Base original'!$AU30) -> -0.0467685064 | AX38: =(('Base original'!AQ42-'Base original'!AS42)/('Base original'!AQ30-'Base original'!AS30)*100-100)*(('Base original'!AQ30-'Base original'!AS30)/'Base original'!AU30) -> -1.256358592 | AY38: =(('Base original'!AR42-'Base original'!AT42)/('Base original'!AR30-'Base original'!AT30)*100-100)*(('Base original'!AR30-'Base original'!AT30)/'Base original'!AU30) -> -0.1215583499 | AZ38: =('Base original'!AU42/'Base original'!AU30*100-100)*'Base original'!AU30/('Base original'!$AU30) -> 17.68620732
A39: 2008-09-01 | B39: ='Base original'!B43/'Base original'!B31*100-100 -> 20.23680607 | C39: ='Base original'!C43/'Base original'!C31*100-100 -> 10.44001469 | D39: ='Base original'!D43/'Base original'!D31*100-100 -> 23.74625345 | E39: ='Base original'!E43/'Base original'!E31*100-100 -> 36.8691849 | F39: ='Base original'!F43/'Base original'!F31*100-100 -> 21.22982782 | G39: ='Base original'!H43 -> 27.59 | H39: ='Base original'!I43 -> 39.39 | I39: ='Base original'!J43 -> 31.78 | J39: ='Base original'!K43 -> 32.37 | K39: ='Base original'!G43 -> 34.02436491 | L39: ='Base original'!M43 -> 11.27 | M39: ='Base original'!N43 -> 12.36 | N39: ='Base original'!O43 -> 12.29 | O39: ='Base original'!P43 -> 13.81 | P39: ='Base original'!Q43 -> 15.58 | Q39: ='Base original'!L43 -> 12.80472031 | R39: ='Base original'!S43 -> 4.75 | S39: ='Base original'!T43 -> 5.12 | T39: ='Base original'!U43 -> 5.23 | U39: ='Base original'!V43 -> 5.63 | V39: ='Base original'!W43 -> 5.49 | W39: ='Base original'!R43 -> 5.126385627 | X39: ='Base original'!X43 -> 4.8 | Y39: =('Base original'!Z43/'Base original'!Z31*100-100)*'Base original'!Z31/'Base original'!$AC31 -> 2.717547257 | Z39: =('Base original'!AA43/'Base original'!AA31*100-100)*'Base original'!AA31/'Base original'!$AC31 -> 3.294747067 | AA39: =('Base original'!AB43/'Base original'!AB31*100-100)*'Base original'!AB31/'Base original'!$AC31 -> 2.32070246 | AB39: =('Base original'!AC43/'Base original'!AC31*100-100)*'Base original'!AC31/'Base original'!$AC31 -> 8.333103063 | AC39: =('Base original'!AC43/'Base original'!AC31*100-100)*'Base original'!AC31/('Base original'!$AJ31) -> 1.813019109 | AD39: =('Base original'!AD43/'Base original'!AD31*100-100)*'Base original'!AD31/('Base original'!$AJ31) -> 14.21837714 | AE39: =('Base original'!AE43/'Base original'!AE31*100-100)*'Base original'!AE31/('Base original'!$AJ31) -> 0.4754989918 | AF39: =('Base original'!AF43/'Base original'!AF31*100-100)*'Base original'!AF31/('Base original'!$AJ31) -> 1.083561479 | AG39: =('Base original'!AG43/'Base original'!AG31*100-100)*'Base original'!AG31/('Base original'!$AJ31) -> 0.228546588 | AH39: =-('Base original'!AH43/'Base original'!AH31*100-100)*'Base original'!AH31/('Base original'!$AJ31) -> -0.3015455336 | AI39: =-('Base original'!AI43/'Base original'!AI31*100-100)*'Base original'!AI31/('Base original'!$AJ31) -> -0.006497530476 | AJ39: =(('Base original'!AF43-'Base original'!AH43)/('Base original'!AF31-'Base original'!AH31)*100-100)*(('Base original'!AF31-'Base original'!AH31)/'Base original'!AJ31) -> 0.7820159455 | AK39: =(('Base original'!AG43-'Base original'!AI43)/('Base original'!AG31-'Base original'!AI31)*100-100)*(('Base original'!AG31-'Base original'!AI31)/'Base original'!AJ31) -> 0.2220490575 | AL39: =('Base original'!AJ43/'Base original'!AJ31*100-100)*'Base original'!AJ31/('Base original'!$AJ31) -> 17.51096025 | AM39: =('Base original'!AJ43/'Base original'!AJ31*100-100)*'Base original'!AJ31/('Base original'!$AU31) -> 10.65797553 | AN39: =('Base original'!AK43/'Base original'!AK31*100-100)*'Base original'!AK31/('Base original'!$AU31) -> 3.171060859 | AO39: =('Base original'!AL43/'Base original'!AL31*100-100)*'Base original'!AL31/('Base original'!$AU31) -> 3.209707103 | AP39: =('Base original'!AM43/'Base original'!AM31*100-100)*'Base original'!AM31/('Base original'!$AU31) -> 1.110523614 | AQ39: =('Base original'!AN43/'Base original'!AN31*100-100)*'Base original'!AN31/('Base original'!$AU31) -> -0.3441148286 | AR39: =('Base original'!AO43/'Base original'!AO31*100-100)*'Base original'!AO31/('Base original'!$AU31) -> 0.08454041861 | AS39: =('Base original'!AP43/'Base original'!AP31*100-100)*'Base original'!AP31/('Base original'!$AU31) -> 3.042596577 | AT39: =('Base original'!AQ43/'Base original'!AQ31*100-100)*'Base original'!AQ31/('Base original'!$AU31) -> -0.6458398219 | AU39: =('Base original'!AR43/'Base original'!AR31*100-100)*'Base original'!AR31/('Base original'!$AU31) -> -0.1398920861 | AV39: =-('Base original'!AS43/'Base original'!AS31*100-100)*'Base original'!AS31/('Base original'!$AU31) -> -0.7864778114 | AW39: =-('Base original'!AT43/'Base original'!AT31*100-100)*'Base original'!AT31/('Base original'!$AU31) -> -0.06465435044 | AX39: =(('Base original'!AQ43-'Base original'!AS43)/('Base original'!AQ31-'Base original'!AS31)*100-100)*(('Base original'!AQ31-'Base original'!AS31)/'Base original'!AU31) -> -1.432317633 | AY39: =(('Base original'!AR43-'Base original'!AT43)/('Base original'!AR31-'Base original'!AT31)*100-100)*(('Base original'!AR31-'Base original'!AT31)/'Base original'!AU31) -> -0.2045464365 | AZ39: =('Base original'!AU43/'Base original'!AU31*100-100)*'Base original'!AU31/('Base original'!$AU31) -> 19.29529854
A40: 2008-10-01 | B40: ='Base original'!B44/'Base original'!B32*100-100 -> 22.17036803 | C40: ='Base original'!C44/'Base original'!C32*100-100 -> 9.148232845 | D40: ='Base original'!D44/'Base original'!D32*100-100 -> 23.13558143 | E40: ='Base original'!E44/'Base original'!E32*100-100 -> 61.59700316 | F40: ='Base original'!F44/'Base original'!F32*100-100 -> 24.14709582 | G40: ='Base original'!H44 -> 29.44 | H40: ='Base original'!I44 -> 39.96 | I40: ='Base original'!J44 -> 34.02 | J40: ='Base original'!K44 -> 35.08 | K40: ='Base original'!G44 -> 35.7608978 | L40: ='Base original'!M44 -> 14.18 | M40: ='Base original'!N44 -> 16.55 | N40: ='Base original'!O44 -> 13.55 | O40: ='Base original'!P44 -> 14.44 | P40: ='Base original'!Q44 -> 16.5 | Q40: ='Base original'!L44 -> 15.14850576 | R40: ='Base original'!S44 -> 7.66 | S40: ='Base original'!T44 -> 8.57 | T40: ='Base original'!U44 -> 7.87 | U40: ='Base original'!V44 -> 7.79 | V40: ='Base original'!W44 -> 6.13 | W40: ='Base original'!R44 -> 8.027125743 | X40: ='Base original'!X44 -> 5.34 | Y40: =('Base original'!Z44/'Base original'!Z32*100-100)*'Base original'!Z32/'Base original'!$AC32 -> 3.122657327 | Z40: =('Base original'!AA44/'Base original'!AA32*100-100)*'Base original'!AA32/'Base original'!$AC32 -> 5.666045399 | AA40: =('Base original'!AB44/'Base original'!AB32*100-100)*'Base original'!AB32/'Base original'!$AC32 -> 4.547002521 | AB40: =('Base original'!AC44/'Base original'!AC32*100-100)*'Base original'!AC32/'Base original'!$AC32 -> 13.33505243 | AC40: =('Base original'!AC44/'Base original'!AC32*100-100)*'Base original'!AC32/('Base original'!$AJ32) -> 2.800875083 | AD40: =('Base original'!AD44/'Base original'!AD32*100-100)*'Base original'!AD32/('Base original'!$AJ32) -> 15.87890793 | AE40: =('Base original'!AE44/'Base original'!AE32*100-100)*'Base original'!AE32/('Base original'!$AJ32) -> 0.4703356703 | AF40: =('Base original'!AF44/'Base original'!AF32*100-100)*'Base original'!AF32/('Base original'!$AJ32) -> 1.204622412 | AG40: =('Base original'!AG44/'Base original'!AG32*100-100)*'Base original'!AG32/('Base original'!$AJ32) -> 0.2092640656 | AH40: =-('Base original'!AH44/'Base original'!AH32*100-100)*'Base original'!AH32/('Base original'!$AJ32) -> -0.1169840288 | AI40: =-('Base original'!AI44/'Base original'!AI32*100-100)*'Base original'!AI32/('Base original'!$AJ32) -> -0.002376702284 | AJ40: =(('Base original'!AF44-'Base original'!AH44)/('Base original'!AF32-'Base original'!AH32)*100-100)*(('Base original'!AF32-'Base original'!AH32)/'Base original'!AJ32) -> 1.087638383 | AK40: =(('Base original'!AG44-'Base original'!AI44)/('Base original'!AG32-'Base original'!AI32)*100-100)*(('Base original'!AG32-'Base original'!AI32)/'Base original'!AJ32) -> 0.2068873633 | AL40: =('Base original'!AJ44/'Base original'!AJ32*100-100)*'Base original'!AJ32/('Base original'!$AJ32) -> 20.44464443 | AM40: =('Base original'!AJ44/'Base original'!AJ32*100-100)*'Base original'!AJ32/('Base original'!$AU32) -> 12.4413201 | AN40: =('Base original'!AK44/'Base original'!AK32*100-100)*'Base original'!AK32/('Base original'!$AU32) -> 3.422305564 | AO40: =('Base original'!AL44/'Base original'!AL32*100-100)*'Base original'!AL32/('Base original'!$AU32) -> 3.122724494 | AP40: =('Base original'!AM44/'Base original'!AM32*100-100)*'Base original'!AM32/('Base original'!$AU32) -> 1.32568309 | AQ40: =('Base original'!AN44/'Base original'!AN32*100-100)*'Base original'!AN32/('Base original'!$AU32) -> -0.2939488017 | AR40: =('Base original'!AO44/'Base original'!AO32*100-100)*'Base original'!AO32/('Base original'!$AU32) -> 0.09961466938 | AS40: =('Base original'!AP44/'Base original'!AP32*100-100)*'Base original'!AP32/('Base original'!$AU32) -> 3.013653176 | AT40: =('Base original'!AQ44/'Base original'!AQ32*100-100)*'Base original'!AQ32/('Base original'!$AU32) -> -1.889660935 | AU40: =('Base original'!AR44/'Base original'!AR32*100-100)*'Base original'!AR32/('Base original'!$AU32) -> -0.2864530169 | AV40: =-('Base original'!AS44/'Base original'!AS32*100-100)*'Base original'!AS32/('Base original'!$AU32) -> -0.2337461068 | AW40: =-('Base original'!AT44/'Base original'!AT32*100-100)*'Base original'!AT32/('Base original'!$AU32) -> -0.05298504681 | AX40: =(('Base original'!AQ44-'Base original'!AS44)/('Base original'!AQ32-'Base original'!AS32)*100-100)*(('Base original'!AQ32-'Base original'!AS32)/'Base original'!AU32) -> -2.123407041 | AY40: =(('Base original'!AR44-'Base original'!AT44)/('Base original'!AR32-'Base original'!AT32)*100-100)*(('Base original'!AR32-'Base original'!AT32)/'Base original'!AU32) -> -0.3394380637 | AZ40: =('Base original'!AU44/'Base original'!AU32*100-100)*'Base original'!AU32/('Base original'!$AU32) -> 20.66836812
A41: 2008-11-01 | B41: ='Base original'!B45/'Base original'!B33*100-100 -> 19.53722489 | C41: ='Base original'!C45/'Base original'!C33*100-100 -> 8.077160323 | D41: ='Base original'!D45/'Base original'!D33*100-100 -> 22.72275315 | E41: ='Base original'!E45/'Base original'!E33*100-100 -> 51.40255611 | F41: ='Base original'!F45/'Base original'!F33*100-100 -> 21.62517545 | G41: ='Base original'!H45 -> 29.36 | H41: ='Base original'!I45 -> 40.05 | I41: ='Base original'!J45 -> 34.97 | J41: ='Base original'!K45 -> 35.47 | K41: ='Base original'!G45 -> 36.07184204 | L41: ='Base original'!M45 -> 13.18 | M41: ='Base original'!N45 -> 17 | N41: ='Base original'!O45 -> 12.56 | O41: ='Base original'!P45 -> 14.1 | P41: ='Base original'!Q45 -> 18.32 | Q41: ='Base original'!L45 -> 15.12878623 | R41: ='Base original'!S45 -> 5.78 | S41: ='Base original'!T45 -> 6.02 | T41: ='Base original'!U45 -> 5.82 | U41: ='Base original'!V45 -> 6.26 | V41: ='Base original'!W45 -> 7.64 | W41: ='Base original'!R45 -> 5.927597244 | X41: ='Base original'!X45 -> 5.69 | Y41: =('Base original'!Z45/'Base original'!Z33*100-100)*'Base original'!Z33/'Base original'!$AC33 -> 3.029080848 | Z41: =('Base original'!AA45/'Base original'!AA33*100-100)*'Base original'!AA33/'Base original'!$AC33 -> 5.54533904 | AA41: =('Base original'!AB45/'Base original'!AB33*100-100)*'Base original'!AB33/'Base original'!$AC33 -> -1.132117661 | AB41: =('Base original'!AC45/'Base original'!AC33*100-100)*'Base original'!AC33/'Base original'!$AC33 -> 7.441988766 | AC41: =('Base original'!AC45/'Base original'!AC33*100-100)*'Base original'!AC33/('Base original'!$AJ33) -> 1.579531906 | AD41: =('Base original'!AD45/'Base original'!AD33*100-100)*'Base original'!AD33/('Base original'!$AJ33) -> 15.53391922 | AE41: =('Base original'!AE45/'Base original'!AE33*100-100)*'Base original'!AE33/('Base original'!$AJ33) -> 0.4620126391 | AF41: =('Base original'!AF45/'Base original'!AF33*100-100)*'Base original'!AF33/('Base original'!$AJ33) -> -0.2249630975 | AG41: =('Base original'!AG45/'Base original'!AG33*100-100)*'Base original'!AG33/('Base original'!$AJ33) -> 0.2228784632 | AH41: =-('Base original'!AH45/'Base original'!AH33*100-100)*'Base original'!AH33/('Base original'!$AJ33) -> 1.087469485 | AI41: =-('Base original'!AI45/'Base original'!AI33*100-100)*'Base original'!AI33/('Base original'!$AJ33) -> -0.005899071761 | AJ41: =(('Base original'!AF45-'Base original'!AH45)/('Base original'!AF33-'Base original'!AH33)*100-100)*(('Base original'!AF33-'Base original'!AH33)/'Base original'!AJ33) -> 0.862506387 | AK41: =(('Base original'!AG45-'Base original'!AI45)/('Base original'!AG33-'Base original'!AI33)*100-100)*(('Base original'!AG33-'Base original'!AI33)/'Base original'!AJ33) -> 0.2169793914 | AL41: =('Base original'!AJ45/'Base original'!AJ33*100-100)*'Base original'!AJ33/('Base original'!$AJ33) -> 18.65494954 | AM41: =('Base original'!AJ45/'Base original'!AJ33*100-100)*'Base original'!AJ33/('Base original'!$AU33) -> 11.45066806 | AN41: =('Base original'!AK45/'Base original'!AK33*100-100)*'Base original'!AK33/('Base original'!$AU33) -> 3.692017096 | AO41: =('Base original'!AL45/'Base original'!AL33*100-100)*'Base original'!AL33/('Base original'!$AU33) -> 2.763506555 | AP41: =('Base original'!AM45/'Base original'!AM33*100-100)*'Base original'!AM33/('Base original'!$AU33) -> 1.445214883 | AQ41: =('Base original'!AN45/'Base original'!AN33*100-100)*'Base original'!AN33/('Base original'!$AU33) -> -0.3029195878 | AR41: =('Base original'!AO45/'Base original'!AO33*100-100)*'Base original'!AO33/('Base original'!$AU33) -> 0.1106290159 | AS41: =('Base original'!AP45/'Base original'!AP33*100-100)*'Base original'!AP33/('Base original'!$AU33) -> 2.903375281 | AT41: =('Base original'!AQ45/'Base original'!AQ33*100-100)*'Base original'!AQ33/('Base original'!$AU33) -> -2.679585319 | AU41: =('Base original'!AR45/'Base original'!AR33*100-100)*'Base original'!AR33/('Base original'!$AU33) -> -0.3510534872 | AV41: =-('Base original'!AS45/'Base original'!AS33*100-100)*'Base original'!AS33/('Base original'!$AU33) -> 0.003443969609 | AW41: =-('Base original'!AT45/'Base original'!AT33*100-100)*'Base original'!AT33/('Base original'!$AU33) -> -0.01756016125 | AX41: =(('Base original'!AQ45-'Base original'!AS45)/('Base original'!AQ33-'Base original'!AS33)*100-100)*(('Base original'!AQ33-'Base original'!AS33)/'Base original'!AU33) -> -2.676141349 | AY41: =(('Base original'!AR45-'Base original'!AT45)/('Base original'!AR33-'Base original'!AT33)*100-100)*(('Base original'!AR33-'Base original'!AT33)/'Base original'!AU33) -> -0.3686136484 | AZ41: =('Base original'!AU45/'Base original'!AU33*100-100)*'Base original'!AU33/('Base original'!$AU33) -> 19.01773631
A42: 2008-12-01 | B42: ='Base original'!B46/'Base original'!B34*100-100 -> 15.25357333 | C42: ='Base original'!C46/'Base original'!C34*100-100 -> 6.764548534 | D42: ='Base original'!D46/'Base original'!D34*100-100 -> 21.1695724 | E42: ='Base original'!E46/'Base original'!E34*100-100 -> 44.87859877 | F42: ='Base original'!F46/'Base original'!F34*100-100 -> 17.98661627 | G42: ='Base original'!H46 -> 30.17 | H42: ='Base original'!I46 -> 41.1 | I42: ='Base original'!J46 -> 32.93 | J42: ='Base original'!K46 -> 37.18 | K42: ='Base original'!G46 -> 36.85158168 | L42: ='Base original'!M46 -> 13.21 | M42: ='Base original'!N46 -> 16.47 | N42: ='Base original'!O46 -> 12.06 | O42: ='Base original'!P46 -> 14.93 | P42: ='Base original'!Q46 -> 16.95 | Q42: ='Base original'!L46 -> 14.91091061 | R42: ='Base original'!S46 -> 5.26 | S42: ='Base original'!T46 -> 5.87 | T42: ='Base original'!U46 -> 5.96 | U42: ='Base original'!V46 -> 6.2 | V42: ='Base original'!W46 -> 4.44 | W42: ='Base original'!R46 -> 5.831500249 | X42: ='Base original'!X46 -> 5.77 | Y42: =('Base original'!Z46/'Base original'!Z34*100-100)*'Base original'!Z34/'Base original'!$AC34 -> 2.709815752 | Z42: =('Base original'!AA46/'Base original'!AA34*100-100)*'Base original'!AA34/'Base original'!$AC34 -> 2.01572779 | AA42: =('Base original'!AB46/'Base original'!AB34*100-100)*'Base original'!AB34/'Base original'!$AC34 -> 1.967948161 | AB42: =('Base original'!AC46/'Base original'!AC34*100-100)*'Base original'!AC34/'Base original'!$AC34 -> 6.692701958 | AC42: =('Base original'!AC46/'Base original'!AC34*100-100)*'Base original'!AC34/('Base original'!$AJ34) -> 1.472812088 | AD42: =('Base original'!AD46/'Base original'!AD34*100-100)*'Base original'!AD34/('Base original'!$AJ34) -> 15.63701686 | AE42: =('Base original'!AE46/'Base original'!AE34*100-100)*'Base original'!AE34/('Base original'!$AJ34) -> 0.449820743 | AF42: =('Base original'!AF46/'Base original'!AF34*100-100)*'Base original'!AF34/('Base original'!$AJ34) -> 0.7282812029 | AG42: =('Base original'!AG46/'Base original'!AG34*100-100)*'Base original'!AG34/('Base original'!$AJ34) -> 0.2633187108 | AH42: =-('Base original'!AH46/'Base original'!AH34*100-100)*'Base original'!AH34/('Base original'!$AJ34) -> 0.07064701324 | AI42: =-('Base original'!AI46/'Base original'!AI34*100-100)*'Base original'!AI34/('Base original'!$AJ34) -> -0.01225243403 | AJ42: =(('Base original'!AF46-'Base original'!AH46)/('Base original'!AF34-'Base original'!AH34)*100-100)*(('Base original'!AF34-'Base original'!AH34)/'Base original'!AJ34) -> 0.7989282162 | AK42: =(('Base original'!AG46-'Base original'!AI46)/('Base original'!AG34-'Base original'!AI34)*100-100)*(('Base original'!AG34-'Base original'!AI34)/'Base original'!AJ34) -> 0.2510662768 | AL42: =('Base original'!AJ46/'Base original'!AJ34*100-100)*'Base original'!AJ34/('Base original'!$AJ34) -> 18.60964419 | AM42: =('Base original'!AJ46/'Base original'!AJ34*100-100)*'Base original'!AJ34/('Base original'!$AU34) -> 11.56191297 | AN42: =('Base original'!AK46/'Base original'!AK34*100-100)*'Base original'!AK34/('Base original'!$AU34) -> 3.406097966 | AO42: =('Base original'!AL46/'Base original'!AL34*100-100)*'Base original'!AL34/('Base original'!$AU34) -> 3.033974194 | AP42: =('Base original'!AM46/'Base original'!AM34*100-100)*'Base original'!AM34/('Base original'!$AU34) -> 1.360692684 | AQ42: =('Base original'!AN46/'Base original'!AN34*100-100)*'Base original'!AN34/('Base original'!$AU34) -> -0.4338722116 | AR42: =('Base original'!AO46/'Base original'!AO34*100-100)*'Base original'!AO34/('Base original'!$AU34) -> 0.1536895064 | AS42: =('Base original'!AP46/'Base original'!AP34*100-100)*'Base original'!AP34/('Base original'!$AU34) -> 2.979217162 | AT42: =('Base original'!AQ46/'Base original'!AQ34*100-100)*'Base original'!AQ34/('Base original'!$AU34) -> -2.703393964 | AU42: =('Base original'!AR46/'Base original'!AR34*100-100)*'Base original'!AR34/('Base original'!$AU34) -> -0.3329017016 | AV42: =-('Base original'!AS46/'Base original'!AS34*100-100)*'Base original'!AS34/('Base original'!$AU34) -> 0.0870011907 | AW42: =-('Base original'!AT46/'Base original'!AT34*100-100)*'Base original'!AT34/('Base original'!$AU34) -> -0.0002969323915 | AX42: =(('Base original'!AQ46-'Base original'!AS46)/('Base original'!AQ34-'Base original'!AS34)*100-100)*(('Base original'!AQ34-'Base original'!AS34)/'Base original'!AU34) -> -2.616392774 | AY42: =(('Base original'!AR46-'Base original'!AT46)/('Base original'!AR34-'Base original'!AT34)*100-100)*(('Base original'!AR34-'Base original'!AT34)/'Base original'!AU34) -> -0.333198634 | AZ42: =('Base original'!AU46/'Base original'!AU34*100-100)*'Base original'!AU34/('Base original'!$AU34) -> 19.11213436
A43: 2009-01-01 | B43: ='Base original'!B47/'Base original'!B35*100-100 -> 13.92605067 | C43: ='Base original'!C47/'Base original'!C35*100-100 -> 5.380483709 | D43: ='Base original'!D47/'Base original'!D35*100-100 -> 18.63429965 | E43: ='Base original'!E47/'Base original'!E35*100-100 -> 46.9582296 | F43: ='Base original'!F47/'Base original'!F35*100-100 -> 16.53815593 | G43: ='Base original'!H47 -> 30.6 | H43: ='Base original'!I47 -> 41.71 | I43: ='Base original'!J47 -> 33.18 | J43: ='Base original'!K47 -> 34.79 | K43: ='Base original'!G47 -> 36.33417145 | L43: ='Base original'!M47 -> 12.2 | M43: ='Base original'!N47 -> 13.97 | N43: ='Base original'!O47 -> 10.8 | O43: ='Base original'!P47 -> 14.35 | P43: ='Base original'!Q47 -> 16.14 | Q43: ='Base original'!L47 -> 13.51124586 | R43: ='Base original'!S47 -> 5.23 | S43: ='Base original'!T47 -> 4.92 | T43: ='Base original'!U47 -> 6.1 | U43: ='Base original'!V47 -> 5.94 | V43: ='Base original'!W47 -> 6.26 | W43: ='Base original'!R47 -> 5.323566282 | X43: ='Base original'!X47 -> 5.92 | Y43: =('Base original'!Z47/'Base original'!Z35*100-100)*'Base original'!Z35/'Base original'!$AC35 -> 2.497059976 | Z43: =('Base original'!AA47/'Base original'!AA35*100-100)*'Base original'!AA35/'Base original'!$AC35 -> 1.28871031 | AA43: =('Base original'!AB47/'Base original'!AB35*100-100)*'Base original'!AB35/'Base original'!$AC35 -> 1.591532732 | AB43: =('Base original'!AC47/'Base original'!AC35*100-100)*'Base original'!AC35/'Base original'!$AC35 -> 5.378283026 | AC43: =('Base original'!AC47/'Base original'!AC35*100-100)*'Base original'!AC35/('Base original'!$AJ35) -> 1.148542452 | AD43: =('Base original'!AD47/'Base original'!AD35*100-100)*'Base original'!AD35/('Base original'!$AJ35) -> 11.74995762 | AE43: =('Base original'!AE47/'Base original'!AE35*100-100)*'Base original'!AE35/('Base original'!$AJ35) -> 0.4020317147 | AF43: =('Base original'!AF47/'Base original'!AF35*100-100)*'Base original'!AF35/('Base original'!$AJ35) -> 4.375051013 | AG43: =('Base original'!AG47/'Base original'!AG35*100-100)*'Base original'!AG35/('Base original'!$AJ35) -> 0.2500926075 | AH43: =-('Base original'!AH47/'Base original'!AH35*100-100)*'Base original'!AH35/('Base original'!$AJ35) -> -3.426791929 | AI43: =-('Base original'!AI47/'Base original'!AI35*100-100)*'Base original'!AI35/('Base original'!$AJ35) -> -0.01339408107 | AJ43: =(('Base original'!AF47-'Base original'!AH47)/('Base original'!AF35-'Base original'!AH35)*100-100)*(('Base original'!AF35-'Base original'!AH35)/'Base original'!AJ35) -> 0.9482590834 | AK43: =(('Base original'!AG47-'Base original'!AI47)/('Base original'!AG35-'Base original'!AI35)*100-100)*(('Base original'!AG35-'Base original'!AI35)/'Base original'!AJ35) -> 0.2366985264 | AL43: =('Base original'!AJ47/'Base original'!AJ35*100-100)*'Base original'!AJ35/('Base original'!$AJ35) -> 14.48528011 | AM43: =('Base original'!AJ47/'Base original'!AJ35*100-100)*'Base original'!AJ35/('Base original'!$AU35) -> 9.142544653 | AN43: =('Base original'!AK47/'Base original'!AK35*100-100)*'Base original'!AK35/('Base original'!$AU35) -> 3.090532512 | AO43: =('Base original'!AL47/'Base original'!AL35*100-100)*'Base original'!AL35/('Base original'!$AU35) -> 2.521748779 | AP43: =('Base original'!AM47/'Base original'!AM35*100-100)*'Base original'!AM35/('Base original'!$AU35) -> 1.258826979 | AQ43: =('Base original'!AN47/'Base original'!AN35*100-100)*'Base original'!AN35/('Base original'!$AU35) -> -0.6089393887 | AR43: =('Base original'!AO47/'Base original'!AO35*100-100)*'Base original'!AO35/('Base original'!$AU35) -> 0.1739638124 | AS43: =('Base original'!AP47/'Base original'!AP35*100-100)*'Base original'!AP35/('Base original'!$AU35) -> 3.261854504 | AT43: =('Base original'!AQ47/'Base original'!AQ35*100-100)*'Base original'!AQ35/('Base original'!$AU35) -> -2.020595625 | AU43: =('Base original'!AR47/'Base original'!AR35*100-100)*'Base original'!AR35/('Base original'!$AU35) -> -0.281221683 | AV43: =-('Base original'!AS47/'Base original'!AS35*100-100)*'Base original'!AS35/('Base original'!$AU35) -> -0.2055335551 | AW43: =-('Base original'!AT47/'Base original'!AT35*100-100)*'Base original'!AT35/('Base original'!$AU35) -> 0.01954946411 | AX43: =(('Base original'!AQ47-'Base original'!AS47)/('Base original'!AQ35-'Base original'!AS35)*100-100)*(('Base original'!AQ35-'Base original'!AS35)/'Base original'!AU35) -> -2.22612918 | AY43: =(('Base original'!AR47-'Base original'!AT47)/('Base original'!AR35-'Base original'!AT35)*100-100)*(('Base original'!AR35-'Base original'!AT35)/'Base original'!AU35) -> -0.2616722189 | AZ43: =('Base original'!AU47/'Base original'!AU35*100-100)*'Base original'!AU35/('Base original'!$AU35) -> 16.35273045
A44: 2009-02-01 | B44: ='Base original'!B48/'Base original'!B36*100-100 -> 11.42682459 | C44: ='Base original'!C48/'Base original'!C36*100-100 -> 3.850262605 | D44: ='Base original'!D48/'Base original'!D36*100-100 -> 16.59682269 | E44: ='Base original'!E48/'Base original'!E36*100-100 -> 36.02129932 | F44: ='Base original'!F48/'Base original'!F36*100-100 -> 13.60115863 | G44: ='Base original'!H48 -> 30.19 | H44: ='Base original'!I48 -> 42.67 | I44: ='Base original'!J48 -> 33.02 | J44: ='Base original'!K48 -> 33.74 | K44: ='Base original'!G48 -> 36.18977679 | L44: ='Base original'!M48 -> 10.88 | M44: ='Base original'!N48 -> 12.88 | N44: ='Base original'!O48 -> 10.11 | O44: ='Base original'!P48 -> 12.06 | P44: ='Base original'!Q48 -> 15.67 | Q44: ='Base original'!L48 -> 12.21579471 | R44: ='Base original'!S48 -> 5.03 | S44: ='Base original'!T48 -> 5.06 | T44: ='Base original'!U48 -> 5.32 | U44: ='Base original'!V48 -> 5.1 | V44: ='Base original'!W48 -> 7 | W44: ='Base original'!R48 -> 5.117256562 | X44: ='Base original'!X48 -> 5.53 | Y44: =('Base original'!Z48/'Base original'!Z36*100-100)*'Base original'!Z36/'Base original'!$AC36 -> 2.138468809 | Z44: =('Base original'!AA48/'Base original'!AA36*100-100)*'Base original'!AA36/'Base original'!$AC36 -> 2.741020794 | AA44: =('Base original'!AB48/'Base original'!AB36*100-100)*'Base original'!AB36/'Base original'!$AC36 -> -1.153906742 | AB44: =('Base original'!AC48/'Base original'!AC36*100-100)*'Base original'!AC36/'Base original'!$AC36 -> 3.725582861 | AC44: =('Base original'!AC48/'Base original'!AC36*100-100)*'Base original'!AC36/('Base original'!$AJ36) -> 0.7839058981 | AD44: =('Base original'!AD48/'Base original'!AD36*100-100)*'Base original'!AD36/('Base original'!$AJ36) -> 10.27612795 | AE44: =('Base original'!AE48/'Base original'!AE36*100-100)*'Base original'!AE36/('Base original'!$AJ36) -> 0.3449268817 | AF44: =('Base original'!AF48/'Base original'!AF36*100-100)*'Base original'!AF36/('Base original'!$AJ36) -> 5.009622735 | AG44: =('Base original'!AG48/'Base original'!AG36*100-100)*'Base original'!AG36/('Base original'!$AJ36) -> 0.2392736026 | AH44: =-('Base original'!AH48/'Base original'!AH36*100-100)*'Base original'!AH36/('Base original'!$AJ36) -> -4.166882462 | AI44: =-('Base original'!AI48/'Base original'!AI36*100-100)*'Base original'!AI36/('Base original'!$AJ36) -> -0.0188518596 | AJ44: =(('Base original'!AF48-'Base original'!AH48)/('Base original'!AF36-'Base original'!AH36)*100-100)*(('Base original'!AF36-'Base original'!AH36)/'Base original'!AJ36) -> 0.8427402732 | AK44: =(('Base original'!AG48-'Base original'!AI48)/('Base original'!AG36-'Base original'!AI36)*100-100)*(('Base original'!AG36-'Base original'!AI36)/'Base original'!AJ36) -> 0.220421743 | AL44: =('Base original'!AJ48/'Base original'!AJ36*100-100)*'Base original'!AJ36/('Base original'!$AJ36) -> 12.46770842 | AM44: =('Base original'!AJ48/'Base original'!AJ36*100-100)*'Base original'!AJ36/('Base original'!$AU36) -> 7.925990897 | AN44: =('Base original'!AK48/'Base original'!AK36*100-100)*'Base original'!AK36/('Base original'!$AU36) -> 3.023526561 | AO44: =('Base original'!AL48/'Base original'!AL36*100-100)*'Base original'!AL36/('Base original'!$AU36) -> 2.302874181 | AP44: =('Base original'!AM48/'Base original'!AM36*100-100)*'Base original'!AM36/('Base original'!$AU36) -> 1.505968561 | AQ44: =('Base original'!AN48/'Base original'!AN36*100-100)*'Base original'!AN36/('Base original'!$AU36) -> -0.4855711486 | AR44: =('Base original'!AO48/'Base original'!AO36*100-100)*'Base original'!AO36/('Base original'!$AU36) -> 0.2096634848 | AS44: =('Base original'!AP48/'Base original'!AP36*100-100)*'Base original'!AP36/('Base original'!$AU36) -> 3.473670902 | AT44: =('Base original'!AQ48/'Base original'!AQ36*100-100)*'Base original'!AQ36/('Base original'!$AU36) -> -1.239148071 | AU44: =('Base original'!AR48/'Base original'!AR36*100-100)*'Base original'!AR36/('Base original'!$AU36) -> -0.2531238806 | AV44: =-('Base original'!AS48/'Base original'!AS36*100-100)*'Base original'!AS36/('Base original'!$AU36) -> -0.5785500558 | AW44: =-('Base original'!AT48/'Base original'!AT36*100-100)*'Base original'!AT36/('Base original'!$AU36) -> 0.01316981689 | AX44: =(('Base original'!AQ48-'Base original'!AS48)/('Base original'!AQ36-'Base original'!AS36)*100-100)*(('Base original'!AQ36-'Base original'!AS36)/'Base original'!AU36) -> -1.817698127 | AY44: =(('Base original'!AR48-'Base original'!AT48)/('Base original'!AR36-'Base original'!AT36)*100-100)*(('Base original'!AR36-'Base original'!AT36)/'Base original'!AU36) -> -0.2399540637 | AZ44: =('Base original'!AU48/'Base original'!AU36*100-100)*'Base original'!AU36/('Base original'!$AU36) -> 15.89833955
A45: 2009-03-01 | B45: ='Base original'!B49/'Base original'!B37*100-100 -> 9.11651237 | C45: ='Base original'!C49/'Base original'!C37*100-100 -> 2.820031559 | D45: ='Base original'!D49/'Base original'!D37*100-100 -> 15.1063322 | E45: ='Base original'!E49/'Base original'!E37*100-100 -> 30.72665462 | F45: ='Base original'!F49/'Base original'!F37*100-100 -> 11.36667338 | G45: ='Base original'!H49 -> 28.89 | H45: ='Base original'!I49 -> 42.45 | I45: ='Base original'!J49 -> 29.17 | J45: ='Base original'!K49 -> 31.64 | K45: ='Base original'!G49 -> 32.23109006 | L45: ='Base original'!M49 -> 8.39 | M45: ='Base original'!N49 -> 10.3 | N45: ='Base original'!O49 -> 7.83 | O45: ='Base original'!P49 -> 12.65 | P45: ='Base original'!Q49 -> 14.25 | Q45: ='Base original'!L49 -> 10.05881629 | R45: ='Base original'!S49 -> 5.01 | S45: ='Base original'!T49 -> 4.68 | T45: ='Base original'!U49 -> 5.25 | U45: ='Base original'!V49 -> 4.41 | V45: ='Base original'!W49 -> 4.43 | W45: ='Base original'!R49 -> 4.683590798 | X45: ='Base original'!X49 -> 4.9 | Y45: =('Base original'!Z49/'Base original'!Z37*100-100)*'Base original'!Z37/'Base original'!$AC37 -> 2.282784086 | Z45: =('Base original'!AA49/'Base original'!AA37*100-100)*'Base original'!AA37/'Base original'!$AC37 -> 5.492144887 | AA45: =('Base original'!AB49/'Base original'!AB37*100-100)*'Base original'!AB37/'Base original'!$AC37 -> -2.42137462 | AB45: =('Base original'!AC49/'Base original'!AC37*100-100)*'Base original'!AC37/'Base original'!$AC37 -> 5.353554352 | AC45: =('Base original'!AC49/'Base original'!AC37*100-100)*'Base original'!AC37/('Base original'!$AJ37) -> 1.108323906 | AD45: =('Base original'!AD49/'Base original'!AD37*100-100)*'Base original'!AD37/('Base original'!$AJ37) -> 3.606561409 | AE45: =('Base original'!AE49/'Base original'!AE37*100-100)*'Base original'!AE37/('Base original'!$AJ37) -> 0.3143803387 | AF45: =('Base original'!AF49/'Base original'!AF37*100-100)*'Base original'!AF37/('Base original'!$AJ37) -> 4.403579099 | AG45: =('Base original'!AG49/'Base original'!AG37*100-100)*'Base original'!AG37/('Base original'!$AJ37) -> 0.230354303 | AH45: =-('Base original'!AH49/'Base original'!AH37*100-100)*'Base original'!AH37/('Base original'!$AJ37) -> -3.766005935 | AI45: =-('Base original'!AI49/'Base original'!AI37*100-100)*'Base original'!AI37/('Base original'!$AJ37) -> -0.02274851212 | AJ45: =(('Base original'!AF49-'Base original'!AH49)/('Base original'!AF37-'Base original'!AH37)*100-100)*(('Base original'!AF37-'Base original'!AH37)/'Base original'!AJ37) -> 0.6375731641 | AK45: =(('Base original'!AG49-'Base original'!AI49)/('Base original'!AG37-'Base original'!AI37)*100-100)*(('Base original'!AG37-'Base original'!AI37)/'Base original'!AJ37) -> 0.2076057908 | AL45: =('Base original'!AJ49/'Base original'!AJ37*100-100)*'Base original'!AJ37/('Base original'!$AJ37) -> 5.874444608 | AM45: =('Base original'!AJ49/'Base original'!AJ37*100-100)*'Base original'!AJ37/('Base original'!$AU37) -> 3.753099869 | AN45: =('Base original'!AK49/'Base original'!AK37*100-100)*'Base original'!AK37/('Base original'!$AU37) -> 3.032699524 | AO45: =('Base original'!AL49/'Base original'!AL37*100-100)*'Base original'!AL37/('Base original'!$AU37) -> 2.992109901 | AP45: =('Base original'!AM49/'Base original'!AM37*100-100)*'Base original'!AM37/('Base original'!$AU37) -> 1.524336752 | AQ45: =('Base original'!AN49/'Base original'!AN37*100-100)*'Base original'!AN37/('Base original'!$AU37) -> -0.6301866337 | AR45: =('Base original'!AO49/'Base original'!AO37*100-100)*'Base original'!AO37/('Base original'!$AU37) -> 0.2534887436 | AS45: =('Base original'!AP49/'Base original'!AP37*100-100)*'Base original'!AP37/('Base original'!$AU37) -> 3.505503167 | AT45: =('Base original'!AQ49/'Base original'!AQ37*100-100)*'Base original'!AQ37/('Base original'!$AU37) -> -1.096443563 | AU45: =('Base original'!AR49/'Base original'!AR37*100-100)*'Base original'!AR37/('Base original'!$AU37) -> -0.2530959408 | AV45: =-('Base original'!AS49/'Base original'!AS37*100-100)*'Base original'!AS37/('Base original'!$AU37) -> -0.7433138416 | AW45: =-('Base original'!AT49/'Base original'!AT37*100-100)*'Base original'!AT37/('Base original'!$AU37) -> 0.02186602282 | AX45: =(('Base original'!AQ49-'Base original'!AS49)/('Base original'!AQ37-'Base original'!AS37)*100-100)*(('Base original'!AQ37-'Base original'!AS37)/'Base original'!AU37) -> -1.839757405 | AY45: =(('Base original'!AR49-'Base original'!AT49)/('Base original'!AR37-'Base original'!AT37)*100-100)*(('Base original'!AR37-'Base original'!AT37)/'Base original'!AU37) -> -0.231229918 | AZ45: =('Base original'!AU49/'Base original'!AU37*100-100)*'Base original'!AU37/('Base original'!$AU37) -> 12.3596712
A46: 2009-04-01 | B46: ='Base original'!B50/'Base original'!B38*100-100 -> 7.729474345 | C46: ='Base original'!C50/'Base original'!C38*100-100 -> 2.022545014 | D46: ='Base original'!D50/'Base original'!D38*100-100 -> 13.1399209 | E46: ='Base original'!E50/'Base original'!E38*100-100 -> 9.965763716 | F46: ='Base original'!F50/'Base original'!F38*100-100 -> 8.393857943 | G46: ='Base original'!H50 -> 28.32 | H46: ='Base original'!I50 -> 40.55 | I46: ='Base original'!J50 -> 22.84 | J46: ='Base original'!K50 -> 25.95 | K46: ='Base original'!G50 -> 29.97497029 | L46: ='Base original'!M50 -> 6.64 | M46: ='Base original'!N50 -> 8.7 | N46: ='Base original'!O50 -> 5.93 | O46: ='Base original'!P50 -> 10.99 | P46: ='Base original'!Q50 -> 9.91 | Q46: ='Base original'!L50 -> 8.766351447 | R46: ='Base original'!S50 -> 4.45 | S46: ='Base original'!T50 -> 3.35 | T46: ='Base original'!U50 -> 4.96 | U46: ='Base original'!V50 -> 4.65 | V46: ='Base original'!W50 -> 4.71 | W46: ='Base original'!R50 -> 3.947299689 | X46: ='Base original'!X50 -> 4.42 | Y46: =('Base original'!Z50/'Base original'!Z38*100-100)*'Base original'!Z38/'Base original'!$AC38 -> 2.46304931 | Z46: =('Base original'!AA50/'Base original'!AA38*100-100)*'Base original'!AA38/'Base original'!$AC38 -> 6.840703672 | AA46: =('Base original'!AB50/'Base original'!AB38*100-100)*'Base original'!AB38/'Base original'!$AC38 -> -1.497827012 | AB46: =('Base original'!AC50/'Base original'!AC38*100-100)*'Base original'!AC38/'Base original'!$AC38 -> 7.804935998 | AC46: =('Base original'!AC50/'Base original'!AC38*100-100)*'Base original'!AC38/('Base original'!$AJ38) -> 1.592942883 | AD46: =('Base original'!AD50/'Base original'!AD38*100-100)*'Base original'!AD38/('Base original'!$AJ38) -> 0.4568295103 | AE46: =('Base original'!AE50/'Base original'!AE38*100-100)*'Base original'!AE38/('Base original'!$AJ38) -> 0.3172146533 | AF46: =('Base original'!AF50/'Base original'!AF38*100-100)*'Base original'!AF38/('Base original'!$AJ38) -> 5.672080868 | AG46: =('Base original'!AG50/'Base original'!AG38*100-100)*'Base original'!AG38/('Base original'!$AJ38) -> 0.2135642602 | AH46: =-('Base original'!AH50/'Base original'!AH38*100-100)*'Base original'!AH38/('Base original'!$AJ38) -> -5.504785496 | AI46: =-('Base original'!AI50/'Base original'!AI38*100-100)*'Base original'!AI38/('Base original'!$AJ38) -> -0.01212285299 | AJ46: =(('Base original'!AF50-'Base original'!AH50)/('Base original'!AF38-'Base original'!AH38)*100-100)*(('Base original'!AF38-'Base original'!AH38)/'Base original'!AJ38) -> 0.1672953713 | AK46: =(('Base original'!AG50-'Base original'!AI50)/('Base original'!AG38-'Base original'!AI38)*100-100)*(('Base original'!AG38-'Base original'!AI38)/'Base original'!AJ38) -> 0.2014414072 | AL46: =('Base original'!AJ50/'Base original'!AJ38*100-100)*'Base original'!AJ38/('Base original'!$AJ38) -> 2.735521778 | AM46: =('Base original'!AJ50/'Base original'!AJ38*100-100)*'Base original'!AJ38/('Base original'!$AU38) -> 1.741330325 | AN46: =('Base original'!AK50/'Base original'!AK38*100-100)*'Base original'!AK38/('Base original'!$AU38) -> 2.344410161 | AO46: =('Base original'!AL50/'Base original'!AL38*100-100)*'Base original'!AL38/('Base original'!$AU38) -> 3.174882863 | AP46: =('Base original'!AM50/'Base original'!AM38*100-100)*'Base original'!AM38/('Base original'!$AU38) -> 1.432652227 | AQ46: =('Base original'!AN50/'Base original'!AN38*100-100)*'Base original'!AN38/('Base original'!$AU38) -> -0.7747820282 | AR46: =('Base original'!AO50/'Base original'!AO38*100-100)*'Base original'!AO38/('Base original'!$AU38) -> 0.2653345492 | AS46: =('Base original'!AP50/'Base original'!AP38*100-100)*'Base original'!AP38/('Base original'!$AU38) -> 3.833653373 | AT46: =('Base original'!AQ50/'Base original'!AQ38*100-100)*'Base original'!AQ38/('Base original'!$AU38) -> -1.150854845 | AU46: =('Base original'!AR50/'Base original'!AR38*100-100)*'Base original'!AR38/('Base original'!$AU38) -> -0.2300937996 | AV46: =-('Base original'!AS50/'Base original'!AS38*100-100)*'Base original'!AS38/('Base original'!$AU38) -> -0.7144611831 | AW46: =-('Base original'!AT50/'Base original'!AT38*100-100)*'Base original'!AT38/('Base original'!$AU38) -> 0.02366532092 | AX46: =(('Base original'!AQ50-'Base original'!AS50)/('Base original'!AQ38-'Base original'!AS38)*100-100)*(('Base original'!AQ38-'Base original'!AS38)/'Base original'!AU38) -> -1.865316028 | AY46: =(('Base original'!AR50-'Base original'!AT50)/('Base original'!AR38-'Base original'!AT38)*100-100)*(('Base original'!AR38-'Base original'!AT38)/'Base original'!AU38) -> -0.2064284786 | AZ46: =('Base original'!AU50/'Base original'!AU38*100-100)*'Base original'!AU38/('Base original'!$AU38) -> 9.945608347
A47: 2009-05-01 | B47: ='Base original'!B51/'Base original'!B39*100-100 -> 5.808529583 | C47: ='Base original'!C51/'Base original'!C39*100-100 -> 1.33634861 | D47: ='Base original'!D51/'Base original'!D39*100-100 -> 12.17029718 | E47: ='Base original'!E51/'Base original'!E39*100-100 -> -2.399493265 | F47: ='Base original'!F51/'Base original'!F39*100-100 -> 5.867166996 | G47: ='Base original'!H51 -> 26.24666031 | H47: ='Base original'!I51 -> 38.55766229 | I47: ='Base original'!J51 -> 22.91899734 | J47: ='Base original'!K51 -> 26.76687694 | K47: ='Base original'!G51 -> 29.56658702 | L47: ='Base original'!M51 -> 6.094105175 | M47: ='Base original'!N51 -> 6.835141982 | N47: ='Base original'!O51 -> 5.277296092 | O47: ='Base original'!P51 -> 9.985140566 | P47: ='Base original'!Q51 -> 11.6870111 | Q47: ='Base original'!L51 -> 8.071368334 | R47: ='Base original'!S51 -> 3.677971301 | S47: ='Base original'!T51 -> 3.923672315 | T47: ='Base original'!U51 -> 4.169704853 | U47: ='Base original'!V51 -> 3.139679115 | V47: ='Base original'!W51 -> 5.339193205 | W47: ='Base original'!R51 -> 3.776842156 | X47: ='Base original'!X51 -> 4.455645369 | Y47: =('Base original'!Z51/'Base original'!Z39*100-100)*'Base original'!Z39/'Base original'!$AC39 -> 2.268516296 | Z47: =('Base original'!AA51/'Base original'!AA39*100-100)*'Base original'!AA39/'Base original'!$AC39 -> 6.271780348 | AA47: =('Base original'!AB51/'Base original'!AB39*100-100)*'Base original'!AB39/'Base original'!$AC39 -> 0.2716843469 | AB47: =('Base original'!AC51/'Base original'!AC39*100-100)*'Base original'!AC39/'Base original'!$AC39 -> 8.811020976 | AC47: =('Base original'!AC51/'Base original'!AC39*100-100)*'Base original'!AC39/('Base original'!$AJ39) -> 1.847178112 | AD47: =('Base original'!AD51/'Base original'!AD39*100-100)*'Base original'!AD39/('Base original'!$AJ39) -> 0.2990745996 | AE47: =('Base original'!AE51/'Base original'!AE39*100-100)*'Base original'!AE39/('Base original'!$AJ39) -> 0.3270499491 | AF47: =('Base original'!AF51/'Base original'!AF39*100-100)*'Base original'!AF39/('Base original'!$AJ39) -> 4.607680944 | AG47: =('Base original'!AG51/'Base original'!AG39*100-100)*'Base original'!AG39/('Base original'!$AJ39) -> 0.1990476305 | AH47: =-('Base original'!AH51/'Base original'!AH39*100-100)*'Base original'!AH39/('Base original'!$AJ39) -> -4.659606413 | AI47: =-('Base original'!AI51/'Base original'!AI39*100-100)*'Base original'!AI39/('Base original'!$AJ39) -> -0.008452983299 | AJ47: =(('Base original'!AF51-'Base original'!AH51)/('Base original'!AF39-'Base original'!AH39)*100-100)*(('Base original'!AF39-'Base original'!AH39)/'Base original'!AJ39) -> -0.05192546884 | AK47: =(('Base original'!AG51-'Base original'!AI51)/('Base original'!AG39-'Base original'!AI39)*100-100)*(('Base original'!AG39-'Base original'!AI39)/'Base original'!AJ39) -> 0.1905946472 | AL47: =('Base original'!AJ51/'Base original'!AJ39*100-100)*'Base original'!AJ39/('Base original'!$AJ39) -> 2.612173101 | AM47: =('Base original'!AJ51/'Base original'!AJ39*100-100)*'Base original'!AJ39/('Base original'!$AU39) -> 1.640566835 | AN47: =('Base original'!AK51/'Base original'!AK39*100-100)*'Base original'!AK39/('Base original'!$AU39) -> 1.218511772 | AO47: =('Base original'!AL51/'Base original'!AL39*100-100)*'Base original'!AL39/('Base original'!$AU39) -> 2.770218258 | AP47: =('Base original'!AM51/'Base original'!AM39*100-100)*'Base original'!AM39/('Base original'!$AU39) -> 1.314071409 | AQ47: =('Base original'!AN51/'Base original'!AN39*100-100)*'Base original'!AN39/('Base original'!$AU39) -> -0.6550132785 | AR47: =('Base original'!AO51/'Base original'!AO39*100-100)*'Base original'!AO39/('Base original'!$AU39) -> 0.258112141 | AS47: =('Base original'!AP51/'Base original'!AP39*100-100)*'Base original'!AP39/('Base original'!$AU39) -> 3.983168358 | AT47: =('Base original'!AQ51/'Base original'!AQ39*100-100)*'Base original'!AQ39/('Base original'!$AU39) -> -1.116758455 | AU47: =('Base original'!AR51/'Base original'!AR39*100-100)*'Base original'!AR39/('Base original'!$AU39) -> -0.2162731994 | AV47: =-('Base original'!AS51/'Base original'!AS39*100-100)*'Base original'!AS39/('Base original'!$AU39) -> -0.5747482395 | AW47: =-('Base original'!AT51/'Base original'!AT39*100-100)*'Base original'!AT39/('Base original'!$AU39) -> 0.0360244663 | AX47: =(('Base original'!AQ51-'Base original'!AS51)/('Base original'!AQ39-'Base original'!AS39)*100-100)*(('Base original'!AQ39-'Base original'!AS39)/'Base original'!AU39) -> -1.691506695 | AY47: =(('Base original'!AR51-'Base original'!AT51)/('Base original'!AR39-'Base original'!AT39)*100-100)*(('Base original'!AR39-'Base original'!AT39)/'Base original'!AU39) -> -0.1802487331 | AZ47: =('Base original'!AU51/'Base original'!AU39*100-100)*'Base original'!AU39/('Base original'!$AU39) -> 8.658132871
A48: 2009-06-01 | B48: ='Base original'!B52/'Base original'!B40*100-100 -> 2.848261871 | C48: ='Base original'!C52/'Base original'!C40*100-100 -> 0.1622425609 | D48: ='Base original'!D52/'Base original'!D40*100-100 -> 10.73803343 | E48: ='Base original'!E52/'Base original'!E40*100-100 -> -23.01216392 | F48: ='Base original'!F52/'Base original'!F40*100-100 -> 1.602554879 | G48: ='Base original'!H52 -> 24.19 | H48: ='Base original'!I52 -> 38.48 | I48: ='Base original'!J52 -> 21.24 | J48: ='Base original'!K52 -> 25.39 | K48: ='Base original'!G52 -> 28.9061915 | L48: ='Base original'!M52 -> 5.84 | M48: ='Base original'!N52 -> 5.42 | N48: ='Base original'!O52 -> 5.03 | O48: ='Base original'!P52 -> 11.53 | P48: ='Base original'!Q52 -> 9.14 | Q48: ='Base original'!L52 -> 7.984518349 | R48: ='Base original'!S52 -> 3.6 | S48: ='Base original'!T52 -> 3.27 | T48: ='Base original'!U52 -> 4.12 | U48: ='Base original'!V52 -> 3.57 | V48: ='Base original'!W52 -> 3.12 | W48: ='Base original'!R52 -> 3.496964596 | X48: ='Base original'!X52 -> 4.61 | Y48: =('Base original'!Z52/'Base original'!Z40*100-100)*'Base original'!Z40/'Base original'!$AC40 -> 2.197906937 | Z48: =('Base original'!AA52/'Base original'!AA40*100-100)*'Base original'!AA40/'Base original'!$AC40 -> 6.727158352 | AA48: =('Base original'!AB52/'Base original'!AB40*100-100)*'Base original'!AB40/'Base original'!$AC40 -> 1.780438056 | AB48: =('Base original'!AC52/'Base original'!AC40*100-100)*'Base original'!AC40/'Base original'!$AC40 -> 10.70359709 | AC48: =('Base original'!AC52/'Base original'!AC40*100-100)*'Base original'!AC40/('Base original'!$AJ40) -> 2.239228573 | AD48: =('Base original'!AD52/'Base original'!AD40*100-100)*'Base original'!AD40/('Base original'!$AJ40) -> -0.4883233103 | AE48: =('Base original'!AE52/'Base original'!AE40*100-100)*'Base original'!AE40/('Base original'!$AJ40) -> 0.3174400613 | AF48: =('Base original'!AF52/'Base original'!AF40*100-100)*'Base original'!AF40/('Base original'!$AJ40) -> 4.062714352 | AG48: =('Base original'!AG52/'Base original'!AG40*100-100)*'Base original'!AG40/('Base original'!$AJ40) -> 0.1551308842 | AH48: =-('Base original'!AH52/'Base original'!AH40*100-100)*'Base original'!AH40/('Base original'!$AJ40) -> -3.600312655 | AI48: =-('Base original'!AI52/'Base original'!AI40*100-100)*'Base original'!AI40/('Base original'!$AJ40) -> -0.008574072006 | AJ48: =(('Base original'!AF52-'Base original'!AH52)/('Base original'!AF40-'Base original'!AH40)*100-100)*(('Base original'!AF40-'Base original'!AH40)/'Base original'!AJ40) -> 0.4624016973 | AK48: =(('Base original'!AG52-'Base original'!AI52)/('Base original'!AG40-'Base original'!AI40)*100-100)*(('Base original'!AG40-'Base original'!AI40)/'Base original'!AJ40) -> 0.1465568122 | AL48: =('Base original'!AJ52/'Base original'!AJ40*100-100)*'Base original'!AJ40/('Base original'!$AJ40) -> 2.67750323 | AM48: =('Base original'!AJ52/'Base original'!AJ40*100-100)*'Base original'!AJ40/('Base original'!$AU40) -> 1.66138154 | AN48: =('Base original'!AK52/'Base original'!AK40*100-100)*'Base original'!AK40/('Base original'!$AU40) -> 0.004206655672 | AO48: =('Base original'!AL52/'Base original'!AL40*100-100)*'Base original'!AL40/('Base original'!$AU40) -> 2.520776549 | AP48: =('Base original'!AM52/'Base original'!AM40*100-100)*'Base original'!AM40/('Base original'!$AU40) -> 1.265337281 | AQ48: =('Base original'!AN52/'Base original'!AN40*100-100)*'Base original'!AN40/('Base original'!$AU40) -> -0.8014916306 | AR48: =('Base original'!AO52/'Base original'!AO40*100-100)*'Base original'!AO40/('Base original'!$AU40) -> 0.2286441083 | AS48: =('Base original'!AP52/'Base original'!AP40*100-100)*'Base original'!AP40/('Base original'!$AU40) -> 3.744665899 | AT48: =('Base original'!AQ52/'Base original'!AQ40*100-100)*'Base original'!AQ40/('Base original'!$AU40) -> -1.016773421 | AU48: =('Base original'!AR52/'Base original'!AR40*100-100)*'Base original'!AR40/('Base original'!$AU40) -> -0.1867012767 | AV48: =-('Base original'!AS52/'Base original'!AS40*100-100)*'Base original'!AS40/('Base original'!$AU40) -> -0.4533290112 | AW48: =-('Base original'!AT52/'Base original'!AT40*100-100)*'Base original'!AT40/('Base original'!$AU40) -> 0.05196457006 | AX48: =(('Base original'!AQ52-'Base original'!AS52)/('Base original'!AQ40-'Base original'!AS40)*100-100)*(('Base original'!AQ40-'Base original'!AS40)/'Base original'!AU40) -> -1.470102432 | AY48: =(('Base original'!AR52-'Base original'!AT52)/('Base original'!AR40-'Base original'!AT40)*100-100)*(('Base original'!AR40-'Base original'!AT40)/'Base original'!AU40) -> -0.1347367067 | AZ48: =('Base original'!AU52/'Base original'!AU40*100-100)*'Base original'!AU40/('Base original'!$AU40) -> 7.018557538
A49: 2009-07-01 | B49: ='Base original'!B53/'Base original'!B41*100-100 -> 1.768445658 | C49: ='Base original'!C53/'Base original'!C41*100-100 -> -0.2000263149 | D49: ='Base original'!D53/'Base original'!D41*100-100 -> 9.231442079 | E49: ='Base original'!E53/'Base original'!E41*100-100 -> -19.89023915 | F49: ='Base original'!F53/'Base original'!F41*100-100 -> 1.082394406 | G49: ='Base original'!H53 -> 24.23 | H49: ='Base original'!I53 -> 36.83 | I49: ='Base original'!J53 -> 22.73 | J49: ='Base original'!K53 -> 25.36 | K49: ='Base original'!G53 -> 27.90935239 | L49: ='Base original'!M53 -> 5.11 | M49: ='Base original'!N53 -> 4.82 | N49: ='Base original'!O53 -> 4.52 | O49: ='Base original'!P53 -> 8.7 | P49: ='Base original'!Q53 -> 12.15 | Q49: ='Base original'!L53 -> 7.240847234 | R49: ='Base original'!S53 -> 2.38 | S49: ='Base original'!T53 -> 2.64 | T49: ='Base original'!U53 -> 3.09 | U49: ='Base original'!V53 -> 3.91 | V49: ='Base original'!W53 -> 2.64 | W49: ='Base original'!R53 -> 2.713315794 | X49: ='Base original'!X53 -> 4.62 | Y49: =('Base original'!Z53/'Base original'!Z41*100-100)*'Base original'!Z41/'Base original'!$AC41 -> 2.337617961 | Z49: =('Base original'!AA53/'Base original'!AA41*100-100)*'Base original'!AA41/'Base original'!$AC41 -> 9.510266022 | AA49: =('Base original'!AB53/'Base original'!AB41*100-100)*'Base original'!AB41/'Base original'!$AC41 -> 4.753625519 | AB49: =('Base original'!AC53/'Base original'!AC41*100-100)*'Base original'!AC41/'Base original'!$AC41 -> 16.6015095 | AC49: =('Base original'!AC53/'Base original'!AC41*100-100)*'Base original'!AC41/('Base original'!$AJ41) -> 3.307153454 | AD49: =('Base original'!AD53/'Base original'!AD41*100-100)*'Base original'!AD41/('Base original'!$AJ41) -> -0.5219292362 | AE49: =('Base original'!AE53/'Base original'!AE41*100-100)*'Base original'!AE41/('Base original'!$AJ41) -> 0.2836876593 | AF49: =('Base original'!AF53/'Base original'!AF41*100-100)*'Base original'!AF41/('Base original'!$AJ41) -> 7.448953239 | AG49: =('Base original'!AG53/'Base original'!AG41*100-100)*'Base original'!AG41/('Base original'!$AJ41) -> 0.1199216005 | AH49: =-('Base original'!AH53/'Base original'!AH41*100-100)*'Base original'!AH41/('Base original'!$AJ41) -> -6.553445193 | AI49: =-('Base original'!AI53/'Base original'!AI41*100-100)*'Base original'!AI41/('Base original'!$AJ41) -> -0.001001015029 | AJ49: =(('Base original'!AF53-'Base original'!AH53)/('Base original'!AF41-'Base original'!AH41)*100-100)*(('Base original'!AF41-'Base original'!AH41)/'Base original'!AJ41) -> 0.8955080452 | AK49: =(('Base original'!AG53-'Base original'!AI53)/('Base original'!AG41-'Base original'!AI41)*100-100)*(('Base original'!AG41-'Base original'!AI41)/'Base original'!AJ41) -> 0.1189205855 | AL49: =('Base original'!AJ53/'Base original'!AJ41*100-100)*'Base original'!AJ41/('Base original'!$AJ41) -> 4.08354071 | AM49: =('Base original'!AJ53/'Base original'!AJ41*100-100)*'Base original'!AJ41/('Base original'!$AU41) -> 2.503786921 | AN49: =('Base original'!AK53/'Base original'!AK41*100-100)*'Base original'!AK41/('Base original'!$AU41) -> -0.8474846743 | AO49: =('Base original'!AL53/'Base original'!AL41*100-100)*'Base original'!AL41/('Base original'!$AU41) -> 1.255882923 | AP49: =('Base original'!AM53/'Base original'!AM41*100-100)*'Base original'!AM41/('Base original'!$AU41) -> 1.341196053 | AQ49: =('Base original'!AN53/'Base original'!AN41*100-100)*'Base original'!AN41/('Base original'!$AU41) -> -0.814341444 | AR49: =('Base original'!AO53/'Base original'!AO41*100-100)*'Base original'!AO41/('Base original'!$AU41) -> 0.2321253649 | AS49: =('Base original'!AP53/'Base original'!AP41*100-100)*'Base original'!AP41/('Base original'!$AU41) -> 3.533682115 | AT49: =('Base original'!AQ53/'Base original'!AQ41*100-100)*'Base original'!AQ41/('Base original'!$AU41) -> -0.6590592724 | AU49: =('Base original'!AR53/'Base original'!AR41*100-100)*'Base original'!AR41/('Base original'!$AU41) -> -0.1362555024 | AV49: =-('Base original'!AS53/'Base original'!AS41*100-100)*'Base original'!AS41/('Base original'!$AU41) -> -0.4964119384 | AW49: =-('Base original'!AT53/'Base original'!AT41*100-100)*'Base original'!AT41/('Base original'!$AU41) -> 0.06984628906 | AX49: =(('Base original'!AQ53-'Base original'!AS53)/('Base original'!AQ41-'Base original'!AS41)*100-100)*(('Base original'!AQ41-'Base original'!AS41)/'Base original'!AU41) -> -1.155471211 | AY49: =(('Base original'!AR53-'Base original'!AT53)/('Base original'!AR41-'Base original'!AT41)*100-100)*(('Base original'!AR41-'Base original'!AT41)/'Base original'!AU41) -> -0.06640921333 | AZ49: =('Base original'!AU53/'Base original'!AU41*100-100)*'Base original'!AU41/('Base original'!$AU41) -> 5.982966835
A50: 2009-08-01 | B50: ='Base original'!B54/'Base original'!B42*100-100 -> 1.47751355 | C50: ='Base original'!C54/'Base original'!C42*100-100 -> -0.8235564826 | D50: ='Base original'!D54/'Base original'!D42*100-100 -> 7.815388836 | E50: ='Base original'!E54/'Base original'!E42*100-100 -> -19.64061604 | F50: ='Base original'!F54/'Base original'!F42*100-100 -> 0.592747986 | G50: ='Base original'!H54 -> 21.67 | H50: ='Base original'!I54 -> 35.27 | I50: ='Base original'!J54 -> 19.58 | J50: ='Base original'!K54 -> 21.54 | K50: ='Base original'!G54 -> 24.57374351 | L50: ='Base original'!M54 -> 4.87 | M50: ='Base original'!N54 -> 3.94 | N50: ='Base original'!O54 -> 4.25 | O50: ='Base original'!P54 -> 7.82 | P50: ='Base original'!Q54 -> 7.89 | Q50: ='Base original'!L54 -> 5.987396699 | R50: ='Base original'!S54 -> 3.87 | S50: ='Base original'!T54 -> 3.5 | T50: ='Base original'!U54 -> 2.81 | U50: ='Base original'!V54 -> 3.27 | V50: ='Base original'!W54 -> 2.96 | W50: ='Base original'!R54 -> 3.394973906 | X50: ='Base original'!X54 -> 4.56 | Y50: =('Base original'!Z54/'Base original'!Z42*100-100)*'Base original'!Z42/'Base original'!$AC42 -> 2.720939708 | Z50: =('Base original'!AA54/'Base original'!AA42*100-100)*'Base original'!AA42/'Base original'!$AC42 -> 10.31035408 | AA50: =('Base original'!AB54/'Base original'!AB42*100-100)*'Base original'!AB42/'Base original'!$AC42 -> 3.717690083 | AB50: =('Base original'!AC54/'Base original'!AC42*100-100)*'Base original'!AC42/'Base original'!$AC42 -> 16.74997764 | AC50: =('Base original'!AC54/'Base original'!AC42*100-100)*'Base original'!AC42/('Base original'!$AJ42) -> 3.361768583 | AD50: =('Base original'!AD54/'Base original'!AD42*100-100)*'Base original'!AD42/('Base original'!$AJ42) -> -0.7694869887 | AE50: =('Base original'!AE54/'Base original'!AE42*100-100)*'Base original'!AE42/('Base original'!$AJ42) -> 0.2576923767 | AF50: =('Base original'!AF54/'Base original'!AF42*100-100)*'Base original'!AF42/('Base original'!$AJ42) -> 7.819328125 | AG50: =('Base original'!AG54/'Base original'!AG42*100-100)*'Base original'!AG42/('Base original'!$AJ42) -> 0.08815791836 | AH50: =-('Base original'!AH54/'Base original'!AH42*100-100)*'Base original'!AH42/('Base original'!$AJ42) -> -7.15056455 | AI50: =-('Base original'!AI54/'Base original'!AI42*100-100)*'Base original'!AI42/('Base original'!$AJ42) -> 0.005584664511 | AJ50: =(('Base original'!AF54-'Base original'!AH54)/('Base original'!AF42-'Base original'!AH42)*100-100)*(('Base original'!AF42-'Base original'!AH42)/'Base original'!AJ42) -> 0.6687635752 | AK50: =(('Base original'!AG54-'Base original'!AI54)/('Base original'!AG42-'Base original'!AI42)*100-100)*(('Base original'!AG42-'Base original'!AI42)/'Base original'!AJ42) -> 0.09374258287 | AL50: =('Base original'!AJ54/'Base original'!AJ42*100-100)*'Base original'!AJ42/('Base original'!$AJ42) -> 3.61248013 | AM50: =('Base original'!AJ54/'Base original'!AJ42*100-100)*'Base original'!AJ42/('Base original'!$AU42) -> 2.185760696 | AN50: =('Base original'!AK54/'Base original'!AK42*100-100)*'Base original'!AK42/('Base original'!$AU42) -> -0.8255735932 | AO50: =('Base original'!AL54/'Base original'!AL42*100-100)*'Base original'!AL42/('Base original'!$AU42) -> -0.1557982033 | AP50: =('Base original'!AM54/'Base original'!AM42*100-100)*'Base original'!AM42/('Base original'!$AU42) -> 1.302501943 | AQ50: =('Base original'!AN54/'Base original'!AN42*100-100)*'Base original'!AN42/('Base original'!$AU42) -> -0.842830869 | AR50: =('Base original'!AO54/'Base original'!AO42*100-100)*'Base original'!AO42/('Base original'!$AU42) -> 0.2146901655 | AS50: =('Base original'!AP54/'Base original'!AP42*100-100)*'Base original'!AP42/('Base original'!$AU42) -> 3.178476436 | AT50: =('Base original'!AQ54/'Base original'!AQ42*100-100)*'Base original'!AQ42/('Base original'!$AU42) -> -0.09437195584 | AU50: =('Base original'!AR54/'Base original'!AR42*100-100)*'Base original'!AR42/('Base original'!$AU42) -> -0.08073508754 | AV50: =-('Base original'!AS54/'Base original'!AS42*100-100)*'Base original'!AS42/('Base original'!$AU42) -> -0.5733518698 | AW50: =-('Base original'!AT54/'Base original'!AT42*100-100)*'Base original'!AT42/('Base original'!$AU42) -> 0.07880420353 | AX50: =(('Base original'!AQ54-'Base original'!AS54)/('Base original'!AQ42-'Base original'!AS42)*100-100)*(('Base original'!AQ42-'Base original'!AS42)/'Base original'!AU42) -> -0.6677238257 | AY50: =(('Base original'!AR54-'Base original'!AT54)/('Base original'!AR42-'Base original'!AT42)*100-100)*(('Base original'!AR42-'Base original'!AT42)/'Base original'!AU42) -> -0.001930884007 | AZ50: =('Base original'!AU54/'Base original'!AU42*100-100)*'Base original'!AU42/('Base original'!$AU42) -> 4.387571865
A51: 2009-09-01 | B51: ='Base original'!B55/'Base original'!B43*100-100 -> 0.190409256 | C51: ='Base original'!C55/'Base original'!C43*100-100 -> -0.8847249328 | D51: ='Base original'!D55/'Base original'!D43*100-100 -> 6.790161495 | E51: ='Base original'!E55/'Base original'!E43*100-100 -> -27.82090243 | F51: ='Base original'!F55/'Base original'!F43*100-100 -> -1.312811188 | G51: ='Base original'!H55 -> 20.52 | H51: ='Base original'!I55 -> 34.33 | I51: ='Base original'!J55 -> 20.8 | J51: ='Base original'!K55 -> 24.63 | K51: ='Base original'!G55 -> 26.52326424 | L51: ='Base original'!M55 -> 4.05 | M51: ='Base original'!N55 -> 3.72 | N51: ='Base original'!O55 -> 4.43 | O51: ='Base original'!P55 -> 7.88 | P51: ='Base original'!Q55 -> 9.41 | Q51: ='Base original'!L55 -> 5.774980921 | R51: ='Base original'!S55 -> 2.14 | S51: ='Base original'!T55 -> 2.26 | T51: ='Base original'!U55 -> 2.94 | U51: ='Base original'!V55 -> 3.21 | V51: ='Base original'!W55 -> 3.03 | W51: ='Base original'!R55 -> 2.545047012 | X51: ='Base original'!X55 -> 4.49 | Y51: =('Base original'!Z55/'Base original'!Z43*100-100)*'Base original'!Z43/'Base original'!$AC43 -> 2.919564812 | Z51: =('Base original'!AA55/'Base original'!AA43*100-100)*'Base original'!AA43/'Base original'!$AC43 -> 11.69493687 | AA51: =('Base original'!AB55/'Base original'!AB43*100-100)*'Base original'!AB43/'Base original'!$AC43 -> 6.027488645 | AB51: =('Base original'!AC55/'Base original'!AC43*100-100)*'Base original'!AC43/'Base original'!$AC43 -> 20.64199033 | AC51: =('Base original'!AC55/'Base original'!AC43*100-100)*'Base original'!AC43/('Base original'!$AJ43) -> 4.140282801 | AD51: =('Base original'!AD55/'Base original'!AD43*100-100)*'Base original'!AD43/('Base original'!$AJ43) -> -1.953553902 | AE51: =('Base original'!AE55/'Base original'!AE43*100-100)*'Base original'!AE43/('Base original'!$AJ43) -> 0.2298298708 | AF51: =('Base original'!AF55/'Base original'!AF43*100-100)*'Base original'!AF43/('Base original'!$AJ43) -> 6.194977588 | AG51: =('Base original'!AG55/'Base original'!AG43*100-100)*'Base original'!AG43/('Base original'!$AJ43) -> 0.07024765743 | AH51: =-('Base original'!AH55/'Base original'!AH43*100-100)*'Base original'!AH43/('Base original'!$AJ43) -> -5.903558034 | AI51: =-('Base original'!AI55/'Base original'!AI43*100-100)*'Base original'!AI43/('Base original'!$AJ43) -> 0.002558037946 | AJ51: =(('Base original'!AF55-'Base original'!AH55)/('Base original'!AF43-'Base original'!AH43)*100-100)*(('Base original'!AF43-'Base original'!AH43)/'Base original'!AJ43) -> 0.2914195536 | AK51: =(('Base original'!AG55-'Base original'!AI55)/('Base original'!AG43-'Base original'!AI43)*100-100)*(('Base original'!AG43-'Base original'!AI43)/'Base original'!AJ43) -> 0.07280569537 | AL51: =('Base original'!AJ55/'Base original'!AJ43*100-100)*'Base original'!AJ43/('Base original'!$AJ43) -> 2.780784019 | AM51: =('Base original'!AJ55/'Base original'!AJ43*100-100)*'Base original'!AJ43/('Base original'!$AU43) -> 1.667197546 | AN51: =('Base original'!AK55/'Base original'!AK43*100-100)*'Base original'!AK43/('Base original'!$AU43) -> -1.004895889 | AO51: =('Base original'!AL55/'Base original'!AL43*100-100)*'Base original'!AL43/('Base original'!$AU43) -> -0.4623370495 | AP51: =('Base original'!AM55/'Base original'!AM43*100-100)*'Base original'!AM43/('Base original'!$AU43) -> 1.257712499 | AQ51: =('Base original'!AN55/'Base original'!AN43*100-100)*'Base original'!AN43/('Base original'!$AU43) -> -0.8269922728 | AR51: =('Base original'!AO55/'Base original'!AO43*100-100)*'Base original'!AO43/('Base original'!$AU43) -> 0.1762519908 | AS51: =('Base original'!AP55/'Base original'!AP43*100-100)*'Base original'!AP43/('Base original'!$AU43) -> 2.163156963 | AT51: =('Base original'!AQ55/'Base original'!AQ43*100-100)*'Base original'!AQ43/('Base original'!$AU43) -> 0.8602607208 | AU51: =('Base original'!AR55/'Base original'!AR43*100-100)*'Base original'!AR43/('Base original'!$AU43) -> -0.001415678641 | AV51: =-('Base original'!AS55/'Base original'!AS43*100-100)*'Base original'!AS43/('Base original'!$AU43) -> -0.9772901551 | AW51: =-('Base original'!AT55/'Base original'!AT43*100-100)*'Base original'!AT43/('Base original'!$AU43) -> 0.08352503982 | AX51: =(('Base original'!AQ55-'Base original'!AS55)/('Base original'!AQ43-'Base original'!AS43)*100-100)*(('Base original'!AQ43-'Base original'!AS43)/'Base original'!AU43) -> -0.1170294343 | AY51: =(('Base original'!AR55-'Base original'!AT55)/('Base original'!AR43-'Base original'!AT43)*100-100)*(('Base original'!AR43-'Base original'!AT43)/'Base original'!AU43) -> 0.08210936118 | AZ51: =('Base original'!AU55/'Base original'!AU43*100-100)*'Base original'!AU43/('Base original'!$AU43) -> 2.935173716
A52: 2009-10-01 | B52: ='Base original'!B56/'Base original'!B44*100-100 -> -3.124849522 | C52: ='Base original'!C56/'Base original'!C44*100-100 -> -0.301030871 | D52: ='Base original'!D56/'Base original'!D44*100-100 -> 6.665499943 | E52: ='Base original'!E56/'Base original'!E44*100-100 -> -38.26890364 | F52: ='Base original'!F56/'Base original'!F44*100-100 -> -4.686929542 | G52: ='Base original'!H56 -> 19.94 | H52: ='Base original'!I56 -> 34.49 | I52: ='Base original'!J56 -> 21.97 | J52: ='Base original'!K56 -> 24.64 | K52: ='Base original'!G56 -> 26.66781426 | L52: ='Base original'!M56 -> 3.81 | M52: ='Base original'!N56 -> 3.61 | N52: ='Base original'!O56 -> 4.26 | O52: ='Base original'!P56 -> 8.15 | P52: ='Base original'!Q56 -> 8.59 | Q52: ='Base original'!L56 -> 5.613465454 | R52: ='Base original'!S56 -> 2.61 | S52: ='Base original'!T56 -> 2.38 | T52: ='Base original'!U56 -> 3.24 | U52: ='Base original'!V56 -> 2.94 | V52: ='Base original'!W56 -> 3.46 | W52: ='Base original'!R56 -> 2.660928912 | X52: ='Base original'!X56 -> 4.35 | Y52: =('Base original'!Z56/'Base original'!Z44*100-100)*'Base original'!Z44/'Base original'!$AC44 -> 2.546920751 | Z52: =('Base original'!AA56/'Base original'!AA44*100-100)*'Base original'!AA44/'Base original'!$AC44 -> 9.66063457 | AA52: =('Base original'!AB56/'Base original'!AB44*100-100)*'Base original'!AB44/'Base original'!$AC44 -> 6.298660779 | AB52: =('Base original'!AC56/'Base original'!AC44*100-100)*'Base original'!AC44/'Base original'!$AC44 -> 18.5062161 | AC52: =('Base original'!AC56/'Base original'!AC44*100-100)*'Base original'!AC44/('Base original'!$AJ44) -> 3.657576327 | AD52: =('Base original'!AD56/'Base original'!AD44*100-100)*'Base original'!AD44/('Base original'!$AJ44) -> -6.998859676 | AE52: =('Base original'!AE56/'Base original'!AE44*100-100)*'Base original'!AE44/('Base original'!$AJ44) -> 0.2022605366 | AF52: =('Base original'!AF56/'Base original'!AF44*100-100)*'Base original'!AF44/('Base original'!$AJ44) -> 6.82809562 | AG52: =('Base original'!AG56/'Base original'!AG44*100-100)*'Base original'!AG44/('Base original'!$AJ44) -> 0.06052637071 | AH52: =-('Base original'!AH56/'Base original'!AH44*100-100)*'Base original'!AH44/('Base original'!$AJ44) -> -6.287911992 | AI52: =-('Base original'!AI56/'Base original'!AI44*100-100)*'Base original'!AI44/('Base original'!$AJ44) -> -0.01271243523 | AJ52: =(('Base original'!AF56-'Base original'!AH56)/('Base original'!AF44-'Base original'!AH44)*100-100)*(('Base original'!AF44-'Base original'!AH44)/'Base original'!AJ44) -> 0.5401836283 | AK52: =(('Base original'!AG56-'Base original'!AI56)/('Base original'!AG44-'Base original'!AI44)*100-100)*(('Base original'!AG44-'Base original'!AI44)/'Base original'!AJ44) -> 0.04781393549 | AL52: =('Base original'!AJ56/'Base original'!AJ44*100-100)*'Base original'!AJ44/('Base original'!$AJ44) -> -2.551214986 | AM52: =('Base original'!AJ56/'Base original'!AJ44*100-100)*'Base original'!AJ44/('Base original'!$AU44) -> -1.549629995 | AN52: =('Base original'!AK56/'Base original'!AK44*100-100)*'Base original'!AK44/('Base original'!$AU44) -> -1.479904713 | AO52: =('Base original'!AL56/'Base original'!AL44*100-100)*'Base original'!AL44/('Base original'!$AU44) -> -0.4419776165 | AP52: =('Base original'!AM56/'Base original'!AM44*100-100)*'Base original'!AM44/('Base original'!$AU44) -> 1.226703976 | AQ52: =('Base original'!AN56/'Base original'!AN44*100-100)*'Base original'!AN44/('Base original'!$AU44) -> -0.8573328524 | AR52: =('Base original'!AO56/'Base original'!AO44*100-100)*'Base original'!AO44/('Base original'!$AU44) -> 0.1457892268 | AS52: =('Base original'!AP56/'Base original'!AP44*100-100)*'Base original'!AP44/('Base original'!$AU44) -> 1.393353164 | AT52: =('Base original'!AQ56/'Base original'!AQ44*100-100)*'Base original'!AQ44/('Base original'!$AU44) -> 2.092910956 | AU52: =('Base original'!AR56/'Base original'!AR44*100-100)*'Base original'!AR44/('Base original'!$AU44) -> 0.111329955 | AV52: =-('Base original'!AS56/'Base original'!AS44*100-100)*'Base original'!AS44/('Base original'!$AU44) -> -1.577865853 | AW52: =-('Base original'!AT56/'Base original'!AT44*100-100)*'Base original'!AT44/('Base original'!$AU44) -> 0.08712779088 | AX52: =(('Base original'!AQ56-'Base original'!AS56)/('Base original'!AQ44-'Base original'!AS44)*100-100)*(('Base original'!AQ44-'Base original'!AS44)/'Base original'!AU44) -> 0.5150451025 | AY52: =(('Base original'!AR56-'Base original'!AT56)/('Base original'!AR44-'Base original'!AT44)*100-100)*(('Base original'!AR44-'Base original'!AT44)/'Base original'!AU44) -> 0.1984577459 | AZ52: =('Base original'!AU56/'Base original'!AU44*100-100)*'Base original'!AU44/('Base original'!$AU44) -> -0.8493807127
A53: 2009-11-01 | B53: ='Base original'!B57/'Base original'!B45*100-100 -> -4.158929895 | C53: ='Base original'!C57/'Base original'!C45*100-100 -> -0.2367642625 | D53: ='Base original'!D57/'Base original'!D45*100-100 -> 6.886516476 | E53: ='Base original'!E57/'Base original'!E45*100-100 -> -42.58371947 | F53: ='Base original'!F57/'Base original'!F45*100-100 -> -5.625516256 | G53: ='Base original'!H57 -> 19.46 | H53: ='Base original'!I57 -> 34.85 | I53: ='Base original'!J57 -> 22.24 | J53: ='Base original'!K57 -> 25.47 | K53: ='Base original'!G57 -> 27.25833994 | L53: ='Base original'!M57 -> 3.09 | M53: ='Base original'!N57 -> 3.58 | N53: ='Base original'!O57 -> 4.21 | O53: ='Base original'!P57 -> 7.4 | P53: ='Base original'!Q57 -> 8.59 | Q53: ='Base original'!L57 -> 5.247571939 | R53: ='Base original'!S57 -> 2.567053807 | S53: ='Base original'!T57 -> 2.17 | T53: ='Base original'!U57 -> 2.94 | U53: ='Base original'!V57 -> 2.73 | V53: ='Base original'!W57 -> 4.74 | W53: ='Base original'!R57 -> 2.546599361 | X53: ='Base original'!X57 -> 4.28 | Y53: =('Base original'!Z57/'Base original'!Z45*100-100)*'Base original'!Z45/'Base original'!$AC45 -> 2.473061812 | Z53: =('Base original'!AA57/'Base original'!AA45*100-100)*'Base original'!AA45/'Base original'!$AC45 -> 11.49006107 | AA53: =('Base original'!AB57/'Base original'!AB45*100-100)*'Base original'!AB45/'Base original'!$AC45 -> 5.871941495 | AB53: =('Base original'!AC57/'Base original'!AC45*100-100)*'Base original'!AC45/'Base original'!$AC45 -> 19.83506438 | AC53: =('Base original'!AC57/'Base original'!AC45*100-100)*'Base original'!AC45/('Base original'!$AJ45) -> 3.81207281 | AD53: =('Base original'!AD57/'Base original'!AD45*100-100)*'Base original'!AD45/('Base original'!$AJ45) -> -8.748927644 | AE53: =('Base original'!AE57/'Base original'!AE45*100-100)*'Base original'!AE45/('Base original'!$AJ45) -> 0.1343832296 | AF53: =('Base original'!AF57/'Base original'!AF45*100-100)*'Base original'!AF45/('Base original'!$AJ45) -> 5.976409108 | AG53: =('Base original'!AG57/'Base original'!AG45*100-100)*'Base original'!AG45/('Base original'!$AJ45) -> 0.03252111536 | AH53: =-('Base original'!AH57/'Base original'!AH45*100-100)*'Base original'!AH45/('Base original'!$AJ45) -> -5.36691855 | AI53: =-('Base original'!AI57/'Base original'!AI45*100-100)*'Base original'!AI45/('Base original'!$AJ45) -> -0.0102796629 | AJ53: =(('Base original'!AF57-'Base original'!AH57)/('Base original'!AF45-'Base original'!AH45)*100-100)*(('Base original'!AF45-'Base original'!AH45)/'Base original'!AJ45) -> 0.6094905586 | AK53: =(('Base original'!AG57-'Base original'!AI57)/('Base original'!AG45-'Base original'!AI45)*100-100)*(('Base original'!AG45-'Base original'!AI45)/'Base original'!AJ45) -> 0.02224145246 | AL53: =('Base original'!AJ57/'Base original'!AJ45*100-100)*'Base original'!AJ45/('Base original'!$AJ45) -> -4.170739594 | AM53: =('Base original'!AJ57/'Base original'!AJ45*100-100)*'Base original'!AJ45/('Base original'!$AU45) -> -2.552254596 | AN53: =('Base original'!AK57/'Base original'!AK45*100-100)*'Base original'!AK45/('Base original'!$AU45) -> -1.705658651 | AO53: =('Base original'!AL57/'Base original'!AL45*100-100)*'Base original'!AL45/('Base original'!$AU45) -> -0.06839561948 | AP53: =('Base original'!AM57/'Base original'!AM45*100-100)*'Base original'!AM45/('Base original'!$AU45) -> 1.261658994 | AQ53: =('Base original'!AN57/'Base original'!AN45*100-100)*'Base original'!AN45/('Base original'!$AU45) -> -1.089183084 | AR53: =('Base original'!AO57/'Base original'!AO45*100-100)*'Base original'!AO45/('Base original'!$AU45) -> 0.0534126326 | AS53: =('Base original'!AP57/'Base original'!AP45*100-100)*'Base original'!AP45/('Base original'!$AU45) -> 1.413204472 | AT53: =('Base original'!AQ57/'Base original'!AQ45*100-100)*'Base original'!AQ45/('Base original'!$AU45) -> 2.649243702 | AU53: =('Base original'!AR57/'Base original'!AR45*100-100)*'Base original'!AR45/('Base original'!$AU45) -> 0.1711034226 | AV53: =-('Base original'!AS57/'Base original'!AS45*100-100)*'Base original'!AS45/('Base original'!$AU45) -> -1.491550625 | AW53: =-('Base original'!AT57/'Base original'!AT45*100-100)*'Base original'!AT45/('Base original'!$AU45) -> 0.08189174506 | AX53: =(('Base original'!AQ57-'Base original'!AS57)/('Base original'!AQ45-'Base original'!AS45)*100-100)*(('Base original'!AQ45-'Base original'!AS45)/'Base original'!AU45) -> 1.157693078 | AY53: =(('Base original'!AR57-'Base original'!AT57)/('Base original'!AR45-'Base original'!AT45)*100-100)*(('Base original'!AR45-'Base original'!AT45)/'Base original'!AU45) -> 0.2529951677 | AZ53: =('Base original'!AU57/'Base original'!AU45*100-100)*'Base original'!AU45/('Base original'!$AU45) -> -1.276527607
A54: 2009-12-01 | B54: ='Base original'!B58/'Base original'!B46*100-100 -> 0.5395345086 | C54: ='Base original'!C58/'Base original'!C46*100-100 -> 0.8077955756 | D54: ='Base original'!D58/'Base original'!D46*100-100 -> 7.131900088 | E54: ='Base original'!E58/'Base original'!E46*100-100 -> -40.92991794 | F54: ='Base original'!F58/'Base original'!F46*100-100 -> -2.339024026 | G54: ='Base original'!H58 -> 19.81603166 | H54: ='Base original'!I58 -> 34.00043454 | I54: ='Base original'!J58 -> 21.09527283 | J54: ='Base original'!K58 -> 25.12893744 | K54: ='Base original'!G58 -> 26.55652398 | L54: ='Base original'!M58 -> 2.593973225 | M54: ='Base original'!N58 -> 3.447734223 | N54: ='Base original'!O58 -> 4.58394152 | O54: ='Base original'!P58 -> 7.11282064 | P54: ='Base original'!Q58 -> 6.453405703 | Q54: ='Base original'!L58 -> 4.739766636 | R54: ='Base original'!S58 -> 2.561267104 | S54: ='Base original'!T58 -> 1.546123714 | T54: ='Base original'!U58 -> 2.695759656 | U54: ='Base original'!V58 -> 2.809611722 | V54: ='Base original'!W58 -> 2.087222085 | W54: ='Base original'!R58 -> 2.220797364 | X54: ='Base original'!X58 -> 4.541432542 | Y54: =('Base original'!Z58/'Base original'!Z46*100-100)*'Base original'!Z46/'Base original'!$AC46 -> 2.495419974 | Z54: =('Base original'!AA58/'Base original'!AA46*100-100)*'Base original'!AA46/'Base original'!$AC46 -> 15.13906623 | AA54: =('Base original'!AB58/'Base original'!AB46*100-100)*'Base original'!AB46/'Base original'!$AC46 -> 5.230481689 | AB54: =('Base original'!AC58/'Base original'!AC46*100-100)*'Base original'!AC46/'Base original'!$AC46 -> 22.86589315 | AC54: =('Base original'!AC58/'Base original'!AC46*100-100)*'Base original'!AC46/('Base original'!$AJ46) -> 4.526356277 | AD54: =('Base original'!AD58/'Base original'!AD46*100-100)*'Base original'!AD46/('Base original'!$AJ46) -> -10.37437269 | AE54: =('Base original'!AE58/'Base original'!AE46*100-100)*'Base original'!AE46/('Base original'!$AJ46) -> 0.1181361955 | AF54: =('Base original'!AF58/'Base original'!AF46*100-100)*'Base original'!AF46/('Base original'!$AJ46) -> 5.377852669 | AG54: =('Base original'!AG58/'Base original'!AG46*100-100)*'Base original'!AG46/('Base original'!$AJ46) -> 0.006776805011 | AH54: =-('Base original'!AH58/'Base original'!AH46*100-100)*'Base original'!AH46/('Base original'!$AJ46) -> -4.930034067 | AI54: =-('Base original'!AI58/'Base original'!AI46*100-100)*'Base original'!AI46/('Base original'!$AJ46) -> -0.003296824059 | AJ54: =(('Base original'!AF58-'Base original'!AH58)/('Base original'!AF46-'Base original'!AH46)*100-100)*(('Base original'!AF46-'Base original'!AH46)/'Base original'!AJ46) -> 0.4478186014 | AK54: =(('Base original'!AG58-'Base original'!AI58)/('Base original'!AG46-'Base original'!AI46)*100-100)*(('Base original'!AG46-'Base original'!AI46)/'Base original'!AJ46) -> 0.003479980952 | AL54: =('Base original'!AJ58/'Base original'!AJ46*100-100)*'Base original'!AJ46/('Base original'!$AJ46) -> -5.278581633 | AM54: =('Base original'!AJ58/'Base original'!AJ46*100-100)*'Base original'!AJ46/('Base original'!$AU46) -> -3.265674273 | AN54: =('Base original'!AK58/'Base original'!AK46*100-100)*'Base original'!AK46/('Base original'!$AU46) -> -1.448817185 | AO54: =('Base original'!AL58/'Base original'!AL46*100-100)*'Base original'!AL46/('Base original'!$AU46) -> -0.1316694485 | AP54: =('Base original'!AM58/'Base original'!AM46*100-100)*'Base original'!AM46/('Base original'!$AU46) -> 1.264004043 | AQ54: =('Base original'!AN58/'Base original'!AN46*100-100)*'Base original'!AN46/('Base original'!$AU46) -> -0.9649716208 | AR54: =('Base original'!AO58/'Base original'!AO46*100-100)*'Base original'!AO46/('Base original'!$AU46) -> -0.007365330596 | AS54: =('Base original'!AP58/'Base original'!AP46*100-100)*'Base original'!AP46/('Base original'!$AU46) -> 1.363039411 | AT54: =('Base original'!AQ58/'Base original'!AQ46*100-100)*'Base original'!AQ46/('Base original'!$AU46) -> 2.784208278 | AU54: =('Base original'!AR58/'Base original'!AR46*100-100)*'Base original'!AR46/('Base original'!$AU46) -> 0.1861728949 | AV54: =-('Base original'!AS58/'Base original'!AS46*100-100)*'Base original'!AS46/('Base original'!$AU46) -> -1.267176801 | AW54: =-('Base original'!AT58/'Base original'!AT46*100-100)*'Base original'!AT46/('Base original'!$AU46) -> 0.07739262764 | AX54: =(('Base original'!AQ58-'Base original'!AS58)/('Base original'!AQ46-'Base original'!AS46)*100-100)*(('Base original'!AQ46-'Base original'!AS46)/'Base original'!AU46) -> 1.517031477 | AY54: =(('Base original'!AR58-'Base original'!AT58)/('Base original'!AR46-'Base original'!AT46)*100-100)*(('Base original'!AR46-'Base original'!AT46)/'Base original'!AU46) -> 0.2635655225 | AZ54: =('Base original'!AU58/'Base original'!AU46*100-100)*'Base original'!AU46/('Base original'!$AU46) -> -1.410970717
A55: 2010-01-01 | B55: ='Base original'!B59/'Base original'!B47*100-100 -> 1.702202424 | C55: ='Base original'!C59/'Base original'!C47*100-100 -> 1.406485298 | D55: ='Base original'!D59/'Base original'!D47*100-100 -> 7.481898842 | E55: ='Base original'!E59/'Base original'!E47*100-100 -> -29.95339864 | F55: ='Base original'!F59/'Base original'!F47*100-100 -> -0.271676367 | G55: ='Base original'!H59 -> 22.311541 | H55: ='Base original'!I59 -> 36.91672581 | I55: ='Base original'!J59 -> 25.9464745 | J55: ='Base original'!K59 -> 27.49996571 | K55: ='Base original'!G59 -> 30.35391496 | L55: ='Base original'!M59 -> 3.401414768 | M55: ='Base original'!N59 -> 3.867547044 | N55: ='Base original'!O59 -> 4.972694624 | O55: ='Base original'!P59 -> 10.60487161 | P55: ='Base original'!Q59 -> 13.35882295 | Q55: ='Base original'!L59 -> 7.040624887 | R55: ='Base original'!S59 -> 1.804222465 | S55: ='Base original'!T59 -> 1.23755271 | T55: ='Base original'!U59 -> 2.653003874 | U55: ='Base original'!V59 -> 2.542628365 | V55: ='Base original'!W59 -> 6.517195134 | W55: ='Base original'!R59 -> 1.837065704 | X55: ='Base original'!X59 -> 4.583830998 | Y55: =('Base original'!Z59/'Base original'!Z47*100-100)*'Base original'!Z47/'Base original'!$AC47 -> 2.779741091 | Z55: =('Base original'!AA59/'Base original'!AA47*100-100)*'Base original'!AA47/'Base original'!$AC47 -> 17.13693178 | AA55: =('Base original'!AB59/'Base original'!AB47*100-100)*'Base original'!AB47/'Base original'!$AC47 -> 8.241574288 | AB55: =('Base original'!AC59/'Base original'!AC47*100-100)*'Base original'!AC47/'Base original'!$AC47 -> 28.15917714 | AC55: =('Base original'!AC59/'Base original'!AC47*100-100)*'Base original'!AC47/('Base original'!$AJ47) -> 5.535091776 | AD55: =('Base original'!AD59/'Base original'!AD47*100-100)*'Base original'!AD47/('Base original'!$AJ47) -> -9.493142146 | AE55: =('Base original'!AE59/'Base original'!AE47*100-100)*'Base original'!AE47/('Base original'!$AJ47) -> 0.1860934452 | AF55: =('Base original'!AF59/'Base original'!AF47*100-100)*'Base original'!AF47/('Base original'!$AJ47) -> 3.788591997 | AG55: =('Base original'!AG59/'Base original'!AG47*100-100)*'Base original'!AG47/('Base original'!$AJ47) -> 0.005484089742 | AH55: =-('Base original'!AH59/'Base original'!AH47*100-100)*'Base original'!AH47/('Base original'!$AJ47) -> -3.318971112 | AI55: =-('Base original'!AI59/'Base original'!AI47*100-100)*'Base original'!AI47/('Base original'!$AJ47) -> -0.0001828029914 | AJ55: =(('Base original'!AF59-'Base original'!AH59)/('Base original'!AF47-'Base original'!AH47)*100-100)*(('Base original'!AF47-'Base original'!AH47)/'Base original'!AJ47) -> 0.4696208849 | AK55: =(('Base original'!AG59-'Base original'!AI59)/('Base original'!AG47-'Base original'!AI47)*100-100)*(('Base original'!AG47-'Base original'!AI47)/'Base original'!AJ47) -> 0.00530128675 | AL55: =('Base original'!AJ59/'Base original'!AJ47*100-100)*'Base original'!AJ47/('Base original'!$AJ47) -> -3.29685195 | AM55: =('Base original'!AJ59/'Base original'!AJ47*100-100)*'Base original'!AJ47/('Base original'!$AU47) -> -2.04744719 | AN55: =('Base original'!AK59/'Base original'!AK47*100-100)*'Base original'!AK47/('Base original'!$AU47) -> -1.175110944 | AO55: =('Base original'!AL59/'Base original'!AL47*100-100)*'Base original'!AL47/('Base original'!$AU47) -> -0.259294116 | AP55: =('Base original'!AM59/'Base original'!AM47*100-100)*'Base original'!AM47/('Base original'!$AU47) -> 1.337567108 | AQ55: =('Base original'!AN59/'Base original'!AN47*100-100)*'Base original'!AN47/('Base original'!$AU47) -> -0.9670171981 | AR55: =('Base original'!AO59/'Base original'!AO47*100-100)*'Base original'!AO47/('Base original'!$AU47) -> -0.006016894987 | AS55: =('Base original'!AP59/'Base original'!AP47*100-100)*'Base original'!AP47/('Base original'!$AU47) -> 1.04410157 | AT55: =('Base original'!AQ59/'Base original'!AQ47*100-100)*'Base original'!AQ47/('Base original'!$AU47) -> 2.834184592 | AU55: =('Base original'!AR59/'Base original'!AR47*100-100)*'Base original'!AR47/('Base original'!$AU47) -> 0.2069584823 | AV55: =-('Base original'!AS59/'Base original'!AS47*100-100)*'Base original'!AS47/('Base original'!$AU47) -> -1.169434628 | AW55: =-('Base original'!AT59/'Base original'!AT47*100-100)*'Base original'!AT47/('Base original'!$AU47) -> 0.02338642203 | AX55: =(('Base original'!AQ59-'Base original'!AS59)/('Base original'!AQ47-'Base original'!AS47)*100-100)*(('Base original'!AQ47-'Base original'!AS47)/'Base original'!AU47) -> 1.664749964 | AY55: =(('Base original'!AR59-'Base original'!AT59)/('Base original'!AR47-'Base original'!AT47)*100-100)*(('Base original'!AR47-'Base original'!AT47)/'Base original'!AU47) -> 0.2303449043 | AZ55: =('Base original'!AU59/'Base original'!AU47*100-100)*'Base original'!AU47/('Base original'!$AU47) -> -0.1782363232
A56: 2010-02-01 | B56: ='Base original'!B60/'Base original'!B48*100-100 -> 3.517441588 | C56: ='Base original'!C60/'Base original'!C48*100-100 -> 2.311812815 | D56: ='Base original'!D60/'Base original'!D48*100-100 -> 8.937570741 | E56: ='Base original'!E60/'Base original'!E48*100-100 -> -27.59056686 | F56: ='Base original'!F60/'Base original'!F48*100-100 -> 1.557876943 | G56: ='Base original'!H60 -> 21.22234936 | H56: ='Base original'!I60 -> 35.96424888 | I56: ='Base original'!J60 -> 26.28868658 | J56: ='Base original'!K60 -> 28.00828624 | K56: ='Base original'!G60 -> 29.546126 | L56: ='Base original'!M60 -> 3.259400736 | M56: ='Base original'!N60 -> 3.901088786 | N56: ='Base original'!O60 -> 4.505729052 | O56: ='Base original'!P60 -> 9.229745185 | P56: ='Base original'!Q60 -> 9.554482386 | Q56: ='Base original'!L60 -> 5.62794949 | R56: ='Base original'!S60 -> 1.533644065 | S56: ='Base original'!T60 -> 1.828072385 | T56: ='Base original'!U60 -> 2.60687515 | U56: ='Base original'!V60 -> 2.434598207 | V56: ='Base original'!W60 -> 0 | W56: ='Base original'!R60 -> 1.978243918 | X56: ='Base original'!X60 -> 4.602983966 | Y56: =('Base original'!Z60/'Base original'!Z48*100-100)*'Base original'!Z48/'Base original'!$AC48 -> 3.377249601 | Z56: =('Base original'!AA60/'Base original'!AA48*100-100)*'Base original'!AA48/'Base original'!$AC48 -> 16.2170628 | AA56: =('Base original'!AB60/'Base original'!AB48*100-100)*'Base original'!AB48/'Base original'!$AC48 -> 12.11747285 | AB56: =('Base original'!AC60/'Base original'!AC48*100-100)*'Base original'!AC48/'Base original'!$AC48 -> 31.71083605 | AC56: =('Base original'!AC60/'Base original'!AC48*100-100)*'Base original'!AC48/('Base original'!$AJ48) -> 6.15368746 | AD56: =('Base original'!AD60/'Base original'!AD48*100-100)*'Base original'!AD48/('Base original'!$AJ48) -> -9.173245606 | AE56: =('Base original'!AE60/'Base original'!AE48*100-100)*'Base original'!AE48/('Base original'!$AJ48) -> 0.1711199608 | AF56: =('Base original'!AF60/'Base original'!AF48*100-100)*'Base original'!AF48/('Base original'!$AJ48) -> 1.212759765 | AG56: =('Base original'!AG60/'Base original'!AG48*100-100)*'Base original'!AG48/('Base original'!$AJ48) -> 0.004420752486 | AH56: =-('Base original'!AH60/'Base original'!AH48*100-100)*'Base original'!AH48/('Base original'!$AJ48) -> -0.9359101408 | AI56: =-('Base original'!AI60/'Base original'!AI48*100-100)*'Base original'!AI48/('Base original'!$AJ48) -> 0.0009209901012 | AJ56: =(('Base original'!AF60-'Base original'!AH60)/('Base original'!AF48-'Base original'!AH48)*100-100)*(('Base original'!AF48-'Base original'!AH48)/'Base original'!AJ48) -> 0.2768496244 | AK56: =(('Base original'!AG60-'Base original'!AI60)/('Base original'!AG48-'Base original'!AI48)*100-100)*(('Base original'!AG48-'Base original'!AI48)/'Base original'!AJ48) -> 0.005341742587 | AL56: =('Base original'!AJ60/'Base original'!AJ48*100-100)*'Base original'!AJ48/('Base original'!$AJ48) -> -2.566246818 | AM56: =('Base original'!AJ60/'Base original'!AJ48*100-100)*'Base original'!AJ48/('Base original'!$AU48) -> -1.583127848 | AN56: =('Base original'!AK60/'Base original'!AK48*100-100)*'Base original'!AK48/('Base original'!$AU48) -> -1.106098656 | AO56: =('Base original'!AL60/'Base original'!AL48*100-100)*'Base original'!AL48/('Base original'!$AU48) -> -0.1144279172 | AP56: =('Base original'!AM60/'Base original'!AM48*100-100)*'Base original'!AM48/('Base original'!$AU48) -> 1.357340091 | AQ56: =('Base original'!AN60/'Base original'!AN48*100-100)*'Base original'!AN48/('Base original'!$AU48) -> -1.070190789 | AR56: =('Base original'!AO60/'Base original'!AO48*100-100)*'Base original'!AO48/('Base original'!$AU48) -> -0.05817983478 | AS56: =('Base original'!AP60/'Base original'!AP48*100-100)*'Base original'!AP48/('Base original'!$AU48) -> 0.7925866164 | AT56: =('Base original'!AQ60/'Base original'!AQ48*100-100)*'Base original'!AQ48/('Base original'!$AU48) -> 2.611160983 | AU56: =('Base original'!AR60/'Base original'!AR48*100-100)*'Base original'!AR48/('Base original'!$AU48) -> 0.2189698078 | AV56: =-('Base original'!AS60/'Base original'!AS48*100-100)*'Base original'!AS48/('Base original'!$AU48) -> -0.7742917855 | AW56: =-('Base original'!AT60/'Base original'!AT48*100-100)*'Base original'!AT48/('Base original'!$AU48) -> 0.02238560049 | AX56: =(('Base original'!AQ60-'Base original'!AS60)/('Base original'!AQ48-'Base original'!AS48)*100-100)*(('Base original'!AQ48-'Base original'!AS48)/'Base original'!AU48) -> 1.836869198 | AY56: =(('Base original'!AR60-'Base original'!AT60)/('Base original'!AR48-'Base original'!AT48)*100-100)*(('Base original'!AR48-'Base original'!AT48)/'Base original'!AU48) -> 0.2413554083 | AZ56: =('Base original'!AU60/'Base original'!AU48*100-100)*'Base original'!AU48/('Base original'!$AU48) -> 0.2962399009
A57: 2010-03-01 | B57: ='Base original'!B61/'Base original'!B49*100-100 -> 4.861404973 | C57: ='Base original'!C61/'Base original'!C49*100-100 -> 2.952607812 | D57: ='Base original'!D61/'Base original'!D49*100-100 -> 9.482597953 | E57: ='Base original'!E61/'Base original'!E49*100-100 -> -23.64631771 | F57: ='Base original'!F61/'Base original'!F49*100-100 -> 3.004634872 | G57: ='Base original'!H61 -> 20.89873265 | H57: ='Base original'!I61 -> 34.85762233 | I57: ='Base original'!J61 -> 26.72539264 | J57: ='Base original'!K61 -> 25.3719736 | K57: ='Base original'!G61 -> 27.98245903 | L57: ='Base original'!M61 -> 3.66392238 | M57: ='Base original'!N61 -> 3.761178009 | N57: ='Base original'!O61 -> 3.838209059 | O57: ='Base original'!P61 -> 8.288899942 | P57: ='Base original'!Q61 -> 7.451673948 | Q57: ='Base original'!L61 -> 5.420358692 | R57: ='Base original'!S61 -> 1.71234895 | S57: ='Base original'!T61 -> 2.177729933 | T57: ='Base original'!U61 -> 2.875538322 | U57: ='Base original'!V61 -> 2.435731665 | V57: ='Base original'!W61 -> 1.830059399 | W57: ='Base original'!R61 -> 2.201231503 | X57: ='Base original'!X61 -> 4.275585515 | Y57: =('Base original'!Z61/'Base original'!Z49*100-100)*'Base original'!Z49/'Base original'!$AC49 -> 3.851538642 | Z57: =('Base original'!AA61/'Base original'!AA49*100-100)*'Base original'!AA49/'Base original'!$AC49 -> 16.22832981 | AA57: =('Base original'!AB61/'Base original'!AB49*100-100)*'Base original'!AB49/'Base original'!$AC49 -> 13.39159032 | AB57: =('Base original'!AC61/'Base original'!AC49*100-100)*'Base original'!AC49/'Base original'!$AC49 -> 33.47145877 | AC57: =('Base original'!AC61/'Base original'!AC49*100-100)*'Base original'!AC49/('Base original'!$AJ49) -> 6.895363603 | AD57: =('Base original'!AD61/'Base original'!AD49*100-100)*'Base original'!AD49/('Base original'!$AJ49) -> -4.578907024 | AE57: =('Base original'!AE61/'Base original'!AE49*100-100)*'Base original'!AE49/('Base original'!$AJ49) -> 0.2346072844 | AF57: =('Base original'!AF61/'Base original'!AF49*100-100)*'Base original'!AF49/('Base original'!$AJ49) -> 1.961835667 | AG57: =('Base original'!AG61/'Base original'!AG49*100-100)*'Base original'!AG49/('Base original'!$AJ49) -> 0.0009678518335 | AH57: =-('Base original'!AH61/'Base original'!AH49*100-100)*'Base original'!AH49/('Base original'!$AJ49) -> -1.24562531 | AI57: =-('Base original'!AI61/'Base original'!AI49*100-100)*'Base original'!AI49/('Base original'!$AJ49) -> 0.006581392468 | AJ57: =(('Base original'!AF61-'Base original'!AH61)/('Base original'!AF49-'Base original'!AH49)*100-100)*(('Base original'!AF49-'Base original'!AH49)/'Base original'!AJ49) -> 0.7162103568 | AK57: =(('Base original'!AG61-'Base original'!AI61)/('Base original'!AG49-'Base original'!AI49)*100-100)*(('Base original'!AG49-'Base original'!AI49)/'Base original'!AJ49) -> 0.007549244301 | AL57: =('Base original'!AJ61/'Base original'!AJ49*100-100)*'Base original'!AJ49/('Base original'!$AJ49) -> 3.274823464 | AM57: =('Base original'!AJ61/'Base original'!AJ49*100-100)*'Base original'!AJ49/('Base original'!$AU49) -> 1.971477781 | AN57: =('Base original'!AK61/'Base original'!AK49*100-100)*'Base original'!AK49/('Base original'!$AU49) -> -1.058804062 | AO57: =('Base original'!AL61/'Base original'!AL49*100-100)*'Base original'!AL49/('Base original'!$AU49) -> -0.4689222479 | AP57: =('Base original'!AM61/'Base original'!AM49*100-100)*'Base original'!AM49/('Base original'!$AU49) -> 1.640179085 | AQ57: =('Base original'!AN61/'Base original'!AN49*100-100)*'Base original'!AN49/('Base original'!$AU49) -> -0.7689905353 | AR57: =('Base original'!AO61/'Base original'!AO49*100-100)*'Base original'!AO49/('Base original'!$AU49) -> -0.1095394913 | AS57: =('Base original'!AP61/'Base original'!AP49*100-100)*'Base original'!AP49/('Base original'!$AU49) -> 0.7011692758 | AT57: =('Base original'!AQ61/'Base original'!AQ49*100-100)*'Base original'!AQ49/('Base original'!$AU49) -> 2.831479319 | AU57: =('Base original'!AR61/'Base original'!AR49*100-100)*'Base original'!AR49/('Base original'!$AU49) -> 0.246929981 | AV57: =-('Base original'!AS61/'Base original'!AS49*100-100)*'Base original'!AS49/('Base original'!$AU49) -> -0.7616490588 | AW57: =-('Base original'!AT61/'Base original'!AT49*100-100)*'Base original'!AT49/('Base original'!$AU49) -> 0.02225749238 | AX57: =(('Base original'!AQ61-'Base original'!AS61)/('Base original'!AQ49-'Base original'!AS49)*100-100)*(('Base original'!AQ49-'Base original'!AS49)/'Base original'!AU49) -> 2.06983026 | AY57: =(('Base original'!AR61-'Base original'!AT61)/('Base original'!AR49-'Base original'!AT49)*100-100)*(('Base original'!AR49-'Base original'!AT49)/'Base original'!AU49) -> 0.2691874733 | AZ57: =('Base original'!AU61/'Base original'!AU49*100-100)*'Base original'!AU49/('Base original'!$AU49) -> 4.245937134
A58: 2010-04-01 | B58: ='Base original'!B62/'Base original'!B50*100-100 -> 4.553444536 | C58: ='Base original'!C62/'Base original'!C50*100-100 -> 3.933644279 | D58: ='Base original'!D62/'Base original'!D50*100-100 -> 9.893436373 | E58: ='Base original'!E62/'Base original'!E50*100-100 -> -16.44825398 | F58: ='Base original'!F62/'Base original'!F50*100-100 -> 3.816014654 | G58: ='Base original'!H62 -> 21.35640025 | H58: ='Base original'!I62 -> 34.77264967 | I58: ='Base original'!J62 -> 23.11688476 | J58: ='Base original'!K62 -> 25.14384494 | K58: ='Base original'!G62 -> 27.30835546 | L58: ='Base original'!M62 -> 3.787558594 | M58: ='Base original'!N62 -> 3.539037675 | N58: ='Base original'!O62 -> 4.01302618 | O58: ='Base original'!P62 -> 7.843802438 | P58: ='Base original'!Q62 -> 8.7 | Q58: ='Base original'!L62 -> 5.444336526 | R58: ='Base original'!S62 -> 1.875056435 | S58: ='Base original'!T62 -> 2.200089043 | T58: ='Base original'!U62 -> 1.410022672 | U58: ='Base original'!V62 -> 2.114681559 | V58: ='Base original'!W62 -> 3.44696964 | W58: ='Base original'!R62 -> 1.820821489 | X58: ='Base original'!X62 -> 4.127527784 | Y58: =('Base original'!Z62/'Base original'!Z50*100-100)*'Base original'!Z50/'Base original'!$AC50 -> 4.18744318 | Z58: =('Base original'!AA62/'Base original'!AA50*100-100)*'Base original'!AA50/'Base original'!$AC50 -> 15.27498462 | AA58: =('Base original'!AB62/'Base original'!AB50*100-100)*'Base original'!AB50/'Base original'!$AC50 -> 12.1637878 | AB58: =('Base original'!AC62/'Base original'!AC50*100-100)*'Base original'!AC50/'Base original'!$AC50 -> 31.6271339 | AC58: =('Base original'!AC62/'Base original'!AC50*100-100)*'Base original'!AC50/('Base original'!$AJ50) -> 6.773430985 | AD58: =('Base original'!AD62/'Base original'!AD50*100-100)*'Base original'!AD50/('Base original'!$AJ50) -> -2.690216964 | AE58: =('Base original'!AE62/'Base original'!AE50*100-100)*'Base original'!AE50/('Base original'!$AJ50) -> 0.3488884344 | AF58: =('Base original'!AF62/'Base original'!AF50*100-100)*'Base original'!AF50/('Base original'!$AJ50) -> 2.64596674 | AG58: =('Base original'!AG62/'Base original'!AG50*100-100)*'Base original'!AG50/('Base original'!$AJ50) -> 0.02281344892 | AH58: =-('Base original'!AH62/'Base original'!AH50*100-100)*'Base original'!AH50/('Base original'!$AJ50) -> -0.9595415283 | AI58: =-('Base original'!AI62/'Base original'!AI50*100-100)*'Base original'!AI50/('Base original'!$AJ50) -> 0.002163344294 | AJ58: =(('Base original'!AF62-'Base original'!AH62)/('Base original'!AF50-'Base original'!AH50)*100-100)*(('Base original'!AF50-'Base original'!AH50)/'Base original'!AJ50) -> 1.686425211 | AK58: =(('Base original'!AG62-'Base original'!AI62)/('Base original'!AG50-'Base original'!AI50)*100-100)*(('Base original'!AG50-'Base original'!AI50)/'Base original'!AJ50) -> 0.02497679322 | AL58: =('Base original'!AJ62/'Base original'!AJ50*100-100)*'Base original'!AJ50/('Base original'!$AJ50) -> 6.14350446 | AM58: =('Base original'!AJ62/'Base original'!AJ50*100-100)*'Base original'!AJ50/('Base original'!$AU50) -> 3.654263912 | AN58: =('Base original'!AK62/'Base original'!AK50*100-100)*'Base original'!AK50/('Base original'!$AU50) -> -0.6291257866 | AO58: =('Base original'!AL62/'Base original'!AL50*100-100)*'Base original'!AL50/('Base original'!$AU50) -> -0.2670684587 | AP58: =('Base original'!AM62/'Base original'!AM50*100-100)*'Base original'!AM50/('Base original'!$AU50) -> 1.86854336 | AQ58: =('Base original'!AN62/'Base original'!AN50*100-100)*'Base original'!AN50/('Base original'!$AU50) -> -0.8725640093 | AR58: =('Base original'!AO62/'Base original'!AO50*100-100)*'Base original'!AO50/('Base original'!$AU50) -> -0.1317210182 | AS58: =('Base original'!AP62/'Base original'!AP50*100-100)*'Base original'!AP50/('Base original'!$AU50) -> 0.1540644591 | AT58: =('Base original'!AQ62/'Base original'!AQ50*100-100)*'Base original'!AQ50/('Base original'!$AU50) -> 3.228685703 | AU58: =('Base original'!AR62/'Base original'!AR50*100-100)*'Base original'!AR50/('Base original'!$AU50) -> 0.2601665581 | AV58: =-('Base original'!AS62/'Base original'!AS50*100-100)*'Base original'!AS50/('Base original'!$AU50) -> -1.298844107 | AW58: =-('Base original'!AT62/'Base original'!AT50*100-100)*'Base original'!AT50/('Base original'!$AU50) -> 0.01087926704 | AX58: =(('Base original'!AQ62-'Base original'!AS62)/('Base original'!AQ50-'Base original'!AS50)*100-100)*(('Base original'!AQ50-'Base original'!AS50)/'Base original'!AU50) -> 1.929841596 | AY58: =(('Base original'!AR62-'Base original'!AT62)/('Base original'!AR50-'Base original'!AT50)*100-100)*(('Base original'!AR50-'Base original'!AT50)/'Base original'!AU50) -> 0.2710458251 | AZ58: =('Base original'!AU62/'Base original'!AU50*100-100)*'Base original'!AU50/('Base original'!$AU50) -> 5.977279879
A59: 2010-05-01 | B59: ='Base original'!B63/'Base original'!B51*100-100 -> 5.650506744 | C59: ='Base original'!C63/'Base original'!C51*100-100 -> 4.835744686 | D59: ='Base original'!D63/'Base original'!D51*100-100 -> 10.69826596 | E59: ='Base original'!E63/'Base original'!E51*100-100 -> -8.87418305 | F59: ='Base original'!F63/'Base original'!F51*100-100 -> 5.450700634 | G59: ='Base original'!H63 -> 20.87551957 | H59: ='Base original'!I63 -> 34.66643716 | I59: ='Base original'!J63 -> 23.06026839 | J59: ='Base original'!K63 -> 25.48703758 | K59: ='Base original'!G63 -> 27.304549 | L59: ='Base original'!M63 -> 2.610937364 | M59: ='Base original'!N63 -> 3.639255642 | N59: ='Base original'!O63 -> 4.398213745 | O59: ='Base original'!P63 -> 8.801457545 | P59: ='Base original'!Q63 -> 7.133936312 | Q59: ='Base original'!L63 -> 5.104336024 | R59: ='Base original'!S63 -> 2.693959324 | S59: ='Base original'!T63 -> 2.067121813 | T59: ='Base original'!U63 -> 2.355033951 | U59: ='Base original'!V63 -> 2.58529002 | V59: ='Base original'!W63 -> 2.598625804 | W59: ='Base original'!R63 -> 2.343192732 | X59: ='Base original'!X63 -> 4.180987597 | Y59: =('Base original'!Z63/'Base original'!Z51*100-100)*'Base original'!Z51/'Base original'!$AC51 -> 4.310808784 | Z59: =('Base original'!AA63/'Base original'!AA51*100-100)*'Base original'!AA51/'Base original'!$AC51 -> 15.73277573 | AA59: =('Base original'!AB63/'Base original'!AB51*100-100)*'Base original'!AB51/'Base original'!$AC51 -> 12.53363684 | AB59: =('Base original'!AC63/'Base original'!AC51*100-100)*'Base original'!AC51/'Base original'!$AC51 -> 32.57633908 | AC59: =('Base original'!AC63/'Base original'!AC51*100-100)*'Base original'!AC51/('Base original'!$AJ51) -> 7.242004923 | AD59: =('Base original'!AD63/'Base original'!AD51*100-100)*'Base original'!AD51/('Base original'!$AJ51) -> -1.353548628 | AE59: =('Base original'!AE63/'Base original'!AE51*100-100)*'Base original'!AE51/('Base original'!$AJ51) -> 0.2910688543 | AF59: =('Base original'!AF63/'Base original'!AF51*100-100)*'Base original'!AF51/('Base original'!$AJ51) -> 1.618923398 | AG59: =('Base original'!AG63/'Base original'!AG51*100-100)*'Base original'!AG51/('Base original'!$AJ51) -> 0.04707313007 | AH59: =-('Base original'!AH63/'Base original'!AH51*100-100)*'Base original'!AH51/('Base original'!$AJ51) -> -0.2820465043 | AI59: =-('Base original'!AI63/'Base original'!AI51*100-100)*'Base original'!AI51/('Base original'!$AJ51) -> 0.0007845521678 | AJ59: =(('Base original'!AF63-'Base original'!AH63)/('Base original'!AF51-'Base original'!AH51)*100-100)*(('Base original'!AF51-'Base original'!AH51)/'Base original'!AJ51) -> 1.336876894 | AK59: =(('Base original'!AG63-'Base original'!AI63)/('Base original'!AG51-'Base original'!AI51)*100-100)*(('Base original'!AG51-'Base original'!AI51)/'Base original'!AJ51) -> 0.04785768224 | AL59: =('Base original'!AJ63/'Base original'!AJ51*100-100)*'Base original'!AJ51/('Base original'!$AJ51) -> 7.564259726 | AM59: =('Base original'!AJ63/'Base original'!AJ51*100-100)*'Base original'!AJ51/('Base original'!$AU51) -> 4.486369654 | AN59: =('Base original'!AK63/'Base original'!AK51*100-100)*'Base original'!AK51/('Base original'!$AU51) -> 0.1184235935 | AO59: =('Base original'!AL63/'Base original'!AL51*100-100)*'Base original'!AL51/('Base original'!$AU51) -> -0.8721234583 | AP59: =('Base original'!AM63/'Base original'!AM51*100-100)*'Base original'!AM51/('Base original'!$AU51) -> 2.091374621 | AQ59: =('Base original'!AN63/'Base original'!AN51*100-100)*'Base original'!AN51/('Base original'!$AU51) -> -0.8241956386 | AR59: =('Base original'!AO63/'Base original'!AO51*100-100)*'Base original'!AO51/('Base original'!$AU51) -> -0.1565797219 | AS59: =('Base original'!AP63/'Base original'!AP51*100-100)*'Base original'!AP51/('Base original'!$AU51) -> -0.3087389167 | AT59: =('Base original'!AQ63/'Base original'!AQ51*100-100)*'Base original'!AQ51/('Base original'!$AU51) -> 3.208604672 | AU59: =('Base original'!AR63/'Base original'!AR51*100-100)*'Base original'!AR51/('Base original'!$AU51) -> 0.225912199 | AV59: =-('Base original'!AS63/'Base original'!AS51*100-100)*'Base original'!AS51/('Base original'!$AU51) -> -1.279858915 | AW59: =-('Base original'!AT63/'Base original'!AT51*100-100)*'Base original'!AT51/('Base original'!$AU51) -> -0.009306372771 | AX59: =(('Base original'!AQ63-'Base original'!AS63)/('Base original'!AQ51-'Base original'!AS51)*100-100)*(('Base original'!AQ51-'Base original'!AS51)/'Base original'!AU51) -> 1.928745757 | AY59: =(('Base original'!AR63-'Base original'!AT63)/('Base original'!AR51-'Base original'!AT51)*100-100)*(('Base original'!AR51-'Base original'!AT51)/'Base original'!AU51) -> 0.2166058263 | AZ59: =('Base original'!AU63/'Base original'!AU51*100-100)*'Base original'!AU51/('Base original'!$AU51) -> 6.679649057
A60: 2010-06-01 | B60: ='Base original'!B64/'Base original'!B52*100-100 -> 7.173842755 | C60: ='Base original'!C64/'Base original'!C52*100-100 -> 6.269150753 | D60: ='Base original'!D64/'Base original'!D52*100-100 -> 11.28307223 | E60: ='Base original'!E64/'Base original'!E52*100-100 -> 8.30301237 | F60: ='Base original'!F64/'Base original'!F52*100-100 -> 8.114126449 | G60: ='Base original'!H64 -> 22.02349102 | H60: ='Base original'!I64 -> 35.21634701 | I60: ='Base original'!J64 -> 23.06283495 | J60: ='Base original'!K64 -> 24.78810891 | K60: ='Base original'!G64 -> 27.30581746 | L60: ='Base original'!M64 -> 3.120646728 | M60: ='Base original'!N64 -> 3.46458415 | N60: ='Base original'!O64 -> 4.402196826 | O60: ='Base original'!P64 -> 7.468893929 | P60: ='Base original'!Q64 -> 8.849441622 | Q60: ='Base original'!L64 -> 5.264501639 | R60: ='Base original'!S64 -> 1.876467075 | S60: ='Base original'!T64 -> 1.990638924 | T60: ='Base original'!U64 -> 2.729247237 | U60: ='Base original'!V64 -> 2.38143943 | V60: ='Base original'!W64 -> 2.318269762 | W60: ='Base original'!R64 -> 2.17113661 | X60: ='Base original'!X64 -> 4.064804216 | Y60: =('Base original'!Z64/'Base original'!Z52*100-100)*'Base original'!Z52/'Base original'!$AC52 -> 4.344457072 | Z60: =('Base original'!AA64/'Base original'!AA52*100-100)*'Base original'!AA52/'Base original'!$AC52 -> 15.55515377 | AA60: =('Base original'!AB64/'Base original'!AB52*100-100)*'Base original'!AB52/'Base original'!$AC52 -> 12.02086992 | AB60: =('Base original'!AC64/'Base original'!AC52*100-100)*'Base original'!AC52/'Base original'!$AC52 -> 31.92134174 | AC60: =('Base original'!AC64/'Base original'!AC52*100-100)*'Base original'!AC52/('Base original'!$AJ52) -> 7.200062143 | AD60: =('Base original'!AD64/'Base original'!AD52*100-100)*'Base original'!AD52/('Base original'!$AJ52) -> -1.36054686 | AE60: =('Base original'!AE64/'Base original'!AE52*100-100)*'Base original'!AE52/('Base original'!$AJ52) -> 0.3318833262 | AF60: =('Base original'!AF64/'Base original'!AF52*100-100)*'Base original'!AF52/('Base original'!$AJ52) -> 0.220996621 | AG60: =('Base original'!AG64/'Base original'!AG52*100-100)*'Base original'!AG52/('Base original'!$AJ52) -> 0.06932846545 | AH60: =-('Base original'!AH64/'Base original'!AH52*100-100)*'Base original'!AH52/('Base original'!$AJ52) -> 0.0207791199 | AI60: =-('Base original'!AI64/'Base original'!AI52*100-100)*'Base original'!AI52/('Base original'!$AJ52) -> 0.006602710995 | AJ60: =(('Base original'!AF64-'Base original'!AH64)/('Base original'!AF52-'Base original'!AH52)*100-100)*(('Base original'!AF52-'Base original'!AH52)/'Base original'!AJ52) -> 0.2417757409 | AK60: =(('Base original'!AG64-'Base original'!AI64)/('Base original'!AG52-'Base original'!AI52)*100-100)*(('Base original'!AG52-'Base original'!AI52)/'Base original'!AJ52) -> 0.07593117645 | AL60: =('Base original'!AJ64/'Base original'!AJ52*100-100)*'Base original'!AJ52/('Base original'!$AJ52) -> 6.488911329 | AM60: =('Base original'!AJ64/'Base original'!AJ52*100-100)*'Base original'!AJ52/('Base original'!$AU52) -> 3.863024151 | AN60: =('Base original'!AK64/'Base original'!AK52*100-100)*'Base original'!AK52/('Base original'!$AU52) -> 0.9209567962 | AO60: =('Base original'!AL64/'Base original'!AL52*100-100)*'Base original'!AL52/('Base original'!$AU52) -> -2.049666462 | AP60: =('Base original'!AM64/'Base original'!AM52*100-100)*'Base original'!AM52/('Base original'!$AU52) -> 2.265974542 | AQ60: =('Base original'!AN64/'Base original'!AN52*100-100)*'Base original'!AN52/('Base original'!$AU52) -> -0.6530862342 | AR60: =('Base original'!AO64/'Base original'!AO52*100-100)*'Base original'!AO52/('Base original'!$AU52) -> -0.1630114339 | AS60: =('Base original'!AP64/'Base original'!AP52*100-100)*'Base original'!AP52/('Base original'!$AU52) -> -0.2477542574 | AT60: =('Base original'!AQ64/'Base original'!AQ52*100-100)*'Base original'!AQ52/('Base original'!$AU52) -> 3.206007145 | AU60: =('Base original'!AR64/'Base original'!AR52*100-100)*'Base original'!AR52/('Base original'!$AU52) -> 0.1979259396 | AV60: =-('Base original'!AS64/'Base original'!AS52*100-100)*'Base original'!AS52/('Base original'!$AU52) -> -0.9211880181 | AW60: =-('Base original'!AT64/'Base original'!AT52*100-100)*'Base original'!AT52/('Base original'!$AU52) -> -0.02867151462 | AX60: =(('Base original'!AQ64-'Base original'!AS64)/('Base original'!AQ52-'Base original'!AS52)*100-100)*(('Base original'!AQ52-'Base original'!AS52)/'Base original'!AU52) -> 2.284819127 | AY60: =(('Base original'!AR64-'Base original'!AT64)/('Base original'!AR52-'Base original'!AT52)*100-100)*(('Base original'!AR52-'Base original'!AT52)/'Base original'!AU52) -> 0.169254425 | AZ60: =('Base original'!AU64/'Base original'!AU52*100-100)*'Base original'!AU52/('Base original'!$AU52) -> 6.390279432
A61: 2010-07-01 | B61: ='Base original'!B65/'Base original'!B53*100-100 -> 6.222826542 | C61: ='Base original'!C65/'Base original'!C53*100-100 -> 7.126986628 | D61: ='Base original'!D65/'Base original'!D53*100-100 -> 11.19337961 | E61: ='Base original'!E65/'Base original'!E53*100-100 -> 3.943659891 | F61: ='Base original'!F65/'Base original'!F53*100-100 -> 7.322157004 | G61: ='Base original'!H65 -> 23.39403396 | H61: ='Base original'!I65 -> 35.59254891 | I61: ='Base original'!J65 -> 24.82489296 | J61: ='Base original'!K65 -> 25.53624346 | K61: ='Base original'!G65 -> 28.12090691 | L61: ='Base original'!M65 -> 3.381370971 | M61: ='Base original'!N65 -> 4.010550957 | N61: ='Base original'!O65 -> 5.377552179 | O61: ='Base original'!P65 -> 8.339702809 | P61: ='Base original'!Q65 -> 8.870093252 | Q61: ='Base original'!L65 -> 5.864711137 | R61: ='Base original'!S65 -> 2.432025408 | S61: ='Base original'!T65 -> 1.709696418 | T61: ='Base original'!U65 -> 1.904618044 | U61: ='Base original'!V65 -> 3.162283651 | V61: ='Base original'!W65 -> 1.284960667 | W61: ='Base original'!R65 -> 2.049669513 | X61: ='Base original'!X65 -> 4.025876708 | Y61: =('Base original'!Z65/'Base original'!Z53*100-100)*'Base original'!Z53/'Base original'!$AC53 -> 4.466394305 | Z61: =('Base original'!AA65/'Base original'!AA53*100-100)*'Base original'!AA53/'Base original'!$AC53 -> 14.24643602 | AA61: =('Base original'!AB65/'Base original'!AB53*100-100)*'Base original'!AB53/'Base original'!$AC53 -> 11.82620537 | AB61: =('Base original'!AC65/'Base original'!AC53*100-100)*'Base original'!AC53/'Base original'!$AC53 -> 30.53817379 | AC61: =('Base original'!AC65/'Base original'!AC53*100-100)*'Base original'!AC53/('Base original'!$AJ53) -> 6.815095501 | AD61: =('Base original'!AD65/'Base original'!AD53*100-100)*'Base original'!AD53/('Base original'!$AJ53) -> -2.67383485 | AE61: =('Base original'!AE65/'Base original'!AE53*100-100)*'Base original'!AE53/('Base original'!$AJ53) -> 0.3804650984 | AF61: =('Base original'!AF65/'Base original'!AF53*100-100)*'Base original'!AF53/('Base original'!$AJ53) -> -1.347400412 | AG61: =('Base original'!AG65/'Base original'!AG53*100-100)*'Base original'!AG53/('Base original'!$AJ53) -> 0.07309238493 | AH61: =-('Base original'!AH65/'Base original'!AH53*100-100)*'Base original'!AH53/('Base original'!$AJ53) -> 1.253149705 | AI61: =-('Base original'!AI65/'Base original'!AI53*100-100)*'Base original'!AI53/('Base original'!$AJ53) -> 0.0007693935256 | AJ61: =(('Base original'!AF65-'Base original'!AH65)/('Base original'!AF53-'Base original'!AH53)*100-100)*(('Base original'!AF53-'Base original'!AH53)/'Base original'!AJ53) -> -0.09425070688 | AK61: =(('Base original'!AG65-'Base original'!AI65)/('Base original'!AG53-'Base original'!AI53)*100-100)*(('Base original'!AG53-'Base original'!AI53)/'Base original'!AJ53) -> 0.07386177845 | AL61: =('Base original'!AJ65/'Base original'!AJ53*100-100)*'Base original'!AJ53/('Base original'!$AJ53) -> 4.50152917 | AM61: =('Base original'!AJ65/'Base original'!AJ53*100-100)*'Base original'!AJ53/('Base original'!$AU53) -> 2.710606843 | AN61: =('Base original'!AK65/'Base original'!AK53*100-100)*'Base original'!AK53/('Base original'!$AU53) -> 1.016810558 | AO61: =('Base original'!AL65/'Base original'!AL53*100-100)*'Base original'!AL53/('Base original'!$AU53) -> -2.116434596 | AP61: =('Base original'!AM65/'Base original'!AM53*100-100)*'Base original'!AM53/('Base original'!$AU53) -> 2.342289544 | AQ61: =('Base original'!AN65/'Base original'!AN53*100-100)*'Base original'!AN53/('Base original'!$AU53) -> -0.6496514884 | AR61: =('Base original'!AO65/'Base original'!AO53*100-100)*'Base original'!AO53/('Base original'!$AU53) -> -0.2297929316 | AS61: =('Base original'!AP65/'Base original'!AP53*100-100)*'Base original'!AP53/('Base original'!$AU53) -> -0.0681039535 | AT61: =('Base original'!AQ65/'Base original'!AQ53*100-100)*'Base original'!AQ53/('Base original'!$AU53) -> 3.210499128 | AU61: =('Base original'!AR65/'Base original'!AR53*100-100)*'Base original'!AR53/('Base original'!$AU53) -> 0.2011846382 | AV61: =-('Base original'!AS65/'Base original'!AS53*100-100)*'Base original'!AS53/('Base original'!$AU53) -> -1.20525466 | AW61: =-('Base original'!AT65/'Base original'!AT53*100-100)*'Base original'!AT53/('Base original'!$AU53) -> -0.02663930154 | AX61: =(('Base original'!AQ65-'Base original'!AS65)/('Base original'!AQ53-'Base original'!AS53)*100-100)*(('Base original'!AQ53-'Base original'!AS53)/'Base original'!AU53) -> 2.005244468 | AY61: =(('Base original'!AR65-'Base original'!AT65)/('Base original'!AR53-'Base original'!AT53)*100-100)*(('Base original'!AR53-'Base original'!AT53)/'Base original'!AU53) -> 0.1745453366 | AZ61: =('Base original'!AU65/'Base original'!AU53*100-100)*'Base original'!AU53/('Base original'!$AU53) -> 5.185397956
